Workbook

Sheet Model Diagram

Sheet Init
E1: YYYY | F1: FYMonthID | G1: FiscalYear | H1: MM | I1: DT | J1: TotalHours | K1: HLH | L1: LLH | N1: year | O1: days | P1: hours | R1: Yes | V1: BESID | W1: AccountName | X1: Slice Block or Block | Y1: PNGC | Z1: Initial Slice% | AA1: PLVS Election
E2: 2023 | F2: 1 | G2: 2022 | H2: 10 | I2: 2021-10-01 | J2: =+SUM(K2:L2) -> 744 | K2: 416 | L2: 328 | N2: 2022 | O2: 365 | P2: 8760 | R2: No | T2: Load Following
A3: Start Year | B3: 2024 | C3: =+IF(B3<>2022,"Forecast","Actuals") -> Forecast | E3: 2023 | F3: 2 | G3: 2022 | H3: 11 | I3: =+EOMONTH(I2,0)+1 -> 2021-11-01 | J3: =+SUM(K3:L3) -> 721 | K3: 400 | L3: 321 | N3: 2023 | O3: 365 | P3: 8760 | T3: Block only | V3: 10005 | W3: Alder Mutual | X3: 0 | Y3: 0 | Z3: 0 | AA3: Yes
E4: 2023 | F4: 3 | G4: 2022 | H4: 12 | I4: =+EOMONTH(I3,0)+1 -> 2021-12-01 | J4: 744 | K4: 416 | L4: 328 | N4: 2024 | O4: 366 | P4: 8784 | T4: Block with Shaping | V4: 10015 | W4: Asotin County PUD #1 | X4: 0 | Y4: 0 | Z4: 0 | AA4: Yes
A5: Tier 1 System Capability | E5: 2023 | F5: 4 | G5: 2023 | H5: 1 | I5: 2022-01-01 | J5: 744 | K5: 400 | L5: 344 | N5: 2025 | O5: 365 | P5: 8760 | T5: Slice Block | V5: 10024 | W5: Benton County PUD #1 | X5: 1 | Y5: 0 | Z5: 0 | AA5: Yes
A6: 2022 | B6: 6736.359 | E6: 2023 | F6: 5 | G6: 2023 | H6: 2 | I6: 2022-02-01 | J6: 672 | K6: 384 | L6: 288 | N6: 2026 | O6: 365 | P6: 8760 | V6: 10025 | W6: Benton REA | X6: 0 | Y6: 0 | Z6: 0 | AA6: Yes
A7: 2024 | B7: 7063.365 | E7: 2023 | F7: 6 | G7: 2023 | H7: 3 | I7: 2022-03-01 | J7: 743 | K7: 432 | L7: 311 | N7: 2027 | O7: 365 | P7: 8760 | V7: 10027 | W7: Big Bend Elec Coop | X7: 0 | Y7: 0 | Z7: 0 | AA7: Yes
E8: 2023 | F8: 7 | G8: 2023 | H8: 4 | I8: 2022-04-01 | J8: 720 | K8: 416 | L8: 304 | N8: 2028 | O8: 366 | P8: 8784 | V8: 10029 | W8: Blachly Lane Elec Coop | X8: 0 | Y8: 1 | Z8: 0 | AA8: Yes
A9: Include Tier 2 Load Shaping in Effective Rate | E9: 2023 | F9: 8 | G9: 2023 | H9: 5 | I9: 2022-05-01 | J9: 744 | K9: 400 | L9: 344 | N9: 2029 | O9: 365 | P9: 8760 | V9: 10044 | W9: Canby, City of | X9: 0 | Y9: 0 | Z9: 0 | AA9: Yes
B10: Yes | E10: 2023 | F10: 9 | G10: 2023 | H10: 6 | I10: 2022-06-01 | J10: 720 | K10: 416 | L10: 304 | N10: 2030 | O10: 365 | P10: 8760 | T10: Peak-CDQ-aHLH | V10: 10046 | W10: Central Electric Coop | X10: 0 | Y10: 1 | Z10: 0 | AA10: Yes
E11: 2023 | F11: 10 | G11: 2023 | H11: 7 | I11: 2022-07-01 | J11: 744 | K11: 400 | L11: 344 | N11: 2031 | O11: 365 | P11: 8760 | T11: Peak-aMW | V11: 10047 | W11: Central Lincoln PUD | X11: 0 | Y11: 0 | Z11: 0 | AA11: Yes
E12: 2023 | F12: 11 | G12: 2023 | H12: 8 | I12: 2022-08-01 | J12: 744 | K12: 432 | L12: 312 | N12: 2032 | O12: 366 | P12: 8784 | T12: Peak-aHLH | V12: 10055 | W12: Albion, City of | X12: 0 | Y12: 0 | Z12: 0 | AA12: Yes
A13: Include Block Shaping? | B13: Yes | E13: 2023 | F13: 12 | G13: 2023 | H13: 9 | I13: 2022-09-01 | J13: 720 | K13: 400 | L13: 320 | N13: 2033 | O13: 365 | P13: 8760 | T13: TTSL | V13: 10057 | W13: Ashland, City of | X13: 0 | Y13: 0 | Z13: 0 | AA13: Yes
E14: 2023 | F14: 1 | G14: 2022 | H14: 10 | I14: 2022-10-01 | J14: 744 | K14: 416 | L14: 328 | N14: 2034 | O14: 365 | P14: 8760 | T14: Peak-aMW | V14: 10059 | W14: Bandon, City of | X14: 0 | Y14: 0 | Z14: 0 | AA14: Yes
A15: Scenario Selection | E15: 2023 | F15: 2 | G15: 2022 | H15: 11 | I15: 2022-11-01 | J15: 721 | K15: 400 | L15: 321 | N15: 2035 | O15: 365 | P15: 8760 | V15: 10061 | W15: Blaine, City of | X15: 0 | Y15: 0 | Z15: 0 | AA15: Yes
... 18 more rows

Sheet BlockShaping
A1: Elections | C1: Shaping Capacity (MW demand) | P1: HLH/LLH Shape Adjustment (% HLH shift)
C2: 10 | D2: 11 | E2: 12 | F2: 1 | G2: 2 | H2: 3 | I2: 4 | J2: 5 | K2: 6 | L2: 7 | M2: 8 | N2: 9 | P2: =+C2 -> 10 | Q2: =+D2 -> 11 | R2: 12 | S2: 1 | T2: 2 | U2: 3 | V2: 4 | W2: 5 | X2: 6 | Y2: 7 | Z2: 8 | AA2: =+N2 -> 9
A3: 10005 | B3: Alder Mutual | C3: 0 | D3: 0 | E3: 0 | F3: 0 | G3: 0 | H3: 0 | I3: 0 | J3: 0 | K3: 0 | L3: 0 | M3: 0 | N3: 0 | O3: =+A3 -> 10005 | P3: 1 | Q3: 1 | R3: 1 | S3: 1 | T3: 1 | U3: 1 | V3: 1 | W3: 1 | X3: 1 | Y3: 1 | Z3: 1 | AA3: 1
A4: 10015 | B4: Asotin County PUD #1 | C4: 0 | D4: 0 | E4: 0 | F4: 0 | G4: 0 | H4: 0 | I4: 0 | J4: 0 | K4: 0 | L4: 0 | M4: 0 | N4: 0 | O4: =+A4 -> 10015 | P4: 1 | Q4: 1 | R4: 1 | S4: 1 | T4: 1 | U4: 1 | V4: 1 | W4: 1 | X4: 1 | Y4: 1 | Z4: 1 | AA4: 1
A5: 10024 | B5: Benton County PUD #1 | C5: 0 | D5: 0 | E5: 0 | F5: 0 | G5: 0 | H5: 0 | I5: 0 | J5: 0 | K5: 0 | L5: 0 | M5: 0 | N5: 0 | O5: 10024 | P5: 1 | Q5: 1 | R5: 1 | S5: 1 | T5: 1 | U5: 1 | V5: 1 | W5: 1 | X5: 1 | Y5: 1 | Z5: 1 | AA5: 1
A6: 10025 | B6: Benton REA | C6: 0 | D6: 0 | E6: 0 | F6: 0 | G6: 0 | H6: 0 | I6: 0 | J6: 0 | K6: 0 | L6: 0 | M6: 0 | N6: 0 | O6: 10025 | P6: 1 | Q6: 1 | R6: 1 | S6: 1 | T6: 1 | U6: 1 | V6: 1 | W6: 1 | X6: 1 | Y6: 1 | Z6: 1 | AA6: 1
A7: 10027 | B7: Big Bend Elec Coop | C7: 0 | D7: 0 | E7: 0 | F7: 0 | G7: 0 | H7: 0 | I7: 0 | J7: 0 | K7: 0 | L7: 0 | M7: 0 | N7: 0 | O7: 10027 | P7: 1 | Q7: 1 | R7: 1 | S7: 1 | T7: 1 | U7: 1 | V7: 1 | W7: 1 | X7: 1 | Y7: 1 | Z7: 1 | AA7: 1
A8: 10029 | B8: Blachly Lane Elec Coop | C8: 0 | D8: 0 | E8: 0 | F8: 0 | G8: 0 | H8: 0 | I8: 0 | J8: 0 | K8: 0 | L8: 0 | M8: 0 | N8: 0 | O8: 10029 | P8: 1 | Q8: 1 | R8: 1 | S8: 1 | T8: 1 | U8: 1 | V8: 1 | W8: 1 | X8: 1 | Y8: 1 | Z8: 1 | AA8: 1
A9: 10044 | B9: Canby, City of | C9: 0 | D9: 0 | E9: 0 | F9: 0 | G9: 0 | H9: 0 | I9: 0 | J9: 0 | K9: 0 | L9: 0 | M9: 0 | N9: 0 | O9: 10044 | P9: 1 | Q9: 1 | R9: 1 | S9: 1 | T9: 1 | U9: 1 | V9: 1 | W9: 1 | X9: 1 | Y9: 1 | Z9: 1 | AA9: 1
A10: 10046 | B10: Central Electric Coop | C10: 0 | D10: 0 | E10: 0 | F10: 0 | G10: 0 | H10: 0 | I10: 0 | J10: 0 | K10: 0 | L10: 0 | M10: 0 | N10: 0 | O10: 10046 | P10: 1 | Q10: 1 | R10: 1 | S10: 1 | T10: 1 | U10: 1 | V10: 1 | W10: 1 | X10: 1 | Y10: 1 | Z10: 1 | AA10: 1
A11: 10047 | B11: Central Lincoln PUD | C11: 0 | D11: 0 | E11: 0 | F11: 0 | G11: 0 | H11: 0 | I11: 0 | J11: 0 | K11: 0 | L11: 0 | M11: 0 | N11: 0 | O11: 10047 | P11: 1 | Q11: 1 | R11: 1 | S11: 1 | T11: 1 | U11: 1 | V11: 1 | W11: 1 | X11: 1 | Y11: 1 | Z11: 1 | AA11: 1
A12: 10055 | B12: Albion, City of | C12: 0 | D12: 0 | E12: 0 | F12: 0 | G12: 0 | H12: 0 | I12: 0 | J12: 0 | K12: 0 | L12: 0 | M12: 0 | N12: 0 | O12: 10055 | P12: 1 | Q12: 1 | R12: 1 | S12: 1 | T12: 1 | U12: 1 | V12: 1 | W12: 1 | X12: 1 | Y12: 1 | Z12: 1 | AA12: 1
A13: 10057 | B13: Ashland, City of | C13: 0 | D13: 0 | E13: 0 | F13: 0 | G13: 0 | H13: 0 | I13: 0 | J13: 0 | K13: 0 | L13: 0 | M13: 0 | N13: 0 | O13: 10057 | P13: 1 | Q13: 1 | R13: 1 | S13: 1 | T13: 1 | U13: 1 | V13: 1 | W13: 1 | X13: 1 | Y13: 1 | Z13: 1 | AA13: 1
A14: 10059 | B14: Bandon, City of | C14: 0 | D14: 0 | E14: 0 | F14: 0 | G14: 0 | H14: 0 | I14: 0 | J14: 0 | K14: 0 | L14: 0 | M14: 0 | N14: 0 | O14: 10059 | P14: 1 | Q14: 1 | R14: 1 | S14: 1 | T14: 1 | U14: 1 | V14: 1 | W14: 1 | X14: 1 | Y14: 1 | Z14: 1 | AA14: 1
A15: 10061 | B15: Blaine, City of | C15: 0 | D15: 0 | E15: 0 | F15: 0 | G15: 0 | H15: 0 | I15: 0 | J15: 0 | K15: 0 | L15: 0 | M15: 0 | N15: 0 | O15: 10061 | P15: 1 | Q15: 1 | R15: 1 | S15: 1 | T15: 1 | U15: 1 | V15: 1 | W15: 1 | X15: 1 | Y15: 1 | Z15: 1 | AA15: 1
... 18 more rows

Sheet IRD
A1: BESID | B1: AccountName | C1: 2022 | D1: =+C1+1 -> 2023 | E1: =+D1+1 -> 2024 | F1: 2025 | G1: 2026 | H1: 2027 | I1: 2028 | J1: 2029 | K1: 2030 | L1: 2031 | M1: 2032 | N1: 2033 | O1: 2034 | P1: 2035 | Q1: 2036 | R1: 2037 | S1: 2038 | T1: 2039 | U1: 2040 | V1: 2041
A2: 10005 | B2: Alder Mutual | C2: 0 | D2: 0 | E2: 0 | F2: 0 | G2: 0 | H2: 0 | I2: 0 | J2: 0 | K2: 0 | L2: 0 | M2: 0 | N2: 0 | O2: 0 | P2: 0 | Q2: 0 | R2: 0 | S2: 0 | T2: 0 | U2: 0 | V2: 0
A3: 10015 | B3: Asotin County PUD #1 | C3: 0 | D3: 0 | E3: 0 | F3: 0 | G3: 0 | H3: 0 | I3: 0 | J3: 0 | K3: 0 | L3: 0 | M3: 0 | N3: 0 | O3: 0 | P3: 0 | Q3: 0 | R3: 0 | S3: 0 | T3: 0 | U3: 0 | V3: 0
A4: 10024 | B4: Benton County PUD #1 | C4: 312239.2 | D4: 312239.2 | E4: 312239.2 | F4: 312239.2 | G4: 312239.2 | H4: 312239.2 | I4: 312239.2 | J4: 312239.2 | K4: 312239.2 | L4: 312239.2 | M4: 312239.2 | N4: 312239.2 | O4: 312239.2 | P4: 312239.2 | Q4: 312239.2 | R4: 312239.2 | S4: 312239.2 | T4: 312239.2 | U4: 312239.2 | V4: 312239.2
A5: 10025 | B5: Benton REA | C5: 82900.857 | D5: 82900.857 | E5: 82900.857 | F5: 82900.857 | G5: 82900.857 | H5: 82900.857 | I5: 82900.857 | J5: 82900.857 | K5: 82900.857 | L5: 82900.857 | M5: 82900.857 | N5: 82900.857 | O5: 82900.857 | P5: 82900.857 | Q5: 82900.857 | R5: 82900.857 | S5: 82900.857 | T5: 82900.857 | U5: 82900.857 | V5: 82900.857
A6: 10027 | B6: Big Bend Elec Coop | C6: 209669.54 | D6: 209669.54 | E6: 209669.54 | F6: 209669.54 | G6: 209669.54 | H6: 209669.54 | I6: 209669.54 | J6: 209669.54 | K6: 209669.54 | L6: 209669.54 | M6: 209669.54 | N6: 209669.54 | O6: 209669.54 | P6: 209669.54 | Q6: 209669.54 | R6: 209669.54 | S6: 209669.54 | T6: 209669.54 | U6: 209669.54 | V6: 209669.54
A7: 10029 | B7: Blachly Lane Elec Coop | C7: 0 | D7: 0 | E7: 0 | F7: 0 | G7: 0 | H7: 0 | I7: 0 | J7: 0 | K7: 0 | L7: 0 | M7: 0 | N7: 0 | O7: 0 | P7: 0 | Q7: 0 | R7: 0 | S7: 0 | T7: 0 | U7: 0 | V7: 0
A8: 10044 | B8: Canby, City of | C8: 0 | D8: 0 | E8: 0 | F8: 0 | G8: 0 | H8: 0 | I8: 0 | J8: 0 | K8: 0 | L8: 0 | M8: 0 | N8: 0 | O8: 0 | P8: 0 | Q8: 0 | R8: 0 | S8: 0 | T8: 0 | U8: 0 | V8: 0
A9: 10046 | B9: Central Electric Coop | C9: 41085.457 | D9: 41085.457 | E9: 41085.457 | F9: 41085.457 | G9: 41085.457 | H9: 41085.457 | I9: 41085.457 | J9: 41085.457 | K9: 41085.457 | L9: 41085.457 | M9: 41085.457 | N9: 41085.457 | O9: 41085.457 | P9: 41085.457 | Q9: 41085.457 | R9: 41085.457 | S9: 41085.457 | T9: 41085.457 | U9: 41085.457 | V9: 41085.457
A10: 10047 | B10: Central Lincoln PUD | C10: 0 | D10: 0 | E10: 0 | F10: 0 | G10: 0 | H10: 0 | I10: 0 | J10: 0 | K10: 0 | L10: 0 | M10: 0 | N10: 0 | O10: 0 | P10: 0 | Q10: 0 | R10: 0 | S10: 0 | T10: 0 | U10: 0 | V10: 0
A11: 10055 | B11: Albion, City of | C11: 0 | D11: 0 | E11: 0 | F11: 0 | G11: 0 | H11: 0 | I11: 0 | J11: 0 | K11: 0 | L11: 0 | M11: 0 | N11: 0 | O11: 0 | P11: 0 | Q11: 0 | R11: 0 | S11: 0 | T11: 0 | U11: 0 | V11: 0
A12: 10057 | B12: Ashland, City of | C12: 0 | D12: 0 | E12: 0 | F12: 0 | G12: 0 | H12: 0 | I12: 0 | J12: 0 | K12: 0 | L12: 0 | M12: 0 | N12: 0 | O12: 0 | P12: 0 | Q12: 0 | R12: 0 | S12: 0 | T12: 0 | U12: 0 | V12: 0
A13: 10059 | B13: Bandon, City of | C13: 0 | D13: 0 | E13: 0 | F13: 0 | G13: 0 | H13: 0 | I13: 0 | J13: 0 | K13: 0 | L13: 0 | M13: 0 | N13: 0 | O13: 0 | P13: 0 | Q13: 0 | R13: 0 | S13: 0 | T13: 0 | U13: 0 | V13: 0
A14: 10061 | B14: Blaine, City of | C14: 0 | D14: 0 | E14: 0 | F14: 0 | G14: 0 | H14: 0 | I14: 0 | J14: 0 | K14: 0 | L14: 0 | M14: 0 | N14: 0 | O14: 0 | P14: 0 | Q14: 0 | R14: 0 | S14: 0 | T14: 0 | U14: 0 | V14: 0
A15: 10062 | B15: Bonners Ferry, City of | C15: 0 | D15: 0 | E15: 0 | F15: 0 | G15: 0 | H15: 0 | I15: 0 | J15: 0 | K15: 0 | L15: 0 | M15: 0 | N15: 0 | O15: 0 | P15: 0 | Q15: 0 | R15: 0 | S15: 0 | T15: 0 | U15: 0 | V15: 0
... 6 more rows

Sheet LDD_YR1
A1: Applicable Low Density Discount for FY2022
A2: Prepared by BPA, September 23, 2021
A4: applicable LDD = eligible LDD * max(adjTRL/RHWM, 1.0)
A5: BESID | B5: Preference Customer | C5: RHWM 2022 | D5: TRL aMW 2022 | E5: Existing Resource aMW 2022 | F5: NLSL aMW 2022 | G5: AdjTRL aMW 2022 | H5: LDD adjTRL/RHWM 2022 | I5: Eligible LDD 2022 | J5: Applicable LDD 2022 | N5: Previous LDD | O5: ∆
A6: 10005 | B6: Alder Mutual | C6: 0.523 | D6: 0.623 | E6: 0 | F6: 0 | G6: 0.623 | H6: 1.191204589 | I6: 0.02 | J6: 0.02382 | K6: =VLOOKUP(A6,StagingTRM!A:C,3,FALSE) -> 0 | L6: 10005 | N6: 0.03 | O6: -0.00618
A7: 10025 | B7: Benton REA | C7: 56.909 | D7: 66.666 | E7: 0 | F7: 0 | G7: 66.666 | H7: 1.171449156 | I7: 0.055 | J7: 0.06443 | K7: =VLOOKUP(A7,StagingTRM!A:C,3,FALSE) -> 0 | L7: 10025 | N7: 0.06244 | O7: 0.00199
A8: 10027 | B8: Big Bend Elec Coop | C8: 58.373 | D8: 66.27 | E8: 0 | F8: 0 | G8: 66.27 | H8: 1.135285149 | I8: 0.07 | J8: 0.07947 | K8: =VLOOKUP(A8,StagingTRM!A:C,3,FALSE) -> 0 | L8: 10027 | N8: 0.07564 | O8: 0.00383
A9: 10029 | B9: Blachly Lane Elec Coop | C9: 16.804 | D9: 21.914 | E9: 0 | F9: 0 | G9: 21.914 | H9: 1.304094263 | I9: 0.065 | J9: 0.08477 | K9: =VLOOKUP(A9,StagingTRM!A:C,3,FALSE) -> 0 | L9: 10029 | N9: 0.07856 | O9: 0.00621
A10: 10065 | B10: Cascade Locks, City of | C10: 2.268 | D10: 4.364 | E10: 0 | F10: 0 | G10: 4.364 | H10: 1.924162257 | I10: 0.04 | J10: 0.07697 | K10: =VLOOKUP(A10,StagingTRM!A:C,3,FALSE) -> 0 | L10: 10065 | N10: 0.04186 | O10: 0.03511
A11: 10046 | B11: Central Electric Coop | C11: 78.078 | D11: 95.832 | E11: 0 | F11: 0 | G11: 95.832 | H11: 1.227387997 | I11: 0.065 | J11: 0.07978 | K11: =VLOOKUP(A11,StagingTRM!A:C,3,FALSE) -> 0 | L11: 10046 | N11: 0.07347 | O11: 0.00631
A12: 10101 | B12: Clallam County PUD #1 | C12: 72.523 | D12: 76.775 | E12: 0 | F12: 0 | G12: 76.775 | H12: 1.058629676 | I12: 0.05 | J12: 0.05293 | K12: =VLOOKUP(A12,StagingTRM!A:C,3,FALSE) -> 0 | L12: 10101 | N12: 0.05151 | O12: 0.00142
A13: 10106 | B13: Clearwater Power | C13: 22.778 | D13: 23.687 | E13: 0 | F13: 0 | G13: 23.687 | H13: 1.039906928 | I13: 0.07 | J13: 0.07279 | K13: =VLOOKUP(A13,StagingTRM!A:C,3,FALSE) -> 0 | L13: 10106 | N13: 0.07007 | O13: 0.00272
A14: 10109 | B14: Columbia Basin Elec Coop | C14: 11.56 | D14: 13.628 | E14: 0 | F14: 0 | G14: 13.628 | H14: 1.178892734 | I14: 0.07 | J14: 0.08252 | K14: =VLOOKUP(A14,StagingTRM!A:C,3,FALSE) -> 0 | L14: 10109 | N14: 0.07963 | O14: 0.00289
A15: 10111 | B15: Columbia Power Coop | C15: 3.086 | D15: 3.05 | E15: 0 | F15: 0 | G15: 3.05 | H15: 1 | I15: 0.07 | J15: 0.07 | K15: =VLOOKUP(A15,StagingTRM!A:C,3,FALSE) -> 0 | L15: 10111 | N15: 0.07 | O15: 0
... 18 more rows

Sheet LDD_YR2
A1: Applicable Low Density Discount for FY2023
A2: Prepared by BPA, August 29, 2022
A4: applicable LDD = eligible LDD * max(adjTRL/RHWM, 1.0)
A5: BESID | B5: Preference Customer | C5: RHWM 2023 | D5: TRL aMW 2023 | E5: Existing Resource aMW 2023 | F5: NLSL aMW 2023 | G5: AdjTRL aMW 2023 | H5: LDD adjTRL/RHWM 2023 | I5: Eligible LDD 2023 | J5: Applicable LDD 2023
A6: 10005 | B6: Alder Mutual | C6: 0.523 | D6: 0.631 | E6: 0 | F6: 0 | G6: 0.631 | H6: 1.206500956 | I6: 0.02 | J6: 0.02413 | K6: =VLOOKUP(A6,StagingTRM!A:C,3,FALSE) -> 0 | L6: 10005
A7: 10025 | B7: Benton REA | C7: 56.909 | D7: 67.355 | E7: 0 | F7: 0 | G7: 67.355 | H7: 1.183556204 | I7: 0.055 | J7: 0.0651 | K7: =VLOOKUP(A7,StagingTRM!A:C,3,FALSE) -> 0 | L7: 10025
A8: 10027 | B8: Big Bend Elec Coop | C8: 58.373 | D8: 66.586 | E8: 0 | F8: 0 | G8: 66.586 | H8: 1.140698611 | I8: 0.07 | J8: 0.07985 | K8: =VLOOKUP(A8,StagingTRM!A:C,3,FALSE) -> 0 | L8: 10027
A9: 10029 | B9: Blachly Lane Elec Coop | C9: 16.804 | D9: 22.349 | E9: 0 | F9: 0 | G9: 22.349 | H9: 1.329980957 | I9: 0.065 | J9: 0.08645 | K9: =VLOOKUP(A9,StagingTRM!A:C,3,FALSE) -> 0 | L9: 10029
A10: 10065 | B10: Cascade Locks, City of | C10: 2.268 | D10: 4.388 | E10: 0 | F10: 0 | G10: 4.388 | H10: 1.934744268 | I10: 0.04 | J10: 0.07739 | K10: =VLOOKUP(A10,StagingTRM!A:C,3,FALSE) -> 0 | L10: 10065
A11: 10046 | B11: Central Electric Coop | C11: 78.078 | D11: 97.424 | E11: 0 | F11: 0 | G11: 97.424 | H11: 1.247777863 | I11: 0.065 | J11: 0.08111 | K11: =VLOOKUP(A11,StagingTRM!A:C,3,FALSE) -> 0 | L11: 10046
A12: 10101 | B12: Clallam County PUD #1 | C12: 72.523 | D12: 76.928 | E12: 0 | F12: 0 | G12: 76.928 | H12: 1.060739352 | I12: 0.05 | J12: 0.05304 | K12: =VLOOKUP(A12,StagingTRM!A:C,3,FALSE) -> 0 | L12: 10101
A13: 10106 | B13: Clearwater Power | C13: 22.778 | D13: 23.795 | E13: 0 | F13: 0 | G13: 23.795 | H13: 1.044648345 | I13: 0.07 | J13: 0.07313 | K13: =VLOOKUP(A13,StagingTRM!A:C,3,FALSE) -> 0 | L13: 10106
A14: 10109 | B14: Columbia Basin Elec Coop | C14: 11.56 | D14: 13.673 | E14: 0 | F14: 0 | G14: 13.673 | H14: 1.182785467 | I14: 0.07 | J14: 0.08279 | K14: =VLOOKUP(A14,StagingTRM!A:C,3,FALSE) -> 0 | L14: 10109
A15: 10111 | B15: Columbia Power Coop | C15: 3.086 | D15: 3.048 | E15: 0 | F15: 0 | G15: 3.048 | H15: 1 | I15: 0.07 | J15: 0.07 | K15: =VLOOKUP(A15,StagingTRM!A:C,3,FALSE) -> 0 | L15: 10111
... 18 more rows

Sheet TRMbdActuals_TOCA
B1: TOCA Computations, RHWMs and Net Requirements
A2: TOC
B3: BESID | C3: Preference Customer | D3: NOTJOE | E3: JOE | F3: Initial CHWM | G3: CHWM 2022 | H3: TRL 2022 | I3: TRL 2023 | J3: NLSL 2022 | K3: NLSL 2023 | L3: Existing/Other Resource aMW 2022 | M3: Existing/Other Resource aMW 2023 | N3: Existing/Other Resource MWh 2022 | O3: Existing/Other Resource MWh 2023 | P3: TRL - NLSL - Existing Resource 2022 | Q3: TRL - NLSL - Existing Resource 2023 | R3: TRL - NLSL - Existing Resource MWh 2022 | S3: TRL - NLSL - Existing Resource MWh 2023 | T3: RHWM 2022 | U3: RHWM MWh 2022 | V3: RHWM MWh 2023 | W3: Above RHWM 2022 | X3: Above RHWM 2023 | Y3: Above RHWM Not Served with LS 2022 | Z3: Above RHWM Not Served with LS 2023 | AA3: Above RHWM Load Served at the LS rate 2022 | AB3: Above RHWM Load Served at the LS rate 2023 | AC3: Total Vintage 2022 | AD3: Total Vintage 2023 | AE3: Remaining Above RHWM 2022 | AF3: Remaining Above RHWM 2023 | AG3: TOCA 2022 | AH3: TOCA 2023 | AI3: Slice% 2022 | AJ3: Non-slice TOCA 2022 | AK3: Non-slice TOCA 2023 | AL3: Avg Non-Slice TOCA | AM3: T1 Percentage 2022 | AN3: T1 Percentage 2023 | AO3: LDD adjTRL/RHWM 2022 | AP3: LDD adjTRL/RHWM 2023 | AQ3: Applicable LDD 2022 | AR3: Applicable LDD 2023 | AS3: Election 2022 | AT3: Election 2023 | AU3: Amount 2022 | AV3: Amount 2023 | AW3: Tier 2 Amounts 2022 | AX3: Tier 2 Amounts 2023 | AY3: New Resource aMW 2022 | AZ3: New Resource aMW 2023 | BA3: Remarketing 2022 | BB3: Remarketing 2023 | BC3: T2 Remarketing 2022 | BD3: T2 Remarketing 2023 | BE3: NR Remarketing 2022 | BF3: NR Remarketing 2023 | BG3: Forecast Net Requirement 2022 | BH3: Forecast Net Requirement 2023 | BI3: Rounddown | BJ3: NonSlice | BK3: Slice | BL3: Load Following | BM3: Load Following | BN3: Slice | BO3: Slice | BP3: Block | BQ3: Block | BR3: T2 | BS3: T2
B4: 10005 | C4: Alder Mutual | D4: 1 | E4: 0 | F4: 0.556 | G4: 0.556 | H4: 0.652 | I4: 0.652 | J4: 0 | K4: 0 | L4: 0 | M4: 0 | N4: 0 | O4: 0 | P4: 0.623 | Q4: 0.631 | R4: 5457.48 | S4: 5527.56 | T4: 0.523 | U4: 4581.48 | V4: 4581.48 | W4: 0.1 | X4: 0.108 | Y4: 0 | Z4: 0 | AA4: 0.1 | AB4: 0.108 | AC4: 0 | AD4: 0 | AE4: 0 | AF4: 0 | AG4: 7.76e-05 | AH4: 7.76e-05 | AI4: 0 | AJ4: 7.76e-05 | AK4: 7.76e-05 | AL4: 7.76e-05 | AM4: 0.8390713618 | AN4: 0.8284333731 | AO4: 1.191204589 | AP4: 1.206500956 | AQ4: 0.02978011472 | AR4: 0.0301625239 | AS4: 1 | AT4: 1 | AU4: 0 | AV4: 0 | AW4: 0 | AX4: 0 | AY4: 0 | AZ4: 0 | BA4: 0 | BB4: 0 | BC4: 0 | BD4: 0 | BE4: 0 | BF4: 0 | BG4: 0.623 | BH4: 0.631 | BI4: 0 | BJ4: 1 | BK4: 0 | BL4: 0.623 | BM4: 0.631 | BN4: 0 | BO4: 0 | BP4: 0 | BQ4: 0 | BR4: 0 | BS4: 0
B5: 10015 | C5: Asotin County PUD #1 | D5: 1 | E5: 0 | F5: 0.582 | G5: 0.582 | H5: 0.583 | I5: 0.583 | J5: 0 | K5: 0 | L5: 0 | M5: 0 | N5: 0 | O5: 0 | P5: 0.63 | Q5: 0.634 | R5: 5518.8 | S5: 5553.84 | T5: 0.547 | U5: 4791.72 | V5: 4791.72 | W5: 0.083 | X5: 0.087 | Y5: 0 | Z5: 0 | AA5: 0.083 | AB5: 0.087 | AC5: 0 | AD5: 0 | AE5: 0 | AF5: 0 | AG5: 8.12e-05 | AH5: 8.12e-05 | AI5: 0 | AJ5: 8.12e-05 | AK5: 8.12e-05 | AL5: 8.12e-05 | AM5: 0.8682418267 | AN5: 0.8627639603 | AO5: 1.151736746 | AP5: 1.15904936 | AQ5: 0 | AR5: 0 | AS5: 1 | AT5: 1 | AU5: 0 | AV5: 0 | AW5: 0 | AX5: 0 | AY5: 0 | AZ5: 0 | BA5: 0 | BB5: 0 | BC5: 0 | BD5: 0 | BE5: 0 | BF5: 0 | BG5: 0.63 | BH5: 0.634 | BI5: 0 | BJ5: 1 | BK5: 0 | BL5: 0.63 | BM5: 0.634 | BN5: 0 | BO5: 0 | BP5: 0 | BQ5: 0 | BR5: 0 | BS5: 0
B6: 10024 | C6: Benton County PUD #1 | D6: 1 | E6: 0 | F6: 204.282 | G6: 204.282 | H6: 209.967 | I6: 209.982 | J6: 0 | K6: 0 | L6: 0.919 | M6: 0.919 | N6: 8050.44 | O6: 8050.44 | P6: 209.048 | Q6: 209.063 | R6: 1831260.48 | S6: 1831391.88 | T6: 192.001 | U6: 1681928.76 | V6: 1681928.76 | W6: 17.047 | X6: 17.062 | Y6: 17.047 | Z6: 17.062 | AA6: 0 | AB6: 0 | AC6: 0 | AD6: 0 | AE6: 17.047 | AF6: 17.062 | AG6: 0.0285022 | AH6: 0.0285022 | AI6: 0.0136792 | AJ6: 0.014823 | AK6: 0.014823 | AL6: 0.014823 | AM6: 0.9171911079 | AN6: 0.9171255887 | AO6: 1.088785996 | AP6: 1.08886412 | AQ6: 0 | AR6: 0 | AS6: 4 | AT6: 4 | AU6: 0 | AV6: 0 | AW6: 0 | AX6: 0 | AY6: 0 | AZ6: 0 | BA6: 0 | BB6: 0 | BC6: 0 | BD6: 0 | BE6: 0 | BF6: 0 | BG6: 192.001 | BH6: 192.001 | BI6: 0 | BJ6: 0 | BK6: 1 | BL6: 0 | BM6: 0 | BN6: 192.001 | BO6: 192.001 | BP6: 0 | BQ6: 0 | BR6: 0 | BS6: 0
B7: 10025 | C7: Benton REA | D7: 1 | E7: 0 | F7: 60.549 | G7: 60.549 | H7: 67.016 | I7: 67.885 | J7: 0 | K7: 0 | L7: 0 | M7: 0 | N7: 0 | O7: 0 | P7: 66.666 | Q7: 67.355 | R7: 583994.16 | S7: 590029.8 | T7: 56.909 | U7: 498522.84 | V7: 498522.84 | W7: 9.757 | X7: 10.446 | Y7: 9.757 | Z7: 10.446 | AA7: 0 | AB7: 0 | AC7: 0 | AD7: 0 | AE7: 9.757 | AF7: 10.446 | AG7: 0.008448 | AH7: 0.008448 | AI7: 0 | AJ7: 0.008448 | AK7: 0.008448 | AL7: 0.008448 | AM7: 0.8536399489 | AN7: 0.8449077401 | AO7: 1.171449156 | AP7: 1.183556204 | AQ7: 0.07028694934 | AR7: 0.07101337223 | AS7: 1 | AT7: 1 | AU7: 0 | AV7: 0 | AW7: 9.757 | AX7: 10.446 | AY7: 0 | AZ7: 0 | BA7: 0 | BB7: 0 | BC7: 0 | BD7: 0 | BE7: 0 | BF7: 0 | BG7: 66.666 | BH7: 67.355 | BI7: 0 | BJ7: 1 | BK7: 0 | BL7: 56.909 | BM7: 56.909 | BN7: 0 | BO7: 0 | BP7: 0 | BQ7: 0 | BR7: 9.757 | BS7: 10.446
B8: 10027 | C8: Big Bend Elec Coop | D8: 1 | E8: 0 | F8: 62.107 | G8: 62.107 | H8: 66.27 | I8: 66.586 | J8: 0 | K8: 0 | L8: 0 | M8: 0 | N8: 0 | O8: 0 | P8: 66.27 | Q8: 66.586 | R8: 580525.2 | S8: 583293.36 | T8: 58.373 | U8: 511347.48 | V8: 511347.48 | W8: 7.897 | X8: 8.213 | Y8: 7.897 | Z8: 8.213 | AA8: 0 | AB8: 0 | AC8: 0 | AD8: 0 | AE8: 7.897 | AF8: 8.213 | AG8: 0.0086654 | AH8: 0.0086654 | AI8: 0 | AJ8: 0.0086654 | AK8: 0.0086654 | AL8: 0.0086654 | AM8: 0.8808396752 | AN8: 0.8766594371 | AO8: 1.135285149 | AP8: 1.140698611 | AQ8: 0.07946996043 | AR8: 0.07984890275 | AS8: 3 | AT8: 3 | AU8: 25 | AV8: 26 | AW8: 0.897 | AX8: 0.213 | AY8: 0 | AZ8: 0 | BA8: 0 | BB8: 0 | BC8: 0 | BD8: 0 | BE8: 0 | BF8: 0 | BG8: 59.27 | BH8: 58.586 | BI8: 1 | BJ8: 1 | BK8: 0 | BL8: 58.373 | BM8: 58.373 | BN8: 0 | BO8: 0 | BP8: 0 | BQ8: 0 | BR8: 0.897 | BS8: 0.213
B9: 10029 | C9: Blachly Lane Elec Coop | D9: 0 | E9: 1 | F9: 17.879 | G9: 17.879 | H9: 20.35 | I9: 20.35 | J9: 0 | K9: 0 | L9: 0 | M9: 0 | N9: 0 | O9: 0 | P9: 21.914 | Q9: 22.349 | R9: 191966.64 | S9: 195777.24 | T9: 16.804 | U9: 147203.04 | V9: 147203.04 | W9: 5.11 | X9: 5.545 | Y9: 5.11 | Z9: 5.545 | AA9: 0 | AB9: 0 | AC9: 0 | AD9: 0 | AE9: 5.11 | AF9: 5.545 | AG9: 0.0024945 | AH9: 0.0024945 | AI9: 0 | AJ9: 0.0024945 | AK9: 0.0024945 | AL9: 0.0024945 | AM9: 0.7668087764 | AN9: 0.7518836425 | AO9: 1.304094263 | AP9: 1.329980957 | AQ9: 0.08476612711 | AR9: 0.0864487622 | AS9: 6 | AT9: 6 | AU9: 0 | AV9: 0 | AW9: 0 | AX9: 0 | AY9: 0 | AZ9: 0 | BA9: 0 | BB9: 0 | BC9: 0 | BD9: 0 | BE9: 0 | BF9: 0 | BG9: 16.804 | BH9: 16.804 | BI9: 0 | BJ9: 1 | BK9: 0 | BL9: 0 | BM9: 0 | BN9: 0 | BO9: 0 | BP9: 0 | BQ9: 0 | BR9: 0 | BS9: 0
B10: 10044 | C10: Canby, City of | D10: 1 | E10: 0 | F10: 20.612 | G10: 20.612 | H10: 21.857 | I10: 21.984 | J10: 0 | K10: 0 | L10: 0 | M10: 0 | N10: 0 | O10: 0 | P10: 21.998 | Q10: 22.09 | R10: 192702.48 | S10: 193508.4 | T10: 19.373 | U10: 169707.48 | V10: 169707.48 | W10: 2.625 | X10: 2.717 | Y10: 2.625 | Z10: 2.717 | AA10: 0 | AB10: 0 | AC10: 0 | AD10: 0 | AE10: 2.625 | AF10: 2.717 | AG10: 0.0028759 | AH10: 0.0028759 | AI10: 0 | AJ10: 0.0028759 | AK10: 0.0028759 | AL10: 0.0028759 | AM10: 0.8806752818 | AN10: 0.8770074626 | AO10: 1.135497858 | AP10: 1.140246735 | AQ10: 0 | AR10: 0 | AS10: 1 | AT10: 1 | AU10: 0 | AV10: 0 | AW10: 2.625 | AX10: 2.717 | AY10: 0 | AZ10: 0 | BA10: 0 | BB10: 0 | BC10: 0 | BD10: 0 | BE10: 0 | BF10: 0 | BG10: 21.998 | BH10: 22.09 | BI10: 0 | BJ10: 1 | BK10: 0 | BL10: 19.373 | BM10: 19.373 | BN10: 0 | BO10: 0 | BP10: 0 | BQ10: 0 | BR10: 2.625 | BS10: 2.717
B11: 10046 | C11: Central Electric Coop | D11: 0 | E11: 1 | F11: 83.072 | G11: 83.072 | H11: 95.832 | I11: 97.424 | J11: 0 | K11: 0 | L11: 0 | M11: 0 | N11: 0 | O11: 0 | P11: 95.832 | Q11: 97.424 | R11: 839488.32 | S11: 853434.24 | T11: 78.078 | U11: 683963.28 | V11: 683963.28 | W11: 17.754 | X11: 19.346 | Y11: 17.754 | Z11: 19.346 | AA11: 0 | AB11: 0 | AC11: 0 | AD11: 0 | AE11: 17.754 | AF11: 19.346 | AG11: 0.0115905 | AH11: 0.0115905 | AI11: 0 | AJ11: 0.0115905 | AK11: 0.0115905 | AL11: 0.0115905 | AM11: 0.8147358814 | AN11: 0.8014223291 | AO11: 1.227387997 | AP11: 1.247777863 | AQ11: 0.07978021978 | AR11: 0.08110556111 | AS11: 6 | AT11: 6 | AU11: 0 | AV11: 0 | AW11: 0 | AX11: 0 | AY11: 0 | AZ11: 0 | BA11: 0 | BB11: 0 | BC11: 0 | BD11: 0 | BE11: 0 | BF11: 0 | BG11: 78.078 | BH11: 78.078 | BI11: 0 | BJ11: 1 | BK11: 0 | BL11: 0 | BM11: 0 | BN11: 0 | BO11: 0 | BP11: 0 | BQ11: 0 | BR11: 0 | BS11: 0
B12: 10047 | C12: Central Lincoln PUD | D12: 1 | E12: 0 | F12: 159.01 | G12: 159.01 | H12: 150.003 | I12: 150.245 | J12: 0 | K12: 0 | L12: 0 | M12: 0 | N12: 0 | O12: 0 | P12: 153.656 | Q12: 154.036 | R12: 1346026.56 | S12: 1349355.36 | T12: 149.45 | U12: 1309182 | V12: 1309182 | W12: 4.206 | X12: 4.586 | Y12: 4.206 | Z12: 4.586 | AA12: 0 | AB12: 0 | AC12: 0 | AD12: 0 | AE12: 4.206 | AF12: 4.586 | AG12: 0.0221856 | AH12: 0.0221856 | AI12: 0 | AJ12: 0.0221856 | AK12: 0.0221856 | AL12: 0.0221856 | AM12: 0.972628249 | AN12: 0.9702288181 | AO12: 1.028143192 | AP12: 1.030685848 | AQ12: 0 | AR12: 0 | AS12: 3 | AT12: 3 | AU12: 9 | AV12: 9 | AW12: 0.206 | AX12: 0.586 | AY12: 0 | AZ12: 0 | BA12: 0 | BB12: 0 | BC12: 0 | BD12: 0 | BE12: 0 | BF12: 0 | BG12: 149.656 | BH12: 150.036 | BI12: 1 | BJ12: 1 | BK12: 0 | BL12: 149.45 | BM12: 149.45 | BN12: 0 | BO12: 0 | BP12: 0 | BQ12: 0 | BR12: 0.206 | BS12: 0.586
B13: 10055 | C13: Albion, City of | D13: 1 | E13: 0 | F13: 0.404 | G13: 0.404 | H13: 0.384 | I13: 0.384 | J13: 0 | K13: 0 | L13: 0 | M13: 0 | N13: 0 | O13: 0 | P13: 0.386 | Q13: 0.386 | R13: 3381.36 | S13: 3381.36 | T13: 0.38 | U13: 3328.8 | V13: 3328.8 | W13: 0.006 | X13: 0.006 | Y13: 0 | Z13: 0 | AA13: 0.006 | AB13: 0.006 | AC13: 0 | AD13: 0 | AE13: 0 | AF13: 0 | AG13: 5.64e-05 | AH13: 5.64e-05 | AI13: 0 | AJ13: 5.64e-05 | AK13: 5.64e-05 | AL13: 5.64e-05 | AM13: 0.9842762891 | AN13: 0.9842762891 | AO13: 1.015789474 | AP13: 1.015789474 | AQ13: 0 | AR13: 0 | AS13: 1 | AT13: 1 | AU13: 0 | AV13: 0 | AW13: 0 | AX13: 0 | AY13: 0 | AZ13: 0 | BA13: 0 | BB13: 0 | BC13: 0 | BD13: 0 | BE13: 0 | BF13: 0 | BG13: 0.386 | BH13: 0.386 | BI13: 0 | BJ13: 1 | BK13: 0 | BL13: 0.386 | BM13: 0.386 | BN13: 0 | BO13: 0 | BP13: 0 | BQ13: 0 | BR13: 0 | BS13: 0
B14: 10057 | C14: Ashland, City of | D14: 1 | E14: 0 | F14: 21.383 | G14: 21.383 | H14: 20.134 | I14: 20.134 | J14: 0 | K14: 0 | L14: 0.158 | M14: 0.158 | N14: 1384.08 | O14: 1384.08 | P14: 19.976 | Q14: 19.976 | R14: 174989.76 | S14: 174989.76 | T14: 20.097 | U14: 176049.72 | V14: 176049.72 | W14: 0 | X14: 0 | Y14: 0 | Z14: 0 | AA14: 0 | AB14: 0 | AC14: 0 | AD14: 0 | AE14: 0 | AF14: 0 | AG14: 0.0029654 | AH14: 0.0029654 | AI14: 0 | AJ14: 0.0029654 | AK14: 0.0029654 | AL14: 0.0029654 | AM14: 0.9999999493 | AN14: 0.9999999493 | AO14: 1 | AP14: 1 | AQ14: 0 | AR14: 0 | AS14: 1 | AT14: 1 | AU14: 0 | AV14: 0 | AW14: 0 | AX14: 0 | AY14: 0 | AZ14: 0 | BA14: 0 | BB14: 0 | BC14: 0 | BD14: 0 | BE14: 0 | BF14: 0 | BG14: 19.976 | BH14: 19.976 | BI14: 0 | BJ14: 1 | BK14: 0 | BL14: 19.976 | BM14: 19.976 | BN14: 0 | BO14: 0 | BP14: 0 | BQ14: 0 | BR14: 0 | BS14: 0
B15: 10059 | C15: Bandon, City of | D15: 1 | E15: 0 | F15: 7.753 | G15: 7.753 | H15: 7.599 | I15: 7.599 | J15: 0 | K15: 0 | L15: 0 | M15: 0 | N15: 0 | O15: 0 | P15: 7.649 | Q15: 7.668 | R15: 67005.24 | S15: 67171.68 | T15: 7.287 | U15: 63834.12 | V15: 63834.12 | W15: 0.362 | X15: 0.381 | Y15: 0 | Z15: 0 | AA15: 0.362 | AB15: 0.381 | AC15: 0 | AD15: 0 | AE15: 0 | AF15: 0 | AG15: 0.0010817 | AH15: 0.0010817 | AI15: 0 | AJ15: 0.0010817 | AK15: 0.0010817 | AL15: 0.0010817 | AM15: 0.9526368846 | AN15: 0.9502764124 | AO15: 1.049677508 | AP15: 1.052284891 | AQ15: 0 | AR15: 0 | AS15: 1 | AT15: 1 | AU15: 0 | AV15: 0 | AW15: 0 | AX15: 0 | AY15: 0 | AZ15: 0 | BA15: 0 | BB15: 0 | BC15: 0 | BD15: 0 | BE15: 0 | BF15: 0 | BG15: 7.649 | BH15: 7.668 | BI15: 0 | BJ15: 1 | BK15: 0 | BL15: 7.649 | BM15: 7.668 | BN15: 0 | BO15: 0 | BP15: 0 | BQ15: 0 | BR15: 0 | BS15: 0
... 17 more rows

Sheet TRMbdForecast_TOCA
B1: TOCA Computations, RHWMs and Net Requirements
A2: TOC
B3: BESID | C3: Preference Customer | D3: NOTJOE | E3: JOE | F3: Initial CHWM | G3: CHWM 2024 | H3: TRL 2024 | I3: TRL 2025 | J3: NLSL 2024 | K3: NLSL 2025 | L3: Existing/Other Resource aMW 2024 | M3: Existing/Other Resource aMW 2025 | N3: Existing/Other Resource MWh 2024 | O3: Existing/Other Resource MWh 2025 | P3: TRL - NLSL - Existing Resource 2024 | Q3: TRL - NLSL - Existing Resource 2025 | R3: TRL - NLSL - Existing Resource MWh 2024 | S3: TRL - NLSL - Existing Resource MWh 2025 | T3: RHWM 2024 | U3: RHWM MWh 2024 | V3: RHWM MWh 2025 | W3: Above RHWM 2024 | X3: Above RHWM 2025 | Y3: Above RHWM Not Served with LS 2024 | Z3: Above RHWM Not Served with LS 2025 | AA3: Above RHWM Load Served at the LS rate 2024 | AB3: Above RHWM Load Served at the LS rate 2025 | AC3: Total Vintage 2024 | AD3: Total Vintage 2025 | AE3: Remaining Above RHWM 2024 | AF3: Remaining Above RHWM 2025 | AG3: TOCA 2024 | AH3: TOCA 2025 | AI3: Slice% 2024 | AJ3: Non-slice TOCA 2024 | AK3: Non-slice TOCA 2025 | AL3: Avg Non-Slice TOCA | AM3: T1 Percentage 2024 | AN3: T1 Percentage 2025 | AO3: LDD adjTRL/RHWM 2024 | AP3: LDD adjTRL/RHWM 2025 | AQ3: Applicable LDD 2024 | AR3: Applicable LDD 2025 | AS3: Election 2024 | AT3: Election 2025 | AU3: Amount 2024 | AV3: Amount 2025 | AW3: Tier 2 Amounts 2024 | AX3: Tier 2 Amounts 2025 | AY3: New Resource aMW 2024 | AZ3: New Resource aMW 2025 | BA3: Remarketing 2024 | BB3: Remarketing 2025 | BC3: T2 Remarketing 2024 | BD3: T2 Remarketing 2025 | BE3: NR Remarketing 2024 | BF3: NR Remarketing 2025 | BG3: Forecast Net Requirement 2024 | BH3: Forecast Net Requirement 2025 | BI3: Rounddown | BJ3: NonSlice | BK3: Slice | BL3: Load Following | BM3: Load Following | BN3: Slice | BO3: Slice | BP3: Block | BQ3: Block | BR3: T2 | BS3: T2
B4: 10005 | C4: Alder Mutual | D4: 1 | E4: 0 | F4: 0.556 | G4: 0.556 | H4: 0.68 | I4: 0.689 | J4: 0 | K4: 0 | L4: 0 | M4: 0 | N4: 0 | O4: 0 | P4: 0.68 | Q4: 0.689 | R4: 5973.12 | S4: 6035.64 | T4: 0.548 | U4: 4813.632 | V4: 4800.48 | W4: 0.132 | X4: 0.141 | Y4: 0 | Z4: 0 | AA4: 0.132 | AB4: 0.141 | AC4: 0 | AD4: 0 | AE4: 0 | AF4: 0 | AG4: 7.76e-05 | AH4: 7.76e-05 | AI4: 0 | AJ4: 7.76e-05 | AK4: 7.76e-05 | AL4: 7.76e-05 | AM4: 0.8060545941 | AN4: 0.7955255791 | AO4: 1.240875912 | AP4: 1.25729927 | AQ4: 0.01861313869 | AR4: 0.01885948905 | AS4: 1 | AT4: 1 | AU4: 0 | AV4: 0 | AW4: 0 | AX4: 0 | AY4: 0 | AZ4: 0 | BA4: 0 | BB4: 0 | BC4: 0 | BD4: 0 | BE4: 0 | BF4: 0 | BG4: 0.68 | BH4: 0.689 | BI4: 0 | BJ4: 1 | BK4: 0 | BL4: 0.623 | BM4: 0.631 | BN4: 0 | BO4: 0 | BP4: 0 | BQ4: 0 | BR4: 0 | BS4: 0
B5: 10015 | C5: Asotin County PUD #1 | D5: 1 | E5: 0 | F5: 0.582 | G5: 0.582 | H5: 0.582 | I5: 0.583 | J5: 0 | K5: 0 | L5: 0 | M5: 0 | N5: 0 | O5: 0 | P5: 0.582 | Q5: 0.583 | R5: 5112.288 | S5: 5107.08 | T5: 0.573 | U5: 5033.232 | V5: 5019.48 | W5: 0.009 | X5: 0.01 | Y5: 0 | Z5: 0 | AA5: 0.009 | AB5: 0.01 | AC5: 0 | AD5: 0 | AE5: 0 | AF5: 0 | AG5: 8.11e-05 | AH5: 8.11e-05 | AI5: 0 | AJ5: 8.11e-05 | AK5: 8.11e-05 | AL5: 8.11e-05 | AM5: 0.9842592809 | AN5: 0.9825710146 | AO5: 1.015706806 | AP5: 1.017452007 | AQ5: 0 | AR5: 0 | AS5: 1 | AT5: 1 | AU5: 0 | AV5: 0 | AW5: 0 | AX5: 0 | AY5: 0 | AZ5: 0 | BA5: 0 | BB5: 0 | BC5: 0 | BD5: 0 | BE5: 0 | BF5: 0 | BG5: 0.582 | BH5: 0.583 | BI5: 0 | BJ5: 1 | BK5: 0 | BL5: 0.63 | BM5: 0.634 | BN5: 0 | BO5: 0 | BP5: 0 | BQ5: 0 | BR5: 0 | BS5: 0
B6: 10024 | C6: Benton County PUD #1 | D6: 1 | E6: 0 | F6: 203.92 | G6: 203.92 | H6: 206.051 | I6: 206.886 | J6: 0 | K6: 0 | L6: 0.918 | M6: 0.919 | N6: 8063.712 | O6: 8050.44 | P6: 205.133 | Q6: 205.967 | R6: 1801888.272 | S6: 1804270.92 | T6: 200.923 | U6: 1764907.632 | V6: 1760085.48 | W6: 4.21 | X6: 5.044 | Y6: 4.21 | Z6: 5.044 | AA6: 0 | AB6: 0 | AC6: 0 | AD6: 0 | AE6: 4.21 | AF6: 5.044 | AG6: 0.0284458 | AH6: 0.0284458 | AI6: 0 | AJ6: 0.0284458 | AK6: 0.0284458 | AL6: 0.0284458 | AM6: 0.9795684957 | AN6: 0.9756197525 | AO6: 1.020953301 | AP6: 1.025104144 | AQ6: 0 | AR6: 0 | AS6: 3 | AT6: 3 | AU6: 0 | AV6: 0 | AW6: 4.21 | AX6: 5.044 | AY6: 0 | AZ6: 0 | BA6: 0 | BB6: 0 | BC6: 0 | BD6: 0 | BE6: 0 | BF6: 0 | BG6: 205.133 | BH6: 205.967 | BI6: 0 | BJ6: 0 | BK6: 1 | BL6: 0 | BM6: 0 | BN6: 192.001 | BO6: 192.001 | BP6: 0 | BQ6: 0 | BR6: 0 | BS6: 0
B7: 10025 | C7: Benton REA | D7: 1 | E7: 0 | F7: 60.549 | G7: 60.549 | H7: 64.324 | I7: 64.537 | J7: 0 | K7: 0 | L7: 0 | M7: 0 | N7: 0 | O7: 0 | P7: 64.324 | Q7: 64.537 | R7: 565022.016 | S7: 565344.12 | T7: 59.659 | U7: 524044.656 | V7: 522612.84 | W7: 4.665 | X7: 4.878 | Y7: 4.665 | Z7: 4.878 | AA7: 0 | AB7: 0 | AC7: 0 | AD7: 0 | AE7: 4.665 | AF7: 4.878 | AG7: 0.0084463 | AH7: 0.0084463 | AI7: 0 | AJ7: 0.0084463 | AK7: 0.0084463 | AL7: 0.0084463 | AM7: 0.9274811859 | AN7: 0.924420097 | AO7: 1.078194405 | AP7: 1.081764696 | AQ7: 0.05930069227 | AR7: 0.05949705828 | AS7: 1 | AT7: 1 | AU7: 0 | AV7: 0 | AW7: 4.665 | AX7: 4.878 | AY7: 0 | AZ7: 0 | BA7: 0 | BB7: 0 | BC7: 0 | BD7: 0 | BE7: 0 | BF7: 0 | BG7: 64.324 | BH7: 64.537 | BI7: 1 | BJ7: 1 | BK7: 0 | BL7: 56.909 | BM7: 56.909 | BN7: 0 | BO7: 0 | BP7: 0 | BQ7: 0 | BR7: 9.757 | BS7: 10.446
B8: 10027 | C8: Big Bend Elec Coop | D8: 1 | E8: 0 | F8: 62.107 | G8: 62.107 | H8: 67.791 | I8: 68.216 | J8: 0 | K8: 0 | L8: 0 | M8: 0 | N8: 0 | O8: 0 | P8: 67.791 | Q8: 68.216 | R8: 595476.144 | S8: 597572.16 | T8: 61.194 | U8: 537528.096 | V8: 536059.44 | W8: 6.597 | X8: 7.022 | Y8: 6.597 | Z8: 7.022 | AA8: 0 | AB8: 0 | AC8: 0 | AD8: 0 | AE8: 6.597 | AF8: 7.022 | AG8: 0.0086636 | AH8: 0.0086636 | AI8: 0 | AJ8: 0.0086636 | AK8: 0.0086636 | AL8: 0.0086636 | AM8: 0.9026886904 | AN8: 0.8970647504 | AO8: 1.107804687 | AP8: 1.114749812 | AQ8: 0.07754632807 | AR8: 0.07803248685 | AS8: 3 | AT8: 3 | AU8: 27 | AV8: 0 | AW8: 0.597 | AX8: 7.022 | AY8: 0 | AZ8: 0 | BA8: 0 | BB8: 0 | BC8: 0 | BD8: 0 | BE8: 0 | BF8: 0 | BG8: 61.791 | BH8: 68.216 | BI8: 1 | BJ8: 1 | BK8: 0 | BL8: 58.373 | BM8: 58.373 | BN8: 0 | BO8: 0 | BP8: 0 | BQ8: 0 | BR8: 0.897 | BS8: 0.213
B9: 10029 | C9: Blachly Lane Elec Coop | D9: 0 | E9: 1 | F9: 17.879 | G9: 17.879 | H9: 21.679 | I9: 21.674 | J9: 0 | K9: 0 | L9: 0 | M9: 0 | N9: 0 | O9: 0 | P9: 21.679 | Q9: 21.674 | R9: 190428.336 | S9: 189864.24 | T9: 17.616 | U9: 154738.944 | V9: 154316.16 | W9: 4.063 | X9: 4.058 | Y9: 4.063 | Z9: 4.058 | AA9: 0 | AB9: 0 | AC9: 0 | AD9: 0 | AE9: 4.063 | AF9: 4.058 | AG9: 0.002494 | AH9: 0.002494 | AI9: 0 | AJ9: 0.002494 | AK9: 0.002494 | AL9: 0.002494 | AM9: 0.8125850966 | AN9: 0.8127725528 | AO9: 1.230642598 | AP9: 1.230358765 | AQ9: 0.07999176885 | AR9: 0.07997331971 | AS9: 6 | AT9: 6 | AU9: 0 | AV9: 0 | AW9: 0 | AX9: 0 | AY9: 0 | AZ9: 0 | BA9: 0 | BB9: 0 | BC9: 0 | BD9: 0 | BE9: 0 | BF9: 0 | BG9: 17.616 | BH9: 17.616 | BI9: 1 | BJ9: 1 | BK9: 0 | BL9: 0 | BM9: 0 | BN9: 0 | BO9: 0 | BP9: 0 | BQ9: 0 | BR9: 0 | BS9: 0
B10: 10044 | C10: Canby, City of | D10: 1 | E10: 0 | F10: 20.612 | G10: 20.612 | H10: 23.851 | I10: 24.05 | J10: 0 | K10: 0 | L10: 0 | M10: 0 | N10: 0 | O10: 0 | P10: 23.851 | Q10: 24.05 | R10: 209507.184 | S10: 210678 | T10: 20.309 | U10: 178394.256 | V10: 177906.84 | W10: 3.542 | X10: 3.741 | Y10: 3.542 | Z10: 3.741 | AA10: 0 | AB10: 0 | AC10: 0 | AD10: 0 | AE10: 3.542 | AF10: 3.741 | AG10: 0.0028753 | AH10: 0.0028753 | AI10: 0 | AJ10: 0.0028753 | AK10: 0.0028753 | AL10: 0.0028753 | AM10: 0.851506997 | AN10: 0.8444612634 | AO10: 1.174405436 | AP10: 1.184204047 | AQ10: 0 | AR10: 0 | AS10: 1 | AT10: 1 | AU10: 0 | AV10: 0 | AW10: 3.542 | AX10: 3.741 | AY10: 0 | AZ10: 0 | BA10: 0 | BB10: 0 | BC10: 0 | BD10: 0 | BE10: 0 | BF10: 0 | BG10: 23.851 | BH10: 24.05 | BI10: 0 | BJ10: 1 | BK10: 0 | BL10: 19.373 | BM10: 19.373 | BN10: 0 | BO10: 0 | BP10: 0 | BQ10: 0 | BR10: 2.625 | BS10: 2.717
B11: 10046 | C11: Central Electric Coop | D11: 0 | E11: 1 | F11: 83.072 | G11: 83.072 | H11: 96.873 | I11: 98.18 | J11: 0 | K11: 0 | L11: 0 | M11: 0 | N11: 0 | O11: 0 | P11: 96.873 | Q11: 98.18 | R11: 850932.432 | S11: 860056.8 | T11: 81.851 | U11: 718979.184 | V11: 717014.76 | W11: 15.022 | X11: 16.329 | Y11: 15.022 | Z11: 16.329 | AA11: 0 | AB11: 0 | AC11: 0 | AD11: 0 | AE11: 15.022 | AF11: 16.329 | AG11: 0.0115881 | AH11: 0.0115881 | AI11: 0 | AJ11: 0.0115881 | AK11: 0.0115881 | AL11: 0.0115881 | AM11: 0.8449307852 | AN11: 0.833682827 | AO11: 1.183528607 | AP11: 1.199496646 | AQ11: 0.07692935945 | AR11: 0.07796728201 | AS11: 6 | AT11: 6 | AU11: 0 | AV11: 0 | AW11: 0 | AX11: 0 | AY11: 0 | AZ11: 0 | BA11: 0 | BB11: 0 | BC11: 0 | BD11: 0 | BE11: 0 | BF11: 0 | BG11: 81.851 | BH11: 81.851 | BI11: 1 | BJ11: 1 | BK11: 0 | BL11: 0 | BM11: 0 | BN11: 0 | BO11: 0 | BP11: 0 | BQ11: 0 | BR11: 0 | BS11: 0
B12: 10047 | C12: Central Lincoln PUD | D12: 1 | E12: 0 | F12: 159.01 | G12: 159.01 | H12: 152.313 | I12: 152.465 | J12: 0 | K12: 0 | L12: 0 | M12: 0 | N12: 0 | O12: 0 | P12: 152.313 | Q12: 152.465 | R12: 1337917.392 | S12: 1335593.4 | T12: 156.673 | U12: 1376215.632 | V12: 1372455.48 | W12: 0 | X12: 0 | Y12: 0 | Z12: 0 | AA12: 0 | AB12: 0 | AC12: 0 | AD12: 0 | AE12: 0 | AF12: 0 | AG12: 0.0215638 | AH12: 0.0215853 | AI12: 0 | AJ12: 0.0215638 | AK12: 0.0215853 | AL12: 0.02157455 | AM12: 0.9999999356 | AN12: 0.9999990328 | AO12: 1 | AP12: 1 | AQ12: 0 | AR12: 0 | AS12: 3 | AT12: 3 | AU12: 10 | AV12: 0 | AW12: 0 | AX12: 0 | AY12: 0 | AZ12: 0 | BA12: 0 | BB12: 0 | BC12: 0 | BD12: 0 | BE12: 0 | BF12: 0 | BG12: 152.313 | BH12: 152.465 | BI12: 1 | BJ12: 1 | BK12: 0 | BL12: 149.45 | BM12: 149.45 | BN12: 0 | BO12: 0 | BP12: 0 | BQ12: 0 | BR12: 0.206 | BS12: 0.586
B13: 10055 | C13: Albion, City of | D13: 1 | E13: 0 | F13: 0.404 | G13: 0.404 | H13: 0.391 | I13: 0.39 | J13: 0 | K13: 0 | L13: 0 | M13: 0 | N13: 0 | O13: 0 | P13: 0.391 | Q13: 0.39 | R13: 3434.544 | S13: 3416.4 | T13: 0.398 | U13: 3496.032 | V13: 3486.48 | W13: 0 | X13: 0 | Y13: 0 | Z13: 0 | AA13: 0 | AB13: 0 | AC13: 0 | AD13: 0 | AE13: 0 | AF13: 0 | AG13: 5.54e-05 | AH13: 5.52e-05 | AI13: 0 | AJ13: 5.54e-05 | AK13: 5.52e-05 | AL13: 5.53e-05 | AM13: 1 | AN13: 0.9997378154 | AO13: 1 | AP13: 1 | AQ13: 0 | AR13: 0 | AS13: 1 | AT13: 1 | AU13: 0 | AV13: 0 | AW13: 0 | AX13: 0 | AY13: 0 | AZ13: 0 | BA13: 0 | BB13: 0 | BC13: 0 | BD13: 0 | BE13: 0 | BF13: 0 | BG13: 0.391 | BH13: 0.39 | BI13: 0 | BJ13: 1 | BK13: 0 | BL13: 0.386 | BM13: 0.386 | BN13: 0 | BO13: 0 | BP13: 0 | BQ13: 0 | BR13: 0 | BS13: 0
B14: 10057 | C14: Ashland, City of | D14: 1 | E14: 0 | F14: 21.383 | G14: 21.383 | H14: 20.152 | I14: 20.148 | J14: 0 | K14: 0 | L14: 0.158 | M14: 0.158 | N14: 1387.872 | O14: 1384.08 | P14: 19.994 | Q14: 19.99 | R14: 175627.296 | S14: 175112.4 | T14: 21.069 | U14: 185070.096 | V14: 184564.44 | W14: 0 | X14: 0 | Y14: 0 | Z14: 0 | AA14: 0 | AB14: 0 | AC14: 0 | AD14: 0 | AE14: 0 | AF14: 0 | AG14: 0.0028307 | AH14: 0.0028301 | AI14: 0 | AJ14: 0.0028307 | AK14: 0.0028301 | AL14: 0.0028304 | AM14: 1 | AN14: 1 | AO14: 1 | AP14: 1 | AQ14: 0 | AR14: 0 | AS14: 1 | AT14: 3 | AU14: 0 | AV14: 0 | AW14: 0 | AX14: 0 | AY14: 0 | AZ14: 0 | BA14: 0 | BB14: 0 | BC14: 0 | BD14: 0 | BE14: 0 | BF14: 0 | BG14: 19.994 | BH14: 19.99 | BI14: 0 | BJ14: 1 | BK14: 0 | BL14: 19.976 | BM14: 19.976 | BN14: 0 | BO14: 0 | BP14: 0 | BQ14: 0 | BR14: 0 | BS14: 0
B15: 10059 | C15: Bandon, City of | D15: 1 | E15: 0 | F15: 7.753 | G15: 7.753 | H15: 7.604 | I15: 7.599 | J15: 0 | K15: 0 | L15: 0 | M15: 0 | N15: 0 | O15: 0 | P15: 7.604 | Q15: 7.599 | R15: 66793.536 | S15: 66567.24 | T15: 7.639 | U15: 67100.976 | V15: 66917.64 | W15: 0 | X15: 0 | Y15: 0 | Z15: 0 | AA15: 0 | AB15: 0 | AC15: 0 | AD15: 0 | AE15: 0 | AF15: 0 | AG15: 0.0010765 | AH15: 0.0010758 | AI15: 0 | AJ15: 0.0010765 | AK15: 0.0010758 | AL15: 0.00107615 | AM15: 0.9999621808 | AN15: 0.9999694785 | AO15: 1 | AP15: 1 | AQ15: 0 | AR15: 0 | AS15: 1 | AT15: 1 | AU15: 0 | AV15: 0 | AW15: 0 | AX15: 0 | AY15: 0 | AZ15: 0 | BA15: 0 | BB15: 0 | BC15: 0 | BD15: 0 | BE15: 0 | BF15: 0 | BG15: 7.604 | BH15: 7.599 | BI15: 0 | BJ15: 1 | BK15: 0 | BL15: 7.649 | BM15: 7.668 | BN15: 0 | BO15: 0 | BP15: 0 | BQ15: 0 | BR15: 0 | BS15: 0
... 17 more rows

Sheet TRMbdForecast_TRL
B1: Total Retail Load (MWh)
D2: 2021-10-01 | E2: 2021-10-01 | F2: 2021-11-01 | G2: 2021-11-01 | H2: 2021-12-01 | I2: 2021-12-01 | J2: 2022-01-01 | K2: 2022-01-01 | L2: 2022-02-01 | M2: 2022-02-01 | N2: 2022-03-01 | O2: 2022-03-01 | P2: 2022-04-01 | Q2: 2022-04-01 | R2: 2022-05-01 | S2: 2022-05-01 | T2: 2022-06-01 | U2: 2022-06-01 | V2: 2022-07-01 | W2: 2022-07-01 | X2: 2022-08-01 | Y2: 2022-08-01 | Z2: 2022-09-01 | AA2: 2022-09-01 | AB2: 2022-10-01 | AC2: 2022-10-01 | AD2: 2022-11-01 | AE2: 2022-11-01 | AF2: 2022-12-01 | AG2: 2022-12-01 | AH2: 2023-01-01 | AI2: 2023-01-01 | AJ2: 2023-02-01 | AK2: 2023-02-01 | AL2: 2023-03-01 | AM2: 2023-03-01 | AN2: 2023-04-01 | AO2: 2023-04-01 | AP2: 2023-05-01 | AQ2: 2023-05-01 | AR2: 2023-06-01 | AS2: 2023-06-01 | AT2: 2023-07-01 | AU2: 2023-07-01 | AV2: 2023-08-01 | AW2: 2023-08-01 | AX2: 2023-09-01 | AY2: 2023-09-01 | AZ2: 2023-10-01 | BA2: 2023-10-01 | BB2: 2023-11-01 | BC2: 2023-11-01 | BD2: 2023-12-01 | BE2: 2023-12-01 | BF2: 2024-01-01 | BG2: 2024-01-01 | BH2: 2024-02-01 | BI2: 2024-02-01 | BJ2: 2024-03-01 | BK2: 2024-03-01 | BL2: 2024-04-01 | BM2: 2024-04-01 | BN2: 2024-05-01 | BO2: 2024-05-01 | BP2: 2024-06-01 | BQ2: 2024-06-01 | BR2: 2024-07-01 | BS2: 2024-07-01 | BT2: 2024-08-01 | BU2: 2024-08-01 | BV2: 2024-09-01 | BW2: 2024-09-01 | BX2: 2024-10-01 | BY2: 2024-10-01 | BZ2: 2024-11-01 | CA2: 2024-11-01 | CB2: 2024-12-01 | CC2: 2024-12-01 | CD2: 2025-01-01 | CE2: 2025-01-01 | CF2: 2025-02-01 | CG2: 2025-02-01 | CH2: 2025-03-01 | CI2: 2025-03-01 | CJ2: 2025-04-01 | CK2: 2025-04-01 | CL2: 2025-05-01 | CM2: 2025-05-01 | CN2: 2025-06-01 | CO2: 2025-06-01 | CP2: 2025-07-01 | CQ2: 2025-07-01 | CR2: 2025-08-01 | CS2: 2025-08-01 | CT2: 2025-09-01 | CU2: 2025-09-01
B3: BESID | C3: AccountName | D3: HLH | E3: LLH | F3: HLH | G3: LLH | H3: HLH | I3: LLH | J3: HLH | K3: LLH | L3: HLH | M3: LLH | N3: HLH | O3: LLH | P3: HLH | Q3: LLH | R3: HLH | S3: LLH | T3: HLH | U3: LLH | V3: HLH | W3: LLH | X3: HLH | Y3: LLH | Z3: HLH | AA3: LLH | AB3: HLH | AC3: LLH | AD3: HLH | AE3: LLH | AF3: HLH | AG3: LLH | AH3: HLH | AI3: LLH | AJ3: HLH | AK3: LLH | AL3: HLH | AM3: LLH | AN3: HLH | AO3: LLH | AP3: HLH | AQ3: LLH | AR3: HLH | AS3: LLH | AT3: HLH | AU3: LLH | AV3: HLH | AW3: LLH | AX3: HLH | AY3: LLH | AZ3: HLH | BA3: LLH | BB3: HLH | BC3: LLH | BD3: HLH | BE3: LLH | BF3: HLH | BG3: LLH | BH3: HLH | BI3: LLH | BJ3: HLH | BK3: LLH | BL3: HLH | BM3: LLH | BN3: HLH | BO3: LLH | BP3: HLH | BQ3: LLH | BR3: HLH | BS3: LLH | BT3: HLH | BU3: LLH | BV3: HLH | BW3: LLH | BX3: HLH | BY3: LLH | BZ3: HLH | CA3: LLH | CB3: HLH | CC3: LLH | CD3: HLH | CE3: LLH | CF3: HLH | CG3: LLH | CH3: HLH | CI3: LLH | CJ3: HLH | CK3: LLH | CL3: HLH | CM3: LLH | CN3: HLH | CO3: LLH | CP3: HLH | CQ3: LLH | CR3: HLH | CS3: LLH | CT3: HLH | CU3: LLH
B4: 10005 | C4: Alder Mutual | D4: 269.978 | E4: 200.492 | F4: 303.825 | G4: 222.835 | H4: 390.756 | I4: 281.724 | J4: 385.006 | K4: 307.894 | L4: 339.291 | M4: 241.279 | N4: 350.417 | O4: 242.463 | P4: 285.78 | Q4: 201.04 | R4: 207.553 | S4: 164.987 | T4: 201.842 | U4: 132.568 | V4: 184.331 | W4: 134.609 | X4: 199.228 | Y4: 117.172 | Z4: 200.178 | AA4: 143.472 | AB4: 271.98 | AC4: 201.98 | AD4: 305.123 | AE4: 223.787 | AF4: 391.436 | AG4: 282.214 | AH4: 385.006 | AI4: 307.894 | AJ4: 339.291 | AK4: 241.279 | AL4: 350.417 | AM4: 242.463 | AN4: 273.851 | AO4: 212.969 | AP4: 216.388 | AQ4: 156.152 | AR4: 201.842 | AS4: 132.568 | AT4: 184.331 | AU4: 134.609 | AV4: 199.228 | AW4: 117.172 | AX4: 200.178 | AY4: 143.472 | AZ4: 285.942 | BA4: 209.475 | BB4: 322.128 | BC4: 236.748 | BD4: 394.013 | BE4: 310.826 | BF4: 427.948 | BG4: 309.235 | BH4: 350.816 | BI4: 243.839 | BJ4: 335.041 | BK4: 256.503 | BL4: 303.845 | BM4: 212.611 | BN4: 222.411 | BO4: 160.319 | BP4: 209.887 | BQ4: 153.083 | BR4: 203.276 | BS4: 135.988 | BT4: 214.295 | BU4: 127.013 | BV4: 196.446 | BW4: 154.361 | BX4: 302.796 | BY4: 199.732 | BZ4: 325.71 | CA4: 239.381 | CB4: 396.987 | CC4: 313.172 | CD4: 430.519 | CE4: 311.093 | CF4: 365.472 | CG4: 258.122 | CH4: 336.543 | CI4: 257.653 | CJ4: 304.883 | CK4: 213.338 | CL4: 222.924 | CM4: 160.689 | CN4: 209.887 | CO4: 153.083 | CP4: 203.276 | CQ4: 135.988 | CR4: 205.636 | CS4: 135.672 | CT4: 205.643 | CU4: 145.164
B5: 10015 | C5: Asotin County PUD #1 | D5: 153.537 | E5: 126.395 | F5: 88.894 | G5: 64.995 | H5: 91.014 | I5: 70.412 | J5: 102.65 | K5: 63.261 | L5: 79.611 | M5: 60.773 | N5: 105.019 | O5: 62.116 | P5: 159.479 | Q5: 101.58 | R5: 262.877 | S5: 247.764 | T5: 388.938 | U5: 337.909 | V5: 533.1 | W5: 479.193 | X5: 510.388 | Y5: 430.571 | Z5: 283.02 | AA5: 306.63 | AB5: 153.537 | AC5: 126.395 | AD5: 88.894 | AE5: 64.995 | AF5: 91.014 | AG5: 70.412 | AH5: 102.65 | AI5: 63.261 | AJ5: 79.611 | AK5: 60.773 | AL5: 105.019 | AM5: 62.116 | AN5: 159.479 | AO5: 101.58 | AP5: 262.877 | AQ5: 247.764 | AR5: 388.938 | AS5: 337.909 | AT5: 533.1 | AU5: 479.193 | AV5: 510.388 | AW5: 430.571 | AX5: 283.02 | AY5: 306.63 | AZ5: 153.537 | BA5: 126.395 | BB5: 88.894 | BC5: 64.995 | BD5: 91.014 | BE5: 70.412 | BF5: 102.65 | BG5: 63.261 | BH5: 82.455 | BI5: 62.944 | BJ5: 105.019 | BK5: 62.116 | BL5: 159.479 | BM5: 101.58 | BN5: 262.877 | BO5: 247.764 | BP5: 388.938 | BQ5: 337.909 | BR5: 533.1 | BS5: 479.193 | BT5: 510.388 | BU5: 430.571 | BV5: 283.02 | BW5: 306.63 | BX5: 153.537 | BY5: 126.395 | BZ5: 88.894 | CA5: 64.995 | CB5: 91.014 | CC5: 70.412 | CD5: 102.65 | CE5: 63.261 | CF5: 79.611 | CG5: 60.773 | CH5: 105.019 | CI5: 62.116 | CJ5: 159.479 | CK5: 101.58 | CL5: 262.877 | CM5: 247.764 | CN5: 388.938 | CO5: 337.909 | CP5: 533.1 | CQ5: 479.193 | CR5: 510.388 | CS5: 430.571 | CT5: 283.02 | CU5: 306.63
B6: 10024 | C6: Benton County PUD #1 | D6: 76456.023 | E6: 46327.875 | F6: 73041.203 | G6: 51991.094 | H6: 92563.891 | I6: 66672.313 | J6: 90704.43 | K6: 65718.07 | L6: 73646.703 | M6: 49739.898 | N6: 71650.414 | O6: 46642.883 | P6: 80391.141 | Q6: 49137.656 | R6: 97044.297 | S6: 66520 | T6: 118688.492 | U6: 75627.414 | V6: 135120.375 | W6: 91125.422 | X6: 121308.047 | Y6: 73594.953 | Z6: 76343.367 | AA6: 49256.93 | AB6: 76542.578 | AC6: 46380.32 | AD6: 72993.422 | AE6: 51957.078 | AF6: 92151.289 | AG6: 66375.117 | AH6: 90368.977 | AI6: 65475.023 | AJ6: 73547.195 | AK6: 49672.703 | AL6: 71760.719 | AM6: 46714.68 | AN6: 80558.344 | AO6: 49239.859 | AP6: 97199.391 | AQ6: 66626.313 | AR6: 118827.008 | AS6: 75715.695 | AT6: 135205.422 | AU6: 91182.781 | AV6: 121400.539 | AW6: 73651.055 | AX6: 76522.258 | AY6: 49372.344 | AZ6: 74943.727 | BA6: 45411.516 | BB6: 69721.969 | BC6: 49628.445 | BD6: 92794.141 | BE6: 66838.156 | BF6: 90293.898 | BG6: 65420.617 | BH6: 71104.703 | BI6: 48023.07 | BJ6: 74919.906 | BK6: 48771.242 | BL6: 74999.695 | BM6: 45842.227 | BN6: 93557.938 | BO6: 64130.25 | BP6: 116436.969 | BQ6: 74192.781 | BR6: 133922.875 | BS6: 90317.828 | BT6: 119949.648 | BU6: 72770.836 | BV6: 76564.281 | BW6: 49399.461 | BX6: 75176.258 | BY6: 45552.414 | BZ6: 69881.367 | CA6: 49741.914 | CB6: 92673.508 | CC6: 66751.273 | CD6: 90255.469 | CE6: 65392.781 | CF6: 71046.922 | CG6: 47984.047 | CH6: 75093.992 | CI6: 48884.578 | CJ6: 75208.242 | CK6: 45969.695 | CL6: 93754.453 | CM6: 64264.938 | CN6: 116630.523 | CO6: 74316.102 | CP6: 134122.391 | CQ6: 90452.391 | CR6: 120108.977 | CS6: 72867.492 | CT6: 76703.234 | CU6: 49489.117
B7: 10025 | C7: Benton REA | D7: 27591.42 | E7: 17806.939 | F7: 23445.393 | G7: 17632.041 | H7: 27469.689 | I7: 22358.666 | J7: 28434.082 | K7: 20706.141 | L7: 22175.17 | M7: 15258.787 | N7: 22737.133 | O7: 16559.074 | P7: 23259.805 | Q7: 15290.281 | R7: 30025.232 | S7: 20529.295 | T7: 33954.594 | U7: 23935.639 | V7: 39573.855 | W7: 26682.043 | X7: 37355.801 | Y7: 23970.895 | Z7: 28390.693 | AA7: 21913.799 | AB7: 28061.531 | AC7: 18088.965 | AD7: 23832.1 | AE7: 17919.908 | AF7: 27781.33 | AG7: 22608.826 | AH7: 28659.814 | AI7: 20870.557 | AJ7: 22447.623 | AK7: 15446.217 | AL7: 23039.689 | AM7: 16779.393 | AN7: 23602.096 | AO7: 15515.893 | AP7: 30431.785 | AQ7: 20807.547 | AR7: 34393.523 | AS7: 24245.764 | AT7: 40052.801 | AU7: 27005.191 | AV7: 37814.371 | AW7: 24265.43 | AX7: 28783.879 | AY7: 22218.211 | AZ7: 26497.182 | BA7: 17704.635 | BB7: 22645.314 | BC7: 17271.979 | BD7: 27037.705 | BE7: 20911.033 | BF7: 26669.256 | BG7: 20289.479 | BH7: 20754.172 | BI7: 15202.773 | BJ7: 22229.912 | BK7: 15552.838 | BL7: 22101.455 | BM7: 15022.721 | BN7: 28303.74 | BO7: 20343.244 | BP7: 33856.871 | BQ7: 21814.664 | BR7: 37238.117 | BS7: 26393.172 | BT7: 36332.266 | BU7: 22518.68 | BV7: 27914.09 | BW7: 20416.305 | BX7: 26580.818 | BY7: 17760.518 | BZ7: 22715.324 | CA7: 17325.375 | CB7: 27001.578 | CC7: 20883.094 | CD7: 26557.75 | CE7: 20204.648 | CF7: 20742.229 | CG7: 15194.025 | CH7: 22238.461 | CI7: 15558.82 | CJ7: 22137.662 | CK7: 15047.334 | CL7: 28342.25 | CM7: 20370.926 | CN7: 33900.68 | CO7: 21842.887 | CP7: 37264.836 | CQ7: 26412.109 | CR7: 36352.742 | CS7: 22531.371 | CT7: 27942.398 | CU7: 20437.008
B8: 10027 | C8: Big Bend Elec Coop | D8: 23616.064 | E8: 16018.583 | F8: 15556.135 | G8: 11521.268 | H8: 18588.633 | I8: 13756.594 | J8: 18472.557 | K8: 13597.803 | L8: 15475.735 | M8: 10807.876 | N8: 14530.353 | O8: 9735.968 | P8: 19890.738 | Q8: 13263.612 | R8: 37430.484 | S8: 28198.912 | T8: 49519.953 | U8: 34259.688 | V8: 48666.66 | W8: 36655.766 | X8: 44233.012 | Y8: 29921.9 | Z8: 32366.777 | AA8: 24443.57 | AB8: 23753.238 | AC8: 16111.62 | AD8: 15688.392 | AE8: 11619.22 | AF8: 18720.936 | AG8: 13854.504 | AH8: 18605.158 | AI8: 13695.412 | AJ8: 15611.282 | AK8: 10902.538 | AL8: 14668.199 | AM8: 9828.33 | AN8: 20028.867 | AO8: 13355.694 | AP8: 37561.746 | AQ8: 28297.854 | AR8: 49656.047 | AS8: 34353.805 | AT8: 48797.945 | AU8: 36754.691 | AV8: 44370.348 | AW8: 30014.768 | AX8: 32497.98 | AY8: 24542.578 | AZ8: 24282.41 | BA8: 16542.656 | BB8: 16261.106 | BC8: 12006.714 | BD8: 19270.881 | BE8: 14264.768 | BF8: 19144.5 | BG8: 14116.281 | BH8: 16574.203 | BI8: 11566.521 | BJ8: 15247.51 | BK8: 10209.229 | BL8: 20616.037 | BM8: 13728.731 | BN8: 38086.125 | BO8: 28733.686 | BP8: 50258.262 | BQ8: 34711.801 | BR8: 49376.004 | BS8: 37136.844 | BT8: 44928.625 | BU8: 30416.701 | BV8: 33068.781 | BW8: 24931.984 | BX8: 24419.34 | BY8: 16635.938 | BZ8: 16393.533 | CA8: 12104.496 | CB8: 19403.168 | CC8: 14362.688 | CD8: 19277.006 | CE8: 14213.982 | CF8: 16317.124 | CG8: 11387.114 | CH8: 15385.395 | CI8: 10301.553 | CJ8: 20754.238 | CK8: 13820.741 | CL8: 38217.313 | CM8: 28832.709 | CN8: 50394.453 | CO8: 34805.813 | CP8: 49507.363 | CQ8: 37235.688 | CR8: 45065.918 | CS8: 30509.619 | CT8: 33200.078 | CU8: 25030.898
B9: 10029 | C9: Blachly Lane Elec Coop | D9: 9364.296 | E9: 5360.448 | F9: 8900.123 | G9: 5364.712 | H9: 10530.587 | I9: 6422.161 | J9: 10911.128 | K9: 6948.458 | L9: 9710.449 | M9: 5578.943 | N9: 10638.438 | O9: 5824.798 | P9: 9677.58 | Q9: 5251.539 | R9: 8315.484 | S9: 5128.628 | T9: 8813.744 | U9: 4704.797 | V9: 8614.854 | W9: 5156.623 | X9: 9207.836 | Y9: 4873.14 | Z9: 8297.97 | AA9: 4670.208 | AB9: 9364.296 | AC9: 5360.448 | AD9: 8900.123 | AE9: 5364.712 | AF9: 10530.587 | AG9: 6422.161 | AH9: 10911.128 | AI9: 6948.458 | AJ9: 9710.449 | AK9: 5578.943 | AL9: 10638.438 | AM9: 5824.798 | AN9: 9396.667 | AO9: 5532.452 | AP9: 8560.294 | AQ9: 4883.818 | AR9: 8813.744 | AS9: 4704.797 | AT9: 8614.854 | AU9: 5156.623 | AV9: 9207.836 | AW9: 4873.14 | AX9: 8297.97 | AY9: 4670.208 | AZ9: 9991.521 | BA9: 5695.811 | BB9: 9507.558 | BC9: 5719.516 | BD9: 10837.093 | BE9: 7077.411 | BF9: 11866.858 | BG9: 6970.827 | BH9: 10751.012 | BI9: 6063.164 | BJ9: 11036.403 | BK9: 6473.219 | BL9: 10314.747 | BM9: 5584.672 | BN9: 9153.612 | BO9: 5219.337 | BP9: 9229.433 | BQ9: 5302.847 | BR9: 9464.484 | BS9: 5231.133 | BT9: 9831.97 | BU9: 5197.569 | BV9: 8664.693 | BW9: 5240.533 | BX9: 10259.65 | BY9: 5427.681 | BZ9: 9507.558 | CA9: 5719.516 | CB9: 10837.093 | CC9: 7077.411 | CD9: 11866.858 | CE9: 6970.827 | CF9: 10349.106 | CG9: 5903.039 | CH9: 11036.403 | CI9: 6473.219 | CJ9: 10314.747 | CK9: 5584.672 | CL9: 9153.612 | CM9: 5219.337 | CN9: 9229.433 | CO9: 5302.847 | CP9: 9464.484 | CQ9: 5231.133 | CR9: 9575.562 | CS9: 5453.977 | CT9: 8908.709 | CU9: 4996.518
B10: 10044 | C10: Canby, City of | D10: 9632.176 | E10: 5640.131 | F10: 10354.18 | G10: 6341.374 | H10: 11913.128 | I10: 7174.902 | J10: 11523.938 | K10: 7579.709 | L10: 9915.72 | M10: 5615.697 | N10: 10530.874 | O10: 5692.655 | P10: 9658.257 | Q10: 5218.625 | R10: 8460.366 | S10: 5258.597 | T10: 9385.653 | U10: 5031.239 | V10: 9961.146 | W10: 6178.536 | X10: 10717.621 | Y10: 5609.156 | Z10: 8907.49 | AA10: 5170.499 | AB10: 9665.138 | AC10: 5659.441 | AD10: 10416.269 | AE10: 6379.401 | AF10: 11984.6 | AG10: 7217.947 | AH10: 11593.067 | AI10: 7625.182 | AJ10: 9975.184 | AK10: 5649.369 | AL10: 10594.032 | AM10: 5726.793 | AN10: 9380.252 | AO10: 5585.838 | AP10: 8810.891 | AQ10: 4990.316 | AR10: 9441.929 | AS10: 5061.407 | AT10: 10020.884 | AU10: 6215.587 | AV10: 10781.903 | AW10: 5642.795 | AX10: 8960.898 | AY10: 5201.498 | AZ10: 10456.862 | BA10: 6124.291 | BB10: 10676.819 | BC10: 6537.007 | BD10: 12462.782 | BE10: 8190.686 | BF10: 12867.27 | BG10: 7794.74 | BH10: 11238.717 | BI10: 6305.138 | BJ10: 11115.585 | BK10: 6650.214 | BL10: 10603.74 | BM10: 5757.387 | BN10: 9795.228 | BO10: 5624.52 | BP10: 10039.406 | BQ10: 5931.132 | BR10: 11367.804 | BS10: 6456.271 | BT10: 11750.44 | BU10: 6222.325 | BV10: 9478.985 | BW10: 6057.799 | BX10: 10980.617 | BY10: 5892.934 | BZ10: 10862.372 | CA10: 6643.03 | CB10: 12547.826 | CC10: 8247.128 | CD10: 12955.532 | CE10: 7848.018 | CF10: 10871.764 | CG10: 6181.635 | CH10: 11191.073 | CI10: 6695.507 | CJ10: 10675.629 | CK10: 5796.408 | CL10: 9861.448 | CM10: 5662.25 | CN10: 10107.224 | CO10: 5971.42 | CP10: 11445.131 | CQ10: 6500.14 | CR10: 11464.938 | CS10: 6630.078 | CT10: 9867.418 | CU10: 5774.363
B11: 10046 | C11: Central Electric Coop | D11: 35607.613 | E11: 21638.387 | F11: 43213.512 | G11: 29837.953 | H11: 54220.992 | I11: 37304.852 | J11: 49551.91 | K11: 34406.488 | L11: 43278.914 | M11: 28222.156 | N11: 40921.766 | O11: 26258.006 | P11: 38136.313 | Q11: 24134.484 | R11: 38569.375 | S11: 26583.084 | T11: 40375.039 | U11: 24835.592 | V11: 42681.855 | W11: 28119.615 | X11: 43556.707 | Y11: 25967.201 | Z11: 37223.574 | AA11: 24847.096 | AB11: 36330.09 | AC11: 22077.434 | AD11: 43900.66 | AE11: 30312.412 | AF11: 54909.141 | AG11: 37778.313 | AH11: 50237.484 | AI11: 34882.523 | AJ11: 43981.957 | AK11: 28680.609 | AL11: 41629.277 | AM11: 26711.99 | AN11: 38847.648 | AO11: 24584.656 | AP11: 39256.98 | AQ11: 27056.998 | AR11: 41094.207 | AS11: 25277.971 | AT11: 43382.098 | AU11: 28580.938 | AV11: 44284.414 | AW11: 26401.037 | AX11: 37920.152 | AY11: 25312.066 | AZ11: 37895.941 | BA11: 23028.98 | BB11: 39219.129 | BC11: 27079.92 | BD11: 57053.949 | BE11: 39253.977 | BF11: 54134.895 | BG11: 37588.691 | BH11: 42988.406 | BI11: 28032.715 | BJ11: 45353.672 | BK11: 29101.801 | BL11: 41723.813 | BM11: 26404.832 | BN11: 37227.453 | BO11: 25658.191 | BP11: 38316.02 | BQ11: 23569.045 | BR11: 42603.445 | BS11: 28067.951 | BT11: 43471.363 | BU11: 25916.32 | BV11: 34327.273 | BW11: 22913.781 | BX11: 38450.824 | BY11: 23366.176 | BZ11: 39746.875 | CA11: 27444.32 | CB11: 57582.461 | CC11: 39617.602 | CD11: 54661.434 | CE11: 37954.297 | CF11: 42573.727 | CG11: 27762.309 | CH11: 45897.063 | CI11: 29450.473 | CJ11: 42270.141 | CK11: 26750.564 | CL11: 37755.551 | CM11: 26022.17 | CN11: 38868.355 | CO11: 23908.799 | CP11: 43141.25 | CQ11: 28422.266 | CR11: 44030.262 | CS11: 26249.52 | CT11: 34862.258 | CU11: 23270.893
B12: 10047 | C12: Central Lincoln PUD | D12: 64525.313 | E12: 45569.957 | F12: 65538.305 | G12: 47388.289 | H12: 81221.016 | I12: 57153.258 | J12: 73935.281 | K12: 57516.68 | L12: 64989.105 | M12: 43667.758 | N12: 72686.648 | O12: 47009.176 | P12: 67098.141 | Q12: 44533.004 | R12: 53650.715 | S12: 41884.594 | T12: 56417.73 | U12: 37281.777 | V12: 55050.125 | W12: 43118.41 | X12: 60581.262 | Y12: 39203.25 | Z12: 54512.363 | AA12: 39490.27 | AB12: 64629.445 | AC12: 45643.496 | AD12: 65644.102 | AE12: 47464.777 | AF12: 81352.148 | AG12: 57245.52 | AH12: 74054.617 | AI12: 57609.508 | AJ12: 65094.012 | AK12: 43738.246 | AL12: 72803.977 | AM12: 47085.063 | AN12: 64629.789 | AO12: 47181.609 | AP12: 55871.355 | AQ12: 39818.184 | AR12: 56508.773 | AS12: 37341.941 | AT12: 55138.957 | AU12: 43187.988 | AV12: 60679.016 | AW12: 39266.508 | AX12: 54600.34 | AY12: 39554 | AZ12: 65346.301 | BA12: 46127.539 | BB12: 66185.555 | BC12: 48099.211 | BD12: 78777.031 | BE12: 60727.375 | BF12: 77755.07 | BG12: 55157.695 | BH12: 69574.039 | BI12: 46218.434 | BJ12: 71821.664 | BK12: 51208.547 | BL12: 67100.258 | BM12: 44832.91 | BN12: 57031.367 | BO12: 40734.07 | BP12: 54272.586 | BQ12: 39515.922 | BR12: 58016.711 | BS12: 41565.656 | BT12: 61222.109 | BU12: 39726.738 | BV12: 53948.281 | BW12: 42948.027 | BX12: 67885.453 | BY12: 43728.277 | BZ12: 66268.617 | CA12: 48159.586 | CB12: 78875.945 | CC12: 60803.621 | CD12: 77852.672 | CE12: 55226.949 | CF12: 66891.367 | CG12: 45048.676 | CH12: 71911.828 | CI12: 51272.832 | CJ12: 67184.477 | CK12: 44889.18 | CL12: 57102.941 | CM12: 40785.191 | CN12: 54340.695 | CO12: 39565.504 | CP12: 58089.504 | CQ12: 41617.805 | CR12: 59073.773 | CS12: 42001.738 | CT12: 56222.988 | CU12: 40794.895
B13: 10055 | C13: Albion, City of | D13: 150.502 | E13: 106.838 | F13: 164.839 | G13: 127.281 | H13: 258.32 | I13: 195.017 | J13: 236.124 | K13: 201.777 | L13: 195.049 | M13: 143.282 | N13: 183.611 | O13: 128.798 | P13: 150.476 | Q13: 103.59 | R13: 118.421 | S13: 90.916 | T13: 123.561 | U13: 70.846 | V13: 134.754 | W13: 87.22 | X13: 134.981 | Y13: 71.929 | Z13: 113.804 | AA13: 73.567 | AB13: 150.502 | AC13: 106.838 | AD13: 164.839 | AE13: 127.281 | AF13: 258.32 | AG13: 195.017 | AH13: 236.124 | AI13: 201.777 | AJ13: 195.049 | AK13: 143.282 | AL13: 183.611 | AM13: 128.798 | AN13: 144.623 | AO13: 109.443 | AP13: 123.088 | AQ13: 86.249 | AR13: 123.561 | AS13: 70.846 | AT13: 134.754 | AU13: 87.22 | AV13: 134.981 | AW13: 71.929 | AX13: 113.804 | AY13: 73.567 | AZ13: 152.294 | BA13: 108.109 | BB13: 167.835 | BC13: 129.594 | BD13: 250.248 | BE13: 206.806 | BF13: 248.468 | BG13: 194.031 | BH13: 206.45 | BI13: 149.555 | BJ13: 178.899 | BK13: 137.512 | BL13: 153.177 | BM13: 105.449 | BN13: 125.215 | BO13: 87.739 | BP13: 122.481 | BQ13: 77.474 | BR13: 143.281 | BS13: 84.379 | BT13: 137.838 | BU13: 73.452 | BV13: 111.376 | BW13: 79.226 | BX13: 158.099 | BY13: 102.304 | BZ13: 167.835 | CA13: 129.594 | CB13: 250.248 | CC13: 206.806 | CD13: 248.468 | CE13: 194.031 | CF13: 198.224 | CG13: 145.614 | CH13: 178.899 | CI13: 137.512 | CJ13: 153.177 | CK13: 105.449 | CL13: 125.215 | CM13: 87.739 | CN13: 122.481 | CO13: 77.474 | CP13: 143.281 | CQ13: 84.379 | CR13: 133.127 | CS13: 78.162 | CT13: 115.767 | CU13: 74.835
B14: 10057 | C14: Ashland, City of | D14: 8440.66 | E14: 4876.266 | F14: 10098.481 | G14: 6134.316 | H14: 11175.98 | I14: 6730.607 | J14: 10940.983 | K14: 7292.169 | L14: 9534.637 | M14: 5471.63 | N14: 9586.534 | O14: 5226.854 | P14: 8847.056 | Q14: 4787.606 | R14: 7734.449 | S14: 4922.917 | T14: 8028.38 | U14: 4174.793 | V14: 9562.445 | W14: 5715.648 | X14: 10112.3 | Y14: 5002.225 | Z14: 7650.12 | AA14: 4325.148 | AB14: 8440.66 | AC14: 4876.266 | AD14: 10098.481 | AE14: 6134.316 | AF14: 11175.98 | AG14: 6730.607 | AH14: 10940.983 | AI14: 7292.169 | AJ14: 9534.637 | AK14: 5471.63 | AL14: 9586.534 | AM14: 5226.854 | AN14: 8512.226 | AO14: 5122.437 | AP14: 8035.252 | AQ14: 4622.113 | AR14: 8028.38 | AS14: 4174.793 | AT14: 9562.445 | AU14: 5715.648 | AV14: 10112.3 | AW14: 5002.225 | AX14: 7650.12 | AY14: 4325.148 | AZ14: 8271.977 | BA14: 4778.813 | BB14: 9248.331 | BC14: 5617.894 | BD14: 11240.218 | BE14: 7482.194 | BF14: 11215.081 | BG14: 6762.845 | BH14: 9793.14 | BI14: 5532.442 | BJ14: 9476.292 | BK14: 5725.754 | BL14: 8518.747 | BM14: 4609.942 | BN14: 7865.33 | BO14: 4524.368 | BP14: 8034.873 | BQ14: 4651.723 | BR14: 10127.19 | BS14: 5461.312 | BT14: 10294.019 | BU14: 5092.114 | BV14: 7795.926 | BW14: 4895.455 | BX14: 8582.129 | BY14: 4468.661 | BZ14: 9248.331 | CA14: 5617.894 | CB14: 11240.218 | CC14: 7482.194 | CD14: 11215.081 | CE14: 6762.845 | CF14: 9408.318 | CG14: 5399.142 | CH14: 9476.292 | CI14: 5725.754 | CJ14: 8518.747 | CK14: 4609.942 | CL14: 7865.33 | CM14: 4524.368 | CN14: 8034.873 | CO14: 4651.723 | CP14: 10127.19 | CQ14: 5461.312 | CR14: 9928.365 | CS14: 5457.768 | CT14: 8107.592 | CU14: 4583.789
B15: 10059 | C15: Bandon, City of | D15: 3253.465 | E15: 1950.085 | F15: 3543.9 | G15: 2280.144 | H15: 4390.303 | I15: 2793.559 | J15: 4357.65 | K15: 3122.98 | L15: 4068.082 | M15: 2460.926 | N15: 3942.326 | O15: 2295.873 | P15: 3578.705 | Q15: 2136.085 | R15: 2846.426 | S15: 1977.297 | T15: 2823.997 | U15: 1598.497 | V15: 2641.081 | W15: 1778.34 | X15: 2851.256 | Y15: 1547.292 | Z15: 2693.605 | AA15: 1631.57 | AB15: 3253.465 | AC15: 1950.085 | AD15: 3543.9 | AE15: 2280.144 | AF15: 4390.303 | AG15: 2793.559 | AH15: 4357.65 | AI15: 3122.98 | AJ15: 4068.082 | AK15: 2460.926 | AL15: 3942.326 | AM15: 2295.873 | AN15: 3434.121 | AO15: 2280.669 | AP15: 2964.529 | AQ15: 1859.194 | AR15: 2823.997 | AS15: 1598.497 | AT15: 2641.081 | AU15: 1778.34 | AV15: 2851.256 | AW15: 1547.292 | AX15: 2693.605 | AY15: 1631.57 | AZ15: 3253.465 | BA15: 1950.085 | BB15: 3543.9 | BC15: 2280.144 | BD15: 4214.415 | BE15: 2969.447 | BF15: 4540.804 | BG15: 2939.826 | BH15: 4238.654 | BI15: 2523.533 | BJ15: 3789.386 | BK15: 2448.812 | BL15: 3578.705 | BM15: 2136.085 | BN15: 2964.529 | BO15: 1859.194 | BP15: 2712.108 | BQ15: 1710.385 | BR15: 2749.285 | BS15: 1670.136 | BT15: 2851.256 | BU15: 1547.292 | BV15: 2584.178 | BW15: 1740.997 | BX15: 3380.868 | BY15: 1822.683 | BZ15: 3543.9 | CA15: 2280.144 | CB15: 4214.415 | CC15: 2969.447 | CD15: 4540.804 | CE15: 2939.826 | CF15: 4068.082 | CG15: 2460.926 | CH15: 3789.386 | CI15: 2448.812 | CJ15: 3578.705 | CK15: 2136.085 | CL15: 2964.529 | CM15: 1859.194 | CN15: 2712.108 | CO15: 1710.385 | CP15: 2749.285 | CQ15: 1670.136 | CR15: 2743.563 | CS15: 1654.986 | CT15: 2693.605 | CU15: 1631.57
... 18 more rows

Sheet TRMbdForecast_NLSL
B1: New Large Single Loads (MWh)
A2: TOC | D2: 2021-10-01 | E2: 2021-10-01 | F2: 2021-11-01 | G2: 2021-11-01 | H2: 2021-12-01 | I2: 2021-12-01 | J2: 2022-01-01 | K2: 2022-01-01 | L2: 2022-02-01 | M2: 2022-02-01 | N2: 2022-03-01 | O2: 2022-03-01 | P2: 2022-04-01 | Q2: 2022-04-01 | R2: 2022-05-01 | S2: 2022-05-01 | T2: 2022-06-01 | U2: 2022-06-01 | V2: 2022-07-01 | W2: 2022-07-01 | X2: 2022-08-01 | Y2: 2022-08-01 | Z2: 2022-09-01 | AA2: 2022-09-01 | AB2: 2022-10-01 | AC2: 2022-10-01 | AD2: 2022-11-01 | AE2: 2022-11-01 | AF2: 2022-12-01 | AG2: 2022-12-01 | AH2: 2023-01-01 | AI2: 2023-01-01 | AJ2: 2023-02-01 | AK2: 2023-02-01 | AL2: 2023-03-01 | AM2: 2023-03-01 | AN2: 2023-04-01 | AO2: 2023-04-01 | AP2: 2023-05-01 | AQ2: 2023-05-01 | AR2: 2023-06-01 | AS2: 2023-06-01 | AT2: 2023-07-01 | AU2: 2023-07-01 | AV2: 2023-08-01 | AW2: 2023-08-01 | AX2: 2023-09-01 | AY2: 2023-09-01 | AZ2: 2023-10-01 | BA2: 2023-10-01 | BB2: 2023-11-01 | BC2: 2023-11-01 | BD2: 2023-12-01 | BE2: 2023-12-01 | BF2: 2024-01-01 | BG2: 2024-01-01 | BH2: 2024-02-01 | BI2: 2024-02-01 | BJ2: 2024-03-01 | BK2: 2024-03-01 | BL2: 2024-04-01 | BM2: 2024-04-01 | BN2: 2024-05-01 | BO2: 2024-05-01 | BP2: 2024-06-01 | BQ2: 2024-06-01 | BR2: 2024-07-01 | BS2: 2024-07-01 | BT2: 2024-08-01 | BU2: 2024-08-01 | BV2: 2024-09-01 | BW2: 2024-09-01 | BX2: 2024-10-01 | BY2: 2024-10-01 | BZ2: 2024-11-01 | CA2: 2024-11-01 | CB2: 2024-12-01 | CC2: 2024-12-01 | CD2: 2025-01-01 | CE2: 2025-01-01 | CF2: 2025-02-01 | CG2: 2025-02-01 | CH2: 2025-03-01 | CI2: 2025-03-01 | CJ2: 2025-04-01 | CK2: 2025-04-01 | CL2: 2025-05-01 | CM2: 2025-05-01 | CN2: 2025-06-01 | CO2: 2025-06-01 | CP2: 2025-07-01 | CQ2: 2025-07-01 | CR2: 2025-08-01 | CS2: 2025-08-01 | CT2: 2025-09-01 | CU2: 2025-09-01
B3: BESID | C3: AccountName | D3: HLH | E3: LLH | F3: HLH | G3: LLH | H3: HLH | I3: LLH | J3: HLH | K3: LLH | L3: HLH | M3: LLH | N3: HLH | O3: LLH | P3: HLH | Q3: LLH | R3: HLH | S3: LLH | T3: HLH | U3: LLH | V3: HLH | W3: LLH | X3: HLH | Y3: LLH | Z3: HLH | AA3: LLH | AB3: HLH | AC3: LLH | AD3: HLH | AE3: LLH | AF3: HLH | AG3: LLH | AH3: HLH | AI3: LLH | AJ3: HLH | AK3: LLH | AL3: HLH | AM3: LLH | AN3: HLH | AO3: LLH | AP3: HLH | AQ3: LLH | AR3: HLH | AS3: LLH | AT3: HLH | AU3: LLH | AV3: HLH | AW3: LLH | AX3: HLH | AY3: LLH | AZ3: HLH | BA3: LLH | BB3: HLH | BC3: LLH | BD3: HLH | BE3: LLH | BF3: HLH | BG3: LLH | BH3: HLH | BI3: LLH | BJ3: HLH | BK3: LLH | BL3: HLH | BM3: LLH | BN3: HLH | BO3: LLH | BP3: HLH | BQ3: LLH | BR3: HLH | BS3: LLH | BT3: HLH | BU3: LLH | BV3: HLH | BW3: LLH | BX3: HLH | BY3: LLH | BZ3: HLH | CA3: LLH | CB3: HLH | CC3: LLH | CD3: HLH | CE3: LLH | CF3: HLH | CG3: LLH | CH3: HLH | CI3: LLH | CJ3: HLH | CK3: LLH | CL3: HLH | CM3: LLH | CN3: HLH | CO3: LLH | CP3: HLH | CQ3: LLH | CR3: HLH | CS3: LLH | CT3: HLH | CU3: LLH
B4: 10005 | C4: Alder Mutual | D4: 0 | E4: 0 | F4: 0 | G4: 0 | H4: 0 | I4: 0 | J4: 0 | K4: 0 | L4: 0 | M4: 0 | N4: 0 | O4: 0 | P4: 0 | Q4: 0 | R4: 0 | S4: 0 | T4: 0 | U4: 0 | V4: 0 | W4: 0 | X4: 0 | Y4: 0 | Z4: 0 | AA4: 0 | AB4: 0 | AC4: 0 | AD4: 0 | AE4: 0 | AF4: 0 | AG4: 0 | AH4: 0 | AI4: 0 | AJ4: 0 | AK4: 0 | AL4: 0 | AM4: 0 | AN4: 0 | AO4: 0 | AP4: 0 | AQ4: 0 | AR4: 0 | AS4: 0 | AT4: 0 | AU4: 0 | AV4: 0 | AW4: 0 | AX4: 0 | AY4: 0 | AZ4: 0 | BA4: 0 | BB4: 0 | BC4: 0 | BD4: 0 | BE4: 0 | BF4: 0 | BG4: 0 | BH4: 0 | BI4: 0 | BJ4: 0 | BK4: 0 | BL4: 0 | BM4: 0 | BN4: 0 | BO4: 0 | BP4: 0 | BQ4: 0 | BR4: 0 | BS4: 0 | BT4: 0 | BU4: 0 | BV4: 0 | BW4: 0 | BX4: 0 | BY4: 0 | BZ4: 0 | CA4: 0 | CB4: 0 | CC4: 0 | CD4: 0 | CE4: 0 | CF4: 0 | CG4: 0 | CH4: 0 | CI4: 0 | CJ4: 0 | CK4: 0 | CL4: 0 | CM4: 0 | CN4: 0 | CO4: 0 | CP4: 0 | CQ4: 0 | CR4: 0 | CS4: 0 | CT4: 0 | CU4: 0
B5: 10015 | C5: Asotin County PUD #1 | D5: 0 | E5: 0 | F5: 0 | G5: 0 | H5: 0 | I5: 0 | J5: 0 | K5: 0 | L5: 0 | M5: 0 | N5: 0 | O5: 0 | P5: 0 | Q5: 0 | R5: 0 | S5: 0 | T5: 0 | U5: 0 | V5: 0 | W5: 0 | X5: 0 | Y5: 0 | Z5: 0 | AA5: 0 | AB5: 0 | AC5: 0 | AD5: 0 | AE5: 0 | AF5: 0 | AG5: 0 | AH5: 0 | AI5: 0 | AJ5: 0 | AK5: 0 | AL5: 0 | AM5: 0 | AN5: 0 | AO5: 0 | AP5: 0 | AQ5: 0 | AR5: 0 | AS5: 0 | AT5: 0 | AU5: 0 | AV5: 0 | AW5: 0 | AX5: 0 | AY5: 0 | AZ5: 0 | BA5: 0 | BB5: 0 | BC5: 0 | BD5: 0 | BE5: 0 | BF5: 0 | BG5: 0 | BH5: 0 | BI5: 0 | BJ5: 0 | BK5: 0 | BL5: 0 | BM5: 0 | BN5: 0 | BO5: 0 | BP5: 0 | BQ5: 0 | BR5: 0 | BS5: 0 | BT5: 0 | BU5: 0 | BV5: 0 | BW5: 0 | BX5: 0 | BY5: 0 | BZ5: 0 | CA5: 0 | CB5: 0 | CC5: 0 | CD5: 0 | CE5: 0 | CF5: 0 | CG5: 0 | CH5: 0 | CI5: 0 | CJ5: 0 | CK5: 0 | CL5: 0 | CM5: 0 | CN5: 0 | CO5: 0 | CP5: 0 | CQ5: 0 | CR5: 0 | CS5: 0 | CT5: 0 | CU5: 0
B6: 10024 | C6: Benton County PUD #1 | D6: 0 | E6: 0 | F6: 0 | G6: 0 | H6: 0 | I6: 0 | J6: 0 | K6: 0 | L6: 0 | M6: 0 | N6: 0 | O6: 0 | P6: 0 | Q6: 0 | R6: 0 | S6: 0 | T6: 0 | U6: 0 | V6: 0 | W6: 0 | X6: 0 | Y6: 0 | Z6: 0 | AA6: 0 | AB6: 0 | AC6: 0 | AD6: 0 | AE6: 0 | AF6: 0 | AG6: 0 | AH6: 0 | AI6: 0 | AJ6: 0 | AK6: 0 | AL6: 0 | AM6: 0 | AN6: 0 | AO6: 0 | AP6: 0 | AQ6: 0 | AR6: 0 | AS6: 0 | AT6: 0 | AU6: 0 | AV6: 0 | AW6: 0 | AX6: 0 | AY6: 0 | AZ6: 0 | BA6: 0 | BB6: 0 | BC6: 0 | BD6: 0 | BE6: 0 | BF6: 0 | BG6: 0 | BH6: 0 | BI6: 0 | BJ6: 0 | BK6: 0 | BL6: 0 | BM6: 0 | BN6: 0 | BO6: 0 | BP6: 0 | BQ6: 0 | BR6: 0 | BS6: 0 | BT6: 0 | BU6: 0 | BV6: 0 | BW6: 0 | BX6: 0 | BY6: 0 | BZ6: 0 | CA6: 0 | CB6: 0 | CC6: 0 | CD6: 0 | CE6: 0 | CF6: 0 | CG6: 0 | CH6: 0 | CI6: 0 | CJ6: 0 | CK6: 0 | CL6: 0 | CM6: 0 | CN6: 0 | CO6: 0 | CP6: 0 | CQ6: 0 | CR6: 0 | CS6: 0 | CT6: 0 | CU6: 0
B7: 10025 | C7: Benton REA | D7: 0 | E7: 0 | F7: 0 | G7: 0 | H7: 0 | I7: 0 | J7: 0 | K7: 0 | L7: 0 | M7: 0 | N7: 0 | O7: 0 | P7: 0 | Q7: 0 | R7: 0 | S7: 0 | T7: 0 | U7: 0 | V7: 0 | W7: 0 | X7: 0 | Y7: 0 | Z7: 0 | AA7: 0 | AB7: 0 | AC7: 0 | AD7: 0 | AE7: 0 | AF7: 0 | AG7: 0 | AH7: 0 | AI7: 0 | AJ7: 0 | AK7: 0 | AL7: 0 | AM7: 0 | AN7: 0 | AO7: 0 | AP7: 0 | AQ7: 0 | AR7: 0 | AS7: 0 | AT7: 0 | AU7: 0 | AV7: 0 | AW7: 0 | AX7: 0 | AY7: 0 | AZ7: 0 | BA7: 0 | BB7: 0 | BC7: 0 | BD7: 0 | BE7: 0 | BF7: 0 | BG7: 0 | BH7: 0 | BI7: 0 | BJ7: 0 | BK7: 0 | BL7: 0 | BM7: 0 | BN7: 0 | BO7: 0 | BP7: 0 | BQ7: 0 | BR7: 0 | BS7: 0 | BT7: 0 | BU7: 0 | BV7: 0 | BW7: 0 | BX7: 0 | BY7: 0 | BZ7: 0 | CA7: 0 | CB7: 0 | CC7: 0 | CD7: 0 | CE7: 0 | CF7: 0 | CG7: 0 | CH7: 0 | CI7: 0 | CJ7: 0 | CK7: 0 | CL7: 0 | CM7: 0 | CN7: 0 | CO7: 0 | CP7: 0 | CQ7: 0 | CR7: 0 | CS7: 0 | CT7: 0 | CU7: 0
B8: 10027 | C8: Big Bend Elec Coop | D8: 0 | E8: 0 | F8: 0 | G8: 0 | H8: 0 | I8: 0 | J8: 0 | K8: 0 | L8: 0 | M8: 0 | N8: 0 | O8: 0 | P8: 0 | Q8: 0 | R8: 0 | S8: 0 | T8: 0 | U8: 0 | V8: 0 | W8: 0 | X8: 0 | Y8: 0 | Z8: 0 | AA8: 0 | AB8: 0 | AC8: 0 | AD8: 0 | AE8: 0 | AF8: 0 | AG8: 0 | AH8: 0 | AI8: 0 | AJ8: 0 | AK8: 0 | AL8: 0 | AM8: 0 | AN8: 0 | AO8: 0 | AP8: 0 | AQ8: 0 | AR8: 0 | AS8: 0 | AT8: 0 | AU8: 0 | AV8: 0 | AW8: 0 | AX8: 0 | AY8: 0 | AZ8: 0 | BA8: 0 | BB8: 0 | BC8: 0 | BD8: 0 | BE8: 0 | BF8: 0 | BG8: 0 | BH8: 0 | BI8: 0 | BJ8: 0 | BK8: 0 | BL8: 0 | BM8: 0 | BN8: 0 | BO8: 0 | BP8: 0 | BQ8: 0 | BR8: 0 | BS8: 0 | BT8: 0 | BU8: 0 | BV8: 0 | BW8: 0 | BX8: 0 | BY8: 0 | BZ8: 0 | CA8: 0 | CB8: 0 | CC8: 0 | CD8: 0 | CE8: 0 | CF8: 0 | CG8: 0 | CH8: 0 | CI8: 0 | CJ8: 0 | CK8: 0 | CL8: 0 | CM8: 0 | CN8: 0 | CO8: 0 | CP8: 0 | CQ8: 0 | CR8: 0 | CS8: 0 | CT8: 0 | CU8: 0
B9: 10029 | C9: Blachly Lane Elec Coop | D9: 0 | E9: 0 | F9: 0 | G9: 0 | H9: 0 | I9: 0 | J9: 0 | K9: 0 | L9: 0 | M9: 0 | N9: 0 | O9: 0 | P9: 0 | Q9: 0 | R9: 0 | S9: 0 | T9: 0 | U9: 0 | V9: 0 | W9: 0 | X9: 0 | Y9: 0 | Z9: 0 | AA9: 0 | AB9: 0 | AC9: 0 | AD9: 0 | AE9: 0 | AF9: 0 | AG9: 0 | AH9: 0 | AI9: 0 | AJ9: 0 | AK9: 0 | AL9: 0 | AM9: 0 | AN9: 0 | AO9: 0 | AP9: 0 | AQ9: 0 | AR9: 0 | AS9: 0 | AT9: 0 | AU9: 0 | AV9: 0 | AW9: 0 | AX9: 0 | AY9: 0 | AZ9: 0 | BA9: 0 | BB9: 0 | BC9: 0 | BD9: 0 | BE9: 0 | BF9: 0 | BG9: 0 | BH9: 0 | BI9: 0 | BJ9: 0 | BK9: 0 | BL9: 0 | BM9: 0 | BN9: 0 | BO9: 0 | BP9: 0 | BQ9: 0 | BR9: 0 | BS9: 0 | BT9: 0 | BU9: 0 | BV9: 0 | BW9: 0 | BX9: 0 | BY9: 0 | BZ9: 0 | CA9: 0 | CB9: 0 | CC9: 0 | CD9: 0 | CE9: 0 | CF9: 0 | CG9: 0 | CH9: 0 | CI9: 0 | CJ9: 0 | CK9: 0 | CL9: 0 | CM9: 0 | CN9: 0 | CO9: 0 | CP9: 0 | CQ9: 0 | CR9: 0 | CS9: 0 | CT9: 0 | CU9: 0
B10: 10044 | C10: Canby, City of | D10: 0 | E10: 0 | F10: 0 | G10: 0 | H10: 0 | I10: 0 | J10: 0 | K10: 0 | L10: 0 | M10: 0 | N10: 0 | O10: 0 | P10: 0 | Q10: 0 | R10: 0 | S10: 0 | T10: 0 | U10: 0 | V10: 0 | W10: 0 | X10: 0 | Y10: 0 | Z10: 0 | AA10: 0 | AB10: 0 | AC10: 0 | AD10: 0 | AE10: 0 | AF10: 0 | AG10: 0 | AH10: 0 | AI10: 0 | AJ10: 0 | AK10: 0 | AL10: 0 | AM10: 0 | AN10: 0 | AO10: 0 | AP10: 0 | AQ10: 0 | AR10: 0 | AS10: 0 | AT10: 0 | AU10: 0 | AV10: 0 | AW10: 0 | AX10: 0 | AY10: 0 | AZ10: 0 | BA10: 0 | BB10: 0 | BC10: 0 | BD10: 0 | BE10: 0 | BF10: 0 | BG10: 0 | BH10: 0 | BI10: 0 | BJ10: 0 | BK10: 0 | BL10: 0 | BM10: 0 | BN10: 0 | BO10: 0 | BP10: 0 | BQ10: 0 | BR10: 0 | BS10: 0 | BT10: 0 | BU10: 0 | BV10: 0 | BW10: 0 | BX10: 0 | BY10: 0 | BZ10: 0 | CA10: 0 | CB10: 0 | CC10: 0 | CD10: 0 | CE10: 0 | CF10: 0 | CG10: 0 | CH10: 0 | CI10: 0 | CJ10: 0 | CK10: 0 | CL10: 0 | CM10: 0 | CN10: 0 | CO10: 0 | CP10: 0 | CQ10: 0 | CR10: 0 | CS10: 0 | CT10: 0 | CU10: 0
B11: 10046 | C11: Central Electric Coop | D11: 0 | E11: 0 | F11: 0 | G11: 0 | H11: 0 | I11: 0 | J11: 0 | K11: 0 | L11: 0 | M11: 0 | N11: 0 | O11: 0 | P11: 0 | Q11: 0 | R11: 0 | S11: 0 | T11: 0 | U11: 0 | V11: 0 | W11: 0 | X11: 0 | Y11: 0 | Z11: 0 | AA11: 0 | AB11: 0 | AC11: 0 | AD11: 0 | AE11: 0 | AF11: 0 | AG11: 0 | AH11: 0 | AI11: 0 | AJ11: 0 | AK11: 0 | AL11: 0 | AM11: 0 | AN11: 0 | AO11: 0 | AP11: 0 | AQ11: 0 | AR11: 0 | AS11: 0 | AT11: 0 | AU11: 0 | AV11: 0 | AW11: 0 | AX11: 0 | AY11: 0 | AZ11: 0 | BA11: 0 | BB11: 0 | BC11: 0 | BD11: 0 | BE11: 0 | BF11: 0 | BG11: 0 | BH11: 0 | BI11: 0 | BJ11: 0 | BK11: 0 | BL11: 0 | BM11: 0 | BN11: 0 | BO11: 0 | BP11: 0 | BQ11: 0 | BR11: 0 | BS11: 0 | BT11: 0 | BU11: 0 | BV11: 0 | BW11: 0 | BX11: 0 | BY11: 0 | BZ11: 0 | CA11: 0 | CB11: 0 | CC11: 0 | CD11: 0 | CE11: 0 | CF11: 0 | CG11: 0 | CH11: 0 | CI11: 0 | CJ11: 0 | CK11: 0 | CL11: 0 | CM11: 0 | CN11: 0 | CO11: 0 | CP11: 0 | CQ11: 0 | CR11: 0 | CS11: 0 | CT11: 0 | CU11: 0
B12: 10047 | C12: Central Lincoln PUD | D12: 0 | E12: 0 | F12: 0 | G12: 0 | H12: 0 | I12: 0 | J12: 0 | K12: 0 | L12: 0 | M12: 0 | N12: 0 | O12: 0 | P12: 0 | Q12: 0 | R12: 0 | S12: 0 | T12: 0 | U12: 0 | V12: 0 | W12: 0 | X12: 0 | Y12: 0 | Z12: 0 | AA12: 0 | AB12: 0 | AC12: 0 | AD12: 0 | AE12: 0 | AF12: 0 | AG12: 0 | AH12: 0 | AI12: 0 | AJ12: 0 | AK12: 0 | AL12: 0 | AM12: 0 | AN12: 0 | AO12: 0 | AP12: 0 | AQ12: 0 | AR12: 0 | AS12: 0 | AT12: 0 | AU12: 0 | AV12: 0 | AW12: 0 | AX12: 0 | AY12: 0 | AZ12: 0 | BA12: 0 | BB12: 0 | BC12: 0 | BD12: 0 | BE12: 0 | BF12: 0 | BG12: 0 | BH12: 0 | BI12: 0 | BJ12: 0 | BK12: 0 | BL12: 0 | BM12: 0 | BN12: 0 | BO12: 0 | BP12: 0 | BQ12: 0 | BR12: 0 | BS12: 0 | BT12: 0 | BU12: 0 | BV12: 0 | BW12: 0 | BX12: 0 | BY12: 0 | BZ12: 0 | CA12: 0 | CB12: 0 | CC12: 0 | CD12: 0 | CE12: 0 | CF12: 0 | CG12: 0 | CH12: 0 | CI12: 0 | CJ12: 0 | CK12: 0 | CL12: 0 | CM12: 0 | CN12: 0 | CO12: 0 | CP12: 0 | CQ12: 0 | CR12: 0 | CS12: 0 | CT12: 0 | CU12: 0
B13: 10055 | C13: Albion, City of | D13: 0 | E13: 0 | F13: 0 | G13: 0 | H13: 0 | I13: 0 | J13: 0 | K13: 0 | L13: 0 | M13: 0 | N13: 0 | O13: 0 | P13: 0 | Q13: 0 | R13: 0 | S13: 0 | T13: 0 | U13: 0 | V13: 0 | W13: 0 | X13: 0 | Y13: 0 | Z13: 0 | AA13: 0 | AB13: 0 | AC13: 0 | AD13: 0 | AE13: 0 | AF13: 0 | AG13: 0 | AH13: 0 | AI13: 0 | AJ13: 0 | AK13: 0 | AL13: 0 | AM13: 0 | AN13: 0 | AO13: 0 | AP13: 0 | AQ13: 0 | AR13: 0 | AS13: 0 | AT13: 0 | AU13: 0 | AV13: 0 | AW13: 0 | AX13: 0 | AY13: 0 | AZ13: 0 | BA13: 0 | BB13: 0 | BC13: 0 | BD13: 0 | BE13: 0 | BF13: 0 | BG13: 0 | BH13: 0 | BI13: 0 | BJ13: 0 | BK13: 0 | BL13: 0 | BM13: 0 | BN13: 0 | BO13: 0 | BP13: 0 | BQ13: 0 | BR13: 0 | BS13: 0 | BT13: 0 | BU13: 0 | BV13: 0 | BW13: 0 | BX13: 0 | BY13: 0 | BZ13: 0 | CA13: 0 | CB13: 0 | CC13: 0 | CD13: 0 | CE13: 0 | CF13: 0 | CG13: 0 | CH13: 0 | CI13: 0 | CJ13: 0 | CK13: 0 | CL13: 0 | CM13: 0 | CN13: 0 | CO13: 0 | CP13: 0 | CQ13: 0 | CR13: 0 | CS13: 0 | CT13: 0 | CU13: 0
B14: 10057 | C14: Ashland, City of | D14: 0 | E14: 0 | F14: 0 | G14: 0 | H14: 0 | I14: 0 | J14: 0 | K14: 0 | L14: 0 | M14: 0 | N14: 0 | O14: 0 | P14: 0 | Q14: 0 | R14: 0 | S14: 0 | T14: 0 | U14: 0 | V14: 0 | W14: 0 | X14: 0 | Y14: 0 | Z14: 0 | AA14: 0 | AB14: 0 | AC14: 0 | AD14: 0 | AE14: 0 | AF14: 0 | AG14: 0 | AH14: 0 | AI14: 0 | AJ14: 0 | AK14: 0 | AL14: 0 | AM14: 0 | AN14: 0 | AO14: 0 | AP14: 0 | AQ14: 0 | AR14: 0 | AS14: 0 | AT14: 0 | AU14: 0 | AV14: 0 | AW14: 0 | AX14: 0 | AY14: 0 | AZ14: 0 | BA14: 0 | BB14: 0 | BC14: 0 | BD14: 0 | BE14: 0 | BF14: 0 | BG14: 0 | BH14: 0 | BI14: 0 | BJ14: 0 | BK14: 0 | BL14: 0 | BM14: 0 | BN14: 0 | BO14: 0 | BP14: 0 | BQ14: 0 | BR14: 0 | BS14: 0 | BT14: 0 | BU14: 0 | BV14: 0 | BW14: 0 | BX14: 0 | BY14: 0 | BZ14: 0 | CA14: 0 | CB14: 0 | CC14: 0 | CD14: 0 | CE14: 0 | CF14: 0 | CG14: 0 | CH14: 0 | CI14: 0 | CJ14: 0 | CK14: 0 | CL14: 0 | CM14: 0 | CN14: 0 | CO14: 0 | CP14: 0 | CQ14: 0 | CR14: 0 | CS14: 0 | CT14: 0 | CU14: 0
B15: 10059 | C15: Bandon, City of | D15: 0 | E15: 0 | F15: 0 | G15: 0 | H15: 0 | I15: 0 | J15: 0 | K15: 0 | L15: 0 | M15: 0 | N15: 0 | O15: 0 | P15: 0 | Q15: 0 | R15: 0 | S15: 0 | T15: 0 | U15: 0 | V15: 0 | W15: 0 | X15: 0 | Y15: 0 | Z15: 0 | AA15: 0 | AB15: 0 | AC15: 0 | AD15: 0 | AE15: 0 | AF15: 0 | AG15: 0 | AH15: 0 | AI15: 0 | AJ15: 0 | AK15: 0 | AL15: 0 | AM15: 0 | AN15: 0 | AO15: 0 | AP15: 0 | AQ15: 0 | AR15: 0 | AS15: 0 | AT15: 0 | AU15: 0 | AV15: 0 | AW15: 0 | AX15: 0 | AY15: 0 | AZ15: 0 | BA15: 0 | BB15: 0 | BC15: 0 | BD15: 0 | BE15: 0 | BF15: 0 | BG15: 0 | BH15: 0 | BI15: 0 | BJ15: 0 | BK15: 0 | BL15: 0 | BM15: 0 | BN15: 0 | BO15: 0 | BP15: 0 | BQ15: 0 | BR15: 0 | BS15: 0 | BT15: 0 | BU15: 0 | BV15: 0 | BW15: 0 | BX15: 0 | BY15: 0 | BZ15: 0 | CA15: 0 | CB15: 0 | CC15: 0 | CD15: 0 | CE15: 0 | CF15: 0 | CG15: 0 | CH15: 0 | CI15: 0 | CJ15: 0 | CK15: 0 | CL15: 0 | CM15: 0 | CN15: 0 | CO15: 0 | CP15: 0 | CQ15: 0 | CR15: 0 | CS15: 0 | CT15: 0 | CU15: 0
... 18 more rows

Sheet TRMbdForecast_Existing
B1: Exhibit A Exisiting Dedicated Resources (including COR, SNEER, other Existing Resource) (MWh)
A2: TOC | D2: 2023-10-01 | E2: 2023-10-01 | F2: 2023-11-01 | G2: 2023-11-01 | H2: 2023-12-01 | I2: 2023-12-01 | J2: 2024-01-01 | K2: 2024-01-01 | L2: 2024-02-01 | M2: 2024-02-01 | N2: 2024-03-01 | O2: 2024-03-01 | P2: 2024-04-01 | Q2: 2024-04-01 | R2: 2024-05-01 | S2: 2024-05-01 | T2: 2024-06-01 | U2: 2024-06-01 | V2: 2024-07-01 | W2: 2024-07-01 | X2: 2024-08-01 | Y2: 2024-08-01 | Z2: 2024-09-01 | AA2: 2024-09-01 | AB2: 2024-10-01 | AC2: 2024-10-01 | AD2: 2024-11-01 | AE2: 2024-11-01 | AF2: 2024-12-01 | AG2: 2024-12-01 | AH2: 2025-01-01 | AI2: 2025-01-01 | AJ2: 2025-02-01 | AK2: 2025-02-01 | AL2: 2025-03-01 | AM2: 2025-03-01 | AN2: 2025-04-01 | AO2: 2025-04-01 | AP2: 2025-05-01 | AQ2: 2025-05-01 | AR2: 2025-06-01 | AS2: 2025-06-01 | AT2: 2025-07-01 | AU2: 2025-07-01 | AV2: 2025-08-01 | AW2: 2025-08-01 | AX2: 2025-09-01 | AY2: 2025-09-01
B3: BESID | C3: AccountName | D3: HLH | E3: LLH | F3: HLH | G3: LLH | H3: HLH | I3: LLH | J3: HLH | K3: LLH | L3: HLH | M3: LLH | N3: HLH | O3: LLH | P3: HLH | Q3: LLH | R3: HLH | S3: LLH | T3: HLH | U3: LLH | V3: HLH | W3: LLH | X3: HLH | Y3: LLH | Z3: HLH | AA3: LLH | AB3: HLH | AC3: LLH | AD3: HLH | AE3: LLH | AF3: HLH | AG3: LLH | AH3: HLH | AI3: LLH | AJ3: HLH | AK3: LLH | AL3: HLH | AM3: LLH | AN3: HLH | AO3: LLH | AP3: HLH | AQ3: LLH | AR3: HLH | AS3: LLH | AT3: HLH | AU3: LLH | AV3: HLH | AW3: LLH | AX3: HLH | AY3: LLH
B4: 10005 | C4: Alder Mutual | D4: 0 | E4: 0 | F4: 0 | G4: 0 | H4: 0 | I4: 0 | J4: 0 | K4: 0 | L4: 0 | M4: 0 | N4: 0 | O4: 0 | P4: 0 | Q4: 0 | R4: 0 | S4: 0 | T4: 0 | U4: 0 | V4: 0 | W4: 0 | X4: 0 | Y4: 0 | Z4: 0 | AA4: 0 | AB4: 0 | AC4: 0 | AD4: 0 | AE4: 0 | AF4: 0 | AG4: 0 | AH4: 0 | AI4: 0 | AJ4: 0 | AK4: 0 | AL4: 0 | AM4: 0 | AN4: 0 | AO4: 0 | AP4: 0 | AQ4: 0 | AR4: 0 | AS4: 0 | AT4: 0 | AU4: 0 | AV4: 0 | AW4: 0 | AX4: 0 | AY4: 0
B5: 10015 | C5: Asotin County PUD #1 | D5: 0 | E5: 0 | F5: 0 | G5: 0 | H5: 0 | I5: 0 | J5: 0 | K5: 0 | L5: 0 | M5: 0 | N5: 0 | O5: 0 | P5: 0 | Q5: 0 | R5: 0 | S5: 0 | T5: 0 | U5: 0 | V5: 0 | W5: 0 | X5: 0 | Y5: 0 | Z5: 0 | AA5: 0 | AB5: 0 | AC5: 0 | AD5: 0 | AE5: 0 | AF5: 0 | AG5: 0 | AH5: 0 | AI5: 0 | AJ5: 0 | AK5: 0 | AL5: 0 | AM5: 0 | AN5: 0 | AO5: 0 | AP5: 0 | AQ5: 0 | AR5: 0 | AS5: 0 | AT5: 0 | AU5: 0 | AV5: 0 | AW5: 0 | AX5: 0 | AY5: 0
B6: 10024 | C6: Benton County PUD #1 | D6: 245 | E6: 192 | F6: 263 | G6: 211 | H6: 476 | I6: 409 | J6: 361 | K6: 285 | L6: 274 | M6: 203 | N6: 250 | O6: 197 | P6: 338 | Q6: 247 | R6: 687 | S6: 542 | T6: 638 | U6: 511 | V6: 431 | W6: 340 | X6: 321 | Y6: 231 | Z6: 220 | AA6: 193 | AB6: 254 | AC6: 183 | AD6: 263 | AE6: 211 | AF6: 476 | AG6: 409 | AH6: 361 | AI6: 285 | AJ6: 263 | AK6: 198 | AL6: 250 | AM6: 197 | AN6: 338 | AO6: 247 | AP6: 687 | AQ6: 542 | AR6: 638 | AS6: 511 | AT6: 431 | AU6: 340 | AV6: 309 | AW6: 243 | AX6: 230 | AY6: 183
B7: 10025 | C7: Benton REA | D7: 0 | E7: 0 | F7: 0 | G7: 0 | H7: 0 | I7: 0 | J7: 0 | K7: 0 | L7: 0 | M7: 0 | N7: 0 | O7: 0 | P7: 0 | Q7: 0 | R7: 0 | S7: 0 | T7: 0 | U7: 0 | V7: 0 | W7: 0 | X7: 0 | Y7: 0 | Z7: 0 | AA7: 0 | AB7: 0 | AC7: 0 | AD7: 0 | AE7: 0 | AF7: 0 | AG7: 0 | AH7: 0 | AI7: 0 | AJ7: 0 | AK7: 0 | AL7: 0 | AM7: 0 | AN7: 0 | AO7: 0 | AP7: 0 | AQ7: 0 | AR7: 0 | AS7: 0 | AT7: 0 | AU7: 0 | AV7: 0 | AW7: 0 | AX7: 0 | AY7: 0
B8: 10027 | C8: Big Bend Elec Coop | D8: 0 | E8: 0 | F8: 0 | G8: 0 | H8: 0 | I8: 0 | J8: 0 | K8: 0 | L8: 0 | M8: 0 | N8: 0 | O8: 0 | P8: 0 | Q8: 0 | R8: 0 | S8: 0 | T8: 0 | U8: 0 | V8: 0 | W8: 0 | X8: 0 | Y8: 0 | Z8: 0 | AA8: 0 | AB8: 0 | AC8: 0 | AD8: 0 | AE8: 0 | AF8: 0 | AG8: 0 | AH8: 0 | AI8: 0 | AJ8: 0 | AK8: 0 | AL8: 0 | AM8: 0 | AN8: 0 | AO8: 0 | AP8: 0 | AQ8: 0 | AR8: 0 | AS8: 0 | AT8: 0 | AU8: 0 | AV8: 0 | AW8: 0 | AX8: 0 | AY8: 0
B9: 10029 | C9: Blachly Lane Elec Coop | D9: 0 | E9: 0 | F9: 0 | G9: 0 | H9: 0 | I9: 0 | J9: 0 | K9: 0 | L9: 0 | M9: 0 | N9: 0 | O9: 0 | P9: 0 | Q9: 0 | R9: 0 | S9: 0 | T9: 0 | U9: 0 | V9: 0 | W9: 0 | X9: 0 | Y9: 0 | Z9: 0 | AA9: 0 | AB9: 0 | AC9: 0 | AD9: 0 | AE9: 0 | AF9: 0 | AG9: 0 | AH9: 0 | AI9: 0 | AJ9: 0 | AK9: 0 | AL9: 0 | AM9: 0 | AN9: 0 | AO9: 0 | AP9: 0 | AQ9: 0 | AR9: 0 | AS9: 0 | AT9: 0 | AU9: 0 | AV9: 0 | AW9: 0 | AX9: 0 | AY9: 0
B10: 10044 | C10: Canby, City of | D10: 0 | E10: 0 | F10: 0 | G10: 0 | H10: 0 | I10: 0 | J10: 0 | K10: 0 | L10: 0 | M10: 0 | N10: 0 | O10: 0 | P10: 0 | Q10: 0 | R10: 0 | S10: 0 | T10: 0 | U10: 0 | V10: 0 | W10: 0 | X10: 0 | Y10: 0 | Z10: 0 | AA10: 0 | AB10: 0 | AC10: 0 | AD10: 0 | AE10: 0 | AF10: 0 | AG10: 0 | AH10: 0 | AI10: 0 | AJ10: 0 | AK10: 0 | AL10: 0 | AM10: 0 | AN10: 0 | AO10: 0 | AP10: 0 | AQ10: 0 | AR10: 0 | AS10: 0 | AT10: 0 | AU10: 0 | AV10: 0 | AW10: 0 | AX10: 0 | AY10: 0
B11: 10046 | C11: Central Electric Coop | D11: 0 | E11: 0 | F11: 0 | G11: 0 | H11: 0 | I11: 0 | J11: 0 | K11: 0 | L11: 0 | M11: 0 | N11: 0 | O11: 0 | P11: 0 | Q11: 0 | R11: 0 | S11: 0 | T11: 0 | U11: 0 | V11: 0 | W11: 0 | X11: 0 | Y11: 0 | Z11: 0 | AA11: 0 | AB11: 0 | AC11: 0 | AD11: 0 | AE11: 0 | AF11: 0 | AG11: 0 | AH11: 0 | AI11: 0 | AJ11: 0 | AK11: 0 | AL11: 0 | AM11: 0 | AN11: 0 | AO11: 0 | AP11: 0 | AQ11: 0 | AR11: 0 | AS11: 0 | AT11: 0 | AU11: 0 | AV11: 0 | AW11: 0 | AX11: 0 | AY11: 0
B12: 10047 | C12: Central Lincoln PUD | D12: 0 | E12: 0 | F12: 0 | G12: 0 | H12: 0 | I12: 0 | J12: 0 | K12: 0 | L12: 0 | M12: 0 | N12: 0 | O12: 0 | P12: 0 | Q12: 0 | R12: 0 | S12: 0 | T12: 0 | U12: 0 | V12: 0 | W12: 0 | X12: 0 | Y12: 0 | Z12: 0 | AA12: 0 | AB12: 0 | AC12: 0 | AD12: 0 | AE12: 0 | AF12: 0 | AG12: 0 | AH12: 0 | AI12: 0 | AJ12: 0 | AK12: 0 | AL12: 0 | AM12: 0 | AN12: 0 | AO12: 0 | AP12: 0 | AQ12: 0 | AR12: 0 | AS12: 0 | AT12: 0 | AU12: 0 | AV12: 0 | AW12: 0 | AX12: 0 | AY12: 0
B13: 10055 | C13: Albion, City of | D13: 0 | E13: 0 | F13: 0 | G13: 0 | H13: 0 | I13: 0 | J13: 0 | K13: 0 | L13: 0 | M13: 0 | N13: 0 | O13: 0 | P13: 0 | Q13: 0 | R13: 0 | S13: 0 | T13: 0 | U13: 0 | V13: 0 | W13: 0 | X13: 0 | Y13: 0 | Z13: 0 | AA13: 0 | AB13: 0 | AC13: 0 | AD13: 0 | AE13: 0 | AF13: 0 | AG13: 0 | AH13: 0 | AI13: 0 | AJ13: 0 | AK13: 0 | AL13: 0 | AM13: 0 | AN13: 0 | AO13: 0 | AP13: 0 | AQ13: 0 | AR13: 0 | AS13: 0 | AT13: 0 | AU13: 0 | AV13: 0 | AW13: 0 | AX13: 0 | AY13: 0
B14: 10057 | C14: Ashland, City of | D14: 45 | E14: 36 | F14: 32 | G14: 26 | H14: 46 | I14: 40 | J14: 53 | K14: 41 | L14: 68 | M14: 50 | N14: 76 | O14: 60 | P14: 87 | Q14: 64 | R14: 94 | S14: 74 | T14: 93 | U14: 74 | V14: 82 | W14: 64 | X14: 65 | Y14: 47 | Z14: 38 | AA14: 34 | AB14: 47 | AC14: 34 | AD14: 32 | AE14: 26 | AF14: 46 | AG14: 40 | AH14: 53 | AI14: 41 | AJ14: 65 | AK14: 49 | AL14: 76 | AM14: 60 | AN14: 87 | AO14: 64 | AP14: 94 | AQ14: 74 | AR14: 93 | AS14: 74 | AT14: 82 | AU14: 64 | AV14: 63 | AW14: 50 | AX14: 40 | AY14: 32
B15: 10059 | C15: Bandon, City of | D15: 0 | E15: 0 | F15: 0 | G15: 0 | H15: 0 | I15: 0 | J15: 0 | K15: 0 | L15: 0 | M15: 0 | N15: 0 | O15: 0 | P15: 0 | Q15: 0 | R15: 0 | S15: 0 | T15: 0 | U15: 0 | V15: 0 | W15: 0 | X15: 0 | Y15: 0 | Z15: 0 | AA15: 0 | AB15: 0 | AC15: 0 | AD15: 0 | AE15: 0 | AF15: 0 | AG15: 0 | AH15: 0 | AI15: 0 | AJ15: 0 | AK15: 0 | AL15: 0 | AM15: 0 | AN15: 0 | AO15: 0 | AP15: 0 | AQ15: 0 | AR15: 0 | AS15: 0 | AT15: 0 | AU15: 0 | AV15: 0 | AW15: 0 | AX15: 0 | AY15: 0
... 18 more rows

Sheet TRMbdForecast_Tier1_Diurnal
B1: Tier 1 Load Calculation (MWh) for Load Following, Block, and Slice (Block Only)
D2: 2023-10-01 | E2: 2023-10-01 | F2: 2023-11-01 | G2: 2023-11-01 | H2: 2023-12-01 | I2: 2023-12-01 | J2: 2024-01-01 | K2: 2024-01-01 | L2: 2024-02-01 | M2: 2024-02-01 | N2: 2024-03-01 | O2: 2024-03-01 | P2: 2024-04-01 | Q2: 2024-04-01 | R2: 2024-05-01 | S2: 2024-05-01 | T2: 2024-06-01 | U2: 2024-06-01 | V2: 2024-07-01 | W2: 2024-07-01 | X2: 2024-08-01 | Y2: 2024-08-01 | Z2: 2024-09-01 | AA2: 2024-09-01 | AB2: 2024-10-01 | AC2: 2024-10-01 | AD2: 2024-11-01 | AE2: 2024-11-01 | AF2: 2024-12-01 | AG2: 2024-12-01 | AH2: 2025-01-01 | AI2: 2025-01-01 | AJ2: 2025-02-01 | AK2: 2025-02-01 | AL2: 2025-03-01 | AM2: 2025-03-01 | AN2: 2025-04-01 | AO2: 2025-04-01 | AP2: 2025-05-01 | AQ2: 2025-05-01 | AR2: 2025-06-01 | AS2: 2025-06-01 | AT2: 2025-07-01 | AU2: 2025-07-01 | AV2: 2025-08-01 | AW2: 2025-08-01 | AX2: 2025-09-01 | AY2: 2025-09-01 | AZ2: LF | BA2: Block
B3: BESID | C3: AccountName | D3: HLH | E3: LLH | F3: HLH | G3: LLH | H3: HLH | I3: LLH | J3: HLH | K3: LLH | L3: HLH | M3: LLH | N3: HLH | O3: LLH | P3: HLH | Q3: LLH | R3: HLH | S3: LLH | T3: HLH | U3: LLH | V3: HLH | W3: LLH | X3: HLH | Y3: LLH | Z3: HLH | AA3: LLH | AB3: HLH | AC3: LLH | AD3: HLH | AE3: LLH | AF3: HLH | AG3: LLH | AH3: HLH | AI3: LLH | AJ3: HLH | AK3: LLH | AL3: HLH | AM3: LLH | AN3: HLH | AO3: LLH | AP3: HLH | AQ3: LLH | AR3: HLH | AS3: LLH | AT3: HLH | AU3: LLH | AV3: HLH | AW3: LLH | AX3: HLH | AY3: LLH
B4: 10005 | C4: Alder Mutual | D4: 285.942 | E4: 209.475 | F4: 322.128 | G4: 236.748 | H4: 394.013 | I4: 310.826 | J4: 427.948 | K4: 309.235 | L4: 350.816 | M4: 243.839 | N4: 335.041 | O4: 256.503 | P4: 303.845 | Q4: 212.611 | R4: 222.411 | S4: 160.319 | T4: 209.887 | U4: 153.083 | V4: 203.276 | W4: 135.988 | X4: 214.295 | Y4: 127.013 | Z4: 196.446 | AA4: 154.361 | AB4: 302.796 | AC4: 199.732 | AD4: 325.71 | AE4: 239.381 | AF4: 396.987 | AG4: 313.172 | AH4: 430.519 | AI4: 311.093 | AJ4: 365.472 | AK4: 258.122 | AL4: 336.543 | AM4: 257.653 | AN4: 304.883 | AO4: 213.338 | AP4: 222.924 | AQ4: 160.689 | AR4: 209.887 | AS4: 153.083 | AT4: 203.276 | AU4: 135.988 | AV4: 205.636 | AW4: 135.672 | AX4: 205.643 | AY4: 145.164 | AZ4: 1 | BA4: 0
B5: 10015 | C5: Asotin County PUD #1 | D5: 153.537 | E5: 126.395 | F5: 88.894 | G5: 64.995 | H5: 91.014 | I5: 70.412 | J5: 102.65 | K5: 63.261 | L5: 82.455 | M5: 62.944 | N5: 105.019 | O5: 62.116 | P5: 159.479 | Q5: 101.58 | R5: 262.877 | S5: 247.764 | T5: 388.938 | U5: 337.909 | V5: 533.1 | W5: 479.193 | X5: 510.388 | Y5: 430.571 | Z5: 283.02 | AA5: 306.63 | AB5: 153.537 | AC5: 126.395 | AD5: 88.894 | AE5: 64.995 | AF5: 91.014 | AG5: 70.412 | AH5: 102.65 | AI5: 63.261 | AJ5: 79.611 | AK5: 60.773 | AL5: 105.019 | AM5: 62.116 | AN5: 159.479 | AO5: 101.58 | AP5: 262.877 | AQ5: 247.764 | AR5: 388.938 | AS5: 337.909 | AT5: 533.1 | AU5: 479.193 | AV5: 510.388 | AW5: 430.571 | AX5: 283.02 | AY5: 306.63 | AZ5: 1 | BA5: 0
B6: 10024 | C6: Benton County PUD #1 | D6: 72947.367 | E6: 43838.636 | F6: 67774.969 | G6: 48066.035 | H6: 90634.141 | I6: 64980.916 | J6: 88181.538 | K6: 63754.737 | L6: 69146.703 | M6: 46573.91 | N6: 72918.546 | O6: 47197.572 | P6: 72910.335 | Q6: 44315.387 | R6: 91119.578 | S6: 62207.37 | T6: 114114.969 | U6: 72334.581 | V6: 131740.515 | W6: 88596.948 | X6: 117809.928 | Y6: 71226.316 | Z6: 74727.641 | AA6: 47791.901 | AB6: 72743.25 | AC6: 43795.686 | AD6: 67600.767 | AE6: 47911.79 | AF6: 90179.908 | AG6: 64607.137 | AH6: 87796.165 | AI6: 63453.349 | AJ6: 68847.026 | AK6: 46333.375 | AL6: 72745.688 | AM6: 47038.19 | AN6: 72771.938 | AO6: 44189.319 | AP6: 90969.149 | AQ6: 62068.506 | AR6: 113974.923 | AS6: 72191.022 | AT6: 131593.087 | AU6: 88457.959 | AV6: 117701.673 | AW6: 70970.06 | AX6: 74455.634 | AY6: 47692.037 | AZ6: 1 | BA6: 0
B7: 10025 | C7: Benton REA | D7: 24556.542 | E7: 16174.515 | F7: 20779.314 | G7: 15774.514 | H7: 25171.705 | I7: 19306.273 | J7: 24728.616 | K7: 18759.359 | L7: 18888.172 | M7: 13821.933 | N7: 20289.272 | O7: 14027.383 | P7: 20160.815 | Q7: 13604.561 | R7: 26363.1 | S7: 18813.124 | T7: 31990.871 | U7: 20321.864 | V7: 35297.477 | W7: 24863.052 | X7: 34316.986 | Y7: 21063.2 | Z7: 26122.73 | AA7: 18848.865 | AB7: 24473.522 | AC7: 16238.582 | AD7: 20764.124 | AE7: 15759.537 | AF7: 25050.378 | AG7: 19205.062 | AH7: 24528.502 | AI7: 18604.664 | AJ7: 18869.077 | AK7: 13789.161 | AL7: 20209.213 | AM7: 13963.714 | AN7: 20108.414 | AO7: 13564.422 | AP7: 26313.002 | AQ7: 18770.942 | AR7: 31949.48 | AS7: 20281.927 | AT7: 35235.588 | AU7: 24812.125 | AV7: 34323.494 | AW7: 20931.387 | AX7: 25991.198 | AY7: 18876.048 | AZ7: 1 | BA7: 0
B8: 10027 | C8: Big Bend Elec Coop | D8: 21538.058 | E8: 14378.84 | F8: 13622.306 | G8: 9889.077 | H8: 16632.081 | I8: 11995.4 | J8: 16400.148 | K8: 11952.465 | L8: 13935.403 | M8: 9613.809 | N8: 12503.158 | O8: 8052.01 | P8: 17871.685 | Q8: 11723.243 | R8: 35341.773 | S8: 26569.87 | T8: 47619.462 | U8: 32600.761 | V8: 46631.652 | W8: 34973.028 | X8: 42078.721 | Y8: 28358.437 | Z8: 30535.533 | AA8: 22715.392 | AB8: 21385.836 | AC8: 14445.074 | AD8: 13584.733 | AE8: 9850.434 | AF8: 16594.368 | AG8: 11947.12 | AH8: 16355.854 | AI8: 11910.766 | AJ8: 13620.676 | AK8: 9364.778 | AL8: 12464.243 | AM8: 8005.359 | AN8: 17833.086 | AO8: 11686.053 | AP8: 35296.161 | AQ8: 26529.493 | AR8: 47585.653 | AS8: 32558.773 | AT8: 46586.211 | AU8: 34932.472 | AV8: 42144.766 | AW8: 28206.403 | AX8: 30391.278 | AY8: 22783.858 | AZ8: 1 | BA8: 0
B9: 10029 | C9: Blachly Lane Elec Coop | D9: 8301.313 | E9: 4363.147 | F9: 7882.358 | G9: 4415.293 | H9: 9211.893 | I9: 5679.739 | J9: 10176.65 | K9: 5638.163 | L9: 9125.812 | M9: 4860.516 | N9: 9346.195 | O9: 5144.618 | P9: 8624.539 | Q9: 4349.52 | R9: 7463.404 | S9: 3886.673 | T9: 7604.233 | U9: 4002.687 | V9: 7774.276 | W9: 3898.469 | X9: 8076.754 | Y9: 3929.913 | Z9: 7104.501 | AA9: 3875.365 | AB9: 8506.594 | AC9: 4161.585 | AD9: 7884.358 | AE9: 4416.898 | AF9: 9213.893 | AG9: 5681.459 | AH9: 10178.73 | AI9: 5639.803 | AJ9: 8790.834 | AK9: 4734.335 | AL9: 9348.275 | AM9: 5146.253 | AN9: 8626.619 | AO9: 4351.04 | AP9: 7465.484 | AQ9: 3888.313 | AR9: 7606.233 | AS9: 4004.287 | AT9: 7776.356 | AU9: 3900.109 | AV9: 7887.434 | AW9: 4122.953 | AX9: 7285.509 | AY9: 3697.958 | AZ9: 1 | BA9: 0
B10: 10044 | C10: Canby, City of | D10: 8983.39 | E10: 4962.515 | F10: 9260.019 | G10: 5400.025 | H10: 11045.982 | I10: 6972.238 | J10: 11393.798 | K10: 6632.964 | L10: 9821.917 | M10: 5256.706 | N10: 9642.113 | O10: 5491.98 | P10: 9130.268 | Q10: 4680.619 | R10: 8321.756 | S10: 4462.744 | T10: 8622.606 | U10: 4797.692 | V10: 9894.332 | W10: 5294.495 | X10: 10220.296 | Y10: 5117.221 | Z10: 8118.857 | AA10: 4867.687 | AB10: 9364.505 | AC10: 4725.742 | AD10: 9365.972 | AE10: 5442.169 | AF10: 11051.426 | AG10: 6960.224 | AH10: 11399.276 | AI10: 6620.97 | AJ10: 9435.22 | AK10: 5104.227 | AL10: 9634.817 | AM10: 5472.2 | AN10: 9119.373 | AO10: 4659.144 | AP10: 8305.192 | AQ10: 4435.202 | AR10: 8610.824 | AS10: 4774.3 | AT10: 9888.875 | AU10: 5273.092 | AV10: 9908.682 | AW10: 5403.03 | AX10: 8371.018 | AY10: 4577.243 | AZ10: 1 | BA10: 0
B11: 10046 | C11: Central Electric Coop | D11: 31646.789 | E11: 18101.764 | F11: 33210.329 | G11: 22257.858 | H11: 51045.149 | I11: 34086.409 | J11: 47885.743 | K11: 32661.475 | L11: 36979.606 | M11: 23586.203 | N11: 39104.52 | O11: 24189.607 | P11: 35474.661 | Q11: 21838.144 | R11: 30978.301 | S11: 20730.975 | T11: 32307.22 | U11: 18762.005 | V11: 36354.293 | W11: 23140.735 | X11: 36981.859 | Y11: 21229.456 | Z11: 28558.825 | AA11: 17866.389 | AB11: 31396.696 | AC11: 18271.528 | AD11: 33215.275 | AE11: 22202.711 | AF11: 51050.861 | AG11: 34000.426 | AH11: 47868.57 | AI11: 32598.385 | AJ11: 36303.391 | AK11: 23059.557 | AL11: 39104.199 | AM11: 24110.89 | AN11: 35477.277 | AO11: 21786.548 | AP11: 30962.687 | AQ11: 20666.258 | AR11: 32336.755 | AS11: 18683.519 | AT11: 36348.386 | AU11: 23066.354 | AV11: 37237.398 | AW11: 20893.608 | AX11: 28330.658 | AY11: 18045.613 | AZ11: 1 | BA11: 0
B12: 10047 | C12: Central Lincoln PUD | D12: 65346.301 | E12: 46127.539 | F12: 66185.555 | G12: 48099.211 | H12: 78777.031 | I12: 60727.375 | J12: 77755.07 | K12: 55157.695 | L12: 69574.039 | M12: 46218.434 | N12: 71821.664 | O12: 51208.547 | P12: 67100.258 | Q12: 44832.91 | R12: 57031.367 | S12: 40734.07 | T12: 54272.586 | U12: 39515.922 | V12: 58016.711 | W12: 41565.656 | X12: 61222.109 | Y12: 39726.738 | Z12: 53948.281 | AA12: 42948.027 | AB12: 67885.453 | AC12: 43728.277 | AD12: 66268.617 | AE12: 48159.586 | AF12: 78875.945 | AG12: 60803.621 | AH12: 77852.672 | AI12: 55226.949 | AJ12: 66891.367 | AK12: 45048.676 | AL12: 71911.828 | AM12: 51272.832 | AN12: 67184.477 | AO12: 44889.18 | AP12: 57102.941 | AQ12: 40785.191 | AR12: 54340.695 | AS12: 39565.504 | AT12: 58089.504 | AU12: 41617.805 | AV12: 59073.773 | AW12: 42001.738 | AX12: 56222.988 | AY12: 40794.895 | AZ12: 1 | BA12: 0
B13: 10055 | C13: Albion, City of | D13: 152.294 | E13: 108.109 | F13: 167.835 | G13: 129.594 | H13: 250.248 | I13: 206.806 | J13: 248.468 | K13: 194.031 | L13: 206.45 | M13: 149.555 | N13: 178.899 | O13: 137.512 | P13: 153.177 | Q13: 105.449 | R13: 125.215 | S13: 87.739 | T13: 122.481 | U13: 77.474 | V13: 143.281 | W13: 84.379 | X13: 137.838 | Y13: 73.452 | Z13: 111.376 | AA13: 79.226 | AB13: 158.099 | AC13: 102.304 | AD13: 167.835 | AE13: 129.594 | AF13: 250.248 | AG13: 206.806 | AH13: 248.468 | AI13: 194.031 | AJ13: 198.224 | AK13: 145.614 | AL13: 178.899 | AM13: 137.512 | AN13: 153.177 | AO13: 105.449 | AP13: 125.215 | AQ13: 87.739 | AR13: 122.481 | AS13: 77.474 | AT13: 143.281 | AU13: 84.379 | AV13: 133.127 | AW13: 78.162 | AX13: 115.767 | AY13: 74.835 | AZ13: 1 | BA13: 0
B14: 10057 | C14: Ashland, City of | D14: 8226.977 | E14: 4742.813 | F14: 9216.331 | G14: 5591.894 | H14: 11194.218 | I14: 7442.194 | J14: 11162.081 | K14: 6721.845 | L14: 9725.14 | M14: 5482.442 | N14: 9400.292 | O14: 5665.754 | P14: 8431.747 | Q14: 4545.942 | R14: 7771.33 | S14: 4450.368 | T14: 7941.873 | U14: 4577.723 | V14: 10045.19 | W14: 5397.312 | X14: 10229.019 | Y14: 5045.114 | Z14: 7757.926 | AA14: 4861.455 | AB14: 8535.129 | AC14: 4434.661 | AD14: 9216.331 | AE14: 5591.894 | AF14: 11194.218 | AG14: 7442.194 | AH14: 11162.081 | AI14: 6721.845 | AJ14: 9343.318 | AK14: 5350.142 | AL14: 9400.292 | AM14: 5665.754 | AN14: 8431.747 | AO14: 4545.942 | AP14: 7771.33 | AQ14: 4450.368 | AR14: 7941.873 | AS14: 4577.723 | AT14: 10045.19 | AU14: 5397.312 | AV14: 9865.365 | AW14: 5407.768 | AX14: 8067.592 | AY14: 4551.789 | AZ14: 1 | BA14: 0
B15: 10059 | C15: Bandon, City of | D15: 3253.465 | E15: 1950.085 | F15: 3543.9 | G15: 2280.144 | H15: 4214.415 | I15: 2969.447 | J15: 4540.804 | K15: 2939.826 | L15: 4238.654 | M15: 2523.533 | N15: 3789.386 | O15: 2448.812 | P15: 3578.705 | Q15: 2136.085 | R15: 2964.529 | S15: 1859.194 | T15: 2712.108 | U15: 1710.385 | V15: 2749.285 | W15: 1670.136 | X15: 2851.256 | Y15: 1547.292 | Z15: 2584.178 | AA15: 1740.997 | AB15: 3380.868 | AC15: 1822.683 | AD15: 3543.9 | AE15: 2280.144 | AF15: 4214.415 | AG15: 2969.447 | AH15: 4540.804 | AI15: 2939.826 | AJ15: 4068.082 | AK15: 2460.926 | AL15: 3789.386 | AM15: 2448.812 | AN15: 3578.705 | AO15: 2136.085 | AP15: 2964.529 | AQ15: 1859.194 | AR15: 2712.108 | AS15: 1710.385 | AT15: 2749.285 | AU15: 1670.136 | AV15: 2743.563 | AW15: 1654.986 | AX15: 2693.605 | AY15: 1631.57 | AZ15: 1 | BA15: 0
... 18 more rows

Sheet TRMbdForecast_LoadShp
B1: Tier 1 Load Shaping Charges Billing Determinant (MWh)
D2: 2023-10-01 | E2: 2023-10-01 | F2: 2023-11-01 | G2: 2023-11-01 | H2: 2023-12-01 | I2: 2023-12-01 | J2: 2024-01-01 | K2: 2024-01-01 | L2: 2024-02-01 | M2: 2024-02-01 | N2: 2024-03-01 | O2: 2024-03-01 | P2: 2024-04-01 | Q2: 2024-04-01 | R2: 2024-05-01 | S2: 2024-05-01 | T2: 2024-06-01 | U2: 2024-06-01 | V2: 2024-07-01 | W2: 2024-07-01 | X2: 2024-08-01 | Y2: 2024-08-01 | Z2: 2024-09-01 | AA2: 2024-09-01 | AB2: 2024-10-01 | AC2: 2024-10-01 | AD2: 2024-11-01 | AE2: 2024-11-01 | AF2: 2024-12-01 | AG2: 2024-12-01 | AH2: 2025-01-01 | AI2: 2025-01-01 | AJ2: 2025-02-01 | AK2: 2025-02-01 | AL2: 2025-03-01 | AM2: 2025-03-01 | AN2: 2025-04-01 | AO2: 2025-04-01 | AP2: 2025-05-01 | AQ2: 2025-05-01 | AR2: 2025-06-01 | AS2: 2025-06-01 | AT2: 2025-07-01 | AU2: 2025-07-01 | AV2: 2025-08-01 | AW2: 2025-08-01 | AX2: 2025-09-01 | AY2: 2025-09-01
B3: BESID | C3: AccountName | D3: HLH | E3: LLH | F3: HLH | G3: LLH | H3: HLH | I3: LLH | J3: HLH | K3: LLH | L3: HLH | M3: LLH | N3: HLH | O3: LLH | P3: HLH | Q3: LLH | R3: HLH | S3: LLH | T3: HLH | U3: LLH | V3: HLH | W3: LLH | X3: HLH | Y3: LLH | Z3: HLH | AA3: LLH | AB3: HLH | AC3: LLH | AD3: HLH | AE3: LLH | AF3: HLH | AG3: LLH | AH3: HLH | AI3: LLH | AJ3: HLH | AK3: LLH | AL3: HLH | AM3: LLH | AN3: HLH | AO3: LLH | AP3: HLH | AQ3: LLH | AR3: HLH | AS3: LLH | AT3: HLH | AU3: LLH | AV3: HLH | AW3: LLH | AX3: HLH | AY3: LLH
B4: 10005 | C4: Alder Mutual | D4: 87.87234281 | E4: 80.1654853 | F4: 68.80378335 | G4: 72.55581823 | H4: 120.8233067 | I4: 133.4328892 | J4: 138.0583229 | K4: 130.8994889 | L4: 94.73631979 | M4: 97.18260798 | N4: 67.32727683 | O4: 84.50867003 | P4: 92.58615647 | Q4: 76.79443537 | R4: -39.2419874 | S4: -8.6215667 | T4: -66.36961506 | U4: -10.59674423 | V4: -34.72566489 | W4: -7.938475894 | X4: -19.92431731 | Y4: -7.990674996 | Z4: -6.473210062 | AA4: 17.52355753 | AB4: 104.7263428 | AC4: 70.4224853 | AD4: 72.38578335 | AE4: 75.18881823 | AF4: 123.7973067 | AG4: 135.7788892 | AH4: 140.6293229 | AI4: 132.7574889 | AJ4: 118.1621938 | AK4: 115.850545 | AL4: 68.82927683 | AM4: 85.65867003 | AN4: 93.62415647 | AO4: 77.52143537 | AP4: -38.7289874 | AQ4: -8.2515667 | AR4: -66.36961506 | AS4: -10.59674423 | AT4: -34.72566489 | AU4: -7.938475894 | AV4: -28.58331731 | AW4: 0.6683250036 | AX4: 2.723789938 | AY4: 8.32655753
B5: 10015 | C5: Asotin County PUD #1 | D5: -53.46621132 | E5: -8.746773738 | F5: -175.8559223 | G5: -106.602757 | H5: -194.4973934 | I5: -114.9820887 | J5: -200.3145981 | K5: -123.1179942 | L5: -185.1746658 | M5: -90.32704887 | N5: -174.7694401 | O5: -117.6358062 | P5: -61.30827076 | Q5: -40.36231175 | R5: -10.57734637 | S5: 71.20369125 | T5: 100.2213572 | U5: 166.8467931 | V5: 284.3637239 | W5: 328.7749949 | X5: 265.6046671 | Y5: 289.4782417 | Z5: 70.94850598 | AA5: 163.6207657 | AB5: -53.46621132 | AC5: -8.746773738 | AD5: -175.8559223 | AE5: -106.602757 | AF5: -194.4973934 | AG5: -114.9820887 | AH5: -200.3145981 | AI5: -123.1179942 | AJ5: -178.8532434 | AK5: -87.91533766 | AL5: -174.7694401 | AM5: -117.6358062 | AN5: -61.30827076 | AO5: -40.36231175 | AP5: -10.57734637 | AQ5: 71.20369125 | AR5: 100.2213572 | AS5: 166.8467931 | AT5: 284.3637239 | AU5: 328.7749949 | AV5: 265.6046671 | AW5: 289.4782417 | AX5: 70.94850598 | AY5: 163.6207657
B6: 10024 | C6: Benton County PUD #1 | D6: 341.0544408 | E6: -3562.29948 | F6: -25085.98463 | G6: -12121.82536 | H6: -9508.892234 | I6: -46.00347768 | J6: -18083.20139 | K6: -1617.637745 | L6: -24724.31977 | M6: -7185.863145 | N6: -25217.1631 | O6: -15850.31861 | P6: -4530.732157 | Q6: -5470.83509 | R6: -4794.449695 | S6: 278.8961311 | T6: 12847.69554 | U6: 12334.56465 | V6: 44496.34285 | W6: 35837.87908 | X6: 31952.24944 | Y6: 21738.07453 | Z6: 343.6298455 | AA6: -2368.543859 | AB6: 136.9374408 | AC6: -3605.24948 | AD6: -25260.18663 | AE6: -12276.07036 | AF6: -9963.125234 | AG6: -419.7824777 | AH6: -18468.57439 | AI6: -1919.025745 | AJ6: -21809.22768 | AK6: -5819.0136 | AL6: -25390.0211 | AM6: -16009.70061 | AN6: -4669.129157 | AO6: -5596.90309 | AP6: -4944.878695 | AQ6: 140.0321311 | AR6: 12707.64954 | AS6: 12191.00565 | AT6: 44348.91485 | AU6: 35698.89008 | AV6: 31843.99444 | AW6: 21481.81853 | AX6: 71.62284545 | AY6: -2468.407859
B7: 10025 | C7: Benton REA | D7: 2997.833939 | E7: 2099.940851 | F7: -6793.525318 | G7: -2096.831681 | H7: -4563.373697 | I7: -1.915554525 | J7: -6824.156932 | K7: -651.4042343 | L7: -8984.583193 | M7: -2140.745916 | N7: -8849.779804 | O7: -4693.180264 | P7: -2833.457811 | Q7: -1178.266962 | R7: -2116.276643 | S7: 424.9447666 | T7: 1921.976055 | U7: 2506.294107 | V7: 9392.406612 | W7: 9197.508271 | X7: 8823.601724 | Y7: 6368.850256 | Z7: 4036.176856 | AA7: 3954.920537 | AB7: 2914.813939 | AC7: 2164.007851 | AD7: -6808.715318 | AE7: -2111.808681 | AF7: -4684.700697 | AG7: -103.1265545 | AH7: -7024.270932 | AI7: -806.0992343 | AJ7: -8049.129396 | AK7: -1696.243518 | AL7: -8929.838804 | AM7: -4756.849264 | AN7: -2885.858811 | AO7: -1218.405962 | AP7: -2166.374643 | AQ7: 382.7627666 | AR7: 1880.585055 | AS7: 2466.357107 | AT7: 9330.517612 | AU7: 9146.581271 | AV7: 8830.109724 | AW7: 6237.037256 | AX7: 3904.644856 | AY7: 3982.103537
B8: 10027 | C8: Big Bend Elec Coop | D8: -575.2961503 | E8: -57.83411784 | F8: -14659.90641 | G8: -8442.049108 | H8: -13867.99925 | I8: -7809.534985 | J8: -15964.39074 | K8: -7957.683628 | L8: -14654.4413 | M8: -6759.545612 | N8: -17385.56123 | O8: -11150.18172 | P8: -5714.167021 | Q8: -3439.906347 | R8: 6129.700556 | S8: 7708.613638 | T8: 16776.97733 | U8: 14326.84564 | V8: 20060.11561 | W8: 18904.45304 | X8: 15929.46227 | Y8: 13286.04217 | Z8: 7880.753769 | AA8: 7438.267431 | AB8: -727.5181503 | AC8: 8.399882158 | AD8: -14697.47941 | AE8: -8480.692108 | AF8: -13905.71225 | AG8: -7857.814985 | AH8: -16008.68474 | AI8: -7999.382628 | AJ8: -13990.06159 | AK8: -6519.02326 | AL8: -17424.47623 | AM8: -11196.83272 | AN8: -5752.766021 | AO8: -3477.096347 | AP8: 6084.088556 | AQ8: 7668.236638 | AR8: 16743.16833 | AS8: 14284.85764 | AT8: 20014.67461 | AU8: 18863.89704 | AV8: 15995.50727 | AW8: 13134.00817 | AX8: 7736.498769 | AY8: 7506.733431
B9: 10029 | C9: Blachly Lane Elec Coop | D9: 1935.517574 | E9: 207.2458446 | F9: -259.273396 | G9: -861.7083057 | H9: 431.8015669 | I9: -21.52927782 | J9: 859.8348628 | K9: -93.39324433 | L9: 895.6222778 | M9: 147.1005143 | N9: 742.0967322 | O9: -383.1379143 | P9: 1834.854003 | Q9: -15.5123736 | R9: -945.9072189 | S9: -1542.937481 | T9: -1274.426767 | U9: -1257.844986 | V9: 125.0987806 | W9: -727.209233 | X9: 549.1383123 | Y9: -408.9937711 | Z9: 582.8449446 | AA9: -522.4775454 | AB9: 2140.798574 | AC9: 5.683844603 | AD9: -257.273396 | AE9: -860.1033057 | AF9: 433.8015669 | AG9: -19.80927782 | AH9: 861.9148628 | AI9: -91.75324433 | AJ9: 842.5007947 | AK9: 161.8477727 | AL9: 744.1767322 | AM9: -381.5029143 | AN9: 1836.934003 | AO9: -13.9923736 | AP9: -943.8272189 | AQ9: -1541.297481 | AR9: -1272.426767 | AS9: -1256.244986 | AT9: 127.1787806 | AU9: -725.569233 | AV9: 359.8183123 | AW9: -215.9537711 | AX9: 763.8529446 | AY9: -699.8845454
B10: 10044 | C10: Canby, City of | D10: 1644.347663 | E10: 171.2308813 | F10: -126.3614142 | G10: -683.7608277 | H10: 923.5293547 | I10: 399.3203259 | J10: 652.5636119 | K10: 25.12772522 | L10: 333.4388491 | M10: -177.3291027 | N10: -277.4394256 | O10: -880.8975383 | P10: 1302.528917 | Q10: -351.7697666 | R10: -1373.228983 | S10: -1796.982951 | T10: -1613.48479 | U10: -1267.106564 | V10: 1075.695569 | W10: -38.38897085 | X10: 1541.80627 | Y10: 114.952099 | Z10: 600.1249808 | AA10: -202.5281847 | AB10: 2025.462663 | AC10: -65.54211873 | AD10: -20.4084142 | AE10: -641.6168277 | AF10: 928.9733547 | AG10: 387.3063259 | AH10: 658.0416119 | AI10: 13.13372522 | AJ10: 271.6905433 | AK10: -167.3337556 | AL10: -284.7354256 | AM10: -900.6775383 | AN10: 1291.633917 | AO10: -373.2447666 | AP10: -1389.792983 | AQ10: -1824.524951 | AR10: -1625.26679 | AS10: -1290.498564 | AT10: 1070.238569 | AU10: -59.79197085 | AV10: 1230.19227 | AW10: 400.761099 | AX10: 852.2859808 | AY10: -492.9721847
B11: 10046 | C11: Central Electric Coop | D11: 2068.812266 | E11: -1208.179135 | F11: -4618.876606 | G11: -2261.155164 | H11: 10249.40821 | I11: 7596.085451 | J11: 4596.173837 | K11: 6030.421706 | L11: -1261.076245 | M11: 1685.830109 | N11: -873.4876734 | O11: -1494.510206 | P11: 3927.127434 | Q11: 1556.495384 | R11: -8094.649816 | S11: -4497.120116 | T11: -8946.507847 | U11: -5680.485259 | V11: 813.2222156 | W11: 1648.02372 | X11: 2005.610664 | Y11: 1069.197157 | Z11: -1743.341213 | AA11: -2567.708514 | AB11: 1818.719266 | AC11: -1038.415135 | AD11: -4613.930606 | AE11: -2316.302164 | AF11: 10255.12021 | AG11: 7510.102451 | AH11: 4579.000837 | AI11: 5967.331706 | AJ11: -627.6755661 | AK11: 1813.991949 | AL11: -873.8086734 | AM11: -1573.227206 | AN11: 3929.743434 | AO11: 1504.899384 | AP11: -8110.263816 | AQ11: -4561.837116 | AR11: -8916.972847 | AS11: -5758.971259 | AT11: 807.3152156 | AU11: 1573.64272 | AV11: 2261.149664 | AW11: 733.3491569 | AX11: -1971.508213 | AY11: -2388.484514
B12: 10047 | C12: Central Lincoln PUD | D12: 10305.9083 | E12: 10194.49115 | F12: -4209.196844 | G12: 2472.827377 | H12: 2861.980621 | I12: 11432.66414 | J12: -2800.639004 | K12: 5601.10617 | L12: -1586.412136 | M12: 5464.966137 | N12: -2571.701769 | O12: 3414.071064 | P12: 8394.801168 | Q12: 7091.656954 | R12: -15677.81715 | S12: -6211.81392 | T12: -22494.71291 | U12: -5968.06342 | V12: -8120.148553 | W12: 1570.788205 | X12: -3863.6966 | Y12: 2211.373994 | Z12: -2439.724953 | AA12: 4923.088315 | AB12: 12790.18275 | AC12: 7759.402417 | AD12: -4196.321321 | AE12: 2487.710986 | AF12: 2885.204178 | AG12: 11459.76127 | AH12: -2783.354376 | AI12: 5620.950203 | AJ12: -1900.596406 | AK12: 5474.294065 | AL12: -2555.71103 | AM12: 3430.702995 | AN12: 8420.4884 | AO12: 7110.297364 | AP12: -15678.73721 | AQ12: -6207.499907 | AR12: -22503.14409 | AS12: -5963.830834 | AT12: -8113.296735 | AU12: 1583.060669 | AV12: -6076.925839 | AW12: 4448.969625 | AX12: -221.2391258 | AY12: 2732.043879
B13: 10055 | C13: Albion, City of | D13: 10.88860041 | E13: 15.79267121 | F13: -13.01759797 | G13: 12.37432384 | H13: 55.21309006 | I13: 80.16194924 | J13: 41.51067899 | K13: 66.71415319 | L13: 23.6302283 | M13: 44.85443147 | N13: -12.22651886 | O13: 14.7222335 | P13: 2.355609127 | Q13: 8.487174219 | R13: -61.58365338 | S13: -32.87063138 | T13: -74.7434391 | U13: -39.37983802 | V13: -26.63255973 | W13: -18.37263356 | X13: -29.3752755 | Y13: -22.92948962 | Z13: -33.49158038 | AA13: -18.46464836 | AB13: 17.20408921 | AC13: 10.32094315 | AD13: -12.36470051 | AE13: 12.79749957 | AF13: 55.91718721 | AG13: 80.61914798 | AH13: 42.25781733 | AI13: 67.1737808 | AJ13: 22.30259145 | AK13: 44.41059385 | AL13: -11.53653504 | AM13: 15.16551785 | AN13: 2.900090682 | AO13: 8.837216911 | AP13: -60.90929001 | AQ13: -32.43521755 | AR13: -74.03143752 | AS13: -38.95798301 | AT13: -26.01915337 | AU13: -18.00168904 | AV13: -33.48261747 | AW13: -17.87154201 | AX13: -28.57759272 | AY13: -22.50297454
B14: 10057 | C14: Ashland, City of | D14: 1001.773667 | E14: 25.84852503 | F14: -24.45327937 | G14: -397.5236408 | H14: 1228.779019 | I14: 971.2316447 | J14: 587.4584623 | K14: 216.5056813 | L14: 383.8416653 | M14: 132.6965247 | N14: -365.3940332 | O14: -608.271127 | P14: 725.4273042 | Q14: -408.3872462 | R14: -1773.271952 | S14: -1712.261667 | T14: -2135.441436 | U14: -1393.001897 | V14: 1363.343186 | W14: 147.1486583 | X14: 1685.145012 | Y14: 120.4374174 | Z14: 355.8202278 | AA14: -130.1139227 | AB14: 1311.457134 | AC14: -281.3036591 | AD14: -22.49458697 | AE14: -396.2541136 | AF14: 1230.89131 | AG14: 972.603241 | AH14: 589.6998774 | AI14: 217.8845641 | AJ14: 323.8401314 | AK14: 161.4507001 | AL14: -363.3240817 | AM14: -606.9412739 | AN14: 727.0607489 | AO14: -407.3371181 | AP14: -1771.248862 | AQ14: -1710.955425 | AR14: -2133.305431 | AS14: -1391.736332 | AT14: 1365.183405 | AU14: 148.2614919 | AV14: 1323.301986 | AW14: 484.1352602 | AX14: 667.0551908 | AY14: -438.7219012
B15: 10059 | C15: Bandon, City of | D15: 505.7589952 | E15: 156.2487555 | F15: 29.67939141 | G15: 2.400653728 | H15: 424.612102 | I15: 508.5747863 | J15: 519.3318688 | K15: 465.8804118 | L15: 686.2084363 | M15: 489.0535411 | N15: 75.54807486 | O15: 62.83395598 | P15: 648.0330275 | Q15: 251.9802084 | R15: -665.2318369 | S15: -484.4209491 | T15: -1120.240532 | U15: -560.2495962 | V15: -552.3746939 | W15: -326.4729085 | X15: -397.9333696 | Y15: -325.536043 | Z15: -230.803052 | AA15: -157.2698405 | AB15: 634.9487061 | AC15: 30.01320731 | AD15: 31.96453254 | AE15: 3.88176877 | AF15: 427.076442 | AG15: 510.1749818 | AH15: 521.946853 | AI15: 467.4891084 | AJ15: 639.5267224 | AK15: 488.559617 | AL15: 77.96301823 | AM15: 64.38545123 | AN15: 649.938713 | AO15: 253.2053578 | AP15: -662.8715651 | AQ15: -482.8970007 | AR15: -1117.748527 | AS15: -558.7731036 | AT15: -550.2277717 | AU15: -325.1746027 | AV15: -503.5135665 | AW15: -216.6242263 | AX15: -119.5455952 | AY15: -265.4624821
... 18 more rows

Sheet TRMbdForecast_CSP
B1: Customer System Peak less NLSL Peak (MW)
D2: 2023-10-01 | E2: 2023-10-01 | F2: 2023-11-01 | G2: 2023-11-01 | H2: 2023-12-01 | I2: 2023-12-01 | J2: 2024-01-01 | K2: 2024-01-01 | L2: 2024-02-01 | M2: 2024-02-01 | N2: 2024-03-01 | O2: 2024-03-01 | P2: 2024-04-01 | Q2: 2024-04-01 | R2: 2024-05-01 | S2: 2024-05-01 | T2: 2024-06-01 | U2: 2024-06-01 | V2: 2024-07-01 | W2: 2024-07-01 | X2: 2024-08-01 | Y2: 2024-08-01 | Z2: 2024-09-01 | AA2: 2024-09-01 | AB2: 2024-10-01 | AC2: 2024-10-01 | AD2: 2024-11-01 | AE2: 2024-11-01 | AF2: 2024-12-01 | AG2: 2024-12-01 | AH2: 2025-01-01 | AI2: 2025-01-01 | AJ2: 2025-02-01 | AK2: 2025-02-01 | AL2: 2025-03-01 | AM2: 2025-03-01 | AN2: 2025-04-01 | AO2: 2025-04-01 | AP2: 2025-05-01 | AQ2: 2025-05-01 | AR2: 2025-06-01 | AS2: 2025-06-01 | AT2: 2025-07-01 | AU2: 2025-07-01 | AV2: 2025-08-01 | AW2: 2025-08-01 | AX2: 2025-09-01 | AY2: 2025-09-01
B3: BESID | C3: AccountName | D3: HLH | E3: LLH | F3: HLH | G3: LLH | H3: HLH | I3: LLH | J3: HLH | K3: LLH | L3: HLH | M3: LLH | N3: HLH | O3: LLH | P3: HLH | Q3: LLH | R3: HLH | S3: LLH | T3: HLH | U3: LLH | V3: HLH | W3: LLH | X3: HLH | Y3: LLH | Z3: HLH | AA3: LLH | AB3: HLH | AC3: LLH | AD3: HLH | AE3: LLH | AF3: HLH | AG3: LLH | AH3: HLH | AI3: LLH | AJ3: HLH | AK3: LLH | AL3: HLH | AM3: LLH | AN3: HLH | AO3: LLH | AP3: HLH | AQ3: LLH | AR3: HLH | AS3: LLH | AT3: HLH | AU3: LLH | AV3: HLH | AW3: LLH | AX3: HLH | AY3: LLH
B4: 10005 | C4: Alder Mutual | D4: 1.009 | E4: 0 | F4: 1.184 | G4: 0 | H4: 1.362 | I4: 0 | J4: 1.511 | K4: 0 | L4: 1.248 | M4: 0 | N4: 1.245 | O4: 0 | P4: 1.092 | Q4: 0 | R4: 0.862 | S4: 0 | T4: 0.776 | U4: 0 | V4: 0.675 | W4: 0 | X4: 0.707 | Y4: 0 | Z4: 0.815 | AA4: 0 | AB4: 1.024 | AC4: 0 | AD4: 1.197 | AE4: 0 | AF4: 1.373 | AG4: 0 | AH4: 1.52 | AI4: 0 | AJ4: 1.404 | AK4: 0 | AL4: 1.25 | AM4: 0 | AN4: 1.096 | AO4: 0 | AP4: 0.864 | AQ4: 0 | AR4: 0.776 | AS4: 0 | AT4: 0.675 | AU4: 0 | AV4: 0.707 | AW4: 0 | AX4: 0.815 | AY4: 0
B5: 10015 | C5: Asotin County PUD #1 | D5: 1.526 | E5: 0 | F5: 1.095 | G5: 0 | H5: 1.16 | I5: 0 | J5: 1.224 | K5: 0 | L5: 1.234 | M5: 0 | N5: 1.18 | O5: 0 | P5: 1.51 | Q5: 0 | R5: 1.959 | S5: 0 | T5: 2.639 | U5: 0 | V5: 2.888 | W5: 0 | X5: 2.904 | Y5: 0 | Z5: 2.215 | AA5: 0 | AB5: 1.526 | AC5: 0 | AD5: 1.095 | AE5: 0 | AF5: 1.16 | AG5: 0 | AH5: 1.224 | AI5: 0 | AJ5: 1.234 | AK5: 0 | AL5: 1.18 | AM5: 0 | AN5: 1.51 | AO5: 0 | AP5: 1.959 | AQ5: 0 | AR5: 2.639 | AS5: 0 | AT5: 2.888 | AU5: 0 | AV5: 2.904 | AW5: 0 | AX5: 2.215 | AY5: 0
B6: 10024 | C6: Benton County PUD #1 | D6: 231.287 | E6: 0 | F6: 252.952 | G6: 0 | H6: 303.055 | I6: 0 | J6: 314.341 | K6: 0 | L6: 263.949 | M6: 0 | N6: 246.941 | O6: 0 | P6: 272.159 | Q6: 0 | R6: 311.551 | S6: 0 | T6: 403.529 | U6: 0 | V6: 425.071 | W6: 0 | X6: 409.262 | Y6: 0 | Z6: 257.483 | AA6: 0 | AB6: 231.809 | AC6: 0 | AD6: 253.528 | AE6: 0 | AF6: 303.755 | AG6: 0 | AH6: 315.068 | AI6: 0 | AJ6: 264.552 | AK6: 0 | AL6: 247.502 | AM6: 0 | AN6: 272.782 | AO6: 0 | AP6: 312.271 | AQ6: 0 | AR6: 404.475 | AS6: 0 | AT6: 426.07 | AU6: 0 | AV6: 410.221 | AW6: 0 | AX6: 258.069 | AY6: 0
B7: 10025 | C7: Benton REA | D7: 73.454 | E7: 0 | F7: 75.4 | G7: 0 | H7: 98.027 | I7: 0 | J7: 93.184 | K7: 0 | L7: 78.953 | M7: 0 | N7: 75.062 | O7: 0 | P7: 73.165 | Q7: 0 | R7: 89.821 | S7: 0 | T7: 105.962 | U7: 0 | V7: 115.638 | W7: 0 | X7: 112.926 | Y7: 0 | Z7: 90.181 | AA7: 0 | AB7: 73.454 | AC7: 0 | AD7: 75.4 | AE7: 0 | AF7: 98.027 | AG7: 0 | AH7: 93.184 | AI7: 0 | AJ7: 78.953 | AK7: 0 | AL7: 75.062 | AM7: 0 | AN7: 73.165 | AO7: 0 | AP7: 89.821 | AQ7: 0 | AR7: 105.962 | AS7: 0 | AT7: 115.638 | AU7: 0 | AV7: 112.926 | AW7: 0 | AX7: 90.181 | AY7: 0
B8: 10027 | C8: Big Bend Elec Coop | D8: 81.585 | E8: 0 | F8: 54.479 | G8: 0 | H8: 63.31 | I8: 0 | J8: 59.776 | K8: 0 | L8: 56.461 | M8: 0 | N8: 54.673 | O8: 0 | P8: 92.561 | Q8: 0 | R8: 129.034 | S8: 0 | T8: 142.779 | U8: 0 | V8: 139.972 | W8: 0 | X8: 132.362 | Y8: 0 | Z8: 111.187 | AA8: 0 | AB8: 82.38 | AC8: 0 | AD8: 55.274 | AE8: 0 | AF8: 64.105 | AG8: 0 | AH8: 60.571 | AI8: 0 | AJ8: 57.257 | AK8: 0 | AL8: 55.468 | AM8: 0 | AN8: 93.356 | AO8: 0 | AP8: 129.829 | AQ8: 0 | AR8: 143.574 | AS8: 0 | AT8: 140.767 | AU8: 0 | AV8: 133.157 | AW8: 0 | AX8: 111.982 | AY8: 0
B9: 10029 | C9: Blachly Lane Elec Coop | D9: 30.122 | E9: 0 | F9: 32.865 | G9: 0 | H9: 36.408 | I9: 0 | J9: 36.373 | K9: 0 | L9: 35.392 | M9: 0 | N9: 35.216 | O9: 0 | P9: 32.904 | Q9: 0 | R9: 29.735 | S9: 0 | T9: 27.972 | U9: 0 | V9: 27.72 | W9: 0 | X9: 28.258 | Y9: 0 | Z9: 27.776 | AA9: 0 | AB9: 30.122 | AC9: 0 | AD9: 32.865 | AE9: 0 | AF9: 36.408 | AG9: 0 | AH9: 36.373 | AI9: 0 | AJ9: 35.392 | AK9: 0 | AL9: 35.216 | AM9: 0 | AN9: 32.904 | AO9: 0 | AP9: 29.735 | AQ9: 0 | AR9: 27.972 | AS9: 0 | AT9: 27.72 | AU9: 0 | AV9: 28.258 | AW9: 0 | AX9: 27.776 | AY9: 0
B10: 10044 | C10: Canby, City of | D10: 28.646 | E10: 0 | F10: 33.462 | G10: 0 | H10: 37.36 | I10: 0 | J10: 34.7 | K10: 0 | L10: 38.476 | M10: 0 | N10: 33.151 | O10: 0 | P10: 30.164 | Q10: 0 | R10: 29.018 | S10: 0 | T10: 34.595 | U10: 0 | V10: 36.138 | W10: 0 | X10: 37.801 | Y10: 0 | Z10: 33.761 | AA10: 0 | AB10: 29.001 | AC10: 0 | AD10: 33.827 | AE10: 0 | AF10: 37.432 | AG10: 0 | AH10: 34.766 | AI10: 0 | AJ10: 38.55 | AK10: 0 | AL10: 33.215 | AM10: 0 | AN10: 30.222 | AO10: 0 | AP10: 29.073 | AQ10: 0 | AR10: 34.727 | AS10: 0 | AT10: 36.276 | AU10: 0 | AV10: 37.946 | AW10: 0 | AX10: 33.89 | AY10: 0
B11: 10046 | C11: Central Electric Coop | D11: 146.068 | E11: 0 | F11: 203.806 | G11: 0 | H11: 233.988 | I11: 0 | J11: 207.721 | K11: 0 | L11: 202.897 | M11: 0 | N11: 171.646 | O11: 0 | P11: 163.485 | Q11: 0 | R11: 147.156 | S11: 0 | T11: 140.854 | U11: 0 | V11: 145.398 | W11: 0 | X11: 142.401 | Y11: 0 | Z11: 134.567 | AA11: 0 | AB11: 148.801 | AC11: 0 | AD11: 206.539 | AE11: 0 | AF11: 236.72 | AG11: 0 | AH11: 210.453 | AI11: 0 | AJ11: 205.629 | AK11: 0 | AL11: 174.378 | AM11: 0 | AN11: 166.217 | AO11: 0 | AP11: 149.889 | AQ11: 0 | AR11: 143.586 | AS11: 0 | AT11: 148.131 | AU11: 0 | AV11: 145.133 | AW11: 0 | AX11: 137.299 | AY11: 0
B12: 10047 | C12: Central Lincoln PUD | D12: 184.642 | E12: 0 | F12: 214.999 | G12: 0 | H12: 242.24 | I12: 0 | J12: 229.519 | K12: 0 | L12: 235.399 | M12: 0 | N12: 229.464 | O12: 0 | P12: 217.576 | Q12: 0 | R12: 173.844 | S12: 0 | T12: 157.034 | U12: 0 | V12: 144.934 | W12: 0 | X12: 150.265 | Y12: 0 | Z12: 164.665 | AA12: 0 | AB12: 184.642 | AC12: 0 | AD12: 214.999 | AE12: 0 | AF12: 242.24 | AG12: 0 | AH12: 229.519 | AI12: 0 | AJ12: 235.399 | AK12: 0 | AL12: 229.464 | AM12: 0 | AN12: 217.576 | AO12: 0 | AP12: 173.844 | AQ12: 0 | AR12: 157.034 | AS12: 0 | AT12: 144.934 | AU12: 0 | AV12: 150.265 | AW12: 0 | AX12: 164.665 | AY12: 0
B13: 10055 | C13: Albion, City of | D13: 0.629 | E13: 0 | F13: 0.672 | G13: 0 | H13: 1.016 | I13: 0 | J13: 0.953 | K13: 0 | L13: 0.779 | M13: 0 | N13: 0.687 | O13: 0 | P13: 0.61 | Q13: 0 | R13: 0.473 | S13: 0 | T13: 0.398 | U13: 0 | V13: 0.426 | W13: 0 | X13: 0.418 | Y13: 0 | Z13: 0.374 | AA13: 0 | AB13: 0.629 | AC13: 0 | AD13: 0.672 | AE13: 0 | AF13: 1.016 | AG13: 0 | AH13: 0.953 | AI13: 0 | AJ13: 0.779 | AK13: 0 | AL13: 0.687 | AM13: 0 | AN13: 0.61 | AO13: 0 | AP13: 0.473 | AQ13: 0 | AR13: 0.398 | AS13: 0 | AT13: 0.426 | AU13: 0 | AV13: 0.418 | AW13: 0 | AX13: 0.374 | AY13: 0
B14: 10057 | C14: Ashland, City of | D14: 24.512 | E14: 0 | F14: 28.564 | G14: 0 | H14: 34.474 | I14: 0 | J14: 32.365 | K14: 0 | L14: 31.791 | M14: 0 | N14: 30.221 | O14: 0 | P14: 26.625 | Q14: 0 | R14: 18.176 | S14: 0 | T14: 32.509 | U14: 0 | V14: 35.035 | W14: 0 | X14: 34.906 | Y14: 0 | Z14: 19.397 | AA14: 0 | AB14: 24.512 | AC14: 0 | AD14: 28.564 | AE14: 0 | AF14: 34.474 | AG14: 0 | AH14: 32.365 | AI14: 0 | AJ14: 31.791 | AK14: 0 | AL14: 30.221 | AM14: 0 | AN14: 26.625 | AO14: 0 | AP14: 18.176 | AQ14: 0 | AR14: 32.509 | AS14: 0 | AT14: 35.035 | AU14: 0 | AV14: 34.906 | AW14: 0 | AX14: 19.397 | AY14: 0
B15: 10059 | C15: Bandon, City of | D15: 11.233 | E15: 0 | F15: 12.384 | G15: 0 | H15: 15.453 | I15: 0 | J15: 16.88 | K15: 0 | L15: 15.541 | M15: 0 | N15: 14.29 | O15: 0 | P15: 13.413 | Q15: 0 | R15: 9.437 | S15: 0 | T15: 8.678 | U15: 0 | V15: 7.848 | W15: 0 | X15: 8.023 | Y15: 0 | Z15: 9.059 | AA15: 0 | AB15: 11.233 | AC15: 0 | AD15: 12.384 | AE15: 0 | AF15: 15.453 | AG15: 0 | AH15: 16.88 | AI15: 0 | AJ15: 15.541 | AK15: 0 | AL15: 14.29 | AM15: 0 | AN15: 13.413 | AO15: 0 | AP15: 9.437 | AQ15: 0 | AR15: 8.678 | AS15: 0 | AT15: 7.848 | AU15: 0 | AV15: 8.023 | AW15: 0 | AX15: 9.059 | AY15: 0
... 18 more rows

Sheet TRMbdForecast_CDQ
B1: Customer Demand Quantity (MW)
D2: 2023-10-01 | E2: 2023-10-01 | F2: 2023-11-01 | G2: 2023-11-01 | H2: 2023-12-01 | I2: 2023-12-01 | J2: 2024-01-01 | K2: 2024-01-01 | L2: 2024-02-01 | M2: 2024-02-01 | N2: 2024-03-01 | O2: 2024-03-01 | P2: 2024-04-01 | Q2: 2024-04-01 | R2: 2024-05-01 | S2: 2024-05-01 | T2: 2024-06-01 | U2: 2024-06-01 | V2: 2024-07-01 | W2: 2024-07-01 | X2: 2024-08-01 | Y2: 2024-08-01 | Z2: 2024-09-01 | AA2: 2024-09-01 | AB2: 2024-10-01 | AC2: 2024-10-01 | AD2: 2024-11-01 | AE2: 2024-11-01 | AF2: 2024-12-01 | AG2: 2024-12-01 | AH2: 2025-01-01 | AI2: 2025-01-01 | AJ2: 2025-02-01 | AK2: 2025-02-01 | AL2: 2025-03-01 | AM2: 2025-03-01 | AN2: 2025-04-01 | AO2: 2025-04-01 | AP2: 2025-05-01 | AQ2: 2025-05-01 | AR2: 2025-06-01 | AS2: 2025-06-01 | AT2: 2025-07-01 | AU2: 2025-07-01 | AV2: 2025-08-01 | AW2: 2025-08-01 | AX2: 2025-09-01 | AY2: 2025-09-01
B3: BESID | C3: AccountName | D3: HLH | E3: LLH | F3: HLH | G3: LLH | H3: HLH | I3: LLH | J3: HLH | K3: LLH | L3: HLH | M3: LLH | N3: HLH | O3: LLH | P3: HLH | Q3: LLH | R3: HLH | S3: LLH | T3: HLH | U3: LLH | V3: HLH | W3: LLH | X3: HLH | Y3: LLH | Z3: HLH | AA3: LLH | AB3: HLH | AC3: LLH | AD3: HLH | AE3: LLH | AF3: HLH | AG3: LLH | AH3: HLH | AI3: LLH | AJ3: HLH | AK3: LLH | AL3: HLH | AM3: LLH | AN3: HLH | AO3: LLH | AP3: HLH | AQ3: LLH | AR3: HLH | AS3: LLH | AT3: HLH | AU3: LLH | AV3: HLH | AW3: LLH | AX3: HLH | AY3: LLH
B4: 10005 | C4: Alder Mutual | D4: 0.244 | E4: 0 | F4: 0.294 | G4: 0 | H4: 0.339 | I4: 0 | J4: 0.355 | K4: 0 | L4: 0.271 | M4: 0 | N4: 0.252 | O4: 0 | P4: 0.315 | Q4: 0 | R4: 0.237 | S4: 0 | T4: 0.114 | U4: 0 | V4: 0.087 | W4: 0 | X4: 0.067 | Y4: 0 | Z4: 0.189 | AA4: 0 | AB4: 0.244 | AC4: 0 | AD4: 0.294 | AE4: 0 | AF4: 0.339 | AG4: 0 | AH4: 0.355 | AI4: 0 | AJ4: 0.271 | AK4: 0 | AL4: 0.252 | AM4: 0 | AN4: 0.315 | AO4: 0 | AP4: 0.237 | AQ4: 0 | AR4: 0.114 | AS4: 0 | AT4: 0.087 | AU4: 0 | AV4: 0.067 | AW4: 0 | AX4: 0.189 | AY4: 0
B5: 10015 | C5: Asotin County PUD #1 | D5: 0.914 | E5: 0 | F5: 1.084 | G5: 0 | H5: 0.942 | I5: 0 | J5: 0.875 | K5: 0 | L5: 0.846 | M5: 0 | N5: 0.763 | O5: 0 | P5: 0.617 | Q5: 0 | R5: 0.897 | S5: 0 | T5: 1.271 | U5: 0 | V5: 1.015 | W5: 0 | X5: 1.404 | Y5: 0 | Z5: 1.037 | AA5: 0 | AB5: 0.914 | AC5: 0 | AD5: 1.084 | AE5: 0 | AF5: 0.942 | AG5: 0 | AH5: 0.875 | AI5: 0 | AJ5: 0.846 | AK5: 0 | AL5: 0.763 | AM5: 0 | AN5: 0.617 | AO5: 0 | AP5: 0.897 | AQ5: 0 | AR5: 1.271 | AS5: 0 | AT5: 1.015 | AU5: 0 | AV5: 1.404 | AW5: 0 | AX5: 1.037 | AY5: 0
B6: 10024 | C6: Benton County PUD #1 | D6: 39.696 | E6: 0 | F6: 57.259 | G6: 0 | H6: 45.258 | I6: 0 | J6: 64.307 | K6: 0 | L6: 77.589 | M6: 0 | N6: 45.642 | O6: 0 | P6: 38.215 | Q6: 0 | R6: 92.689 | S6: 0 | T6: 76.249 | U6: 0 | V6: 43.356 | W6: 0 | X6: 66.886 | Y6: 0 | Z6: 56.635 | AA6: 0 | AB6: 39.696 | AC6: 0 | AD6: 57.259 | AE6: 0 | AF6: 45.258 | AG6: 0 | AH6: 64.307 | AI6: 0 | AJ6: 77.589 | AK6: 0 | AL6: 45.642 | AM6: 0 | AN6: 38.215 | AO6: 0 | AP6: 92.689 | AQ6: 0 | AR6: 76.249 | AS6: 0 | AT6: 43.356 | AU6: 0 | AV6: 66.886 | AW6: 0 | AX6: 56.635 | AY6: 0
B7: 10025 | C7: Benton REA | D7: 10.082 | E7: 0 | F7: 18.416 | G7: 0 | H7: 14.592 | I7: 0 | J7: 19.351 | K7: 0 | L7: 24.799 | M7: 0 | N7: 20.215 | O7: 0 | P7: 21.046 | Q7: 0 | R7: 18.058 | S7: 0 | T7: 15.269 | U7: 0 | V7: 8.356 | W7: 0 | X7: 10.485 | Y7: 0 | Z7: 12.275 | AA7: 0 | AB7: 10.082 | AC7: 0 | AD7: 18.416 | AE7: 0 | AF7: 14.592 | AG7: 0 | AH7: 19.351 | AI7: 0 | AJ7: 24.799 | AK7: 0 | AL7: 20.215 | AM7: 0 | AN7: 21.046 | AO7: 0 | AP7: 18.058 | AQ7: 0 | AR7: 15.269 | AS7: 0 | AT7: 8.356 | AU7: 0 | AV7: 10.485 | AW7: 0 | AX7: 12.275 | AY7: 0
B8: 10027 | C8: Big Bend Elec Coop | D8: 11.759 | E8: 0 | F8: 8.462 | G8: 0 | H8: 6.63 | I8: 0 | J8: 7.721 | K8: 0 | L8: 11.915 | M8: 0 | N8: 10.442 | O8: 0 | P8: 15.145 | Q8: 0 | R8: 25.016 | S8: 0 | T8: 15.09 | U8: 0 | V8: 6.424 | W8: 0 | X8: 4.755 | Y8: 0 | Z8: 14.824 | AA8: 0 | AB8: 11.759 | AC8: 0 | AD8: 8.462 | AE8: 0 | AF8: 6.63 | AG8: 0 | AH8: 7.721 | AI8: 0 | AJ8: 11.915 | AK8: 0 | AL8: 10.442 | AM8: 0 | AN8: 15.145 | AO8: 0 | AP8: 25.016 | AQ8: 0 | AR8: 15.09 | AS8: 0 | AT8: 6.424 | AU8: 0 | AV8: 4.755 | AW8: 0 | AX8: 14.824 | AY8: 0
B9: 10029 | C9: Blachly Lane Elec Coop | D9: 5.878 | E9: 0 | F9: 5.732 | G9: 0 | H9: 7.035 | I9: 0 | J9: 5.437 | K9: 0 | L9: 6.304 | M9: 0 | N9: 5.271 | O9: 0 | P9: 6.477 | Q9: 0 | R9: 4.737 | S9: 0 | T9: 2.885 | U9: 0 | V9: 2.942 | W9: 0 | X9: 1.878 | Y9: 0 | Z9: 3.934 | AA9: 0 | AB9: 5.878 | AC9: 0 | AD9: 5.732 | AE9: 0 | AF9: 7.035 | AG9: 0 | AH9: 5.437 | AI9: 0 | AJ9: 6.304 | AK9: 0 | AL9: 5.271 | AM9: 0 | AN9: 6.477 | AO9: 0 | AP9: 4.737 | AQ9: 0 | AR9: 2.885 | AS9: 0 | AT9: 2.942 | AU9: 0 | AV9: 1.878 | AW9: 0 | AX9: 3.934 | AY9: 0
B10: 10044 | C10: Canby, City of | D10: 3.812 | E10: 0 | F10: 5.687 | G10: 0 | H10: 4.877 | I10: 0 | J10: 5.156 | K10: 0 | L10: 6.482 | M10: 0 | N10: 4.714 | O10: 0 | P10: 4.762 | Q10: 0 | R10: 3.73 | S10: 0 | T10: 4.392 | U10: 0 | V10: 5.959 | W10: 0 | X10: 5.072 | Y10: 0 | Z10: 3.931 | AA10: 0 | AB10: 3.812 | AC10: 0 | AD10: 5.687 | AE10: 0 | AF10: 4.877 | AG10: 0 | AH10: 5.156 | AI10: 0 | AJ10: 6.482 | AK10: 0 | AL10: 4.714 | AM10: 0 | AN10: 4.762 | AO10: 0 | AP10: 3.73 | AQ10: 0 | AR10: 4.392 | AS10: 0 | AT10: 5.959 | AU10: 0 | AV10: 5.072 | AW10: 0 | AX10: 3.931 | AY10: 0
B11: 10046 | C11: Central Electric Coop | D11: 49.109 | E11: 0 | F11: 60.539 | G11: 0 | H11: 52.265 | I11: 0 | J11: 52.541 | K11: 0 | L11: 65.196 | M11: 0 | N11: 45.64 | O11: 0 | P11: 44.617 | Q11: 0 | R11: 29.254 | S11: 0 | T11: 14.999 | U11: 0 | V11: 14.798 | W11: 0 | X11: 11.539 | Y11: 0 | Z11: 21.505 | AA11: 0 | AB11: 49.109 | AC11: 0 | AD11: 60.539 | AE11: 0 | AF11: 52.265 | AG11: 0 | AH11: 52.541 | AI11: 0 | AJ11: 65.196 | AK11: 0 | AL11: 45.64 | AM11: 0 | AN11: 44.617 | AO11: 0 | AP11: 29.254 | AQ11: 0 | AR11: 14.999 | AS11: 0 | AT11: 14.798 | AU11: 0 | AV11: 11.539 | AW11: 0 | AX11: 21.505 | AY11: 0
B12: 10047 | C12: Central Lincoln PUD | D12: 30.509 | E12: 0 | F12: 41.689 | G12: 0 | H12: 33.81 | I12: 0 | J12: 36.45 | K12: 0 | L12: 47.572 | M12: 0 | N12: 33.5 | O12: 0 | P12: 34.112 | Q12: 0 | R12: 26.236 | S12: 0 | T12: 8.049 | U12: 0 | V12: 2.439 | W12: 0 | X12: 0 | Y12: 0 | Z12: 16.614 | AA12: 0 | AB12: 30.509 | AC12: 0 | AD12: 41.689 | AE12: 0 | AF12: 33.81 | AG12: 0 | AH12: 36.45 | AI12: 0 | AJ12: 47.572 | AK12: 0 | AL12: 33.5 | AM12: 0 | AN12: 34.112 | AO12: 0 | AP12: 26.236 | AQ12: 0 | AR12: 8.049 | AS12: 0 | AT12: 2.439 | AU12: 0 | AV12: 0 | AW12: 0 | AX12: 16.614 | AY12: 0
B13: 10055 | C13: Albion, City of | D13: 0.176 | E13: 0 | F13: 0.253 | G13: 0 | H13: 0.171 | I13: 0 | J13: 0.182 | K13: 0 | L13: 0.204 | M13: 0 | N13: 0.186 | O13: 0 | P13: 0.312 | Q13: 0 | R13: 0.175 | S13: 0 | T13: 0.093 | U13: 0 | V13: 0.055 | W13: 0 | X13: 0.061 | Y13: 0 | Z13: 0.135 | AA13: 0 | AB13: 0.176 | AC13: 0 | AD13: 0.253 | AE13: 0 | AF13: 0.171 | AG13: 0 | AH13: 0.182 | AI13: 0 | AJ13: 0.204 | AK13: 0 | AL13: 0.186 | AM13: 0 | AN13: 0.312 | AO13: 0 | AP13: 0.175 | AQ13: 0 | AR13: 0.093 | AS13: 0 | AT13: 0.055 | AU13: 0 | AV13: 0.061 | AW13: 0 | AX13: 0.135 | AY13: 0
B14: 10057 | C14: Ashland, City of | D14: 5.166 | E14: 0 | F14: 6.451 | G14: 0 | H14: 5.869 | I14: 0 | J14: 5.094 | K14: 0 | L14: 5.616 | M14: 0 | N14: 5.264 | O14: 0 | P14: 4.651 | Q14: 0 | R14: 5.988 | S14: 0 | T14: 8.027 | U14: 0 | V14: 9.546 | W14: 0 | X14: 8.644 | Y14: 0 | Z14: 5.741 | AA14: 0 | AB14: 5.166 | AC14: 0 | AD14: 6.451 | AE14: 0 | AF14: 5.869 | AG14: 0 | AH14: 5.094 | AI14: 0 | AJ14: 5.616 | AK14: 0 | AL14: 5.264 | AM14: 0 | AN14: 4.651 | AO14: 0 | AP14: 5.988 | AQ14: 0 | AR14: 8.027 | AS14: 0 | AT14: 9.546 | AU14: 0 | AV14: 8.644 | AW14: 0 | AX14: 5.741 | AY14: 0
B15: 10059 | C15: Bandon, City of | D15: 3.428 | E15: 0 | F15: 3.42 | G15: 0 | H15: 3.326 | I15: 0 | J15: 3.245 | K15: 0 | L15: 4.088 | M15: 0 | N15: 3.106 | O15: 0 | P15: 3.656 | Q15: 0 | R15: 2.382 | S15: 0 | T15: 1.213 | U15: 0 | V15: 0.801 | W15: 0 | X15: 0.935 | Y15: 0 | Z15: 2.052 | AA15: 0 | AB15: 3.428 | AC15: 0 | AD15: 3.42 | AE15: 0 | AF15: 3.326 | AG15: 0 | AH15: 3.245 | AI15: 0 | AJ15: 4.088 | AK15: 0 | AL15: 3.106 | AM15: 0 | AN15: 3.656 | AO15: 0 | AP15: 2.382 | AQ15: 0 | AR15: 1.213 | AS15: 0 | AT15: 0.801 | AU15: 0 | AV15: 0.935 | AW15: 0 | AX15: 2.052 | AY15: 0
... 18 more rows

Sheet Actuals Rates
B1: Cost Allocation under Tiered Rates
B2: RAMmodel_REP2022.xls
B5: Costs ($000) | C5: 2022 | D5: 2023 | E5: Rate Period | H5: Demand (kW) | I5: Demand Rate ($/kW/mo.) | J5: Demand | K5: Load Shaping HLH (MWh) | L5: Load Shaping LLH (MWh) | M5: Load Shaping HLH Rate ($/MWh) | N5: Load Shaping LLH Rate ($/MWh) | O5: Load Shaping | P5: RT1SC HLH | Q5: RT1SC LLH | R5: HLH | S5: LLH | T5: MarginalDemand
B6: Composite | C6: 2559204.597 | D6: 2605041.597 | E6: 5164246.194 | G6: 2021-10-01 | H6: 240598.4808 | I6: =IF(Init!$B$27="No",T6,$H$39) -> 9.87 | J6: 2374707.005 | K6: -197717.8001 | L6: 111102.7749 | M6: 29.92 | N6: 28.27 | O6: -2774841.131 | P6: 2920790.265 | Q6: 1633134.156 | R6: 416 | S6: 328 | T6: 9.87
B7: Non-Slice | C7: 153612.7252 | D7: 145002.0921 | E7: 298614.8173 | G7: 2021-11-01 | H7: 311366 | I7: =IF(Init!$B$27="No",T7,$H$39) -> 10.46 | J7: 3256888.36 | K7: -390111.2418 | L7: -64236.253 | M7: 31.71 | N7: 29.14 | O7: -14242271.89 | P7: 3537945.171 | Q7: 2227488.419 | R7: 400 | S7: 321 | T7: 10.46
B8: Slice | C8: 0 | D8: 0 | E8: 0 | G8: 2021-12-01 | H8: 662406.6034 | I8: =IF(Init!$B$27="No",T8,$H$39) -> 12.78 | J8: 8465556.391 | K8: 280709.1125 | L8: 121448.4027 | M8: 38.76 | N8: 32.05 | O8: 14772706.51 | P8: 3223872.736 | Q8: 2419334.912 | R8: 416 | S8: 328 | T8: 12.78
B9: Tier 2 | C9: 46009.38649 | D9: 48974.65838 | E9: 94984.04487 | G9: 2022-01-01 | H9: 513053.0925 | I9: =IF(Init!$B$27="No",T9,$H$39) -> 11.31 | J9: 5802630.476 | K9: 676660.631 | L9: 475163.3221 | M9: 34.29 | N9: 25.85 | O9: 35485664.91 | P9: 2651579.725 | Q9: 2009469.815 | R9: 400 | S9: 344 | T9: 11.31
B10: Total Costs | C10: 2758826.709 | D10: 2799018.347 | E10: 5557845.056 | G10: 2022-02-01 | H10: 347566.25 | I10: =IF(Init!$B$27="No",T10,$H$39) -> 11.47 | J10: 3986584.888 | K10: 544800.2134 | L10: 297572.0849 | M10: 34.79 | N10: 28.29 | O10: 27371913.7 | P10: 2346690.122 | Q10: 1693143.672 | R10: 384 | S10: 288 | T10: 11.47
G11: 2022-03-01 | H11: 549172.0694 | I11: =IF(Init!$B$27="No",T11,$H$39) -> 9.09 | J11: 4991974.111 | K11: 117233.0236 | L11: 151909.2566 | M11: 27.57 | N11: 28.44 | O11: 7552413.719 | P11: 2961839.251 | Q11: 1860906.497 | R11: 432 | S11: 311 | T11: 9.09
B12: Adjustments | G12: 2022-04-01 | H12: 504335.3942 | I12: =IF(Init!$B$27="No",T12,$H$39) -> 6.83 | J12: 3444610.743 | K12: 237065.1144 | L12: 227947.1167 | M12: 20.71 | N12: 25.66 | O12: 10758741.53 | P12: 2307313.633 | Q12: 1436906.394 | R12: 416 | S12: 304 | T12: 6.83
G13: 2022-05-01 | H13: 330867.34 | I13: =IF(Init!$B$27="No",T13,$H$39) -> 5.36 | J13: 1773448.942 | K13: -809107.6159 | L13: 38570.08624 | M13: 16.28 | N13: 16.3 | O13: -12543579.58 | P13: 3495709.674 | Q13: 1691934.727 | R13: 400 | S13: 344 | T13: 5.36
B14: Revenues from Rate Pools to Composite Cost Pool | C14: 2022 | D14: 2023 | E14: Rate Period | G14: 2022-06-01 | H14: 524741.726 | I14: =IF(Init!$B$27="No",T14,$H$39) -> 5.65 | J14: 2964790.752 | K14: -1059927.154 | L14: 323.4128101 | M14: 17.15 | N14: 10.62 | O14: -18174316.04 | P14: 3952932.913 | Q14: 1590173.754 | R14: 416 | S14: 304 | T14: 5.65
B15: DSI Revenue Credit | C15: -4277.3328 | D15: -4277.3328 | E15: -8554.6656 | G15: 2022-07-01 | H15: 490206.24 | I15: =IF(Init!$B$27="No",T15,$H$39) -> 12.14 | J15: 5951103.754 | K15: -537766.3547 | L15: 177800.9117 | M15: 36.83 | N15: 21.36 | O15: -16008107.37 | P15: 3505339.31 | Q15: 1757589.47 | R15: 400 | S15: 344 | T15: 12.14
... 16 more rows

Sheet Forecast Rates
B1: Cost Allocation under Tiered Rates
B2: RAMmodel_RAM2024 12.2.2022
B5: Costs ($000) | C5: 2024 | D5: 2025 | E5: Rate Period | H5: Demand (kW) | I5: Demand Rate ($/kW/mo.) | J5: Demand | K5: Load Shaping HLH (MWh) | L5: Load Shaping LLH (MWh) | M5: Load Shaping HLH Rate ($/MWh) | N5: Load Shaping LLH Rate ($/MWh) | O5: Load Shaping | P5: RT1SC HLH | Q5: RT1SC LLH | R5: HLH | S5: LLH
B6: Composite | C6: 2696652.396 | D6: 2750890.808 | E6: 5447543.204 | G6: 2023-10-01 | H6: 273472.9611 | I6: =IF(Init!$B$27="No",T6,$H$39) -> 10.37 | J6: 2835914.606 | K6: 195370.0469 | L6: 146771.7368 | M6: 47.71 | N6: 32.91 | O6: 14151362.8 | P6: 2552444.036 | Q6: 1666359.725 | R6: 416 | S6: 328 | T6: 10.37
B7: Non-Slice | C7: 273682.2804 | D7: 261470.944 | E7: 535153.2243 | G7: 2023-11-01 | H7: 339133.44 | I7: =IF(Init!$B$27="No",T7,$H$39) -> 8.75 | J7: 2967417.6 | K7: -64109.15324 | L7: 102091.1792 | M7: 40.3 | N7: 31.39 | O7: 621043.2411 | P7: 3264487.328 | Q7: 2115878.631 | R7: 400 | S7: 321 | T7: 8.75
B8: Slice | C8: 0 | D8: 0 | E8: 0 | G8: 2023-12-01 | H8: 610434.965 | I8: =IF(Init!$B$27="No",T8,$H$39) -> 13.39 | J8: 8173724.181 | K8: 165559.6749 | L8: 376171.4136 | M8: 61.63 | N8: 52.69 | O8: 30023914.55 | P8: 3520485.739 | Q8: 2285993.696 | R8: 400 | S8: 344 | T8: 13.39
B9: Tier 2 | C9: 114786.9352 | D9: 205792.0064 | E9: 320578.9416 | G9: 2024-01-01 | H9: 590110.0538 | I9: =IF(Init!$B$27="No",T9,$H$39) -> 10.84 | J9: 6396792.984 | K9: 111159.8726 | L9: 332597.5451 | M9: 49.88 | N9: 36.73 | O9: 17760962.27 | P9: 3735691.715 | Q9: 2298138.029 | R9: 416 | S9: 328 | T9: 10.84
B10: Total Costs | C10: 3085121.611 | D10: 3218153.758 | E10: 6303275.37 | G10: 2024-02-01 | H10: 399433.7275 | I10: =IF(Init!$B$27="No",T10,$H$39) -> 10.93 | J10: 4365810.642 | K10: 36539.96668 | L10: 271724.092 | M10: 50.32 | N10: 42.01 | O10: 13253820.23 | P10: 3299995.879 | Q10: 1889901.959 | R10: 400 | S10: 296 | T10: 10.93
G11: 2024-03-01 | H11: 533489.9981 | I11: =IF(Init!$B$27="No",T11,$H$39) -> 7.62 | J11: 4065193.785 | K11: -122838.8597 | L11: 26448.75153 | M11: 35.07 | N11: 35.84 | O11: -3360035.555 | P11: 3449919.113 | Q11: 2216421.778 | R11: 416 | S11: 327 | T11: 7.62
B12: Adjustments | G12: 2024-04-01 | H12: 598648.8005 | I12: =IF(Init!$B$27="No",T12,$H$39) -> 4.43 | J12: 2652014.186 | K12: 44514.39593 | L12: 69047.56021 | M12: 20.42 | N12: 21.67 | O12: 2405244.595 | P12: 2722407.777 | Q12: 1750213.462 | R12: 416 | S12: 304 | T12: 4.43
G13: 2024-05-01 | H13: 431526.3154 | I13: =IF(Init!$B$27="No",T13,$H$39) -> 3.95 | J13: 1704528.946 | K13: -586407.4882 | L13: -295896.7 | M13: 18.21 | N13: 16.34 | O13: -15513432.44 | P13: 3371816.848 | Q13: 2177069.158 | R13: 416 | S13: 328 | T13: 3.95
B14: Revenues from Rate Pools to Composite Cost Pool | C14: 2024 | D14: 2025 | E14: Rate Period | G14: 2024-06-01 | H14: 573243.17 | I14: =IF(Init!$B$27="No",T14,$H$39) -> 3.88 | J14: 2224183.5 | K14: -726747.4809 | L14: -321859.3575 | M14: 17.87 | N14: 10.33 | O14: -16311784.65 | P14: 3560007.926 | Q14: 2109275.055 | R14: 400 | S14: 320 | T14: 3.88
B15: DSI Revenue Credit | C15: -3998.30112 | D15: -3987.3768 | E15: -7985.67792 | G15: 2024-07-01 | H15: 674854.162 | I15: =IF(Init!$B$27="No",T15,$H$39) -> 12.08 | J15: 8152238.277 | K15: -82673.5289 | L15: 132443.9733 | M15: 55.6 | N15: 36.92 | O15: 293183.2862 | P15: 3067031.764 | Q15: 1854722.627 | R15: 416 | S15: 328 | T15: 12.08
... 14 more rows

Sheet TOCA_Actuals
D1: TOCA_YR1 | E1: TOCA_YR2 | F1: NSTOCA_YR1 | G1: NSTOCA_YR2 | H1: Slice_YR1 | I1: Slice_YR2
B2: BESID | C2: Preference Customer | D2: TOCA 2022 | E2: TOCA 2023 | F2: Non-Slice TOCA 2022 | G2: Non-Slice TOCA 2023 | H2: Slice Percentage 2022 | I2: Slice Percentage 2023 | J2: RHWM | K2: TOCA Load 2022* | L2: TOCA Load 2023*
B3: 10005 | C3: Alder Mutual | D3: 7.76e-05 | E3: 7.76e-05 | F3: 7.76e-05 | G3: 7.76e-05 | H3: 0 | I3: 0 | J3: 0.523 | K3: =ROUND(D3*SUM($J$3:$J$136),3) -> 0.523 | L3: =ROUND(E3*SUM($J$3:$J$136),3) -> 0.523 | M3: =+VLOOKUP($B3,TRMbdActuals_TOCA!$B:$AH,32,FALSE)-D3 -> 0 | N3: =+VLOOKUP($B3,TRMbdActuals_TOCA!$B:$AH,33,FALSE)-E3 -> 0
B4: 10015 | C4: Asotin County PUD #1 | D4: 8.12e-05 | E4: 8.12e-05 | F4: 8.12e-05 | G4: 8.12e-05 | H4: 0 | I4: 0 | J4: 0.547 | K4: =ROUND(D4*SUM($J$3:$J$136),3) -> 0.547 | L4: 0.547 | M4: =+VLOOKUP($B4,TRMbdActuals_TOCA!$B:$AH,32,FALSE)-D4 -> 0 | N4: =+VLOOKUP($B4,TRMbdActuals_TOCA!$B:$AH,33,FALSE)-E4 -> 0
B5: 10024 | C5: Benton County PUD #1 | D5: 0.0284726 | E5: 0.0284517 | F5: 0.0147934 | G5: 0.0147725 | H5: 0.0136792 | I5: 0.0136792 | J5: 191.661 | K5: 191.802 | L5: 191.661 | M5: =+VLOOKUP($B5,TRMbdActuals_TOCA!$B:$AH,32,FALSE)-D5 -> 2.96e-05 | N5: =+VLOOKUP($B5,TRMbdActuals_TOCA!$B:$AH,33,FALSE)-E5 -> 5.05e-05
B6: 10025 | C6: Benton REA | D6: 0.008448 | E6: 0.008448 | F6: 0.008448 | G6: 0.008448 | H6: 0 | I6: 0 | J6: 56.909 | K6: 56.909 | L6: 56.909 | M6: =+VLOOKUP($B6,TRMbdActuals_TOCA!$B:$AH,32,FALSE)-D6 -> 0 | N6: =+VLOOKUP($B6,TRMbdActuals_TOCA!$B:$AH,33,FALSE)-E6 -> 0
B7: 10027 | C7: Big Bend Elec Coop | D7: 0.0086654 | E7: 0.0086654 | F7: 0.0086654 | G7: 0.0086654 | H7: 0 | I7: 0 | J7: 58.373 | K7: 58.373 | L7: 58.373 | M7: =+VLOOKUP($B7,TRMbdActuals_TOCA!$B:$AH,32,FALSE)-D7 -> 0 | N7: =+VLOOKUP($B7,TRMbdActuals_TOCA!$B:$AH,33,FALSE)-E7 -> 0
B8: 10029 | C8: Blachly Lane Elec Coop | D8: 0.0024945 | E8: 0.0024945 | F8: 0.0024945 | G8: 0.0024945 | H8: 0 | I8: 0 | J8: 16.804 | K8: 16.804 | L8: 16.804 | M8: =+VLOOKUP($B8,TRMbdActuals_TOCA!$B:$AH,32,FALSE)-D8 -> 0 | N8: =+VLOOKUP($B8,TRMbdActuals_TOCA!$B:$AH,33,FALSE)-E8 -> 0
B9: 10044 | C9: Canby, City of | D9: 0.0028759 | E9: 0.0028759 | F9: 0.0028759 | G9: 0.0028759 | H9: 0 | I9: 0 | J9: 19.373 | K9: 19.373 | L9: 19.373 | M9: =+VLOOKUP($B9,TRMbdActuals_TOCA!$B:$AH,32,FALSE)-D9 -> 0 | N9: =+VLOOKUP($B9,TRMbdActuals_TOCA!$B:$AH,33,FALSE)-E9 -> 0
B10: 10046 | C10: Central Electric Coop | D10: 0.0115905 | E10: 0.0115905 | F10: 0.0115905 | G10: 0.0115905 | H10: 0 | I10: 0 | J10: 78.078 | K10: 78.078 | L10: 78.078 | M10: =+VLOOKUP($B10,TRMbdActuals_TOCA!$B:$AH,32,FALSE)-D10 -> 0 | N10: =+VLOOKUP($B10,TRMbdActuals_TOCA!$B:$AH,33,FALSE)-E10 -> 0
B11: 10047 | C11: Central Lincoln PUD | D11: 0.0221856 | E11: 0.0221856 | F11: 0.0221856 | G11: 0.0221856 | H11: 0 | I11: 0 | J11: 149.45 | K11: 149.45 | L11: 149.45 | M11: =+VLOOKUP($B11,TRMbdActuals_TOCA!$B:$AH,32,FALSE)-D11 -> 0 | N11: =+VLOOKUP($B11,TRMbdActuals_TOCA!$B:$AH,33,FALSE)-E11 -> 0
B12: 10055 | C12: Albion, City of | D12: 5.64e-05 | E12: 5.64e-05 | F12: 5.64e-05 | G12: 5.64e-05 | H12: 0 | I12: 0 | J12: 0.38 | K12: 0.38 | L12: 0.38 | M12: =+VLOOKUP($B12,TRMbdActuals_TOCA!$B:$AH,32,FALSE)-D12 -> 0 | N12: =+VLOOKUP($B12,TRMbdActuals_TOCA!$B:$AH,33,FALSE)-E12 -> 0
B13: 10057 | C13: Ashland, City of | D13: 0.0029654 | E13: 0.0029654 | F13: 0.0029654 | G13: 0.0029654 | H13: 0 | I13: 0 | J13: 20.097 | K13: 19.976 | L13: 19.976 | M13: =+VLOOKUP($B13,TRMbdActuals_TOCA!$B:$AH,32,FALSE)-D13 -> 0 | N13: =+VLOOKUP($B13,TRMbdActuals_TOCA!$B:$AH,33,FALSE)-E13 -> 0
B14: 10059 | C14: Bandon, City of | D14: 0.0010817 | E14: 0.0010817 | F14: 0.0010817 | G14: 0.0010817 | H14: 0 | I14: 0 | J14: 7.287 | K14: 7.287 | L14: 7.287 | M14: =+VLOOKUP($B14,TRMbdActuals_TOCA!$B:$AH,32,FALSE)-D14 -> 0 | N14: =+VLOOKUP($B14,TRMbdActuals_TOCA!$B:$AH,33,FALSE)-E14 -> 0
B15: 10061 | C15: Blaine, City of | D15: 0.0012385 | E15: 0.0012385 | F15: 0.0012385 | G15: 0.0012385 | H15: 0 | I15: 0 | J15: 8.343 | K15: 8.343 | L15: 8.343 | M15: =+VLOOKUP($B15,TRMbdActuals_TOCA!$B:$AH,32,FALSE)-D15 -> 0 | N15: =+VLOOKUP($B15,TRMbdActuals_TOCA!$B:$AH,33,FALSE)-E15 -> 0
... 18 more rows

Sheet LSTU_22
A2: Preference Customer | B2: BES ID | C2: RDC # | D2: TOCA | E2: RHWM Load (aMW) | F2: TOCA Load (aMW) | G2: Above RHWM Load (aMW) | H2: RHWM Load Energy (kWh) | I2: TOCA Load (kWh) | J2: Above RHWM Load Energy (kWh) | K2: Above Forecast Amount (kWh) | L2: Actual Annual T1 Load Estimate (kWh) | M2: Annual Deviation (kWh) | N2: Credit BD | O2: Charge BD | P2: Special Implementation BD | Q2: Total BD | R2: LSTU Result
A3: Albion, City of | B3: 10055 | C3: 13000 | D3: 5.64e-05 | E3: 0.38 | F3: 0.38 | G3: 0 | H3: 3328800 | I3: 3328800 | J3: 0 | K3: 0 | L3: 3980874 | M3: 652074 | N3: 0 | O3: 0 | P3: 0 | Q3: 0 | R3: 0
A4: Alder Mutual Light Company | B4: 10005 | C4: 13001 | D4: 7.76e-05 | E4: 0.523 | F4: 0.523 | G4: 0 | H4: 4581480 | I4: 4581480 | J4: 0 | K4: 0 | L4: 6099590 | M4: 1518110 | N4: 0 | O4: 0 | P4: 0 | Q4: 0 | R4: 0
A5: Ashland, City of | B5: 10057 | C5: 13002 | D5: 0.0029654 | E5: 20.097 | F5: 19.976 | G5: 0 | H5: 176049720 | I5: 174989760 | J5: 0 | K5: 1059960 | L5: 167899140 | M5: -7090620 | N5: 0 | O5: 7090620 | P5: 0 | Q5: 7090620 | R5: -41126
A6: Asotin County PUD # 1 | B6: 10015 | C6: 13003 | D6: 8.12e-05 | E6: 0.547 | F6: 0.547 | G6: 0 | H6: 4791720 | I6: 4791720 | J6: 0 | K6: 0 | L6: 4324563 | M6: -467157 | N6: 0 | O6: 467157 | P6: 0 | Q6: 467157 | R6: -2710
A7: Bandon, City of | B7: 10059 | C7: 13004 | D7: 0.0010817 | E7: 7.287 | F7: 7.287 | G7: 0 | H7: 63834120 | I7: 63834120 | J7: 0 | K7: 0 | L7: 70526097 | M7: 6691977 | N7: 0 | O7: 0 | P7: 0 | Q7: 0 | R7: 0
A8: Benton REA | B8: 10025 | C8: 13006 | D8: 0.008448 | E8: 56.909 | F8: 56.909 | G8: 9.757 | H8: 498522840 | I8: 498522840 | J8: 85471320 | K8: 0 | L8: 540211690 | M8: 41688850 | N8: 0 | O8: 0 | P8: 0 | Q8: 0 | R8: 0
A9: Big Bend Electric Cooperative Inc | B9: 10027 | C9: 13007 | D9: 0.0086654 | E9: 58.373 | F9: 58.373 | G9: 7.897 | H9: 511347480 | I9: 511347480 | J9: 69177720 | K9: 0 | L9: 501437416 | M9: -9910064 | N9: 0 | O9: 0 | P9: 0 | Q9: 0 | R9: 0
A10: Blachly Lane Electric Cooperative | B10: 10029 | C10: PNGC | D10: 0.0024945 | E10: 16.804 | F10: 16.804 | G10: 5.11 | H10: 147203040 | I10: 147203040 | J10: 44763600 | K10: 0 | L10: 147039659 | M10: -163381 | N10: 0 | O10: 0 | P10: 0 | Q10: 0 | R10: 0
A11: Blaine, City of | B11: 10061 | C11: 13009 | D11: 0.0012385 | E11: 8.343 | F11: 8.343 | G11: 1.09 | H11: 73084680 | I11: 73084680 | J11: 9548400 | K11: 0 | L11: 77140692 | M11: 4056012 | N11: 0 | O11: 0 | P11: 0 | Q11: 0 | R11: 0
A12: Bonners Ferry, City of | B12: 10062 | C12: 13010 | D12: 0.0007532 | E12: 5.074 | F12: 5.074 | G12: 2.096 | H12: 44448240 | I12: 44448240 | J12: 18360960 | K12: 0 | L12: 32728083 | M12: -11720157 | N12: 0 | O12: 0 | P12: 0 | Q12: 0 | R12: 0
A13: Burley, City of | B13: 10064 | C13: 13011 | D13: 0.0019916 | E13: 13.416 | F13: 13.416 | G13: 0 | H13: 117524160 | I13: 117524160 | J13: 0 | K13: 0 | L13: 128462649 | M13: 10938489 | N13: 0 | O13: 0 | P13: 0 | Q13: 0 | R13: 0
A14: Canby Utility Board | B14: 10044 | C14: 13012 | D14: 0.0028759 | E14: 19.373 | F14: 19.373 | G14: 2.625 | H14: 169707480 | I14: 169707480 | J14: 22995000 | K14: 0 | L14: 169626869 | M14: -80611 | N14: 0 | O14: 0 | P14: 0 | Q14: 0 | R14: 0
A15: Cascade Locks, City of | B15: 10065 | C15: 13013 | D15: 0.0003367 | E15: 2.268 | F15: 2.268 | G15: 2.096 | H15: 19867680 | I15: 19867680 | J15: 18360960 | K15: 0 | L15: 19476408 | M15: -391272 | N15: 0 | O15: 0 | P15: 0 | Q15: 0 | R15: 0
... 18 more rows

Sheet LSTU_23
A2: Preference Customer | B2: BES ID | C2: RDC # | D2: TOCA | E2: RHWM Load (aMW) | F2: TOCA Load (aMW) | G2: Above RHWM Load (aMW) | H2: RHWM Load Energy (kWh) | I2: TOCA Load (kWh) | J2: Above RHWM Load Energy (kWh) | K2: Above Forecast Amount (kWh) | L2: Actual Annual T1 Load Estimate (kWh) | M2: Annual Deviation (kWh) | N2: Credit BD | O2: Charge BD | P2: Special Implementation BD | Q2: Total BD | R2: LSTU Result
A3: Albion, City of | B3: 10055 | C3: 13000 | D3: 5.64e-05 | E3: 0.38 | F3: 0.38 | G3: 0 | H3: 3328800 | I3: 3328800 | J3: 0 | K3: 0 | L3: 4198656 | M3: 869856 | N3: 0 | O3: 0 | P3: 0 | Q3: 0 | R3: 0
A4: Alder Mutual Light Company | B4: 10005 | C4: 13001 | D4: 7.76e-05 | E4: 0.523 | F4: 0.523 | G4: 0 | H4: 4581480 | I4: 4581480 | J4: 0 | K4: 0 | L4: 4665321 | M4: 83841 | N4: 0 | O4: 0 | P4: 0 | Q4: 0 | R4: 0
A5: Ashland, City of | B5: 10057 | C5: 13002 | D5: 0.0029654 | E5: 20.097 | F5: 19.976 | G5: 0 | H5: 176049720 | I5: 174989760 | J5: 0 | K5: 1059960 | L5: 155682551 | M5: -19307209 | N5: 0 | O5: 19307209 | P5: 0 | Q5: 19307209 | R5: 34946
A6: Asotin County PUD # 1 | B6: 10015 | C6: 13003 | D6: 8.12e-05 | E6: 0.547 | F6: 0.547 | G6: 0 | H6: 4791720 | I6: 4791720 | J6: 0 | K6: 0 | L6: 4812002 | M6: 20282 | N6: 0 | O6: 0 | P6: 0 | Q6: 0 | R6: 0
A7: Bandon, City of | B7: 10059 | C7: 13004 | D7: 0.0010817 | E7: 7.287 | F7: 7.287 | G7: 0 | H7: 63834120 | I7: 63834120 | J7: 0 | K7: 0 | L7: 72880347 | M7: 9046227 | N7: 0 | O7: 0 | P7: 0 | Q7: 0 | R7: 0
A8: Benton REA | B8: 10025 | C8: 13006 | D8: 0.008448 | E8: 56.909 | F8: 56.909 | G8: 10.446 | H8: 498522840 | I8: 498522840 | J8: 91506960 | K8: 0 | L8: 567252661 | M8: 68729821 | N8: 0 | O8: 0 | P8: 0 | Q8: 0 | R8: 0
A9: Big Bend Electric Cooperative Inc | B9: 10027 | C9: 13007 | D9: 0.0086654 | E9: 58.373 | F9: 58.373 | G9: 8.213 | H9: 511347480 | I9: 511347480 | J9: 71945880 | K9: 0 | L9: 540801629 | M9: 29454149 | N9: 0 | O9: 0 | P9: 0 | Q9: 0 | R9: 0
A10: Blachly Lane Electric Cooperative | B10: 10029 | C10: PNGC | D10: 0.0024945 | E10: 16.804 | F10: 16.804 | G10: 5.545 | H10: 147203040 | I10: 147203040 | J10: 48574200 | K10: 0 | L10: 148008652 | M10: 805612 | N10: 0 | O10: 0 | P10: 0 | Q10: 0 | R10: 0
A11: Blaine, City of | B11: 10061 | C11: 13009 | D11: 0.0012385 | E11: 8.343 | F11: 8.343 | G11: 1.101 | H11: 73084680 | I11: 73084680 | J11: 9644760 | K11: 0 | L11: 75999874 | M11: 2915194 | N11: 0 | O11: 0 | P11: 0 | Q11: 0 | R11: 0
A12: Bonners Ferry, City of | B12: 10062 | C12: 13010 | D12: 0.0007532 | E12: 5.074 | F12: 5.074 | G12: 2.192 | H12: 44448240 | I12: 44448240 | J12: 19201920 | K12: 0 | L12: 43884035 | M12: -564205 | N12: 0 | O12: 0 | P12: 0 | Q12: 0 | R12: 0
A13: Burley, City of | B13: 10064 | C13: 13011 | D13: 0.0019916 | E13: 13.416 | F13: 13.416 | G13: 0 | H13: 117524160 | I13: 117524160 | J13: 0 | K13: 0 | L13: 151579755 | M13: 34055595 | N13: 0 | O13: 0 | P13: 0 | Q13: 0 | R13: 0
A14: Canby Utility Board | B14: 10044 | C14: 13012 | D14: 0.0028759 | E14: 19.373 | F14: 19.373 | G14: 2.717 | H14: 169707480 | I14: 169707480 | J14: 23800920 | K14: 0 | L14: 173596035 | M14: 3888555 | N14: 0 | O14: 0 | P14: 0 | Q14: 0 | R14: 0
A15: Cascade Locks, City of | B15: 10065 | C15: 13013 | D15: 0.0003367 | E15: 2.268 | F15: 2.268 | G15: 2.12 | H15: 19867680 | I15: 19867680 | J15: 18571200 | K15: 0 | L15: 21764947 | M15: 1897267 | N15: 0 | O15: 0 | P15: 0 | Q15: 0 | R15: 0
... 18 more rows

Sheet ALF_TRLdata
A1: Key | B1: FY | C1: Type | D1: Product | E1: ModelID | F1: Description | H1: BESNumber | I1: SubID | J1: DT | K1: READING_WITHLOSS | L1: READING_NOLOSS
A2: =+H2&"_"&D2&"_"&DATE(YEAR(J2),MONTH(J2),1) -> 10000_CP_44470 | B2: 2022 | C2: Actual | D2: CP | E2: 10000_DP | F2: USBR - Southern Idaho | H2: 10000 | I2: TR | J2: 2021-10-01 | K2: 21.127 | L2: 21.127
A3: =+H3&"_"&D3&"_"&DATE(YEAR(J3),MONTH(J3),1) -> 10000_CP_44501 | B3: 2022 | C3: Actual | D3: CP | E3: 10000_DP | F3: USBR - Southern Idaho | H3: 10000 | I3: TR | J3: 2021-11-01 | K3: 0.351 | L3: 0.351
A4: 10000_CP_44531 | B4: 2022 | C4: Actual | D4: CP | E4: 10000_DP | F4: USBR - Southern Idaho | H4: 10000 | I4: TR | J4: 2021-12-01 | K4: 0.375 | L4: 0.375
A5: 10000_CP_44562 | B5: 2022 | C5: Actual | D5: CP | E5: 10000_DP | F5: USBR - Southern Idaho | H5: 10000 | I5: TR | J5: 2022-01-01 | K5: 0.381 | L5: 0.381
A6: 10000_CP_44593 | B6: 2022 | C6: Actual | D6: CP | E6: 10000_DP | F6: USBR - Southern Idaho | H6: 10000 | I6: TR | J6: 2022-02-01 | K6: 0.388 | L6: 0.388
A7: 10000_CP_44621 | B7: 2022 | C7: Actual | D7: CP | E7: 10000_DP | F7: USBR - Southern Idaho | H7: 10000 | I7: TR | J7: 2022-03-01 | K7: 0.345 | L7: 0.345
A8: 10000_CP_44652 | B8: 2022 | C8: Actual | D8: CP | E8: 10000_DP | F8: USBR - Southern Idaho | H8: 10000 | I8: TR | J8: 2022-04-01 | K8: 28.435 | L8: 28.435
A9: 10000_CP_44682 | B9: 2022 | C9: Actual | D9: CP | E9: 10000_DP | F9: USBR - Southern Idaho | H9: 10000 | I9: TR | J9: 2022-05-01 | K9: 50.327 | L9: 50.327
A10: 10000_CP_44713 | B10: 2022 | C10: Actual | D10: CP | E10: 10000_DP | F10: USBR - Southern Idaho | H10: 10000 | I10: TR | J10: 2022-06-01 | K10: 67.323 | L10: 67.323
A11: 10000_CP_44743 | B11: 2022 | C11: Actual | D11: CP | E11: 10000_DP | F11: USBR - Southern Idaho | H11: 10000 | I11: TR | J11: 2022-07-01 | K11: 67.962 | L11: 67.962
A12: 10000_CP_44774 | B12: 2022 | C12: Actual | D12: CP | E12: 10000_DP | F12: USBR - Southern Idaho | H12: 10000 | I12: TR | J12: 2022-08-01 | K12: 56.526 | L12: 56.526
A13: 10000_CP_44805 | B13: 2022 | C13: Actual | D13: CP | E13: 10000_DP | F13: USBR - Southern Idaho | H13: 10000 | I13: TR | J13: 2022-09-01 | K13: 55.997 | L13: 55.997
A14: 10000_CP_44835 | B14: 2023 | C14: Actual | D14: CP | E14: 10000_DP | F14: USBR - Southern Idaho | H14: 10000 | I14: TR | J14: 2022-10-01 | K14: 26.666 | L14: 26.666
A15: 10000_CP_44866 | B15: 2023 | C15: Actual | D15: CP | E15: 10000_DP | F15: USBR - Southern Idaho | H15: 10000 | I15: TR | J15: 2022-11-01 | K15: 0.368 | L15: 0.368
... 18 more rows

Sheet BillingActual_CSP
A1: Lookup all T1 load (LF and Block portion)
A2: Change the "Billing Date - From" filter (Date Filters >> Between) to reflect the last closed calendar year, e.g. 1/1/16 to 12/31/16
A3: Product codes: | B3: 61601
A4: 1 | B4: 2 | C4: 3 | D4: 4 | E4: 5 | F4: 6 | G4: 7 | H4: 8 | I4: 9 | J4: 10 | K4: 11 | L4: 12 | M4: 13
A5: Product Code | B5: 61601 | D5: RIS CODE 61601 Customer System Peak kW
A6: Fiscal Year | B6: (Multiple Items)
A8: Quantity Billing | C8: Period Begin Date
A9: Customer ID | B9: Customer Name | C9: 2021-10-01 | D9: =+EOMONTH(C9,0)+1 -> 2021-11-01 | E9: =+EOMONTH(D9,0)+1 -> 2021-12-01 | F9: 2022-01-01 | G9: 2022-02-01 | H9: 2022-03-01 | I9: 2022-04-01 | J9: 2022-05-01 | K9: 2022-06-01 | L9: 2022-07-01 | M9: 2022-08-01 | N9: 2022-09-01 | O9: 2022-10-01 | P9: 2022-11-01 | Q9: 2022-12-01 | R9: 2023-01-01 | S9: 2023-02-01 | T9: 2023-03-01 | U9: 2023-04-01 | V9: 2023-05-01 | W9: 2023-06-01 | X9: 2023-07-01 | Y9: 2023-08-01 | Z9: 2023-09-01
A10: 10005 | B10: Alder Mutual Light Company | C10: 1051 | D10: 1154 | E10: 1589 | F10: 1344 | G10: 1545 | H10: 1289 | I10: 1247 | J10: 956 | K10: 720 | L10: 769 | M10: 733 | N10: 629 | O10: 916 | P10: 1324 | Q10: 1678 | R10: 1431 | S10: 1372 | T10: 724 | U10: 663 | V10: 418 | W10: 364 | X10: 406 | Y10: 462 | Z10: 413
A11: 10015 | B11: Asotin County PUD No 1 | C11: 1392 | D11: 1565 | E11: 1215 | F11: 1187 | G11: 1205 | H11: 1096 | I11: 1184 | J11: 1743 | K11: 1872 | L11: 2326 | M11: 2808 | N11: 2398 | O11: 1833 | P11: 1074 | Q11: 1189 | R11: 1210 | S11: 1185 | T11: 1190 | U11: 1257 | V11: 1944 | W11: 2751 | X11: 2744 | Y11: 2888 | Z11: 1968
A12: 10025 | B12: Benton Rural Electric Association | C12: 85554 | D12: 80057 | E12: 104138 | F12: 105508 | G12: 112013 | H12: 88284 | I12: 91950 | J12: 84685 | K12: 122673 | L12: 128535 | M12: 123263 | N12: 112542 | O12: 85805 | P12: 103417 | Q12: 132113 | R12: 116530 | S12: 113459 | T12: 89264 | U12: 87653 | V12: 105929 | W12: 120554 | X12: 125523 | Y12: 126951 | Z12: 101910
A13: 10027 | B13: Big Bend Electric Cooperative Inc | C13: 72791 | D13: 50037 | E13: 62367 | F13: 57455 | G13: 63380 | H13: 64009 | I13: 85022 | J13: 96593 | K13: 142315 | L13: 141244 | M13: 134909 | N13: 129228 | O13: 87992 | P13: 59215 | Q13: 78495 | R13: 65852 | S13: 67714 | T13: 55790 | U13: 80638 | V13: 130862 | W13: 148009 | X13: 144507 | Y13: 137598 | Z13: 99324
A14: 10044 | B14: Canby Utility Board | C14: 28896 | D14: 29551 | E14: 34109 | F14: 36279 | G14: 37152 | H14: 31828 | I14: 30401 | J14: 27555 | K14: 34068 | L14: 36243 | M14: 35138 | N14: 32700 | O14: 26672 | P14: 32175 | Q14: 37951 | R14: 33490 | S14: 35936 | T14: 32073 | U14: 30128 | V14: 34797 | W14: 34130 | X14: 36804 | Y14: 41847 | Z14: 32305
A15: 10047 | B15: Central Lincoln PUD | C15: 194151 | D15: 213071 | E15: 232352 | F15: 224769 | G15: 248047 | H15: 219844 | I15: 215222 | J15: 193932 | K15: 160834 | L15: 142977 | M15: 145750 | N15: 150352 | O15: 166017 | P15: 224195 | Q15: 241994 | R15: 262613 | S15: 242226 | T15: 242171 | U15: 194101 | V15: 161934 | W15: 154797 | X15: 143042 | Y15: 140901 | Z15: 156938
... 18 more rows

Sheet BillingActuals_Energy
C1: Lookup all T1 load (LF and Block portion)
C2: Change the "Billing Date - From" filter (Date Filters >> Between) to reflect the last closed calendar year, e.g. 1/1/16 to 12/31/16
C3: Product codes: | D3: 61121, 61121, 61421, 61422, 61441, 61442, 61621, 61622, 61641, 61642
C4: 1 | D4: 2 | E4: 3 | F4: 4 | H4: 5 | I4: 6 | J4: 7 | K4: 8 | L4: 9 | M4: 10 | N4: 11 | O4: 12 | P4: 13 | Q4: 13 | R4: 13 | S4: 13 | T4: 13 | U4: 13
C5: Refreshed on | D5: Jason Weinstein PSS 03/12/2024
C8: Quantity Billing | H8: IP ENERGY-HEAVY LOAD HOURS | I8: IP ENERGY-LIGHT LOAD HOURS | J8: Block HLH System Shaped Load | K8: Block LLH System Shaped Load | L8: Block HLH Load Shaping | M8: Block LLH Load Shaping | N8: LF HLH System Shaped Load | O8: LF HLH System Shaped Load | P8: LF HLH Load Shaping | Q8: LF LLH Load Shaping | R8: Tier 1 HLH | S8: Tier 1 LLH | T8: Block HLH Tier 1 | U8: Block LLH Tier 1
A9: Key | B9: Date | C9: Customer ID | D9: Customer Name | E9: Fiscal Year | F9: Billing Period Month | G9: FY Month | H9: 61121 | I9: 61122 | J9: 61421 | K9: 61422 | L9: 61441 | M9: 61442 | N9: 61621 | O9: 61622 | P9: 61641 | Q9: 61642 | R9: Tier 1 HLH | S9: Tier 1 LLH | T9: Block HLH Tier 1 | U9: Block LLH Tier 1
A10: =+C10&B10 -> 1000544470 | B10: =+IF(G10<4,DATE(E10-1,G10+9,1),DATE(E10,G10-3,1)) -> 2021-10-01 | C10: 10005 | D10: Alder Mutual Light Company | E10: 2022 | F10: October | G10: 1 | N10: 226653 | O10: 126731 | P10: 50374 | Q10: 63754 | R10: =N10+P10 -> 277027 | S10: 190485 | T10: =J10+L10 -> 0 | U10: 0
A11: =+C11&B11 -> 1000544501 | B11: =+IF(G11<4,DATE(E11-1,G11+9,1),DATE(E11,G11-3,1)) -> 2021-11-01 | C11: 10005 | D11: Alder Mutual Light Company | E11: 2022 | F11: November | G11: 2 | N11: 274545 | O11: 172853 | P11: 41846 | Q11: 58223 | R11: 316391 | S11: 231076 | T11: 0 | U11: 0
A12: 1000544531 | B12: 2021-12-01 | C12: 10005 | D12: Alder Mutual Light Company | E12: 2022 | F12: December | G12: 3 | N12: 250173 | O12: 187740 | P12: 187757 | Q12: 137381 | R12: 437930 | S12: 325121 | T12: 0 | U12: 0
A13: 1000544562 | B13: 2022-01-01 | C13: 10005 | D13: Alder Mutual Light Company | E13: 2022 | F13: January | G13: 4 | N13: 205763 | O13: 155935 | P13: 198966 | Q13: 187114 | R13: 404729 | S13: 343049 | T13: 0 | U13: 0
A14: 1000544593 | B14: 2022-02-01 | C14: 10005 | D14: Alder Mutual Light Company | E14: 2022 | F14: February | G14: 5 | N14: 182103 | O14: 131388 | P14: 195910 | Q14: 130493 | R14: 378013 | S14: 261881 | T14: 0 | U14: 0
A15: 1000544621 | B15: 2022-03-01 | C15: 10005 | D15: Alder Mutual Light Company | E15: 2022 | F15: March | G15: 6 | N15: 229839 | O15: 144406 | P15: 121356 | Q15: 99064 | R15: 351195 | S15: 243470 | T15: 0 | U15: 0
... 16 more rows

Sheet Billing totals
H1: =IF(ISNA(VLOOKUP($A3,'[PSSBillingActuals.xlsx]pvt.Billing IRD FY22 ($)'!$A:$Z,MATCH(G$2,'[PSSBillingActuals.xlsx]pvt.Billing IRD FY22 ($)'!$8:$8,0),FALSE)),0,VLOOKUP($A3,'[PSSBillingActuals.xlsx]pvt.Billing IRD FY22 ($)'!$A:$Z,MATCH(G$2,'[PSSBillingActuals.xlsx]pvt.Billing IRD FY22 ($)'!$8:$8,0),FALSE))/'Actuals Rates'!$H$32*-1 | T1: =IF(ISNA(VLOOKUP($A3,'[PSSBillingActuals.xlsx]pvt.Billing IRD FY23 ($)'!$A:$K,MATCH(T$2,'[PSSBillingActuals.xlsx]pvt.Billing IRD FY23 ($)'!$8:$8,0),FALSE)),0,VLOOKUP($A3,'[PSSBillingActuals.xlsx]pvt.Billing IRD FY23 ($)'!$A:$K,MATCH(T$2,'[PSSBillingActuals.xlsx]pvt.Billing IRD FY23 ($)'!$8:$8,0),FALSE))/'Actuals Rates'!$H$32*-1
B2: 2022 total | C2: 2023 total | D2: 2022 LDD | E2: 2023 LDD | F2: 2022 IRD | G2: 2023 IRD | H2: =+StagingTRM!S4 -> 2023-10-01 | I2: =+EOMONTH(H2,0)+1 -> 2023-11-01 | J2: =+EOMONTH(I2,0)+1 -> 2023-12-01 | K2: 2024-01-01 | L2: 2024-02-01 | M2: 2024-03-01 | N2: 2024-04-01 | O2: 2024-05-01 | P2: 2024-06-01 | Q2: 2024-07-01 | R2: 2024-08-01 | S2: 2024-09-01 | T2: =+EOMONTH(S2,0)+1 -> 2024-10-01 | U2: =+EOMONTH(T2,0)+1 -> 2024-11-01 | V2: =+EOMONTH(U2,0)+1 -> 2024-12-01 | W2: =+EOMONTH(V2,0)+1 -> 2025-01-01 | X2: =+EOMONTH(W2,0)+1 -> 2025-02-01 | Y2: =+EOMONTH(X2,0)+1 -> 2025-03-01 | Z2: =+EOMONTH(Y2,0)+1 -> 2025-04-01 | AA2: =+EOMONTH(Z2,0)+1 -> 2025-05-01 | AB2: =+EOMONTH(AA2,0)+1 -> 2025-06-01 | AC2: =+EOMONTH(AB2,0)+1 -> 2025-07-01 | AD2: =+EOMONTH(AC2,0)+1 -> 2025-08-01 | AE2: =+EOMONTH(AD2,0)+1 -> 2025-09-01 | AF2: 2024 IRD | AG2: 2023-10-01 | AH2: =+EOMONTH(AG2,0)+1 -> 2023-11-01 | AI2: =+EOMONTH(AH2,0)+1 -> 2023-12-01 | AJ2: 2024-01-01 | AK2: 2024-02-01 | AL2: 2024-03-01 | AM2: 2024-04-01 | AN2: 2024-05-01 | AO2: 2024-06-01 | AP2: 2024-07-01 | AQ2: 2024-08-01 | AR2: 2024-09-01 | AS2: 2023 IRD | AT2: 2024-10-01 | AU2: =+EOMONTH(AT2,0)+1 -> 2024-11-01 | AV2: =+EOMONTH(AU2,0)+1 -> 2024-12-01 | AW2: 2025-01-01 | AX2: 2025-02-01 | AY2: 2025-03-01 | AZ2: 2025-04-01 | BA2: 2025-05-01 | BB2: 2025-06-01 | BC2: 2025-07-01 | BD2: 2025-08-01 | BE2: 2025-09-01 | BF2: 2022 LSTU | BG2: 2023 LSTU | BK2: Grand Total
A3: 10005 | B3: 231644 | C3: 11419 | D3: -5132 | E3: -3407 | F3: 0 | G3: 0 | H3: 0 | I3: 0 | J3: 0 | K3: 0 | L3: 0 | M3: 0 | N3: 0 | O3: 0 | P3: 0 | Q3: 0 | R3: 0 | S3: 0 | T3: 0 | U3: 0 | V3: 0 | W3: 0 | X3: 0 | Y3: 0 | Z3: 0 | AA3: 0 | AB3: 0 | AC3: 0 | AD3: 0 | AE3: 0 | AF3: 0 | AG3: 0 | AH3: 0 | AI3: 0 | AJ3: 0 | AK3: 0 | AL3: 0 | AM3: 0 | AN3: 0 | AO3: 0 | AP3: 0 | AQ3: 0 | AR3: 0 | AS3: 0 | AT3: 0 | AU3: 0 | AV3: 0 | AW3: 0 | AX3: 0 | AY3: 0 | AZ3: 0 | BA3: 0 | BB3: 0 | BC3: 0 | BD3: 0 | BE3: 0 | BF3: =IF(ISNA(VLOOKUP(A3,LSTU_22!B:R,17,FALSE)),0,VLOOKUP(A3,LSTU_22!B:R,17,FALSE)) -> 0 | BG3: =IF(ISNA(VLOOKUP(A3,LSTU_23!$B:$R,17,FALSE)),0,VLOOKUP(A3,LSTU_23!$B:$R,17,FALSE)) -> 0
A4: 10015 | B4: 223473 | C4: 196734 | D4: 0 | E4: 0 | F4: 0 | G4: 0 | H4: 0 | I4: 0 | J4: 0 | K4: 0 | L4: 0 | M4: 0 | N4: 0 | O4: 0 | P4: 0 | Q4: 0 | R4: 0 | S4: 0 | T4: 0 | U4: 0 | V4: 0 | W4: 0 | X4: 0 | Y4: 0 | Z4: 0 | AA4: 0 | AB4: 0 | AC4: 0 | AD4: 0 | AE4: 0 | AF4: 0 | AG4: 0 | AH4: 0 | AI4: 0 | AJ4: 0 | AK4: 0 | AL4: 0 | AM4: 0 | AN4: 0 | AO4: 0 | AP4: 0 | AQ4: 0 | AR4: 0 | AS4: 0 | AT4: 0 | AU4: 0 | AV4: 0 | AW4: 0 | AX4: 0 | AY4: 0 | AZ4: 0 | BA4: 0 | BB4: 0 | BC4: 0 | BD4: 0 | BE4: 0 | BF4: =IF(ISNA(VLOOKUP(A4,LSTU_22!B:R,17,FALSE)),0,VLOOKUP(A4,LSTU_22!B:R,17,FALSE)) -> -2710 | BG4: =IF(ISNA(VLOOKUP(A4,LSTU_23!$B:$R,17,FALSE)),0,VLOOKUP(A4,LSTU_23!$B:$R,17,FALSE)) -> 0
A5: 10024 | B5: 57433551 | C5: 50493479 | D5: 0 | E5: 0 | F5: -3403407 | G5: -3403407 | H5: 0 | I5: 0 | J5: 0 | K5: 0 | L5: 0 | M5: 0 | N5: 0 | O5: 53115.41284 | P5: 75243.30275 | Q5: 89003.57798 | R5: 62842.93578 | S5: 32033.94495 | T5: 0 | U5: 0 | V5: 0 | W5: 0 | X5: 0 | Y5: 0 | Z5: 0 | AA5: 53115.41284 | AB5: 75243.30275 | AC5: 89003.57798 | AD5: 62842.93578 | AE5: 32033.94495 | AF5: -3403407 | AG5: 0 | AH5: 0 | AI5: 0 | AJ5: 0 | AK5: 0 | AL5: 0 | AM5: 0 | AN5: 53115.41284 | AO5: 75243.30275 | AP5: 89003.57798 | AQ5: 62842.93578 | AR5: 32033.94495 | AS5: -3403407 | AT5: 0 | AU5: 0 | AV5: 0 | AW5: 0 | AX5: 0 | AY5: 0 | AZ5: 0 | BA5: 53115.41284 | BB5: 75243.30275 | BC5: 89003.57798 | BD5: 62842.93578 | BE5: 32033.94495 | BF5: =IF(ISNA(VLOOKUP(A5,LSTU_22!B:R,17,FALSE)),0,VLOOKUP(A5,LSTU_22!B:R,17,FALSE)) -> 0 | BG5: =IF(ISNA(VLOOKUP(A5,LSTU_23!$B:$R,17,FALSE)),0,VLOOKUP(A5,LSTU_23!$B:$R,17,FALSE)) -> 0
A6: 10025 | B6: 20208563 | C6: 17688761 | D6: -1252763 | E6: -1084833 | F6: -903620 | G6: -903620 | H6: 0 | I6: 0 | J6: 0 | K6: 0 | L6: 0 | M6: 0 | N6: 0 | O6: 11147.24771 | P6: 18681.55963 | Q6: 24281.46789 | R6: 19190.82569 | S6: 9599.816514 | T6: 0 | U6: 0 | V6: 0 | W6: 0 | X6: 0 | Y6: 0 | Z6: 0 | AA6: 11147.24771 | AB6: 18681.55963 | AC6: 24281.46789 | AD6: 19190.82569 | AE6: 9599.816514 | AF6: -903620 | AG6: 0 | AH6: 0 | AI6: 0 | AJ6: 0 | AK6: 0 | AL6: 0 | AM6: 0 | AN6: 11147.24771 | AO6: 18681.55963 | AP6: 24281.46789 | AQ6: 19190.82569 | AR6: 9599.816514 | AS6: -903620 | AT6: 0 | AU6: 0 | AV6: 0 | AW6: 0 | AX6: 0 | AY6: 0 | AZ6: 0 | BA6: 11147.24771 | BB6: 18681.55963 | BC6: 24281.46789 | BD6: 19190.82569 | BE6: 9599.816514 | BF6: =IF(ISNA(VLOOKUP(A6,LSTU_22!B:R,17,FALSE)),0,VLOOKUP(A6,LSTU_22!B:R,17,FALSE)) -> 0 | BG6: =IF(ISNA(VLOOKUP(A6,LSTU_23!$B:$R,17,FALSE)),0,VLOOKUP(A6,LSTU_23!$B:$R,17,FALSE)) -> 0
A7: 10027 | B7: 14473840 | C7: 11509556 | D7: -1414462 | E7: -1175855 | F7: -2285398 | G7: -2285398 | H7: 0 | I7: 0 | J7: 0 | K7: 0 | L7: 0 | M7: 0 | N7: 0 | O7: 32097.79817 | P7: 47948.07339 | Q7: 50352.29358 | R7: 47379.81651 | S7: 31891.55963 | T7: 0 | U7: 0 | V7: 0 | W7: 0 | X7: 0 | Y7: 0 | Z7: 0 | AA7: 32097.79817 | AB7: 47948.07339 | AC7: 50352.29358 | AD7: 47379.81651 | AE7: 31891.55963 | AF7: -2285398 | AG7: 0 | AH7: 0 | AI7: 0 | AJ7: 0 | AK7: 0 | AL7: 0 | AM7: 0 | AN7: 32097.79817 | AO7: 47948.07339 | AP7: 50352.29358 | AQ7: 47379.81651 | AR7: 31891.55963 | AS7: -2285398 | AT7: 0 | AU7: 0 | AV7: 0 | AW7: 0 | AX7: 0 | AY7: 0 | AZ7: 0 | BA7: 32097.79817 | BB7: 47948.07339 | BC7: 50352.29358 | BD7: 47379.81651 | BE7: 31891.55963 | BF7: =IF(ISNA(VLOOKUP(A7,LSTU_22!B:R,17,FALSE)),0,VLOOKUP(A7,LSTU_22!B:R,17,FALSE)) -> 0 | BG7: =IF(ISNA(VLOOKUP(A7,LSTU_23!$B:$R,17,FALSE)),0,VLOOKUP(A7,LSTU_23!$B:$R,17,FALSE)) -> 0
A8: 10044 | B8: 7131053 | C8: 5978615 | D8: 0 | E8: 0 | F8: 0 | G8: 0 | H8: 0 | I8: 0 | J8: 0 | K8: 0 | L8: 0 | M8: 0 | N8: 0 | O8: 0 | P8: 0 | Q8: 0 | R8: 0 | S8: 0 | T8: 0 | U8: 0 | V8: 0 | W8: 0 | X8: 0 | Y8: 0 | Z8: 0 | AA8: 0 | AB8: 0 | AC8: 0 | AD8: 0 | AE8: 0 | AF8: 0 | AG8: 0 | AH8: 0 | AI8: 0 | AJ8: 0 | AK8: 0 | AL8: 0 | AM8: 0 | AN8: 0 | AO8: 0 | AP8: 0 | AQ8: 0 | AR8: 0 | AS8: 0 | AT8: 0 | AU8: 0 | AV8: 0 | AW8: 0 | AX8: 0 | AY8: 0 | AZ8: 0 | BA8: 0 | BB8: 0 | BC8: 0 | BD8: 0 | BE8: 0 | BF8: =IF(ISNA(VLOOKUP(A8,LSTU_22!B:R,17,FALSE)),0,VLOOKUP(A8,LSTU_22!B:R,17,FALSE)) -> 0 | BG8: =IF(ISNA(VLOOKUP(A8,LSTU_23!$B:$R,17,FALSE)),0,VLOOKUP(A8,LSTU_23!$B:$R,17,FALSE)) -> 0
A9: 10047 | B9: 43820251 | C9: 34535225 | D9: 0 | E9: 0 | F9: 0 | G9: 0 | H9: 0 | I9: 0 | J9: 0 | K9: 0 | L9: 0 | M9: 0 | N9: 0 | O9: 0 | P9: 0 | Q9: 0 | R9: 0 | S9: 0 | T9: 0 | U9: 0 | V9: 0 | W9: 0 | X9: 0 | Y9: 0 | Z9: 0 | AA9: 0 | AB9: 0 | AC9: 0 | AD9: 0 | AE9: 0 | AF9: 0 | AG9: 0 | AH9: 0 | AI9: 0 | AJ9: 0 | AK9: 0 | AL9: 0 | AM9: 0 | AN9: 0 | AO9: 0 | AP9: 0 | AQ9: 0 | AR9: 0 | AS9: 0 | AT9: 0 | AU9: 0 | AV9: 0 | AW9: 0 | AX9: 0 | AY9: 0 | AZ9: 0 | BA9: 0 | BB9: 0 | BC9: 0 | BD9: 0 | BE9: 0 | BF9: =IF(ISNA(VLOOKUP(A9,LSTU_22!B:R,17,FALSE)),0,VLOOKUP(A9,LSTU_22!B:R,17,FALSE)) -> -96249 | BG9: =IF(ISNA(VLOOKUP(A9,LSTU_23!$B:$R,17,FALSE)),0,VLOOKUP(A9,LSTU_23!$B:$R,17,FALSE)) -> 50974
A10: 10055 | B10: 171915 | C10: 149684 | D10: 0 | E10: 0 | F10: 0 | G10: 0 | H10: 0 | I10: 0 | J10: 0 | K10: 0 | L10: 0 | M10: 0 | N10: 0 | O10: 0 | P10: 0 | Q10: 0 | R10: 0 | S10: 0 | T10: 0 | U10: 0 | V10: 0 | W10: 0 | X10: 0 | Y10: 0 | Z10: 0 | AA10: 0 | AB10: 0 | AC10: 0 | AD10: 0 | AE10: 0 | AF10: 0 | AG10: 0 | AH10: 0 | AI10: 0 | AJ10: 0 | AK10: 0 | AL10: 0 | AM10: 0 | AN10: 0 | AO10: 0 | AP10: 0 | AQ10: 0 | AR10: 0 | AS10: 0 | AT10: 0 | AU10: 0 | AV10: 0 | AW10: 0 | AX10: 0 | AY10: 0 | AZ10: 0 | BA10: 0 | BB10: 0 | BC10: 0 | BD10: 0 | BE10: 0 | BF10: =IF(ISNA(VLOOKUP(A10,LSTU_22!B:R,17,FALSE)),0,VLOOKUP(A10,LSTU_22!B:R,17,FALSE)) -> 0 | BG10: =IF(ISNA(VLOOKUP(A10,LSTU_23!$B:$R,17,FALSE)),0,VLOOKUP(A10,LSTU_23!$B:$R,17,FALSE)) -> 0
A11: 10057 | B11: 6685289 | C11: 4867299 | D11: 0 | E11: 0 | F11: 0 | G11: 0 | H11: 0 | I11: 0 | J11: 0 | K11: 0 | L11: 0 | M11: 0 | N11: 0 | O11: 0 | P11: 0 | Q11: 0 | R11: 0 | S11: 0 | T11: 0 | U11: 0 | V11: 0 | W11: 0 | X11: 0 | Y11: 0 | Z11: 0 | AA11: 0 | AB11: 0 | AC11: 0 | AD11: 0 | AE11: 0 | AF11: 0 | AG11: 0 | AH11: 0 | AI11: 0 | AJ11: 0 | AK11: 0 | AL11: 0 | AM11: 0 | AN11: 0 | AO11: 0 | AP11: 0 | AQ11: 0 | AR11: 0 | AS11: 0 | AT11: 0 | AU11: 0 | AV11: 0 | AW11: 0 | AX11: 0 | AY11: 0 | AZ11: 0 | BA11: 0 | BB11: 0 | BC11: 0 | BD11: 0 | BE11: 0 | BF11: =IF(ISNA(VLOOKUP(A11,LSTU_22!B:R,17,FALSE)),0,VLOOKUP(A11,LSTU_22!B:R,17,FALSE)) -> -41126 | BG11: =IF(ISNA(VLOOKUP(A11,LSTU_23!$B:$R,17,FALSE)),0,VLOOKUP(A11,LSTU_23!$B:$R,17,FALSE)) -> 34946
A12: 10059 | B12: 2539529 | C12: 2105868 | D12: 0 | E12: 0 | F12: 0 | G12: 0 | H12: 0 | I12: 0 | J12: 0 | K12: 0 | L12: 0 | M12: 0 | N12: 0 | O12: 0 | P12: 0 | Q12: 0 | R12: 0 | S12: 0 | T12: 0 | U12: 0 | V12: 0 | W12: 0 | X12: 0 | Y12: 0 | Z12: 0 | AA12: 0 | AB12: 0 | AC12: 0 | AD12: 0 | AE12: 0 | AF12: 0 | AG12: 0 | AH12: 0 | AI12: 0 | AJ12: 0 | AK12: 0 | AL12: 0 | AM12: 0 | AN12: 0 | AO12: 0 | AP12: 0 | AQ12: 0 | AR12: 0 | AS12: 0 | AT12: 0 | AU12: 0 | AV12: 0 | AW12: 0 | AX12: 0 | AY12: 0 | AZ12: 0 | BA12: 0 | BB12: 0 | BC12: 0 | BD12: 0 | BE12: 0 | BF12: =IF(ISNA(VLOOKUP(A12,LSTU_22!B:R,17,FALSE)),0,VLOOKUP(A12,LSTU_22!B:R,17,FALSE)) -> 0 | BG12: =IF(ISNA(VLOOKUP(A12,LSTU_23!$B:$R,17,FALSE)),0,VLOOKUP(A12,LSTU_23!$B:$R,17,FALSE)) -> 0
A13: 10061 | B13: 3343792 | C13: 2753682 | D13: 0 | E13: 0 | F13: 0 | G13: 0 | H13: 0 | I13: 0 | J13: 0 | K13: 0 | L13: 0 | M13: 0 | N13: 0 | O13: 0 | P13: 0 | Q13: 0 | R13: 0 | S13: 0 | T13: 0 | U13: 0 | V13: 0 | W13: 0 | X13: 0 | Y13: 0 | Z13: 0 | AA13: 0 | AB13: 0 | AC13: 0 | AD13: 0 | AE13: 0 | AF13: 0 | AG13: 0 | AH13: 0 | AI13: 0 | AJ13: 0 | AK13: 0 | AL13: 0 | AM13: 0 | AN13: 0 | AO13: 0 | AP13: 0 | AQ13: 0 | AR13: 0 | AS13: 0 | AT13: 0 | AU13: 0 | AV13: 0 | AW13: 0 | AX13: 0 | AY13: 0 | AZ13: 0 | BA13: 0 | BB13: 0 | BC13: 0 | BD13: 0 | BE13: 0 | BF13: =IF(ISNA(VLOOKUP(A13,LSTU_22!B:R,17,FALSE)),0,VLOOKUP(A13,LSTU_22!B:R,17,FALSE)) -> 0 | BG13: =IF(ISNA(VLOOKUP(A13,LSTU_23!$B:$R,17,FALSE)),0,VLOOKUP(A13,LSTU_23!$B:$R,17,FALSE)) -> 0
A14: 10062 | B14: 2093915 | C14: 2130041 | D14: 0 | E14: 0 | F14: 0 | G14: 0 | H14: 0 | I14: 0 | J14: 0 | K14: 0 | L14: 0 | M14: 0 | N14: 0 | O14: 0 | P14: 0 | Q14: 0 | R14: 0 | S14: 0 | T14: 0 | U14: 0 | V14: 0 | W14: 0 | X14: 0 | Y14: 0 | Z14: 0 | AA14: 0 | AB14: 0 | AC14: 0 | AD14: 0 | AE14: 0 | AF14: 0 | AG14: 0 | AH14: 0 | AI14: 0 | AJ14: 0 | AK14: 0 | AL14: 0 | AM14: 0 | AN14: 0 | AO14: 0 | AP14: 0 | AQ14: 0 | AR14: 0 | AS14: 0 | AT14: 0 | AU14: 0 | AV14: 0 | AW14: 0 | AX14: 0 | AY14: 0 | AZ14: 0 | BA14: 0 | BB14: 0 | BC14: 0 | BD14: 0 | BE14: 0 | BF14: =IF(ISNA(VLOOKUP(A14,LSTU_22!B:R,17,FALSE)),0,VLOOKUP(A14,LSTU_22!B:R,17,FALSE)) -> 0 | BG14: =IF(ISNA(VLOOKUP(A14,LSTU_23!$B:$R,17,FALSE)),0,VLOOKUP(A14,LSTU_23!$B:$R,17,FALSE)) -> 0
A15: 10064 | B15: 4669555 | C15: 4458557 | D15: 0 | E15: 0 | F15: 0 | G15: 0 | H15: 0 | I15: 0 | J15: 0 | K15: 0 | L15: 0 | M15: 0 | N15: 0 | O15: 0 | P15: 0 | Q15: 0 | R15: 0 | S15: 0 | T15: 0 | U15: 0 | V15: 0 | W15: 0 | X15: 0 | Y15: 0 | Z15: 0 | AA15: 0 | AB15: 0 | AC15: 0 | AD15: 0 | AE15: 0 | AF15: 0 | AG15: 0 | AH15: 0 | AI15: 0 | AJ15: 0 | AK15: 0 | AL15: 0 | AM15: 0 | AN15: 0 | AO15: 0 | AP15: 0 | AQ15: 0 | AR15: 0 | AS15: 0 | AT15: 0 | AU15: 0 | AV15: 0 | AW15: 0 | AX15: 0 | AY15: 0 | AZ15: 0 | BA15: 0 | BB15: 0 | BC15: 0 | BD15: 0 | BE15: 0 | BF15: =IF(ISNA(VLOOKUP(A15,LSTU_22!B:R,17,FALSE)),0,VLOOKUP(A15,LSTU_22!B:R,17,FALSE)) -> 0 | BG15: =IF(ISNA(VLOOKUP(A15,LSTU_23!$B:$R,17,FALSE)),0,VLOOKUP(A15,LSTU_23!$B:$R,17,FALSE)) -> 0
... 18 more rows

Sheet BillingCDQ
B1: Customer Demand Quantity (MW)
A2: TOC
B3: BESID | C3: AccountName | D3: 10 | E3: 11 | F3: 12 | G3: 1 | H3: 2 | I3: 3 | J3: 4 | K3: 5 | L3: 6 | M3: 7 | N3: 8 | O3: 9
B4: 10005 | C4: Alder Mutual | D4: 0.244 | E4: 0.294 | F4: 0.339 | G4: 0.355 | H4: 0.271 | I4: 0.252 | J4: 0.315 | K4: 0.237 | L4: 0.114 | M4: 0.087 | N4: 0.067 | O4: 0.189
B5: 10015 | C5: Asotin County PUD #1 | D5: 0.914 | E5: 1.084 | F5: 0.942 | G5: 0.875 | H5: 0.846 | I5: 0.763 | J5: 0.617 | K5: 0.897 | L5: 1.271 | M5: 1.015 | N5: 1.404 | O5: 1.037
B6: 10024 | C6: Benton County PUD #1 | D6: 39.766 | E6: 57.361 | F6: 45.338 | G6: 64.421 | H6: 77.727 | I6: 45.723 | J6: 38.283 | K6: 92.854 | L6: 76.384 | M6: 43.433 | N6: 67.005 | O6: 56.736
B7: 10025 | C7: Benton REA | D7: 10.082 | E7: 18.416 | F7: 14.592 | G7: 19.351 | H7: 24.799 | I7: 20.215 | J7: 21.046 | K7: 18.058 | L7: 15.269 | M7: 8.356 | N7: 10.485 | O7: 12.275
B8: 10027 | C8: Big Bend Elec Coop | D8: 11.759 | E8: 8.462 | F8: 6.63 | G8: 7.721 | H8: 11.915 | I8: 10.442 | J8: 15.145 | K8: 25.016 | L8: 15.09 | M8: 6.424 | N8: 4.755 | O8: 14.824
B9: 10029 | C9: Blachly Lane Elec Coop | D9: 5.878 | E9: 5.732 | F9: 7.035 | G9: 5.437 | H9: 6.304 | I9: 5.271 | J9: 6.477 | K9: 4.737 | L9: 2.885 | M9: 2.942 | N9: 1.878 | O9: 3.934
B10: 10044 | C10: Canby, City of | D10: 3.812 | E10: 5.687 | F10: 4.877 | G10: 5.156 | H10: 6.482 | I10: 4.714 | J10: 4.762 | K10: 3.73 | L10: 4.392 | M10: 5.959 | N10: 5.072 | O10: 3.931
B11: 10046 | C11: Central Electric Coop | D11: 49.109 | E11: 60.539 | F11: 52.265 | G11: 52.541 | H11: 65.196 | I11: 45.64 | J11: 44.617 | K11: 29.254 | L11: 14.999 | M11: 14.798 | N11: 11.539 | O11: 21.505
B12: 10047 | C12: Central Lincoln PUD | D12: 30.509 | E12: 41.689 | F12: 33.81 | G12: 36.45 | H12: 47.572 | I12: 33.5 | J12: 34.112 | K12: 26.236 | L12: 8.049 | M12: 2.439 | N12: 0 | O12: 16.614
B13: 10055 | C13: Albion, City of | D13: 0.176 | E13: 0.253 | F13: 0.171 | G13: 0.182 | H13: 0.204 | I13: 0.186 | J13: 0.312 | K13: 0.175 | L13: 0.093 | M13: 0.055 | N13: 0.061 | O13: 0.135
B14: 10057 | C14: Ashland, City of | D14: 5.166 | E14: 6.451 | F14: 5.869 | G14: 5.094 | H14: 5.616 | I14: 5.264 | J14: 4.651 | K14: 5.988 | L14: 8.027 | M14: 9.546 | N14: 8.644 | O14: 5.741
B15: 10059 | C15: Bandon, City of | D15: 3.428 | E15: 3.42 | F15: 3.326 | G15: 3.245 | H15: 4.088 | I15: 3.106 | J15: 3.656 | K15: 2.382 | L15: 1.213 | M15: 0.801 | N15: 0.935 | O15: 2.052
... 18 more rows

Sheet PLVS
C1: Average PRM | D1: 0.178
C2: P10 Estimate | D2: 13736.23106
C3: P50 | D3: 11660.63757
C4: P10 minus P50 MW | D4: 2075.593488
C5: TRL MWh | D5: =+SUM('PLVS Revenues'!BB:BB)/2 -> 74084053.23
C6: PLVS Rate $/MWh | D6: =+D4*12000*IF(Init!$B$29="Yes",INDIRECT("'"&ModelMode&" Rates'!$H$38"),INDIRECT("'"&ModelMode&" Rates'!$H$39"))/D5 -> 1.990309047
H7: Ave. | I7: 0.178
D8: Requirements Summary
E9: Season | F9: 2024-06-01 | G9: 2024-07-01 | H9: 2024-08-01 | I9: 2024-09-01
D10: Program Monthly PRM | E10: Summer | F10: 0.165 | G10: 0.104 | H10: 0.103 | I10: 0.179
D11: Peak Demand - DR Programs + PRM | E11: Summer | F11: 5968.4 | G11: 5999.1 | H11: 5972.7 | I11: 5625
D12: Contingency Reserves Adjustment - Gen | E12: Summer | F12: 85.7 | G12: 85.7 | H12: 86.6 | I12: 94.7
D13: Contingency Reserves Adjustment - Load | E13: Summer | F13: 947.9 | G13: 1306.2 | H13: 1336.7 | I13: 1607.4
D14: Ops CR Requirement (Informational) | E14: Summer | F14: 1341 | G14: 1718 | H14: 1748.2 | I14: 1988.3
D15: Forward Showing Obligation | E15: Summer | F15: 7002 | G15: 7391.1 | H15: 7396.1 | I15: 7327.1
D16: Surplus/Deficient Capacity | E16: Summer | F16: 3939 | G16: 3633 | H16: 3640.6 | I16: 4216.9
D17: Forward Showing Requirement Met | E17: Summer | F17: Yes | G17: Yes | H17: Yes | I17: Yes
D20: Requirements Summary
E21: Season | F21: 2023-11-01 | G21: 2023-12-01 | H21: 2024-01-01 | I21: 2024-02-01 | J21: 2024-03-01
D22: Program Monthly PRM | E22: Winter | F22: 0.216 | G22: 0.177 | H22: 0.19 | I22: 0.199 | J22: 0.269
D23: Peak Demand - DR Programs + PRM | E23: Winter | F23: 6906.7 | G23: 7293.3 | H23: 7571.2 | I23: 7596.8 | J23: 7297.4
D24: Operating Reserves Adjustment | E24: Winter | F24: 147 | G24: 152.2 | H24: 154 | I24: 144.8 | J24: 145.1
D25: Forward Showing Obligation | E25: Winter | F25: 7053.7 | G25: 7445.6 | H25: 7725.2 | I25: 7741.6 | J25: 7442.5
D26: Surplus/Deficient Capacity | E26: Winter | F26: 3196.7 | G26: 2783.5 | H26: 2767.5 | I26: 2579.7 | J26: 3424.4
D27: Forward Showing Requirement Met | E27: Winter | F27: Yes | G27: Yes | H27: Yes | I27: Yes | J27: Yes

Sheet StagingTRM
A1: Staging Table for Tiered Rates
F3: TOCA | S3: Load Shaping MWh (If Slice/Block Customer then Load Shaping Billing Determinant is the average of the Monthly/Diurnal amounts in both years of the Rate Period) | BO3: Tier 1 Load | DK3: Demand MW | EJ3: Tier 2 Load Shaping | EL3: Load Shaping True Up
A4: BESID | B4: Preference Customer | C4: JOE | D4: Slice | E4: Slice/Block or Block | F4: TOCA | H4: Non-slice TOCA | J4: Slice % | L4: Applicable LDD | N4: PNGC LDD | P4: PNGC TOCA | R4: =CONCATENATE("IRD ",StartYr) -> IRD 2024 | S4: =DATE(StartYr-1, 10, 1) -> 2023-10-01 | T4: =+IF(T5="LLH",S4,EOMONTH(S4,0)+1) -> 2023-10-01 | U4: =+IF(U5="LLH",T4,EOMONTH(T4,0)+1) -> 2023-11-01 | V4: 2023-11-01 | W4: 2023-12-01 | X4: 2023-12-01 | Y4: 2024-01-01 | Z4: 2024-01-01 | AA4: 2024-02-01 | AB4: 2024-02-01 | AC4: 2024-03-01 | AD4: 2024-03-01 | AE4: 2024-04-01 | AF4: 2024-04-01 | AG4: 2024-05-01 | AH4: 2024-05-01 | AI4: 2024-06-01 | AJ4: 2024-06-01 | AK4: 2024-07-01 | AL4: 2024-07-01 | AM4: 2024-08-01 | AN4: 2024-08-01 | AO4: 2024-09-01 | AP4: 2024-09-01 | AQ4: 2024-10-01 | AR4: 2024-10-01 | AS4: 2024-11-01 | AT4: 2024-11-01 | AU4: 2024-12-01 | AV4: 2024-12-01 | AW4: 2025-01-01 | AX4: 2025-01-01 | AY4: 2025-02-01 | AZ4: 2025-02-01 | BA4: 2025-03-01 | BB4: 2025-03-01 | BC4: 2025-04-01 | BD4: 2025-04-01 | BE4: 2025-05-01 | BF4: 2025-05-01 | BG4: 2025-06-01 | BH4: 2025-06-01 | BI4: 2025-07-01 | BJ4: 2025-07-01 | BK4: 2025-08-01 | BL4: 2025-08-01 | BM4: 2025-09-01 | BN4: 2025-09-01 | BO4: =DATE(StartYr-1, 10, 1) -> 2023-10-01 | BP4: =+IF(BP5="LLH",BO4,EOMONTH(BO4,0)+1) -> 2023-10-01 | BQ4: 2023-11-01 | BR4: 2023-11-01 | BS4: 2023-12-01 | BT4: 2023-12-01 | BU4: 2024-01-01 | BV4: 2024-01-01 | BW4: 2024-02-01 | BX4: 2024-02-01 | BY4: 2024-03-01 | BZ4: 2024-03-01 | CA4: 2024-04-01 | CB4: 2024-04-01 | CC4: 2024-05-01 | CD4: 2024-05-01 | CE4: 2024-06-01 | CF4: 2024-06-01 | CG4: 2024-07-01 | CH4: 2024-07-01 | CI4: 2024-08-01 | CJ4: 2024-08-01 | CK4: 2024-09-01 | CL4: 2024-09-01 | CM4: 2024-10-01 | CN4: 2024-10-01 | CO4: 2024-11-01 | CP4: 2024-11-01 | CQ4: 2024-12-01 | CR4: 2024-12-01 | CS4: 2025-01-01 | CT4: 2025-01-01 | CU4: 2025-02-01 | CV4: 2025-02-01 | CW4: 2025-03-01 | CX4: 2025-03-01 | CY4: 2025-04-01 | CZ4: 2025-04-01 | DA4: 2025-05-01 | DB4: 2025-05-01 | DC4: 2025-06-01 | DD4: 2025-06-01 | DE4: 2025-07-01 | DF4: 2025-07-01 | DG4: 2025-08-01 | DH4: 2025-08-01 | DI4: 2025-09-01 | DJ4: 2025-09-01 | DK4: =+S4 -> 2023-10-01 | DL4: =+EOMONTH(DK4,0)+1 -> 2023-11-01 | DM4: =+EOMONTH(DL4,0)+1 -> 2023-12-01 | DN4: 2024-01-01 | DO4: 2024-02-01 | DP4: 2024-03-01 | DQ4: 2024-04-01 | DR4: 2024-05-01 | DS4: 2024-06-01 | DT4: 2024-07-01 | DU4: 2024-08-01 | DV4: 2024-09-01 | DW4: 2024-10-01 | DX4: 2024-11-01 | DY4: 2024-12-01 | DZ4: 2025-01-01 | EA4: 2025-02-01 | EB4: 2025-03-01 | EC4: 2025-04-01 | ED4: 2025-05-01 | EE4: 2025-06-01 | EF4: 2025-07-01 | EG4: 2025-08-01 | EH4: 2025-09-01 | EI4: RHWM | EJ4: T2 LS | EL4: TOCA Load | EN4: Annual T1 Load | EP4: Above RHWM Not Served with LS | ER4: Annual Deviation | ET4: Above Forecast | EV4: LSTU Credit | EX4: LSTU Charge | EZ4: Special Implimentation Provision | FB4: LSTU
R5: MWh | S5: HLH | T5: LLH | U5: HLH | V5: LLH | W5: HLH | X5: LLH | Y5: HLH | Z5: LLH | AA5: HLH | AB5: LLH | AC5: HLH | AD5: LLH | AE5: HLH | AF5: LLH | AG5: HLH | AH5: LLH | AI5: HLH | AJ5: LLH | AK5: HLH | AL5: LLH | AM5: HLH | AN5: LLH | AO5: HLH | AP5: LLH | AQ5: HLH | AR5: LLH | AS5: HLH | AT5: LLH | AU5: HLH | AV5: LLH | AW5: HLH | AX5: LLH | AY5: HLH | AZ5: LLH | BA5: HLH | BB5: LLH | BC5: HLH | BD5: LLH | BE5: HLH | BF5: LLH | BG5: HLH | BH5: LLH | BI5: HLH | BJ5: LLH | BK5: HLH | BL5: LLH | BM5: HLH | BN5: LLH | BO5: HLH | BP5: LLH | BQ5: HLH | BR5: LLH | BS5: HLH | BT5: LLH | BU5: HLH | BV5: LLH | BW5: HLH | BX5: LLH | BY5: HLH | BZ5: LLH | CA5: HLH | CB5: LLH | CC5: HLH | CD5: LLH | CE5: HLH | CF5: LLH | CG5: HLH | CH5: LLH | CI5: HLH | CJ5: LLH | CK5: HLH | CL5: LLH | CM5: HLH | CN5: LLH | CO5: HLH | CP5: LLH | CQ5: HLH | CR5: LLH | CS5: HLH | CT5: LLH | CU5: HLH | CV5: LLH | CW5: HLH | CX5: LLH | CY5: HLH | CZ5: LLH | DA5: HLH | DB5: LLH | DC5: HLH | DD5: LLH | DE5: HLH | DF5: LLH | DG5: HLH | DH5: LLH | DI5: HLH | DJ5: LLH | DK5: HLH | DL5: HLH | DM5: HLH | DN5: HLH | DO5: HLH | DP5: HLH | DQ5: HLH | DR5: HLH | DS5: HLH | DT5: HLH | DU5: HLH | DV5: HLH | DW5: HLH | DX5: HLH | DY5: HLH | DZ5: HLH | EA5: HLH | EB5: HLH | EC5: HLH | ED5: HLH | EE5: HLH | EF5: HLH | EG5: HLH | EH5: HLH | EI5: aMW | EJ5: MWh | EK5: MWh | EL5: MWh | EM5: MWh | EN5: MWh | EO5: MWh | EP5: MWh | EQ5: MWh | ER5: MWh | ES5: MWh | ET5: MWh | EU5: MWh | EV5: MWh | EW5: MWh | EX5: MWh | EY5: MWh | EZ5: MWh | FA5: MWh | FB5: MWh | FC5: MWh
F6: =+SUM(F8:F142)-SUM(P8:P142) -> 0.95548 | G6: =+SUM(G8:G142)-SUM(Q8:Q142) -> 0.9593402 | H6: =+SUM(H8:H142)-SUM(P8:P142) -> 0.95548 | I6: =+SUM(I8:I142)-SUM(Q8:Q142) -> 0.9593402 | J6: =+SUM(J8:J142) -> 0 | K6: =+SUM(K8:K142) -> 0 | S6: =+IF(S5="HLH","Block HLH Load Shaping","Block LLH Load Shaping") -> Block HLH Load Shaping | T6: =+IF(T5="HLH","Block HLH Load Shaping","Block LLH Load Shaping") -> Block LLH Load Shaping | U6: Block HLH Load Shaping | V6: Block LLH Load Shaping | W6: Block HLH Load Shaping | X6: Block LLH Load Shaping | Y6: Block HLH Load Shaping | Z6: Block LLH Load Shaping | AA6: Block HLH Load Shaping | AB6: Block LLH Load Shaping | AC6: Block HLH Load Shaping | AD6: Block LLH Load Shaping | AE6: Block HLH Load Shaping | AF6: Block LLH Load Shaping | AG6: Block HLH Load Shaping | AH6: Block LLH Load Shaping | AI6: Block HLH Load Shaping | AJ6: Block LLH Load Shaping | AK6: Block HLH Load Shaping | AL6: Block LLH Load Shaping | AM6: Block HLH Load Shaping | AN6: Block LLH Load Shaping | AO6: Block HLH Load Shaping | AP6: Block LLH Load Shaping | AQ6: Block HLH Load Shaping | AR6: Block LLH Load Shaping | AS6: Block HLH Load Shaping | AT6: Block LLH Load Shaping | AU6: Block HLH Load Shaping | AV6: Block LLH Load Shaping | AW6: Block HLH Load Shaping | AX6: Block LLH Load Shaping | AY6: Block HLH Load Shaping | AZ6: Block LLH Load Shaping | BA6: Block HLH Load Shaping | BB6: Block LLH Load Shaping | BC6: Block HLH Load Shaping | BD6: Block LLH Load Shaping | BE6: Block HLH Load Shaping | BF6: Block LLH Load Shaping | BG6: Block HLH Load Shaping | BH6: Block LLH Load Shaping | BI6: Block HLH Load Shaping | BJ6: Block LLH Load Shaping | BK6: Block HLH Load Shaping | BL6: Block LLH Load Shaping | BM6: Block HLH Load Shaping | BN6: Block LLH Load Shaping | BO6: =+IF(BO5="HLH","Block HLH Tier 1","Block LLH Tier 1") -> Block HLH Tier 1 | BP6: =+IF(BP5="HLH","Block HLH Tier 1","Block LLH Tier 1") -> Block LLH Tier 1 | BQ6: Block HLH Tier 1 | BR6: Block LLH Tier 1 | BS6: Block HLH Tier 1 | BT6: Block LLH Tier 1 | BU6: Block HLH Tier 1 | BV6: Block LLH Tier 1 | BW6: Block HLH Tier 1 | BX6: Block LLH Tier 1 | BY6: Block HLH Tier 1 | BZ6: Block LLH Tier 1 | CA6: Block HLH Tier 1 | CB6: Block LLH Tier 1 | CC6: Block HLH Tier 1 | CD6: Block LLH Tier 1 | CE6: Block HLH Tier 1 | CF6: Block LLH Tier 1 | CG6: Block HLH Tier 1 | CH6: Block LLH Tier 1 | CI6: Block HLH Tier 1 | CJ6: Block LLH Tier 1 | CK6: Block HLH Tier 1 | CL6: Block LLH Tier 1 | CM6: Block HLH Tier 1 | CN6: Block LLH Tier 1 | CO6: Block HLH Tier 1 | CP6: Block LLH Tier 1 | CQ6: Block HLH Tier 1 | CR6: Block LLH Tier 1 | CS6: Block HLH Tier 1 | CT6: Block LLH Tier 1 | CU6: Block HLH Tier 1 | CV6: Block LLH Tier 1 | CW6: Block HLH Tier 1 | CX6: Block LLH Tier 1 | CY6: Block HLH Tier 1 | CZ6: Block LLH Tier 1 | DA6: Block HLH Tier 1 | DB6: Block LLH Tier 1 | DC6: Block HLH Tier 1 | DD6: Block LLH Tier 1 | DE6: Block HLH Tier 1 | DF6: Block LLH Tier 1 | DG6: Block HLH Tier 1 | DH6: Block LLH Tier 1 | DI6: Block HLH Tier 1 | DJ6: Block LLH Tier 1
F7: TOCA_YR1 | G7: TOCA_YR2 | H7: NSTOCA_YR1 | I7: NSTOCA_YR2 | J7: Slice_YR1 | K7: Slice_YR2 | L7: LDD_YR1 | M7: LDD_YR2 | R7: =+Init!$B$3 -> 2024 | S7: =+IF(S5="HLH","LF HLH Load Shaping","LF LLH Load Shaping") -> LF HLH Load Shaping | T7: =+IF(T5="HLH","LF HLH Load Shaping","LF LLH Load Shaping") -> LF LLH Load Shaping | U7: LF HLH Load Shaping | V7: LF LLH Load Shaping | W7: LF HLH Load Shaping | X7: LF LLH Load Shaping | Y7: LF HLH Load Shaping | Z7: LF LLH Load Shaping | AA7: LF HLH Load Shaping | AB7: LF LLH Load Shaping | AC7: LF HLH Load Shaping | AD7: LF LLH Load Shaping | AE7: LF HLH Load Shaping | AF7: LF LLH Load Shaping | AG7: LF HLH Load Shaping | AH7: LF LLH Load Shaping | AI7: LF HLH Load Shaping | AJ7: LF LLH Load Shaping | AK7: LF HLH Load Shaping | AL7: LF LLH Load Shaping | AM7: LF HLH Load Shaping | AN7: LF LLH Load Shaping | AO7: LF HLH Load Shaping | AP7: LF LLH Load Shaping | AQ7: LF HLH Load Shaping | AR7: LF LLH Load Shaping | AS7: LF HLH Load Shaping | AT7: LF LLH Load Shaping | AU7: LF HLH Load Shaping | AV7: LF LLH Load Shaping | AW7: LF HLH Load Shaping | AX7: LF LLH Load Shaping | AY7: LF HLH Load Shaping | AZ7: LF LLH Load Shaping | BA7: LF HLH Load Shaping | BB7: LF LLH Load Shaping | BC7: LF HLH Load Shaping | BD7: LF LLH Load Shaping | BE7: LF HLH Load Shaping | BF7: LF LLH Load Shaping | BG7: LF HLH Load Shaping | BH7: LF LLH Load Shaping | BI7: LF HLH Load Shaping | BJ7: LF LLH Load Shaping | BK7: LF HLH Load Shaping | BL7: LF LLH Load Shaping | BM7: LF HLH Load Shaping | BN7: LF LLH Load Shaping | BO7: =+IF(BO5="HLH","Tier 1 HLH","Tier 1 LLH") -> Tier 1 HLH | BP7: =+IF(BP5="HLH","Tier 1 HLH","Tier 1 LLH") -> Tier 1 LLH | BQ7: Tier 1 HLH | BR7: Tier 1 LLH | BS7: Tier 1 HLH | BT7: Tier 1 LLH | BU7: Tier 1 HLH | BV7: Tier 1 LLH | BW7: Tier 1 HLH | BX7: Tier 1 LLH | BY7: Tier 1 HLH | BZ7: Tier 1 LLH | CA7: Tier 1 HLH | CB7: Tier 1 LLH | CC7: Tier 1 HLH | CD7: Tier 1 LLH | CE7: Tier 1 HLH | CF7: Tier 1 LLH | CG7: Tier 1 HLH | CH7: Tier 1 LLH | CI7: Tier 1 HLH | CJ7: Tier 1 LLH | CK7: Tier 1 HLH | CL7: Tier 1 LLH | CM7: Tier 1 HLH | CN7: Tier 1 LLH | CO7: Tier 1 HLH | CP7: Tier 1 LLH | CQ7: Tier 1 HLH | CR7: Tier 1 LLH | CS7: Tier 1 HLH | CT7: Tier 1 LLH | CU7: Tier 1 HLH | CV7: Tier 1 LLH | CW7: Tier 1 HLH | CX7: Tier 1 LLH | CY7: Tier 1 HLH | CZ7: Tier 1 LLH | DA7: Tier 1 HLH | DB7: Tier 1 LLH | DC7: Tier 1 HLH | DD7: Tier 1 LLH | DE7: Tier 1 HLH | DF7: Tier 1 LLH | DG7: Tier 1 HLH | DH7: Tier 1 LLH | DI7: Tier 1 HLH | DJ7: Tier 1 LLH | EI7: ="RHWM "&StartYr -> RHWM 2024 | EL7: =StartYr -> 2024 | EM7: =+EL7+1 -> 2025 | EN7: =StartYr -> 2024 | EP7: =StartYr -> 2024 | EQ7: =+EP7+1 -> 2025 | ER7: =+EP7 -> 2024 | ES7: =+EQ7 -> 2025
A8: 10005 | B8: Alder Mutual | C8: =IF(ModelMode="Actuals",VLOOKUP($A8,Init!$V:$AA,4,FALSE),IF(A8=10298,1,0)) -> 0 | D8: =VLOOKUP($A8, Init!$V:$AA,3,FALSE) -> 0 | E8: =IF(ModelMode="Actuals",VLOOKUP(A8,Init!V:X,3,FALSE),0) -> 0 | F8: =IF(ModelMode="Actuals",VLOOKUP($A8,TOCA_Actuals!$B:$L,MATCH(F$7,TOCA_Actuals!$B$1:$Q$1,0),FALSE),VLOOKUP($A8,TRMbdForecast_TOCA!$B:$ZZ,MATCH("TOCA "&StartYr,TRMbdForecast_TOCA!$B$3:$ZZ$3,0)+IF(RIGHT(F$7,3)="YR1",0,1),FALSE)) -> 7.76e-05 | G8: =IF(ModelMode="Actuals",VLOOKUP($A8,TOCA_Actuals!$B:$L,MATCH(G$7,TOCA_Actuals!$B$1:$Q$1,0),FALSE),VLOOKUP($A8,TRMbdForecast_TOCA!$B:$ZZ,MATCH("TOCA "&StartYr,TRMbdForecast_TOCA!$B$3:$ZZ$3,0)+IF(RIGHT(G$7,3)="YR1",0,1),FALSE)) -> 7.76e-05 | H8: =IF(ModelMode="Actuals",VLOOKUP($A8,TOCA_Actuals!$B:$L,MATCH(H$7,TOCA_Actuals!$B$1:$Q$1,0),FALSE),VLOOKUP($A8,TRMbdForecast_TOCA!$B:$ZZ,MATCH("Non-Slice TOCA "&Init!$B$3,TRMbdForecast_TOCA!$B$3:$ZZ$3,0)+IF(RIGHT(H$7,3)="YR1",0,1),FALSE)) -> 7.76e-05 | I8: =IF(ModelMode="Actuals",VLOOKUP($A8,TOCA_Actuals!$B:$L,MATCH(I$7,TOCA_Actuals!$B$1:$Q$1,0),FALSE),VLOOKUP($A8,TRMbdForecast_TOCA!$B:$ZZ,MATCH("Non-Slice TOCA "&Init!$B$3,TRMbdForecast_TOCA!$B$3:$ZZ$3,0)+IF(RIGHT(I$7,3)="YR1",0,1),FALSE)) -> 7.76e-05 | J8: =IF(ModelMode="Actuals",VLOOKUP($A8,TOCA_Actuals!$B:$L,MATCH(J$7,TOCA_Actuals!$B$1:$Q$1,0),FALSE),VLOOKUP($A8,TRMbdForecast_TOCA!$B:$ZZ,MATCH("Slice% "&StartYr,TRMbdForecast_TOCA!$B$3:$ZZ$3,0),FALSE)) -> 0 | K8: =IF(ModelMode="Actuals",VLOOKUP($A8,TOCA_Actuals!$B:$L,MATCH(K$7,TOCA_Actuals!$B$1:$Q$1,0),FALSE),VLOOKUP($A8,TRMbdForecast_TOCA!$B:$ZZ,MATCH("Slice% "&StartYr,TRMbdForecast_TOCA!$B$3:$ZZ$3,0),FALSE)) -> 0 | L8: =IF($A8=10298,SUMPRODUCT(N7:N$8,$C7:$C$8)/SUM($C7:$C$8),IF(ModelMode="Actuals",VLOOKUP($A8,INDIRECT(L$7&"!"&"$A:$J"),MATCH(LDD_YR1!$J$5,LDD_YR1!$A$5:$J$5,0),FALSE),VLOOKUP($A8,TRMbdForecast_TOCA!$B:$ZZ,MATCH("Applicable LDD "&Init!$B$3,TRMbdForecast_TOCA!$B$3:$ZZ$3,0)+IF(RIGHT(L$7,3)="YR1",0,1),FALSE))) -> 0.01861313869 | M8: =IF($A8=10298,SUMPRODUCT(O7:O$8,$C7:$C$8)/SUM($C7:$C$8),IF(ModelMode="Actuals",VLOOKUP($A8,INDIRECT(M$7&"!"&"$A:$J"),MATCH(LDD_YR1!$J$5,LDD_YR1!$A$5:$J$5,0),FALSE),VLOOKUP($A8,TRMbdForecast_TOCA!$B:$ZZ,MATCH("Applicable LDD "&Init!$B$3,TRMbdForecast_TOCA!$B$3:$ZZ$3,0)+IF(RIGHT(M$7,3)="YR1",0,1),FALSE))) -> 0.01885948905 | N8: =+$C8*L8 -> 0 | O8: =+$C8*M8 -> 0 | P8: =+$C8*F8 -> 0 | Q8: =+$C8*G8 -> 0 | R8: =+VLOOKUP($A8,IRD!$A:$ZZ,MATCH(R$7,IRD!$1:$1,0),FALSE) -> 0 | S8: =IF($C8=1,0,IF(AND(ModelMode="Actuals",$E8=1),VLOOKUP($A8&S$4,BillingActuals_Energy!$A:$V,MATCH(S$6,BillingActuals_Energy!$A$8:$V$8,0),FALSE)/1000,IF(AND(ModelMode="Actuals",$E8=0),VLOOKUP($A8&S$4,BillingActuals_Energy!$A:$V,MATCH(S$7,BillingActuals_Energy!$A$8:$V$8,0),FALSE)/1000,VLOOKUP($A8,TRMbdForecast_LoadShp!$B:$ZZ,MATCH(S$4,TRMbdForecast_LoadShp!$B$2:$ZZ$2,0)+IF(S$5="HLH",0,1),FALSE)))) -> 87.87234281 | T8: =IF($C8=1,0,IF(AND(ModelMode="Actuals",$E8=1),VLOOKUP($A8&T$4,BillingActuals_Energy!$A:$V,MATCH(T$6,BillingActuals_Energy!$A$8:$V$8,0),FALSE)/1000,IF(AND(ModelMode="Actuals",$E8=0),VLOOKUP($A8&T$4,BillingActuals_Energy!$A:$V,MATCH(T$7,BillingActuals_Energy!$A$8:$V$8,0),FALSE)/1000,VLOOKUP($A8,TRMbdForecast_LoadShp!$B:$ZZ,MATCH(T$4,TRMbdForecast_LoadShp!$B$2:$ZZ$2,0)+IF(T$5="HLH",0,1),FALSE)))) -> 80.1654853 | U8: =IF($C8=1,0,IF(AND(ModelMode="Actuals",$E8=1),VLOOKUP($A8&U$4,BillingActuals_Energy!$A:$V,MATCH(U$6,BillingActuals_Energy!$A$8:$V$8,0),FALSE)/1000,IF(AND(ModelMode="Actuals",$E8=0),VLOOKUP($A8&U$4,BillingActuals_Energy!$A:$V,MATCH(U$7,BillingActuals_Energy!$A$8:$V$8,0),FALSE)/1000,VLOOKUP($A8,TRMbdForecast_LoadShp!$B:$ZZ,MATCH(U$4,TRMbdForecast_LoadShp!$B$2:$ZZ$2,0)+IF(U$5="HLH",0,1),FALSE)))) -> 68.80378335 | V8: =IF($C8=1,0,IF(AND(ModelMode="Actuals",$E8=1),VLOOKUP($A8&V$4,BillingActuals_Energy!$A:$V,MATCH(V$6,BillingActuals_Energy!$A$8:$V$8,0),FALSE)/1000,IF(AND(ModelMode="Actuals",$E8=0),VLOOKUP($A8&V$4,BillingActuals_Energy!$A:$V,MATCH(V$7,BillingActuals_Energy!$A$8:$V$8,0),FALSE)/1000,VLOOKUP($A8,TRMbdForecast_LoadShp!$B:$ZZ,MATCH(V$4,TRMbdForecast_LoadShp!$B$2:$ZZ$2,0)+IF(V$5="HLH",0,1),FALSE)))) -> 72.55581823 | W8: =IF($C8=1,0,IF(AND(ModelMode="Actuals",$E8=1),VLOOKUP($A8&W$4,BillingActuals_Energy!$A:$V,MATCH(W$6,BillingActuals_Energy!$A$8:$V$8,0),FALSE)/1000,IF(AND(ModelMode="Actuals",$E8=0),VLOOKUP($A8&W$4,BillingActuals_Energy!$A:$V,MATCH(W$7,BillingActuals_Energy!$A$8:$V$8,0),FALSE)/1000,VLOOKUP($A8,TRMbdForecast_LoadShp!$B:$ZZ,MATCH(W$4,TRMbdForecast_LoadShp!$B$2:$ZZ$2,0)+IF(W$5="HLH",0,1),FALSE)))) -> 120.8233067 | X8: =IF($C8=1,0,IF(AND(ModelMode="Actuals",$E8=1),VLOOKUP($A8&X$4,BillingActuals_Energy!$A:$V,MATCH(X$6,BillingActuals_Energy!$A$8:$V$8,0),FALSE)/1000,IF(AND(ModelMode="Actuals",$E8=0),VLOOKUP($A8&X$4,BillingActuals_Energy!$A:$V,MATCH(X$7,BillingActuals_Energy!$A$8:$V$8,0),FALSE)/1000,VLOOKUP($A8,TRMbdForecast_LoadShp!$B:$ZZ,MATCH(X$4,TRMbdForecast_LoadShp!$B$2:$ZZ$2,0)+IF(X$5="HLH",0,1),FALSE)))) -> 133.4328892 | Y8: =IF($C8=1,0,IF(AND(ModelMode="Actuals",$E8=1),VLOOKUP($A8&Y$4,BillingActuals_Energy!$A:$V,MATCH(Y$6,BillingActuals_Energy!$A$8:$V$8,0),FALSE)/1000,IF(AND(ModelMode="Actuals",$E8=0),VLOOKUP($A8&Y$4,BillingActuals_Energy!$A:$V,MATCH(Y$7,BillingActuals_Energy!$A$8:$V$8,0),FALSE)/1000,VLOOKUP($A8,TRMbdForecast_LoadShp!$B:$ZZ,MATCH(Y$4,TRMbdForecast_LoadShp!$B$2:$ZZ$2,0)+IF(Y$5="HLH",0,1),FALSE)))) -> 138.0583229 | Z8: =IF($C8=1,0,IF(AND(ModelMode="Actuals",$E8=1),VLOOKUP($A8&Z$4,BillingActuals_Energy!$A:$V,MATCH(Z$6,BillingActuals_Energy!$A$8:$V$8,0),FALSE)/1000,IF(AND(ModelMode="Actuals",$E8=0),VLOOKUP($A8&Z$4,BillingActuals_Energy!$A:$V,MATCH(Z$7,BillingActuals_Energy!$A$8:$V$8,0),FALSE)/1000,VLOOKUP($A8,TRMbdForecast_LoadShp!$B:$ZZ,MATCH(Z$4,TRMbdForecast_LoadShp!$B$2:$ZZ$2,0)+IF(Z$5="HLH",0,1),FALSE)))) -> 130.8994889 | AA8: =IF($C8=1,0,IF(AND(ModelMode="Actuals",$E8=1),VLOOKUP($A8&AA$4,BillingActuals_Energy!$A:$V,MATCH(AA$6,BillingActuals_Energy!$A$8:$V$8,0),FALSE)/1000,IF(AND(ModelMode="Actuals",$E8=0),VLOOKUP($A8&AA$4,BillingActuals_Energy!$A:$V,MATCH(AA$7,BillingActuals_Energy!$A$8:$V$8,0),FALSE)/1000,VLOOKUP($A8,TRMbdForecast_LoadShp!$B:$ZZ,MATCH(AA$4,TRMbdForecast_LoadShp!$B$2:$ZZ$2,0)+IF(AA$5="HLH",0,1),FALSE)))) -> 94.73631979 | AB8: =IF($C8=1,0,IF(AND(ModelMode="Actuals",$E8=1),VLOOKUP($A8&AB$4,BillingActuals_Energy!$A:$V,MATCH(AB$6,BillingActuals_Energy!$A$8:$V$8,0),FALSE)/1000,IF(AND(ModelMode="Actuals",$E8=0),VLOOKUP($A8&AB$4,BillingActuals_Energy!$A:$V,MATCH(AB$7,BillingActuals_Energy!$A$8:$V$8,0),FALSE)/1000,VLOOKUP($A8,TRMbdForecast_LoadShp!$B:$ZZ,MATCH(AB$4,TRMbdForecast_LoadShp!$B$2:$ZZ$2,0)+IF(AB$5="HLH",0,1),FALSE)))) -> 97.18260798 | AC8: =IF($C8=1,0,IF(AND(ModelMode="Actuals",$E8=1),VLOOKUP($A8&AC$4,BillingActuals_Energy!$A:$V,MATCH(AC$6,BillingActuals_Energy!$A$8:$V$8,0),FALSE)/1000,IF(AND(ModelMode="Actuals",$E8=0),VLOOKUP($A8&AC$4,BillingActuals_Energy!$A:$V,MATCH(AC$7,BillingActuals_Energy!$A$8:$V$8,0),FALSE)/1000,VLOOKUP($A8,TRMbdForecast_LoadShp!$B:$ZZ,MATCH(AC$4,TRMbdForecast_LoadShp!$B$2:$ZZ$2,0)+IF(AC$5="HLH",0,1),FALSE)))) -> 67.32727683 | AD8: =IF($C8=1,0,IF(AND(ModelMode="Actuals",$E8=1),VLOOKUP($A8&AD$4,BillingActuals_Energy!$A:$V,MATCH(AD$6,BillingActuals_Energy!$A$8:$V$8,0),FALSE)/1000,IF(AND(ModelMode="Actuals",$E8=0),VLOOKUP($A8&AD$4,BillingActuals_Energy!$A:$V,MATCH(AD$7,BillingActuals_Energy!$A$8:$V$8,0),FALSE)/1000,VLOOKUP($A8,TRMbdForecast_LoadShp!$B:$ZZ,MATCH(AD$4,TRMbdForecast_LoadShp!$B$2:$ZZ$2,0)+IF(AD$5="HLH",0,1),FALSE)))) -> 84.50867003 | AE8: =IF($C8=1,0,IF(AND(ModelMode="Actuals",$E8=1),VLOOKUP($A8&AE$4,BillingActuals_Energy!$A:$V,MATCH(AE$6,BillingActuals_Energy!$A$8:$V$8,0),FALSE)/1000,IF(AND(ModelMode="Actuals",$E8=0),VLOOKUP($A8&AE$4,BillingActuals_Energy!$A:$V,MATCH(AE$7,BillingActuals_Energy!$A$8:$V$8,0),FALSE)/1000,VLOOKUP($A8,TRMbdForecast_LoadShp!$B:$ZZ,MATCH(AE$4,TRMbdForecast_LoadShp!$B$2:$ZZ$2,0)+IF(AE$5="HLH",0,1),FALSE)))) -> 92.58615647 | AF8: =IF($C8=1,0,IF(AND(ModelMode="Actuals",$E8=1),VLOOKUP($A8&AF$4,BillingActuals_Energy!$A:$V,MATCH(AF$6,BillingActuals_Energy!$A$8:$V$8,0),FALSE)/1000,IF(AND(ModelMode="Actuals",$E8=0),VLOOKUP($A8&AF$4,BillingActuals_Energy!$A:$V,MATCH(AF$7,BillingActuals_Energy!$A$8:$V$8,0),FALSE)/1000,VLOOKUP($A8,TRMbdForecast_LoadShp!$B:$ZZ,MATCH(AF$4,TRMbdForecast_LoadShp!$B$2:$ZZ$2,0)+IF(AF$5="HLH",0,1),FALSE)))) -> 76.79443537 | AG8: =IF($C8=1,0,IF(AND(ModelMode="Actuals",$E8=1),VLOOKUP($A8&AG$4,BillingActuals_Energy!$A:$V,MATCH(AG$6,BillingActuals_Energy!$A$8:$V$8,0),FALSE)/1000,IF(AND(ModelMode="Actuals",$E8=0),VLOOKUP($A8&AG$4,BillingActuals_Energy!$A:$V,MATCH(AG$7,BillingActuals_Energy!$A$8:$V$8,0),FALSE)/1000,VLOOKUP($A8,TRMbdForecast_LoadShp!$B:$ZZ,MATCH(AG$4,TRMbdForecast_LoadShp!$B$2:$ZZ$2,0)+IF(AG$5="HLH",0,1),FALSE)))) -> -39.2419874 | AH8: =IF($C8=1,0,IF(AND(ModelMode="Actuals",$E8=1),VLOOKUP($A8&AH$4,BillingActuals_Energy!$A:$V,MATCH(AH$6,BillingActuals_Energy!$A$8:$V$8,0),FALSE)/1000,IF(AND(ModelMode="Actuals",$E8=0),VLOOKUP($A8&AH$4,BillingActuals_Energy!$A:$V,MATCH(AH$7,BillingActuals_Energy!$A$8:$V$8,0),FALSE)/1000,VLOOKUP($A8,TRMbdForecast_LoadShp!$B:$ZZ,MATCH(AH$4,TRMbdForecast_LoadShp!$B$2:$ZZ$2,0)+IF(AH$5="HLH",0,1),FALSE)))) -> -8.6215667 | AI8: =IF($C8=1,0,IF(AND(ModelMode="Actuals",$E8=1),VLOOKUP($A8&AI$4,BillingActuals_Energy!$A:$V,MATCH(AI$6,BillingActuals_Energy!$A$8:$V$8,0),FALSE)/1000,IF(AND(ModelMode="Actuals",$E8=0),VLOOKUP($A8&AI$4,BillingActuals_Energy!$A:$V,MATCH(AI$7,BillingActuals_Energy!$A$8:$V$8,0),FALSE)/1000,VLOOKUP($A8,TRMbdForecast_LoadShp!$B:$ZZ,MATCH(AI$4,TRMbdForecast_LoadShp!$B$2:$ZZ$2,0)+IF(AI$5="HLH",0,1),FALSE)))) -> -66.36961506 | AJ8: =IF($C8=1,0,IF(AND(ModelMode="Actuals",$E8=1),VLOOKUP($A8&AJ$4,BillingActuals_Energy!$A:$V,MATCH(AJ$6,BillingActuals_Energy!$A$8:$V$8,0),FALSE)/1000,IF(AND(ModelMode="Actuals",$E8=0),VLOOKUP($A8&AJ$4,BillingActuals_Energy!$A:$V,MATCH(AJ$7,BillingActuals_Energy!$A$8:$V$8,0),FALSE)/1000,VLOOKUP($A8,TRMbdForecast_LoadShp!$B:$ZZ,MATCH(AJ$4,TRMbdForecast_LoadShp!$B$2:$ZZ$2,0)+IF(AJ$5="HLH",0,1),FALSE)))) -> -10.59674423 | AK8: =IF($C8=1,0,IF(AND(ModelMode="Actuals",$E8=1),VLOOKUP($A8&AK$4,BillingActuals_Energy!$A:$V,MATCH(AK$6,BillingActuals_Energy!$A$8:$V$8,0),FALSE)/1000,IF(AND(ModelMode="Actuals",$E8=0),VLOOKUP($A8&AK$4,BillingActuals_Energy!$A:$V,MATCH(AK$7,BillingActuals_Energy!$A$8:$V$8,0),FALSE)/1000,VLOOKUP($A8,TRMbdForecast_LoadShp!$B:$ZZ,MATCH(AK$4,TRMbdForecast_LoadShp!$B$2:$ZZ$2,0)+IF(AK$5="HLH",0,1),FALSE)))) -> -34.72566489 | AL8: =IF($C8=1,0,IF(AND(ModelMode="Actuals",$E8=1),VLOOKUP($A8&AL$4,BillingActuals_Energy!$A:$V,MATCH(AL$6,BillingActuals_Energy!$A$8:$V$8,0),FALSE)/1000,IF(AND(ModelMode="Actuals",$E8=0),VLOOKUP($A8&AL$4,BillingActuals_Energy!$A:$V,MATCH(AL$7,BillingActuals_Energy!$A$8:$V$8,0),FALSE)/1000,VLOOKUP($A8,TRMbdForecast_LoadShp!$B:$ZZ,MATCH(AL$4,TRMbdForecast_LoadShp!$B$2:$ZZ$2,0)+IF(AL$5="HLH",0,1),FALSE)))) -> -7.938475894 | AM8: =IF($C8=1,0,IF(AND(ModelMode="Actuals",$E8=1),VLOOKUP($A8&AM$4,BillingActuals_Energy!$A:$V,MATCH(AM$6,BillingActuals_Energy!$A$8:$V$8,0),FALSE)/1000,IF(AND(ModelMode="Actuals",$E8=0),VLOOKUP($A8&AM$4,BillingActuals_Energy!$A:$V,MATCH(AM$7,BillingActuals_Energy!$A$8:$V$8,0),FALSE)/1000,VLOOKUP($A8,TRMbdForecast_LoadShp!$B:$ZZ,MATCH(AM$4,TRMbdForecast_LoadShp!$B$2:$ZZ$2,0)+IF(AM$5="HLH",0,1),FALSE)))) -> -19.92431731 | AN8: =IF($C8=1,0,IF(AND(ModelMode="Actuals",$E8=1),VLOOKUP($A8&AN$4,BillingActuals_Energy!$A:$V,MATCH(AN$6,BillingActuals_Energy!$A$8:$V$8,0),FALSE)/1000,IF(AND(ModelMode="Actuals",$E8=0),VLOOKUP($A8&AN$4,BillingActuals_Energy!$A:$V,MATCH(AN$7,BillingActuals_Energy!$A$8:$V$8,0),FALSE)/1000,VLOOKUP($A8,TRMbdForecast_LoadShp!$B:$ZZ,MATCH(AN$4,TRMbdForecast_LoadShp!$B$2:$ZZ$2,0)+IF(AN$5="HLH",0,1),FALSE)))) -> -7.990674996 | AO8: =IF($C8=1,0,IF(AND(ModelMode="Actuals",$E8=1),VLOOKUP($A8&AO$4,BillingActuals_Energy!$A:$V,MATCH(AO$6,BillingActuals_Energy!$A$8:$V$8,0),FALSE)/1000,IF(AND(ModelMode="Actuals",$E8=0),VLOOKUP($A8&AO$4,BillingActuals_Energy!$A:$V,MATCH(AO$7,BillingActuals_Energy!$A$8:$V$8,0),FALSE)/1000,VLOOKUP($A8,TRMbdForecast_LoadShp!$B:$ZZ,MATCH(AO$4,TRMbdForecast_LoadShp!$B$2:$ZZ$2,0)+IF(AO$5="HLH",0,1),FALSE)))) -> -6.473210062 | AP8: =IF($C8=1,0,IF(AND(ModelMode="Actuals",$E8=1),VLOOKUP($A8&AP$4,BillingActuals_Energy!$A:$V,MATCH(AP$6,BillingActuals_Energy!$A$8:$V$8,0),FALSE)/1000,IF(AND(ModelMode="Actuals",$E8=0),VLOOKUP($A8&AP$4,BillingActuals_Energy!$A:$V,MATCH(AP$7,BillingActuals_Energy!$A$8:$V$8,0),FALSE)/1000,VLOOKUP($A8,TRMbdForecast_LoadShp!$B:$ZZ,MATCH(AP$4,TRMbdForecast_LoadShp!$B$2:$ZZ$2,0)+IF(AP$5="HLH",0,1),FALSE)))) -> 17.52355753 | AQ8: =IF($C8=1,0,IF(AND(ModelMode="Actuals",$E8=1),VLOOKUP($A8&AQ$4,BillingActuals_Energy!$A:$V,MATCH(AQ$6,BillingActuals_Energy!$A$8:$V$8,0),FALSE)/1000,IF(AND(ModelMode="Actuals",$E8=0),VLOOKUP($A8&AQ$4,BillingActuals_Energy!$A:$V,MATCH(AQ$7,BillingActuals_Energy!$A$8:$V$8,0),FALSE)/1000,VLOOKUP($A8,TRMbdForecast_LoadShp!$B:$ZZ,MATCH(AQ$4,TRMbdForecast_LoadShp!$B$2:$ZZ$2,0)+IF(AQ$5="HLH",0,1),FALSE)))) -> 104.7263428 | AR8: =IF($C8=1,0,IF(AND(ModelMode="Actuals",$E8=1),VLOOKUP($A8&AR$4,BillingActuals_Energy!$A:$V,MATCH(AR$6,BillingActuals_Energy!$A$8:$V$8,0),FALSE)/1000,IF(AND(ModelMode="Actuals",$E8=0),VLOOKUP($A8&AR$4,BillingActuals_Energy!$A:$V,MATCH(AR$7,BillingActuals_Energy!$A$8:$V$8,0),FALSE)/1000,VLOOKUP($A8,TRMbdForecast_LoadShp!$B:$ZZ,MATCH(AR$4,TRMbdForecast_LoadShp!$B$2:$ZZ$2,0)+IF(AR$5="HLH",0,1),FALSE)))) -> 70.4224853 | AS8: =IF($C8=1,0,IF(AND(ModelMode="Actuals",$E8=1),VLOOKUP($A8&AS$4,BillingActuals_Energy!$A:$V,MATCH(AS$6,BillingActuals_Energy!$A$8:$V$8,0),FALSE)/1000,IF(AND(ModelMode="Actuals",$E8=0),VLOOKUP($A8&AS$4,BillingActuals_Energy!$A:$V,MATCH(AS$7,BillingActuals_Energy!$A$8:$V$8,0),FALSE)/1000,VLOOKUP($A8,TRMbdForecast_LoadShp!$B:$ZZ,MATCH(AS$4,TRMbdForecast_LoadShp!$B$2:$ZZ$2,0)+IF(AS$5="HLH",0,1),FALSE)))) -> 72.38578335 | AT8: =IF($C8=1,0,IF(AND(ModelMode="Actuals",$E8=1),VLOOKUP($A8&AT$4,BillingActuals_Energy!$A:$V,MATCH(AT$6,BillingActuals_Energy!$A$8:$V$8,0),FALSE)/1000,IF(AND(ModelMode="Actuals",$E8=0),VLOOKUP($A8&AT$4,BillingActuals_Energy!$A:$V,MATCH(AT$7,BillingActuals_Energy!$A$8:$V$8,0),FALSE)/1000,VLOOKUP($A8,TRMbdForecast_LoadShp!$B:$ZZ,MATCH(AT$4,TRMbdForecast_LoadShp!$B$2:$ZZ$2,0)+IF(AT$5="HLH",0,1),FALSE)))) -> 75.18881823 | AU8: =IF($C8=1,0,IF(AND(ModelMode="Actuals",$E8=1),VLOOKUP($A8&AU$4,BillingActuals_Energy!$A:$V,MATCH(AU$6,BillingActuals_Energy!$A$8:$V$8,0),FALSE)/1000,IF(AND(ModelMode="Actuals",$E8=0),VLOOKUP($A8&AU$4,BillingActuals_Energy!$A:$V,MATCH(AU$7,BillingActuals_Energy!$A$8:$V$8,0),FALSE)/1000,VLOOKUP($A8,TRMbdForecast_LoadShp!$B:$ZZ,MATCH(AU$4,TRMbdForecast_LoadShp!$B$2:$ZZ$2,0)+IF(AU$5="HLH",0,1),FALSE)))) -> 123.7973067 | AV8: =IF($C8=1,0,IF(AND(ModelMode="Actuals",$E8=1),VLOOKUP($A8&AV$4,BillingActuals_Energy!$A:$V,MATCH(AV$6,BillingActuals_Energy!$A$8:$V$8,0),FALSE)/1000,IF(AND(ModelMode="Actuals",$E8=0),VLOOKUP($A8&AV$4,BillingActuals_Energy!$A:$V,MATCH(AV$7,BillingActuals_Energy!$A$8:$V$8,0),FALSE)/1000,VLOOKUP($A8,TRMbdForecast_LoadShp!$B:$ZZ,MATCH(AV$4,TRMbdForecast_LoadShp!$B$2:$ZZ$2,0)+IF(AV$5="HLH",0,1),FALSE)))) -> 135.7788892 | AW8: =IF($C8=1,0,IF(AND(ModelMode="Actuals",$E8=1),VLOOKUP($A8&AW$4,BillingActuals_Energy!$A:$V,MATCH(AW$6,BillingActuals_Energy!$A$8:$V$8,0),FALSE)/1000,IF(AND(ModelMode="Actuals",$E8=0),VLOOKUP($A8&AW$4,BillingActuals_Energy!$A:$V,MATCH(AW$7,BillingActuals_Energy!$A$8:$V$8,0),FALSE)/1000,VLOOKUP($A8,TRMbdForecast_LoadShp!$B:$ZZ,MATCH(AW$4,TRMbdForecast_LoadShp!$B$2:$ZZ$2,0)+IF(AW$5="HLH",0,1),FALSE)))) -> 140.6293229 | AX8: =IF($C8=1,0,IF(AND(ModelMode="Actuals",$E8=1),VLOOKUP($A8&AX$4,BillingActuals_Energy!$A:$V,MATCH(AX$6,BillingActuals_Energy!$A$8:$V$8,0),FALSE)/1000,IF(AND(ModelMode="Actuals",$E8=0),VLOOKUP($A8&AX$4,BillingActuals_Energy!$A:$V,MATCH(AX$7,BillingActuals_Energy!$A$8:$V$8,0),FALSE)/1000,VLOOKUP($A8,TRMbdForecast_LoadShp!$B:$ZZ,MATCH(AX$4,TRMbdForecast_LoadShp!$B$2:$ZZ$2,0)+IF(AX$5="HLH",0,1),FALSE)))) -> 132.7574889 | AY8: =IF($C8=1,0,IF(AND(ModelMode="Actuals",$E8=1),VLOOKUP($A8&AY$4,BillingActuals_Energy!$A:$V,MATCH(AY$6,BillingActuals_Energy!$A$8:$V$8,0),FALSE)/1000,IF(AND(ModelMode="Actuals",$E8=0),VLOOKUP($A8&AY$4,BillingActuals_Energy!$A:$V,MATCH(AY$7,BillingActuals_Energy!$A$8:$V$8,0),FALSE)/1000,VLOOKUP($A8,TRMbdForecast_LoadShp!$B:$ZZ,MATCH(AY$4,TRMbdForecast_LoadShp!$B$2:$ZZ$2,0)+IF(AY$5="HLH",0,1),FALSE)))) -> 118.1621938 | AZ8: =IF($C8=1,0,IF(AND(ModelMode="Actuals",$E8=1),VLOOKUP($A8&AZ$4,BillingActuals_Energy!$A:$V,MATCH(AZ$6,BillingActuals_Energy!$A$8:$V$8,0),FALSE)/1000,IF(AND(ModelMode="Actuals",$E8=0),VLOOKUP($A8&AZ$4,BillingActuals_Energy!$A:$V,MATCH(AZ$7,BillingActuals_Energy!$A$8:$V$8,0),FALSE)/1000,VLOOKUP($A8,TRMbdForecast_LoadShp!$B:$ZZ,MATCH(AZ$4,TRMbdForecast_LoadShp!$B$2:$ZZ$2,0)+IF(AZ$5="HLH",0,1),FALSE)))) -> 115.850545 | BA8: =IF($C8=1,0,IF(AND(ModelMode="Actuals",$E8=1),VLOOKUP($A8&BA$4,BillingActuals_Energy!$A:$V,MATCH(BA$6,BillingActuals_Energy!$A$8:$V$8,0),FALSE)/1000,IF(AND(ModelMode="Actuals",$E8=0),VLOOKUP($A8&BA$4,BillingActuals_Energy!$A:$V,MATCH(BA$7,BillingActuals_Energy!$A$8:$V$8,0),FALSE)/1000,VLOOKUP($A8,TRMbdForecast_LoadShp!$B:$ZZ,MATCH(BA$4,TRMbdForecast_LoadShp!$B$2:$ZZ$2,0)+IF(BA$5="HLH",0,1),FALSE)))) -> 68.82927683 | BB8: =IF($C8=1,0,IF(AND(ModelMode="Actuals",$E8=1),VLOOKUP($A8&BB$4,BillingActuals_Energy!$A:$V,MATCH(BB$6,BillingActuals_Energy!$A$8:$V$8,0),FALSE)/1000,IF(AND(ModelMode="Actuals",$E8=0),VLOOKUP($A8&BB$4,BillingActuals_Energy!$A:$V,MATCH(BB$7,BillingActuals_Energy!$A$8:$V$8,0),FALSE)/1000,VLOOKUP($A8,TRMbdForecast_LoadShp!$B:$ZZ,MATCH(BB$4,TRMbdForecast_LoadShp!$B$2:$ZZ$2,0)+IF(BB$5="HLH",0,1),FALSE)))) -> 85.65867003 | BC8: =IF($C8=1,0,IF(AND(ModelMode="Actuals",$E8=1),VLOOKUP($A8&BC$4,BillingActuals_Energy!$A:$V,MATCH(BC$6,BillingActuals_Energy!$A$8:$V$8,0),FALSE)/1000,IF(AND(ModelMode="Actuals",$E8=0),VLOOKUP($A8&BC$4,BillingActuals_Energy!$A:$V,MATCH(BC$7,BillingActuals_Energy!$A$8:$V$8,0),FALSE)/1000,VLOOKUP($A8,TRMbdForecast_LoadShp!$B:$ZZ,MATCH(BC$4,TRMbdForecast_LoadShp!$B$2:$ZZ$2,0)+IF(BC$5="HLH",0,1),FALSE)))) -> 93.62415647 | BD8: =IF($C8=1,0,IF(AND(ModelMode="Actuals",$E8=1),VLOOKUP($A8&BD$4,BillingActuals_Energy!$A:$V,MATCH(BD$6,BillingActuals_Energy!$A$8:$V$8,0),FALSE)/1000,IF(AND(ModelMode="Actuals",$E8=0),VLOOKUP($A8&BD$4,BillingActuals_Energy!$A:$V,MATCH(BD$7,BillingActuals_Energy!$A$8:$V$8,0),FALSE)/1000,VLOOKUP($A8,TRMbdForecast_LoadShp!$B:$ZZ,MATCH(BD$4,TRMbdForecast_LoadShp!$B$2:$ZZ$2,0)+IF(BD$5="HLH",0,1),FALSE)))) -> 77.52143537 | BE8: =IF($C8=1,0,IF(AND(ModelMode="Actuals",$E8=1),VLOOKUP($A8&BE$4,BillingActuals_Energy!$A:$V,MATCH(BE$6,BillingActuals_Energy!$A$8:$V$8,0),FALSE)/1000,IF(AND(ModelMode="Actuals",$E8=0),VLOOKUP($A8&BE$4,BillingActuals_Energy!$A:$V,MATCH(BE$7,BillingActuals_Energy!$A$8:$V$8,0),FALSE)/1000,VLOOKUP($A8,TRMbdForecast_LoadShp!$B:$ZZ,MATCH(BE$4,TRMbdForecast_LoadShp!$B$2:$ZZ$2,0)+IF(BE$5="HLH",0,1),FALSE)))) -> -38.7289874 | BF8: =IF($C8=1,0,IF(AND(ModelMode="Actuals",$E8=1),VLOOKUP($A8&BF$4,BillingActuals_Energy!$A:$V,MATCH(BF$6,BillingActuals_Energy!$A$8:$V$8,0),FALSE)/1000,IF(AND(ModelMode="Actuals",$E8=0),VLOOKUP($A8&BF$4,BillingActuals_Energy!$A:$V,MATCH(BF$7,BillingActuals_Energy!$A$8:$V$8,0),FALSE)/1000,VLOOKUP($A8,TRMbdForecast_LoadShp!$B:$ZZ,MATCH(BF$4,TRMbdForecast_LoadShp!$B$2:$ZZ$2,0)+IF(BF$5="HLH",0,1),FALSE)))) -> -8.2515667 | BG8: =IF($C8=1,0,IF(AND(ModelMode="Actuals",$E8=1),VLOOKUP($A8&BG$4,BillingActuals_Energy!$A:$V,MATCH(BG$6,BillingActuals_Energy!$A$8:$V$8,0),FALSE)/1000,IF(AND(ModelMode="Actuals",$E8=0),VLOOKUP($A8&BG$4,BillingActuals_Energy!$A:$V,MATCH(BG$7,BillingActuals_Energy!$A$8:$V$8,0),FALSE)/1000,VLOOKUP($A8,TRMbdForecast_LoadShp!$B:$ZZ,MATCH(BG$4,TRMbdForecast_LoadShp!$B$2:$ZZ$2,0)+IF(BG$5="HLH",0,1),FALSE)))) -> -66.36961506 | BH8: =IF($C8=1,0,IF(AND(ModelMode="Actuals",$E8=1),VLOOKUP($A8&BH$4,BillingActuals_Energy!$A:$V,MATCH(BH$6,BillingActuals_Energy!$A$8:$V$8,0),FALSE)/1000,IF(AND(ModelMode="Actuals",$E8=0),VLOOKUP($A8&BH$4,BillingActuals_Energy!$A:$V,MATCH(BH$7,BillingActuals_Energy!$A$8:$V$8,0),FALSE)/1000,VLOOKUP($A8,TRMbdForecast_LoadShp!$B:$ZZ,MATCH(BH$4,TRMbdForecast_LoadShp!$B$2:$ZZ$2,0)+IF(BH$5="HLH",0,1),FALSE)))) -> -10.59674423 | BI8: =IF($C8=1,0,IF(AND(ModelMode="Actuals",$E8=1),VLOOKUP($A8&BI$4,BillingActuals_Energy!$A:$V,MATCH(BI$6,BillingActuals_Energy!$A$8:$V$8,0),FALSE)/1000,IF(AND(ModelMode="Actuals",$E8=0),VLOOKUP($A8&BI$4,BillingActuals_Energy!$A:$V,MATCH(BI$7,BillingActuals_Energy!$A$8:$V$8,0),FALSE)/1000,VLOOKUP($A8,TRMbdForecast_LoadShp!$B:$ZZ,MATCH(BI$4,TRMbdForecast_LoadShp!$B$2:$ZZ$2,0)+IF(BI$5="HLH",0,1),FALSE)))) -> -34.72566489 | BJ8: =IF($C8=1,0,IF(AND(ModelMode="Actuals",$E8=1),VLOOKUP($A8&BJ$4,BillingActuals_Energy!$A:$V,MATCH(BJ$6,BillingActuals_Energy!$A$8:$V$8,0),FALSE)/1000,IF(AND(ModelMode="Actuals",$E8=0),VLOOKUP($A8&BJ$4,BillingActuals_Energy!$A:$V,MATCH(BJ$7,BillingActuals_Energy!$A$8:$V$8,0),FALSE)/1000,VLOOKUP($A8,TRMbdForecast_LoadShp!$B:$ZZ,MATCH(BJ$4,TRMbdForecast_LoadShp!$B$2:$ZZ$2,0)+IF(BJ$5="HLH",0,1),FALSE)))) -> -7.938475894 | BK8: =IF($C8=1,0,IF(AND(ModelMode="Actuals",$E8=1),VLOOKUP($A8&BK$4,BillingActuals_Energy!$A:$V,MATCH(BK$6,BillingActuals_Energy!$A$8:$V$8,0),FALSE)/1000,IF(AND(ModelMode="Actuals",$E8=0),VLOOKUP($A8&BK$4,BillingActuals_Energy!$A:$V,MATCH(BK$7,BillingActuals_Energy!$A$8:$V$8,0),FALSE)/1000,VLOOKUP($A8,TRMbdForecast_LoadShp!$B:$ZZ,MATCH(BK$4,TRMbdForecast_LoadShp!$B$2:$ZZ$2,0)+IF(BK$5="HLH",0,1),FALSE)))) -> -28.58331731 | BL8: =IF($C8=1,0,IF(AND(ModelMode="Actuals",$E8=1),VLOOKUP($A8&BL$4,BillingActuals_Energy!$A:$V,MATCH(BL$6,BillingActuals_Energy!$A$8:$V$8,0),FALSE)/1000,IF(AND(ModelMode="Actuals",$E8=0),VLOOKUP($A8&BL$4,BillingActuals_Energy!$A:$V,MATCH(BL$7,BillingActuals_Energy!$A$8:$V$8,0),FALSE)/1000,VLOOKUP($A8,TRMbdForecast_LoadShp!$B:$ZZ,MATCH(BL$4,TRMbdForecast_LoadShp!$B$2:$ZZ$2,0)+IF(BL$5="HLH",0,1),FALSE)))) -> 0.6683250036 | BM8: =IF($C8=1,0,IF(AND(ModelMode="Actuals",$E8=1),VLOOKUP($A8&BM$4,BillingActuals_Energy!$A:$V,MATCH(BM$6,BillingActuals_Energy!$A$8:$V$8,0),FALSE)/1000,IF(AND(ModelMode="Actuals",$E8=0),VLOOKUP($A8&BM$4,BillingActuals_Energy!$A:$V,MATCH(BM$7,BillingActuals_Energy!$A$8:$V$8,0),FALSE)/1000,VLOOKUP($A8,TRMbdForecast_LoadShp!$B:$ZZ,MATCH(BM$4,TRMbdForecast_LoadShp!$B$2:$ZZ$2,0)+IF(BM$5="HLH",0,1),FALSE)))) -> 2.723789938 | BN8: =IF($C8=1,0,IF(AND(ModelMode="Actuals",$E8=1),VLOOKUP($A8&BN$4,BillingActuals_Energy!$A:$V,MATCH(BN$6,BillingActuals_Energy!$A$8:$V$8,0),FALSE)/1000,IF(AND(ModelMode="Actuals",$E8=0),VLOOKUP($A8&BN$4,BillingActuals_Energy!$A:$V,MATCH(BN$7,BillingActuals_Energy!$A$8:$V$8,0),FALSE)/1000,VLOOKUP($A8,TRMbdForecast_LoadShp!$B:$ZZ,MATCH(BN$4,TRMbdForecast_LoadShp!$B$2:$ZZ$2,0)+IF(BN$5="HLH",0,1),FALSE)))) -> 8.32655753 | BO8: =IF($C8=1,0,IF(AND(ModelMode="Actuals",$E8=1),VLOOKUP($A8&BO$4,BillingActuals_Energy!$A:$V,MATCH(BO$6,BillingActuals_Energy!$A$8:$V$8,0),FALSE)/1000,IF(AND(ModelMode="Actuals",$E8=0),VLOOKUP($A8&BO$4,BillingActuals_Energy!$A:$V,MATCH(BO$7,BillingActuals_Energy!$A$8:$V$8,0),FALSE)/1000,VLOOKUP($A8,TRMbdForecast_Tier1_Diurnal!$B:$ZZ,MATCH(BO$4,TRMbdForecast_Tier1_Diurnal!$B$2:$ZZ$2,0)+IF(BO$5="HLH",0,1),FALSE)))) -> 285.942 | BP8: =IF($C8=1,0,IF(AND(ModelMode="Actuals",$E8=1),VLOOKUP($A8&BP$4,BillingActuals_Energy!$A:$V,MATCH(BP$6,BillingActuals_Energy!$A$8:$V$8,0),FALSE)/1000,IF(AND(ModelMode="Actuals",$E8=0),VLOOKUP($A8&BP$4,BillingActuals_Energy!$A:$V,MATCH(BP$7,BillingActuals_Energy!$A$8:$V$8,0),FALSE)/1000,VLOOKUP($A8,TRMbdForecast_Tier1_Diurnal!$B:$ZZ,MATCH(BP$4,TRMbdForecast_Tier1_Diurnal!$B$2:$ZZ$2,0)+IF(BP$5="HLH",0,1),FALSE)))) -> 209.475 | BQ8: =IF($C8=1,0,IF(AND(ModelMode="Actuals",$E8=1),VLOOKUP($A8&BQ$4,BillingActuals_Energy!$A:$V,MATCH(BQ$6,BillingActuals_Energy!$A$8:$V$8,0),FALSE)/1000,IF(AND(ModelMode="Actuals",$E8=0),VLOOKUP($A8&BQ$4,BillingActuals_Energy!$A:$V,MATCH(BQ$7,BillingActuals_Energy!$A$8:$V$8,0),FALSE)/1000,VLOOKUP($A8,TRMbdForecast_Tier1_Diurnal!$B:$ZZ,MATCH(BQ$4,TRMbdForecast_Tier1_Diurnal!$B$2:$ZZ$2,0)+IF(BQ$5="HLH",0,1),FALSE)))) -> 322.128 | BR8: =IF($C8=1,0,IF(AND(ModelMode="Actuals",$E8=1),VLOOKUP($A8&BR$4,BillingActuals_Energy!$A:$V,MATCH(BR$6,BillingActuals_Energy!$A$8:$V$8,0),FALSE)/1000,IF(AND(ModelMode="Actuals",$E8=0),VLOOKUP($A8&BR$4,BillingActuals_Energy!$A:$V,MATCH(BR$7,BillingActuals_Energy!$A$8:$V$8,0),FALSE)/1000,VLOOKUP($A8,TRMbdForecast_Tier1_Diurnal!$B:$ZZ,MATCH(BR$4,TRMbdForecast_Tier1_Diurnal!$B$2:$ZZ$2,0)+IF(BR$5="HLH",0,1),FALSE)))) -> 236.748 | BS8: =IF($C8=1,0,IF(AND(ModelMode="Actuals",$E8=1),VLOOKUP($A8&BS$4,BillingActuals_Energy!$A:$V,MATCH(BS$6,BillingActuals_Energy!$A$8:$V$8,0),FALSE)/1000,IF(AND(ModelMode="Actuals",$E8=0),VLOOKUP($A8&BS$4,BillingActuals_Energy!$A:$V,MATCH(BS$7,BillingActuals_Energy!$A$8:$V$8,0),FALSE)/1000,VLOOKUP($A8,TRMbdForecast_Tier1_Diurnal!$B:$ZZ,MATCH(BS$4,TRMbdForecast_Tier1_Diurnal!$B$2:$ZZ$2,0)+IF(BS$5="HLH",0,1),FALSE)))) -> 394.013 | BT8: =IF($C8=1,0,IF(AND(ModelMode="Actuals",$E8=1),VLOOKUP($A8&BT$4,BillingActuals_Energy!$A:$V,MATCH(BT$6,BillingActuals_Energy!$A$8:$V$8,0),FALSE)/1000,IF(AND(ModelMode="Actuals",$E8=0),VLOOKUP($A8&BT$4,BillingActuals_Energy!$A:$V,MATCH(BT$7,BillingActuals_Energy!$A$8:$V$8,0),FALSE)/1000,VLOOKUP($A8,TRMbdForecast_Tier1_Diurnal!$B:$ZZ,MATCH(BT$4,TRMbdForecast_Tier1_Diurnal!$B$2:$ZZ$2,0)+IF(BT$5="HLH",0,1),FALSE)))) -> 310.826 | BU8: =IF($C8=1,0,IF(AND(ModelMode="Actuals",$E8=1),VLOOKUP($A8&BU$4,BillingActuals_Energy!$A:$V,MATCH(BU$6,BillingActuals_Energy!$A$8:$V$8,0),FALSE)/1000,IF(AND(ModelMode="Actuals",$E8=0),VLOOKUP($A8&BU$4,BillingActuals_Energy!$A:$V,MATCH(BU$7,BillingActuals_Energy!$A$8:$V$8,0),FALSE)/1000,VLOOKUP($A8,TRMbdForecast_Tier1_Diurnal!$B:$ZZ,MATCH(BU$4,TRMbdForecast_Tier1_Diurnal!$B$2:$ZZ$2,0)+IF(BU$5="HLH",0,1),FALSE)))) -> 427.948 | BV8: =IF($C8=1,0,IF(AND(ModelMode="Actuals",$E8=1),VLOOKUP($A8&BV$4,BillingActuals_Energy!$A:$V,MATCH(BV$6,BillingActuals_Energy!$A$8:$V$8,0),FALSE)/1000,IF(AND(ModelMode="Actuals",$E8=0),VLOOKUP($A8&BV$4,BillingActuals_Energy!$A:$V,MATCH(BV$7,BillingActuals_Energy!$A$8:$V$8,0),FALSE)/1000,VLOOKUP($A8,TRMbdForecast_Tier1_Diurnal!$B:$ZZ,MATCH(BV$4,TRMbdForecast_Tier1_Diurnal!$B$2:$ZZ$2,0)+IF(BV$5="HLH",0,1),FALSE)))) -> 309.235 | BW8: =IF($C8=1,0,IF(AND(ModelMode="Actuals",$E8=1),VLOOKUP($A8&BW$4,BillingActuals_Energy!$A:$V,MATCH(BW$6,BillingActuals_Energy!$A$8:$V$8,0),FALSE)/1000,IF(AND(ModelMode="Actuals",$E8=0),VLOOKUP($A8&BW$4,BillingActuals_Energy!$A:$V,MATCH(BW$7,BillingActuals_Energy!$A$8:$V$8,0),FALSE)/1000,VLOOKUP($A8,TRMbdForecast_Tier1_Diurnal!$B:$ZZ,MATCH(BW$4,TRMbdForecast_Tier1_Diurnal!$B$2:$ZZ$2,0)+IF(BW$5="HLH",0,1),FALSE)))) -> 350.816 | BX8: =IF($C8=1,0,IF(AND(ModelMode="Actuals",$E8=1),VLOOKUP($A8&BX$4,BillingActuals_Energy!$A:$V,MATCH(BX$6,BillingActuals_Energy!$A$8:$V$8,0),FALSE)/1000,IF(AND(ModelMode="Actuals",$E8=0),VLOOKUP($A8&BX$4,BillingActuals_Energy!$A:$V,MATCH(BX$7,BillingActuals_Energy!$A$8:$V$8,0),FALSE)/1000,VLOOKUP($A8,TRMbdForecast_Tier1_Diurnal!$B:$ZZ,MATCH(BX$4,TRMbdForecast_Tier1_Diurnal!$B$2:$ZZ$2,0)+IF(BX$5="HLH",0,1),FALSE)))) -> 243.839 | BY8: =IF($C8=1,0,IF(AND(ModelMode="Actuals",$E8=1),VLOOKUP($A8&BY$4,BillingActuals_Energy!$A:$V,MATCH(BY$6,BillingActuals_Energy!$A$8:$V$8,0),FALSE)/1000,IF(AND(ModelMode="Actuals",$E8=0),VLOOKUP($A8&BY$4,BillingActuals_Energy!$A:$V,MATCH(BY$7,BillingActuals_Energy!$A$8:$V$8,0),FALSE)/1000,VLOOKUP($A8,TRMbdForecast_Tier1_Diurnal!$B:$ZZ,MATCH(BY$4,TRMbdForecast_Tier1_Diurnal!$B$2:$ZZ$2,0)+IF(BY$5="HLH",0,1),FALSE)))) -> 335.041 | BZ8: =IF($C8=1,0,IF(AND(ModelMode="Actuals",$E8=1),VLOOKUP($A8&BZ$4,BillingActuals_Energy!$A:$V,MATCH(BZ$6,BillingActuals_Energy!$A$8:$V$8,0),FALSE)/1000,IF(AND(ModelMode="Actuals",$E8=0),VLOOKUP($A8&BZ$4,BillingActuals_Energy!$A:$V,MATCH(BZ$7,BillingActuals_Energy!$A$8:$V$8,0),FALSE)/1000,VLOOKUP($A8,TRMbdForecast_Tier1_Diurnal!$B:$ZZ,MATCH(BZ$4,TRMbdForecast_Tier1_Diurnal!$B$2:$ZZ$2,0)+IF(BZ$5="HLH",0,1),FALSE)))) -> 256.503 | CA8: =IF($C8=1,0,IF(AND(ModelMode="Actuals",$E8=1),VLOOKUP($A8&CA$4,BillingActuals_Energy!$A:$V,MATCH(CA$6,BillingActuals_Energy!$A$8:$V$8,0),FALSE)/1000,IF(AND(ModelMode="Actuals",$E8=0),VLOOKUP($A8&CA$4,BillingActuals_Energy!$A:$V,MATCH(CA$7,BillingActuals_Energy!$A$8:$V$8,0),FALSE)/1000,VLOOKUP($A8,TRMbdForecast_Tier1_Diurnal!$B:$ZZ,MATCH(CA$4,TRMbdForecast_Tier1_Diurnal!$B$2:$ZZ$2,0)+IF(CA$5="HLH",0,1),FALSE)))) -> 303.845 | CB8: =IF($C8=1,0,IF(AND(ModelMode="Actuals",$E8=1),VLOOKUP($A8&CB$4,BillingActuals_Energy!$A:$V,MATCH(CB$6,BillingActuals_Energy!$A$8:$V$8,0),FALSE)/1000,IF(AND(ModelMode="Actuals",$E8=0),VLOOKUP($A8&CB$4,BillingActuals_Energy!$A:$V,MATCH(CB$7,BillingActuals_Energy!$A$8:$V$8,0),FALSE)/1000,VLOOKUP($A8,TRMbdForecast_Tier1_Diurnal!$B:$ZZ,MATCH(CB$4,TRMbdForecast_Tier1_Diurnal!$B$2:$ZZ$2,0)+IF(CB$5="HLH",0,1),FALSE)))) -> 212.611 | CC8: =IF($C8=1,0,IF(AND(ModelMode="Actuals",$E8=1),VLOOKUP($A8&CC$4,BillingActuals_Energy!$A:$V,MATCH(CC$6,BillingActuals_Energy!$A$8:$V$8,0),FALSE)/1000,IF(AND(ModelMode="Actuals",$E8=0),VLOOKUP($A8&CC$4,BillingActuals_Energy!$A:$V,MATCH(CC$7,BillingActuals_Energy!$A$8:$V$8,0),FALSE)/1000,VLOOKUP($A8,TRMbdForecast_Tier1_Diurnal!$B:$ZZ,MATCH(CC$4,TRMbdForecast_Tier1_Diurnal!$B$2:$ZZ$2,0)+IF(CC$5="HLH",0,1),FALSE)))) -> 222.411 | CD8: =IF($C8=1,0,IF(AND(ModelMode="Actuals",$E8=1),VLOOKUP($A8&CD$4,BillingActuals_Energy!$A:$V,MATCH(CD$6,BillingActuals_Energy!$A$8:$V$8,0),FALSE)/1000,IF(AND(ModelMode="Actuals",$E8=0),VLOOKUP($A8&CD$4,BillingActuals_Energy!$A:$V,MATCH(CD$7,BillingActuals_Energy!$A$8:$V$8,0),FALSE)/1000,VLOOKUP($A8,TRMbdForecast_Tier1_Diurnal!$B:$ZZ,MATCH(CD$4,TRMbdForecast_Tier1_Diurnal!$B$2:$ZZ$2,0)+IF(CD$5="HLH",0,1),FALSE)))) -> 160.319 | CE8: =IF($C8=1,0,IF(AND(ModelMode="Actuals",$E8=1),VLOOKUP($A8&CE$4,BillingActuals_Energy!$A:$V,MATCH(CE$6,BillingActuals_Energy!$A$8:$V$8,0),FALSE)/1000,IF(AND(ModelMode="Actuals",$E8=0),VLOOKUP($A8&CE$4,BillingActuals_Energy!$A:$V,MATCH(CE$7,BillingActuals_Energy!$A$8:$V$8,0),FALSE)/1000,VLOOKUP($A8,TRMbdForecast_Tier1_Diurnal!$B:$ZZ,MATCH(CE$4,TRMbdForecast_Tier1_Diurnal!$B$2:$ZZ$2,0)+IF(CE$5="HLH",0,1),FALSE)))) -> 209.887 | CF8: =IF($C8=1,0,IF(AND(ModelMode="Actuals",$E8=1),VLOOKUP($A8&CF$4,BillingActuals_Energy!$A:$V,MATCH(CF$6,BillingActuals_Energy!$A$8:$V$8,0),FALSE)/1000,IF(AND(ModelMode="Actuals",$E8=0),VLOOKUP($A8&CF$4,BillingActuals_Energy!$A:$V,MATCH(CF$7,BillingActuals_Energy!$A$8:$V$8,0),FALSE)/1000,VLOOKUP($A8,TRMbdForecast_Tier1_Diurnal!$B:$ZZ,MATCH(CF$4,TRMbdForecast_Tier1_Diurnal!$B$2:$ZZ$2,0)+IF(CF$5="HLH",0,1),FALSE)))) -> 153.083 | CG8: =IF($C8=1,0,IF(AND(ModelMode="Actuals",$E8=1),VLOOKUP($A8&CG$4,BillingActuals_Energy!$A:$V,MATCH(CG$6,BillingActuals_Energy!$A$8:$V$8,0),FALSE)/1000,IF(AND(ModelMode="Actuals",$E8=0),VLOOKUP($A8&CG$4,BillingActuals_Energy!$A:$V,MATCH(CG$7,BillingActuals_Energy!$A$8:$V$8,0),FALSE)/1000,VLOOKUP($A8,TRMbdForecast_Tier1_Diurnal!$B:$ZZ,MATCH(CG$4,TRMbdForecast_Tier1_Diurnal!$B$2:$ZZ$2,0)+IF(CG$5="HLH",0,1),FALSE)))) -> 203.276 | CH8: =IF($C8=1,0,IF(AND(ModelMode="Actuals",$E8=1),VLOOKUP($A8&CH$4,BillingActuals_Energy!$A:$V,MATCH(CH$6,BillingActuals_Energy!$A$8:$V$8,0),FALSE)/1000,IF(AND(ModelMode="Actuals",$E8=0),VLOOKUP($A8&CH$4,BillingActuals_Energy!$A:$V,MATCH(CH$7,BillingActuals_Energy!$A$8:$V$8,0),FALSE)/1000,VLOOKUP($A8,TRMbdForecast_Tier1_Diurnal!$B:$ZZ,MATCH(CH$4,TRMbdForecast_Tier1_Diurnal!$B$2:$ZZ$2,0)+IF(CH$5="HLH",0,1),FALSE)))) -> 135.988 | CI8: =IF($C8=1,0,IF(AND(ModelMode="Actuals",$E8=1),VLOOKUP($A8&CI$4,BillingActuals_Energy!$A:$V,MATCH(CI$6,BillingActuals_Energy!$A$8:$V$8,0),FALSE)/1000,IF(AND(ModelMode="Actuals",$E8=0),VLOOKUP($A8&CI$4,BillingActuals_Energy!$A:$V,MATCH(CI$7,BillingActuals_Energy!$A$8:$V$8,0),FALSE)/1000,VLOOKUP($A8,TRMbdForecast_Tier1_Diurnal!$B:$ZZ,MATCH(CI$4,TRMbdForecast_Tier1_Diurnal!$B$2:$ZZ$2,0)+IF(CI$5="HLH",0,1),FALSE)))) -> 214.295 | CJ8: =IF($C8=1,0,IF(AND(ModelMode="Actuals",$E8=1),VLOOKUP($A8&CJ$4,BillingActuals_Energy!$A:$V,MATCH(CJ$6,BillingActuals_Energy!$A$8:$V$8,0),FALSE)/1000,IF(AND(ModelMode="Actuals",$E8=0),VLOOKUP($A8&CJ$4,BillingActuals_Energy!$A:$V,MATCH(CJ$7,BillingActuals_Energy!$A$8:$V$8,0),FALSE)/1000,VLOOKUP($A8,TRMbdForecast_Tier1_Diurnal!$B:$ZZ,MATCH(CJ$4,TRMbdForecast_Tier1_Diurnal!$B$2:$ZZ$2,0)+IF(CJ$5="HLH",0,1),FALSE)))) -> 127.013 | CK8: =IF($C8=1,0,IF(AND(ModelMode="Actuals",$E8=1),VLOOKUP($A8&CK$4,BillingActuals_Energy!$A:$V,MATCH(CK$6,BillingActuals_Energy!$A$8:$V$8,0),FALSE)/1000,IF(AND(ModelMode="Actuals",$E8=0),VLOOKUP($A8&CK$4,BillingActuals_Energy!$A:$V,MATCH(CK$7,BillingActuals_Energy!$A$8:$V$8,0),FALSE)/1000,VLOOKUP($A8,TRMbdForecast_Tier1_Diurnal!$B:$ZZ,MATCH(CK$4,TRMbdForecast_Tier1_Diurnal!$B$2:$ZZ$2,0)+IF(CK$5="HLH",0,1),FALSE)))) -> 196.446 | CL8: =IF($C8=1,0,IF(AND(ModelMode="Actuals",$E8=1),VLOOKUP($A8&CL$4,BillingActuals_Energy!$A:$V,MATCH(CL$6,BillingActuals_Energy!$A$8:$V$8,0),FALSE)/1000,IF(AND(ModelMode="Actuals",$E8=0),VLOOKUP($A8&CL$4,BillingActuals_Energy!$A:$V,MATCH(CL$7,BillingActuals_Energy!$A$8:$V$8,0),FALSE)/1000,VLOOKUP($A8,TRMbdForecast_Tier1_Diurnal!$B:$ZZ,MATCH(CL$4,TRMbdForecast_Tier1_Diurnal!$B$2:$ZZ$2,0)+IF(CL$5="HLH",0,1),FALSE)))) -> 154.361 | CM8: =IF($C8=1,0,IF(AND(ModelMode="Actuals",$E8=1),VLOOKUP($A8&CM$4,BillingActuals_Energy!$A:$V,MATCH(CM$6,BillingActuals_Energy!$A$8:$V$8,0),FALSE)/1000,IF(AND(ModelMode="Actuals",$E8=0),VLOOKUP($A8&CM$4,BillingActuals_Energy!$A:$V,MATCH(CM$7,BillingActuals_Energy!$A$8:$V$8,0),FALSE)/1000,VLOOKUP($A8,TRMbdForecast_Tier1_Diurnal!$B:$ZZ,MATCH(CM$4,TRMbdForecast_Tier1_Diurnal!$B$2:$ZZ$2,0)+IF(CM$5="HLH",0,1),FALSE)))) -> 302.796 | CN8: =IF($C8=1,0,IF(AND(ModelMode="Actuals",$E8=1),VLOOKUP($A8&CN$4,BillingActuals_Energy!$A:$V,MATCH(CN$6,BillingActuals_Energy!$A$8:$V$8,0),FALSE)/1000,IF(AND(ModelMode="Actuals",$E8=0),VLOOKUP($A8&CN$4,BillingActuals_Energy!$A:$V,MATCH(CN$7,BillingActuals_Energy!$A$8:$V$8,0),FALSE)/1000,VLOOKUP($A8,TRMbdForecast_Tier1_Diurnal!$B:$ZZ,MATCH(CN$4,TRMbdForecast_Tier1_Diurnal!$B$2:$ZZ$2,0)+IF(CN$5="HLH",0,1),FALSE)))) -> 199.732 | CO8: =IF($C8=1,0,IF(AND(ModelMode="Actuals",$E8=1),VLOOKUP($A8&CO$4,BillingActuals_Energy!$A:$V,MATCH(CO$6,BillingActuals_Energy!$A$8:$V$8,0),FALSE)/1000,IF(AND(ModelMode="Actuals",$E8=0),VLOOKUP($A8&CO$4,BillingActuals_Energy!$A:$V,MATCH(CO$7,BillingActuals_Energy!$A$8:$V$8,0),FALSE)/1000,VLOOKUP($A8,TRMbdForecast_Tier1_Diurnal!$B:$ZZ,MATCH(CO$4,TRMbdForecast_Tier1_Diurnal!$B$2:$ZZ$2,0)+IF(CO$5="HLH",0,1),FALSE)))) -> 325.71 | CP8: =IF($C8=1,0,IF(AND(ModelMode="Actuals",$E8=1),VLOOKUP($A8&CP$4,BillingActuals_Energy!$A:$V,MATCH(CP$6,BillingActuals_Energy!$A$8:$V$8,0),FALSE)/1000,IF(AND(ModelMode="Actuals",$E8=0),VLOOKUP($A8&CP$4,BillingActuals_Energy!$A:$V,MATCH(CP$7,BillingActuals_Energy!$A$8:$V$8,0),FALSE)/1000,VLOOKUP($A8,TRMbdForecast_Tier1_Diurnal!$B:$ZZ,MATCH(CP$4,TRMbdForecast_Tier1_Diurnal!$B$2:$ZZ$2,0)+IF(CP$5="HLH",0,1),FALSE)))) -> 239.381 | CQ8: =IF($C8=1,0,IF(AND(ModelMode="Actuals",$E8=1),VLOOKUP($A8&CQ$4,BillingActuals_Energy!$A:$V,MATCH(CQ$6,BillingActuals_Energy!$A$8:$V$8,0),FALSE)/1000,IF(AND(ModelMode="Actuals",$E8=0),VLOOKUP($A8&CQ$4,BillingActuals_Energy!$A:$V,MATCH(CQ$7,BillingActuals_Energy!$A$8:$V$8,0),FALSE)/1000,VLOOKUP($A8,TRMbdForecast_Tier1_Diurnal!$B:$ZZ,MATCH(CQ$4,TRMbdForecast_Tier1_Diurnal!$B$2:$ZZ$2,0)+IF(CQ$5="HLH",0,1),FALSE)))) -> 396.987 | CR8: =IF($C8=1,0,IF(AND(ModelMode="Actuals",$E8=1),VLOOKUP($A8&CR$4,BillingActuals_Energy!$A:$V,MATCH(CR$6,BillingActuals_Energy!$A$8:$V$8,0),FALSE)/1000,IF(AND(ModelMode="Actuals",$E8=0),VLOOKUP($A8&CR$4,BillingActuals_Energy!$A:$V,MATCH(CR$7,BillingActuals_Energy!$A$8:$V$8,0),FALSE)/1000,VLOOKUP($A8,TRMbdForecast_Tier1_Diurnal!$B:$ZZ,MATCH(CR$4,TRMbdForecast_Tier1_Diurnal!$B$2:$ZZ$2,0)+IF(CR$5="HLH",0,1),FALSE)))) -> 313.172 | CS8: =IF($C8=1,0,IF(AND(ModelMode="Actuals",$E8=1),VLOOKUP($A8&CS$4,BillingActuals_Energy!$A:$V,MATCH(CS$6,BillingActuals_Energy!$A$8:$V$8,0),FALSE)/1000,IF(AND(ModelMode="Actuals",$E8=0),VLOOKUP($A8&CS$4,BillingActuals_Energy!$A:$V,MATCH(CS$7,BillingActuals_Energy!$A$8:$V$8,0),FALSE)/1000,VLOOKUP($A8,TRMbdForecast_Tier1_Diurnal!$B:$ZZ,MATCH(CS$4,TRMbdForecast_Tier1_Diurnal!$B$2:$ZZ$2,0)+IF(CS$5="HLH",0,1),FALSE)))) -> 430.519 | CT8: =IF($C8=1,0,IF(AND(ModelMode="Actuals",$E8=1),VLOOKUP($A8&CT$4,BillingActuals_Energy!$A:$V,MATCH(CT$6,BillingActuals_Energy!$A$8:$V$8,0),FALSE)/1000,IF(AND(ModelMode="Actuals",$E8=0),VLOOKUP($A8&CT$4,BillingActuals_Energy!$A:$V,MATCH(CT$7,BillingActuals_Energy!$A$8:$V$8,0),FALSE)/1000,VLOOKUP($A8,TRMbdForecast_Tier1_Diurnal!$B:$ZZ,MATCH(CT$4,TRMbdForecast_Tier1_Diurnal!$B$2:$ZZ$2,0)+IF(CT$5="HLH",0,1),FALSE)))) -> 311.093 | CU8: =IF($C8=1,0,IF(AND(ModelMode="Actuals",$E8=1),VLOOKUP($A8&CU$4,BillingActuals_Energy!$A:$V,MATCH(CU$6,BillingActuals_Energy!$A$8:$V$8,0),FALSE)/1000,IF(AND(ModelMode="Actuals",$E8=0),VLOOKUP($A8&CU$4,BillingActuals_Energy!$A:$V,MATCH(CU$7,BillingActuals_Energy!$A$8:$V$8,0),FALSE)/1000,VLOOKUP($A8,TRMbdForecast_Tier1_Diurnal!$B:$ZZ,MATCH(CU$4,TRMbdForecast_Tier1_Diurnal!$B$2:$ZZ$2,0)+IF(CU$5="HLH",0,1),FALSE)))) -> 365.472 | CV8: =IF($C8=1,0,IF(AND(ModelMode="Actuals",$E8=1),VLOOKUP($A8&CV$4,BillingActuals_Energy!$A:$V,MATCH(CV$6,BillingActuals_Energy!$A$8:$V$8,0),FALSE)/1000,IF(AND(ModelMode="Actuals",$E8=0),VLOOKUP($A8&CV$4,BillingActuals_Energy!$A:$V,MATCH(CV$7,BillingActuals_Energy!$A$8:$V$8,0),FALSE)/1000,VLOOKUP($A8,TRMbdForecast_Tier1_Diurnal!$B:$ZZ,MATCH(CV$4,TRMbdForecast_Tier1_Diurnal!$B$2:$ZZ$2,0)+IF(CV$5="HLH",0,1),FALSE)))) -> 258.122 | CW8: =IF($C8=1,0,IF(AND(ModelMode="Actuals",$E8=1),VLOOKUP($A8&CW$4,BillingActuals_Energy!$A:$V,MATCH(CW$6,BillingActuals_Energy!$A$8:$V$8,0),FALSE)/1000,IF(AND(ModelMode="Actuals",$E8=0),VLOOKUP($A8&CW$4,BillingActuals_Energy!$A:$V,MATCH(CW$7,BillingActuals_Energy!$A$8:$V$8,0),FALSE)/1000,VLOOKUP($A8,TRMbdForecast_Tier1_Diurnal!$B:$ZZ,MATCH(CW$4,TRMbdForecast_Tier1_Diurnal!$B$2:$ZZ$2,0)+IF(CW$5="HLH",0,1),FALSE)))) -> 336.543 | CX8: =IF($C8=1,0,IF(AND(ModelMode="Actuals",$E8=1),VLOOKUP($A8&CX$4,BillingActuals_Energy!$A:$V,MATCH(CX$6,BillingActuals_Energy!$A$8:$V$8,0),FALSE)/1000,IF(AND(ModelMode="Actuals",$E8=0),VLOOKUP($A8&CX$4,BillingActuals_Energy!$A:$V,MATCH(CX$7,BillingActuals_Energy!$A$8:$V$8,0),FALSE)/1000,VLOOKUP($A8,TRMbdForecast_Tier1_Diurnal!$B:$ZZ,MATCH(CX$4,TRMbdForecast_Tier1_Diurnal!$B$2:$ZZ$2,0)+IF(CX$5="HLH",0,1),FALSE)))) -> 257.653 | CY8: =IF($C8=1,0,IF(AND(ModelMode="Actuals",$E8=1),VLOOKUP($A8&CY$4,BillingActuals_Energy!$A:$V,MATCH(CY$6,BillingActuals_Energy!$A$8:$V$8,0),FALSE)/1000,IF(AND(ModelMode="Actuals",$E8=0),VLOOKUP($A8&CY$4,BillingActuals_Energy!$A:$V,MATCH(CY$7,BillingActuals_Energy!$A$8:$V$8,0),FALSE)/1000,VLOOKUP($A8,TRMbdForecast_Tier1_Diurnal!$B:$ZZ,MATCH(CY$4,TRMbdForecast_Tier1_Diurnal!$B$2:$ZZ$2,0)+IF(CY$5="HLH",0,1),FALSE)))) -> 304.883 | CZ8: =IF($C8=1,0,IF(AND(ModelMode="Actuals",$E8=1),VLOOKUP($A8&CZ$4,BillingActuals_Energy!$A:$V,MATCH(CZ$6,BillingActuals_Energy!$A$8:$V$8,0),FALSE)/1000,IF(AND(ModelMode="Actuals",$E8=0),VLOOKUP($A8&CZ$4,BillingActuals_Energy!$A:$V,MATCH(CZ$7,BillingActuals_Energy!$A$8:$V$8,0),FALSE)/1000,VLOOKUP($A8,TRMbdForecast_Tier1_Diurnal!$B:$ZZ,MATCH(CZ$4,TRMbdForecast_Tier1_Diurnal!$B$2:$ZZ$2,0)+IF(CZ$5="HLH",0,1),FALSE)))) -> 213.338 | DA8: =IF($C8=1,0,IF(AND(ModelMode="Actuals",$E8=1),VLOOKUP($A8&DA$4,BillingActuals_Energy!$A:$V,MATCH(DA$6,BillingActuals_Energy!$A$8:$V$8,0),FALSE)/1000,IF(AND(ModelMode="Actuals",$E8=0),VLOOKUP($A8&DA$4,BillingActuals_Energy!$A:$V,MATCH(DA$7,BillingActuals_Energy!$A$8:$V$8,0),FALSE)/1000,VLOOKUP($A8,TRMbdForecast_Tier1_Diurnal!$B:$ZZ,MATCH(DA$4,TRMbdForecast_Tier1_Diurnal!$B$2:$ZZ$2,0)+IF(DA$5="HLH",0,1),FALSE)))) -> 222.924 | DB8: =IF($C8=1,0,IF(AND(ModelMode="Actuals",$E8=1),VLOOKUP($A8&DB$4,BillingActuals_Energy!$A:$V,MATCH(DB$6,BillingActuals_Energy!$A$8:$V$8,0),FALSE)/1000,IF(AND(ModelMode="Actuals",$E8=0),VLOOKUP($A8&DB$4,BillingActuals_Energy!$A:$V,MATCH(DB$7,BillingActuals_Energy!$A$8:$V$8,0),FALSE)/1000,VLOOKUP($A8,TRMbdForecast_Tier1_Diurnal!$B:$ZZ,MATCH(DB$4,TRMbdForecast_Tier1_Diurnal!$B$2:$ZZ$2,0)+IF(DB$5="HLH",0,1),FALSE)))) -> 160.689 | DC8: =IF($C8=1,0,IF(AND(ModelMode="Actuals",$E8=1),VLOOKUP($A8&DC$4,BillingActuals_Energy!$A:$V,MATCH(DC$6,BillingActuals_Energy!$A$8:$V$8,0),FALSE)/1000,IF(AND(ModelMode="Actuals",$E8=0),VLOOKUP($A8&DC$4,BillingActuals_Energy!$A:$V,MATCH(DC$7,BillingActuals_Energy!$A$8:$V$8,0),FALSE)/1000,VLOOKUP($A8,TRMbdForecast_Tier1_Diurnal!$B:$ZZ,MATCH(DC$4,TRMbdForecast_Tier1_Diurnal!$B$2:$ZZ$2,0)+IF(DC$5="HLH",0,1),FALSE)))) -> 209.887 | DD8: =IF($C8=1,0,IF(AND(ModelMode="Actuals",$E8=1),VLOOKUP($A8&DD$4,BillingActuals_Energy!$A:$V,MATCH(DD$6,BillingActuals_Energy!$A$8:$V$8,0),FALSE)/1000,IF(AND(ModelMode="Actuals",$E8=0),VLOOKUP($A8&DD$4,BillingActuals_Energy!$A:$V,MATCH(DD$7,BillingActuals_Energy!$A$8:$V$8,0),FALSE)/1000,VLOOKUP($A8,TRMbdForecast_Tier1_Diurnal!$B:$ZZ,MATCH(DD$4,TRMbdForecast_Tier1_Diurnal!$B$2:$ZZ$2,0)+IF(DD$5="HLH",0,1),FALSE)))) -> 153.083 | DE8: =IF($C8=1,0,IF(AND(ModelMode="Actuals",$E8=1),VLOOKUP($A8&DE$4,BillingActuals_Energy!$A:$V,MATCH(DE$6,BillingActuals_Energy!$A$8:$V$8,0),FALSE)/1000,IF(AND(ModelMode="Actuals",$E8=0),VLOOKUP($A8&DE$4,BillingActuals_Energy!$A:$V,MATCH(DE$7,BillingActuals_Energy!$A$8:$V$8,0),FALSE)/1000,VLOOKUP($A8,TRMbdForecast_Tier1_Diurnal!$B:$ZZ,MATCH(DE$4,TRMbdForecast_Tier1_Diurnal!$B$2:$ZZ$2,0)+IF(DE$5="HLH",0,1),FALSE)))) -> 203.276 | DF8: =IF($C8=1,0,IF(AND(ModelMode="Actuals",$E8=1),VLOOKUP($A8&DF$4,BillingActuals_Energy!$A:$V,MATCH(DF$6,BillingActuals_Energy!$A$8:$V$8,0),FALSE)/1000,IF(AND(ModelMode="Actuals",$E8=0),VLOOKUP($A8&DF$4,BillingActuals_Energy!$A:$V,MATCH(DF$7,BillingActuals_Energy!$A$8:$V$8,0),FALSE)/1000,VLOOKUP($A8,TRMbdForecast_Tier1_Diurnal!$B:$ZZ,MATCH(DF$4,TRMbdForecast_Tier1_Diurnal!$B$2:$ZZ$2,0)+IF(DF$5="HLH",0,1),FALSE)))) -> 135.988 | DG8: =IF($C8=1,0,IF(AND(ModelMode="Actuals",$E8=1),VLOOKUP($A8&DG$4,BillingActuals_Energy!$A:$V,MATCH(DG$6,BillingActuals_Energy!$A$8:$V$8,0),FALSE)/1000,IF(AND(ModelMode="Actuals",$E8=0),VLOOKUP($A8&DG$4,BillingActuals_Energy!$A:$V,MATCH(DG$7,BillingActuals_Energy!$A$8:$V$8,0),FALSE)/1000,VLOOKUP($A8,TRMbdForecast_Tier1_Diurnal!$B:$ZZ,MATCH(DG$4,TRMbdForecast_Tier1_Diurnal!$B$2:$ZZ$2,0)+IF(DG$5="HLH",0,1),FALSE)))) -> 205.636 | DH8: =IF($C8=1,0,IF(AND(ModelMode="Actuals",$E8=1),VLOOKUP($A8&DH$4,BillingActuals_Energy!$A:$V,MATCH(DH$6,BillingActuals_Energy!$A$8:$V$8,0),FALSE)/1000,IF(AND(ModelMode="Actuals",$E8=0),VLOOKUP($A8&DH$4,BillingActuals_Energy!$A:$V,MATCH(DH$7,BillingActuals_Energy!$A$8:$V$8,0),FALSE)/1000,VLOOKUP($A8,TRMbdForecast_Tier1_Diurnal!$B:$ZZ,MATCH(DH$4,TRMbdForecast_Tier1_Diurnal!$B$2:$ZZ$2,0)+IF(DH$5="HLH",0,1),FALSE)))) -> 135.672 | DI8: =IF($C8=1,0,IF(AND(ModelMode="Actuals",$E8=1),VLOOKUP($A8&DI$4,BillingActuals_Energy!$A:$V,MATCH(DI$6,BillingActuals_Energy!$A$8:$V$8,0),FALSE)/1000,IF(AND(ModelMode="Actuals",$E8=0),VLOOKUP($A8&DI$4,BillingActuals_Energy!$A:$V,MATCH(DI$7,BillingActuals_Energy!$A$8:$V$8,0),FALSE)/1000,VLOOKUP($A8,TRMbdForecast_Tier1_Diurnal!$B:$ZZ,MATCH(DI$4,TRMbdForecast_Tier1_Diurnal!$B$2:$ZZ$2,0)+IF(DI$5="HLH",0,1),FALSE)))) -> 205.643 | DJ8: =IF($C8=1,0,IF(AND(ModelMode="Actuals",$E8=1),VLOOKUP($A8&DJ$4,BillingActuals_Energy!$A:$V,MATCH(DJ$6,BillingActuals_Energy!$A$8:$V$8,0),FALSE)/1000,IF(AND(ModelMode="Actuals",$E8=0),VLOOKUP($A8&DJ$4,BillingActuals_Energy!$A:$V,MATCH(DJ$7,BillingActuals_Energy!$A$8:$V$8,0),FALSE)/1000,VLOOKUP($A8,TRMbdForecast_Tier1_Diurnal!$B:$ZZ,MATCH(DJ$4,TRMbdForecast_Tier1_Diurnal!$B$2:$ZZ$2,0)+IF(DJ$5="HLH",0,1),FALSE)))) -> 145.164 | DK8: =IF($C8=1,0,IF(ModelMode="Actuals",MAX(0,IF(ISNA(VLOOKUP($A8,BillingActual_CSP!$A:$AA,MATCH(DK$4,BillingActual_CSP!$A$9:$AA$9,0),FALSE)/1000),INDEX($BO8:$DJ8,1,MATCH(DK$4,$BO$4:$DJ$4,0))/VLOOKUP(DK$4,Init!$I:$L,3,FALSE),VLOOKUP($A8,BillingActual_CSP!$A:$AA,MATCH(DK$4,BillingActual_CSP!$A$9:$AA$9,0),FALSE)/1000)-IF(DK$4<$DW$4,$EP8/VLOOKUP(StartYr,Init!$N:$P,3,FALSE),$EQ8/VLOOKUP(StartYr+1,Init!$N:$P,3,FALSE))-VLOOKUP($A8,BillingCDQ!$B:$O,MATCH(MONTH(DK$4),BillingCDQ!$B$3:$O$3,0),FALSE)-INDEX($BO8:$DJ8,1,MATCH(DK$4,$BO$4:$DJ$4,0))/VLOOKUP(DK$4,Init!$I:$L,3,FALSE)),IF(AND($E8=0,ModelMode="Forecast"),MAX(0,VLOOKUP($A8,TRMbdForecast_CSP!$B:$ZZ,MATCH(DK$4,TRMbdForecast_CSP!$B$2:$ZZ$2,0),FALSE)-IF(DK$4<$DW$4,$EP8/VLOOKUP(StartYr,Init!$N:$P,3,FALSE),$EQ8/VLOOKUP(StartYr+1,Init!$N:$P,3,FALSE))-VLOOKUP($A8,TRMbdForecast_CDQ!$B:$ZZ,MATCH(DK$4,TRMbdForecast_CDQ!$B$2:$ZZ$2,0),FALSE)-(INDEX($BO8:$DJ8,1,MATCH(DK$4,$BO$4:$DJ$4,0))+VLOOKUP($A8,TRMbdForecast_Existing!$B:$ZZ,MATCH(DK$4,TRMbdForecast_Existing!$B$2:$ZZ$2,0),FALSE))/VLOOKUP(DK$4,Init!$I:$L,3,FALSE)),IF(AND($E8=1,ModelMode="Forecast"),0)))) -> 0.07763942308 | DL8: =IF($C8=1,0,IF(ModelMode="Actuals",MAX(0,IF(ISNA(VLOOKUP($A8,BillingActual_CSP!$A:$AA,MATCH(DL$4,BillingActual_CSP!$A$9:$AA$9,0),FALSE)/1000),INDEX($BO8:$DJ8,1,MATCH(DL$4,$BO$4:$DJ$4,0))/VLOOKUP(DL$4,Init!$I:$L,3,FALSE),VLOOKUP($A8,BillingActual_CSP!$A:$AA,MATCH(DL$4,BillingActual_CSP!$A$9:$AA$9,0),FALSE)/1000)-IF(DL$4<$DW$4,$EP8/VLOOKUP(StartYr,Init!$N:$P,3,FALSE),$EQ8/VLOOKUP(StartYr+1,Init!$N:$P,3,FALSE))-VLOOKUP($A8,BillingCDQ!$B:$O,MATCH(MONTH(DL$4),BillingCDQ!$B$3:$O$3,0),FALSE)-INDEX($BO8:$DJ8,1,MATCH(DL$4,$BO$4:$DJ$4,0))/VLOOKUP(DL$4,Init!$I:$L,3,FALSE)),IF(AND($E8=0,ModelMode="Forecast"),MAX(0,VLOOKUP($A8,TRMbdForecast_CSP!$B:$ZZ,MATCH(DL$4,TRMbdForecast_CSP!$B$2:$ZZ$2,0),FALSE)-IF(DL$4<$DW$4,$EP8/VLOOKUP(StartYr,Init!$N:$P,3,FALSE),$EQ8/VLOOKUP(StartYr+1,Init!$N:$P,3,FALSE))-VLOOKUP($A8,TRMbdForecast_CDQ!$B:$ZZ,MATCH(DL$4,TRMbdForecast_CDQ!$B$2:$ZZ$2,0),FALSE)-(INDEX($BO8:$DJ8,1,MATCH(DL$4,$BO$4:$DJ$4,0))+VLOOKUP($A8,TRMbdForecast_Existing!$B:$ZZ,MATCH(DL$4,TRMbdForecast_Existing!$B$2:$ZZ$2,0),FALSE))/VLOOKUP(DL$4,Init!$I:$L,3,FALSE)),IF(AND($E8=1,ModelMode="Forecast"),0)))) -> 0.08468 | DM8: =IF($C8=1,0,IF(ModelMode="Actuals",MAX(0,IF(ISNA(VLOOKUP($A8,BillingActual_CSP!$A:$AA,MATCH(DM$4,BillingActual_CSP!$A$9:$AA$9,0),FALSE)/1000),INDEX($BO8:$DJ8,1,MATCH(DM$4,$BO$4:$DJ$4,0))/VLOOKUP(DM$4,Init!$I:$L,3,FALSE),VLOOKUP($A8,BillingActual_CSP!$A:$AA,MATCH(DM$4,BillingActual_CSP!$A$9:$AA$9,0),FALSE)/1000)-IF(DM$4<$DW$4,$EP8/VLOOKUP(StartYr,Init!$N:$P,3,FALSE),$EQ8/VLOOKUP(StartYr+1,Init!$N:$P,3,FALSE))-VLOOKUP($A8,BillingCDQ!$B:$O,MATCH(MONTH(DM$4),BillingCDQ!$B$3:$O$3,0),FALSE)-INDEX($BO8:$DJ8,1,MATCH(DM$4,$BO$4:$DJ$4,0))/VLOOKUP(DM$4,Init!$I:$L,3,FALSE)),IF(AND($E8=0,ModelMode="Forecast"),MAX(0,VLOOKUP($A8,TRMbdForecast_CSP!$B:$ZZ,MATCH(DM$4,TRMbdForecast_CSP!$B$2:$ZZ$2,0),FALSE)-IF(DM$4<$DW$4,$EP8/VLOOKUP(StartYr,Init!$N:$P,3,FALSE),$EQ8/VLOOKUP(StartYr+1,Init!$N:$P,3,FALSE))-VLOOKUP($A8,TRMbdForecast_CDQ!$B:$ZZ,MATCH(DM$4,TRMbdForecast_CDQ!$B$2:$ZZ$2,0),FALSE)-(INDEX($BO8:$DJ8,1,MATCH(DM$4,$BO$4:$DJ$4,0))+VLOOKUP($A8,TRMbdForecast_Existing!$B:$ZZ,MATCH(DM$4,TRMbdForecast_Existing!$B$2:$ZZ$2,0),FALSE))/VLOOKUP(DM$4,Init!$I:$L,3,FALSE)),IF(AND($E8=1,ModelMode="Forecast"),0)))) -> 0.0379675 | DN8: =IF($C8=1,0,IF(ModelMode="Actuals",MAX(0,IF(ISNA(VLOOKUP($A8,BillingActual_CSP!$A:$AA,MATCH(DN$4,BillingActual_CSP!$A$9:$AA$9,0),FALSE)/1000),INDEX($BO8:$DJ8,1,MATCH(DN$4,$BO$4:$DJ$4,0))/VLOOKUP(DN$4,Init!$I:$L,3,FALSE),VLOOKUP($A8,BillingActual_CSP!$A:$AA,MATCH(DN$4,BillingActual_CSP!$A$9:$AA$9,0),FALSE)/1000)-IF(DN$4<$DW$4,$EP8/VLOOKUP(StartYr,Init!$N:$P,3,FALSE),$EQ8/VLOOKUP(StartYr+1,Init!$N:$P,3,FALSE))-VLOOKUP($A8,BillingCDQ!$B:$O,MATCH(MONTH(DN$4),BillingCDQ!$B$3:$O$3,0),FALSE)-INDEX($BO8:$DJ8,1,MATCH(DN$4,$BO$4:$DJ$4,0))/VLOOKUP(DN$4,Init!$I:$L,3,FALSE)),IF(AND($E8=0,ModelMode="Forecast"),MAX(0,VLOOKUP($A8,TRMbdForecast_CSP!$B:$ZZ,MATCH(DN$4,TRMbdForecast_CSP!$B$2:$ZZ$2,0),FALSE)-IF(DN$4<$DW$4,$EP8/VLOOKUP(StartYr,Init!$N:$P,3,FALSE),$EQ8/VLOOKUP(StartYr+1,Init!$N:$P,3,FALSE))-VLOOKUP($A8,TRMbdForecast_CDQ!$B:$ZZ,MATCH(DN$4,TRMbdForecast_CDQ!$B$2:$ZZ$2,0),FALSE)-(INDEX($BO8:$DJ8,1,MATCH(DN$4,$BO$4:$DJ$4,0))+VLOOKUP($A8,TRMbdForecast_Existing!$B:$ZZ,MATCH(DN$4,TRMbdForecast_Existing!$B$2:$ZZ$2,0),FALSE))/VLOOKUP(DN$4,Init!$I:$L,3,FALSE)),IF(AND($E8=1,ModelMode="Forecast"),0)))) -> 0.1272788462 | DO8: =IF($C8=1,0,IF(ModelMode="Actuals",MAX(0,IF(ISNA(VLOOKUP($A8,BillingActual_CSP!$A:$AA,MATCH(DO$4,BillingActual_CSP!$A$9:$AA$9,0),FALSE)/1000),INDEX($BO8:$DJ8,1,MATCH(DO$4,$BO$4:$DJ$4,0))/VLOOKUP(DO$4,Init!$I:$L,3,FALSE),VLOOKUP($A8,BillingActual_CSP!$A:$AA,MATCH(DO$4,BillingActual_CSP!$A$9:$AA$9,0),FALSE)/1000)-IF(DO$4<$DW$4,$EP8/VLOOKUP(StartYr,Init!$N:$P,3,FALSE),$EQ8/VLOOKUP(StartYr+1,Init!$N:$P,3,FALSE))-VLOOKUP($A8,BillingCDQ!$B:$O,MATCH(MONTH(DO$4),BillingCDQ!$B$3:$O$3,0),FALSE)-INDEX($BO8:$DJ8,1,MATCH(DO$4,$BO$4:$DJ$4,0))/VLOOKUP(DO$4,Init!$I:$L,3,FALSE)),IF(AND($E8=0,ModelMode="Forecast"),MAX(0,VLOOKUP($A8,TRMbdForecast_CSP!$B:$ZZ,MATCH(DO$4,TRMbdForecast_CSP!$B$2:$ZZ$2,0),FALSE)-IF(DO$4<$DW$4,$EP8/VLOOKUP(StartYr,Init!$N:$P,3,FALSE),$EQ8/VLOOKUP(StartYr+1,Init!$N:$P,3,FALSE))-VLOOKUP($A8,TRMbdForecast_CDQ!$B:$ZZ,MATCH(DO$4,TRMbdForecast_CDQ!$B$2:$ZZ$2,0),FALSE)-(INDEX($BO8:$DJ8,1,MATCH(DO$4,$BO$4:$DJ$4,0))+VLOOKUP($A8,TRMbdForecast_Existing!$B:$ZZ,MATCH(DO$4,TRMbdForecast_Existing!$B$2:$ZZ$2,0),FALSE))/VLOOKUP(DO$4,Init!$I:$L,3,FALSE)),IF(AND($E8=1,ModelMode="Forecast"),0)))) -> 0.09996 | DP8: =IF($C8=1,0,IF(ModelMode="Actuals",MAX(0,IF(ISNA(VLOOKUP($A8,BillingActual_CSP!$A:$AA,MATCH(DP$4,BillingActual_CSP!$A$9:$AA$9,0),FALSE)/1000),INDEX($BO8:$DJ8,1,MATCH(DP$4,$BO$4:$DJ$4,0))/VLOOKUP(DP$4,Init!$I:$L,3,FALSE),VLOOKUP($A8,BillingActual_CSP!$A:$AA,MATCH(DP$4,BillingActual_CSP!$A$9:$AA$9,0),FALSE)/1000)-IF(DP$4<$DW$4,$EP8/VLOOKUP(StartYr,Init!$N:$P,3,FALSE),$EQ8/VLOOKUP(StartYr+1,Init!$N:$P,3,FALSE))-VLOOKUP($A8,BillingCDQ!$B:$O,MATCH(MONTH(DP$4),BillingCDQ!$B$3:$O$3,0),FALSE)-INDEX($BO8:$DJ8,1,MATCH(DP$4,$BO$4:$DJ$4,0))/VLOOKUP(DP$4,Init!$I:$L,3,FALSE)),IF(AND($E8=0,ModelMode="Forecast"),MAX(0,VLOOKUP($A8,TRMbdForecast_CSP!$B:$ZZ,MATCH(DP$4,TRMbdForecast_CSP!$B$2:$ZZ$2,0),FALSE)-IF(DP$4<$DW$4,$EP8/VLOOKUP(StartYr,Init!$N:$P,3,FALSE),$EQ8/VLOOKUP(StartYr+1,Init!$N:$P,3,FALSE))-VLOOKUP($A8,TRMbdForecast_CDQ!$B:$ZZ,MATCH(DP$4,TRMbdForecast_CDQ!$B$2:$ZZ$2,0),FALSE)-(INDEX($BO8:$DJ8,1,MATCH(DP$4,$BO$4:$DJ$4,0))+VLOOKUP($A8,TRMbdForecast_Existing!$B:$ZZ,MATCH(DP$4,TRMbdForecast_Existing!$B$2:$ZZ$2,0),FALSE))/VLOOKUP(DP$4,Init!$I:$L,3,FALSE)),IF(AND($E8=1,ModelMode="Forecast"),0)))) -> 0.1876129808 | DQ8: =IF($C8=1,0,IF(ModelMode="Actuals",MAX(0,IF(ISNA(VLOOKUP($A8,BillingActual_CSP!$A:$AA,MATCH(DQ$4,BillingActual_CSP!$A$9:$AA$9,0),FALSE)/1000),INDEX($BO8:$DJ8,1,MATCH(DQ$4,$BO$4:$DJ$4,0))/VLOOKUP(DQ$4,Init!$I:$L,3,FALSE),VLOOKUP($A8,BillingActual_CSP!$A:$AA,MATCH(DQ$4,BillingActual_CSP!$A$9:$AA$9,0),FALSE)/1000)-IF(DQ$4<$DW$4,$EP8/VLOOKUP(StartYr,Init!$N:$P,3,FALSE),$EQ8/VLOOKUP(StartYr+1,Init!$N:$P,3,FALSE))-VLOOKUP($A8,BillingCDQ!$B:$O,MATCH(MONTH(DQ$4),BillingCDQ!$B$3:$O$3,0),FALSE)-INDEX($BO8:$DJ8,1,MATCH(DQ$4,$BO$4:$DJ$4,0))/VLOOKUP(DQ$4,Init!$I:$L,3,FALSE)),IF(AND($E8=0,ModelMode="Forecast"),MAX(0,VLOOKUP($A8,TRMbdForecast_CSP!$B:$ZZ,MATCH(DQ$4,TRMbdForecast_CSP!$B$2:$ZZ$2,0),FALSE)-IF(DQ$4<$DW$4,$EP8/VLOOKUP(StartYr,Init!$N:$P,3,FALSE),$EQ8/VLOOKUP(StartYr+1,Init!$N:$P,3,FALSE))-VLOOKUP($A8,TRMbdForecast_CDQ!$B:$ZZ,MATCH(DQ$4,TRMbdForecast_CDQ!$B$2:$ZZ$2,0),FALSE)-(INDEX($BO8:$DJ8,1,MATCH(DQ$4,$BO$4:$DJ$4,0))+VLOOKUP($A8,TRMbdForecast_Existing!$B:$ZZ,MATCH(DQ$4,TRMbdForecast_Existing!$B$2:$ZZ$2,0),FALSE))/VLOOKUP(DQ$4,Init!$I:$L,3,FALSE)),IF(AND($E8=1,ModelMode="Forecast"),0)))) -> 0.04660336538 | DR8: =IF($C8=1,0,IF(ModelMode="Actuals",MAX(0,IF(ISNA(VLOOKUP($A8,BillingActual_CSP!$A:$AA,MATCH(DR$4,BillingActual_CSP!$A$9:$AA$9,0),FALSE)/1000),INDEX($BO8:$DJ8,1,MATCH(DR$4,$BO$4:$DJ$4,0))/VLOOKUP(DR$4,Init!$I:$L,3,FALSE),VLOOKUP($A8,BillingActual_CSP!$A:$AA,MATCH(DR$4,BillingActual_CSP!$A$9:$AA$9,0),FALSE)/1000)-IF(DR$4<$DW$4,$EP8/VLOOKUP(StartYr,Init!$N:$P,3,FALSE),$EQ8/VLOOKUP(StartYr+1,Init!$N:$P,3,FALSE))-VLOOKUP($A8,BillingCDQ!$B:$O,MATCH(MONTH(DR$4),BillingCDQ!$B$3:$O$3,0),FALSE)-INDEX($BO8:$DJ8,1,MATCH(DR$4,$BO$4:$DJ$4,0))/VLOOKUP(DR$4,Init!$I:$L,3,FALSE)),IF(AND($E8=0,ModelMode="Forecast"),MAX(0,VLOOKUP($A8,TRMbdForecast_CSP!$B:$ZZ,MATCH(DR$4,TRMbdForecast_CSP!$B$2:$ZZ$2,0),FALSE)-IF(DR$4<$DW$4,$EP8/VLOOKUP(StartYr,Init!$N:$P,3,FALSE),$EQ8/VLOOKUP(StartYr+1,Init!$N:$P,3,FALSE))-VLOOKUP($A8,TRMbdForecast_CDQ!$B:$ZZ,MATCH(DR$4,TRMbdForecast_CDQ!$B$2:$ZZ$2,0),FALSE)-(INDEX($BO8:$DJ8,1,MATCH(DR$4,$BO$4:$DJ$4,0))+VLOOKUP($A8,TRMbdForecast_Existing!$B:$ZZ,MATCH(DR$4,TRMbdForecast_Existing!$B$2:$ZZ$2,0),FALSE))/VLOOKUP(DR$4,Init!$I:$L,3,FALSE)),IF(AND($E8=1,ModelMode="Forecast"),0)))) -> 0.09035817308 | DS8: =IF($C8=1,0,IF(ModelMode="Actuals",MAX(0,IF(ISNA(VLOOKUP($A8,BillingActual_CSP!$A:$AA,MATCH(DS$4,BillingActual_CSP!$A$9:$AA$9,0),FALSE)/1000),INDEX($BO8:$DJ8,1,MATCH(DS$4,$BO$4:$DJ$4,0))/VLOOKUP(DS$4,Init!$I:$L,3,FALSE),VLOOKUP($A8,BillingActual_CSP!$A:$AA,MATCH(DS$4,BillingActual_CSP!$A$9:$AA$9,0),FALSE)/1000)-IF(DS$4<$DW$4,$EP8/VLOOKUP(StartYr,Init!$N:$P,3,FALSE),$EQ8/VLOOKUP(StartYr+1,Init!$N:$P,3,FALSE))-VLOOKUP($A8,BillingCDQ!$B:$O,MATCH(MONTH(DS$4),BillingCDQ!$B$3:$O$3,0),FALSE)-INDEX($BO8:$DJ8,1,MATCH(DS$4,$BO$4:$DJ$4,0))/VLOOKUP(DS$4,Init!$I:$L,3,FALSE)),IF(AND($E8=0,ModelMode="Forecast"),MAX(0,VLOOKUP($A8,TRMbdForecast_CSP!$B:$ZZ,MATCH(DS$4,TRMbdForecast_CSP!$B$2:$ZZ$2,0),FALSE)-IF(DS$4<$DW$4,$EP8/VLOOKUP(StartYr,Init!$N:$P,3,FALSE),$EQ8/VLOOKUP(StartYr+1,Init!$N:$P,3,FALSE))-VLOOKUP($A8,TRMbdForecast_CDQ!$B:$ZZ,MATCH(DS$4,TRMbdForecast_CDQ!$B$2:$ZZ$2,0),FALSE)-(INDEX($BO8:$DJ8,1,MATCH(DS$4,$BO$4:$DJ$4,0))+VLOOKUP($A8,TRMbdForecast_Existing!$B:$ZZ,MATCH(DS$4,TRMbdForecast_Existing!$B$2:$ZZ$2,0),FALSE))/VLOOKUP(DS$4,Init!$I:$L,3,FALSE)),IF(AND($E8=1,ModelMode="Forecast"),0)))) -> 0.1372825 | DT8: =IF($C8=1,0,IF(ModelMode="Actuals",MAX(0,IF(ISNA(VLOOKUP($A8,BillingActual_CSP!$A:$AA,MATCH(DT$4,BillingActual_CSP!$A$9:$AA$9,0),FALSE)/1000),INDEX($BO8:$DJ8,1,MATCH(DT$4,$BO$4:$DJ$4,0))/VLOOKUP(DT$4,Init!$I:$L,3,FALSE),VLOOKUP($A8,BillingActual_CSP!$A:$AA,MATCH(DT$4,BillingActual_CSP!$A$9:$AA$9,0),FALSE)/1000)-IF(DT$4<$DW$4,$EP8/VLOOKUP(StartYr,Init!$N:$P,3,FALSE),$EQ8/VLOOKUP(StartYr+1,Init!$N:$P,3,FALSE))-VLOOKUP($A8,BillingCDQ!$B:$O,MATCH(MONTH(DT$4),BillingCDQ!$B$3:$O$3,0),FALSE)-INDEX($BO8:$DJ8,1,MATCH(DT$4,$BO$4:$DJ$4,0))/VLOOKUP(DT$4,Init!$I:$L,3,FALSE)),IF(AND($E8=0,ModelMode="Forecast"),MAX(0,VLOOKUP($A8,TRMbdForecast_CSP!$B:$ZZ,MATCH(DT$4,TRMbdForecast_CSP!$B$2:$ZZ$2,0),FALSE)-IF(DT$4<$DW$4,$EP8/VLOOKUP(StartYr,Init!$N:$P,3,FALSE),$EQ8/VLOOKUP(StartYr+1,Init!$N:$P,3,FALSE))-VLOOKUP($A8,TRMbdForecast_CDQ!$B:$ZZ,MATCH(DT$4,TRMbdForecast_CDQ!$B$2:$ZZ$2,0),FALSE)-(INDEX($BO8:$DJ8,1,MATCH(DT$4,$BO$4:$DJ$4,0))+VLOOKUP($A8,TRMbdForecast_Existing!$B:$ZZ,MATCH(DT$4,TRMbdForecast_Existing!$B$2:$ZZ$2,0),FALSE))/VLOOKUP(DT$4,Init!$I:$L,3,FALSE)),IF(AND($E8=1,ModelMode="Forecast"),0)))) -> 0.09935576923 | DU8: =IF($C8=1,0,IF(ModelMode="Actuals",MAX(0,IF(ISNA(VLOOKUP($A8,BillingActual_CSP!$A:$AA,MATCH(DU$4,BillingActual_CSP!$A$9:$AA$9,0),FALSE)/1000),INDEX($BO8:$DJ8,1,MATCH(DU$4,$BO$4:$DJ$4,0))/VLOOKUP(DU$4,Init!$I:$L,3,FALSE),VLOOKUP($A8,BillingActual_CSP!$A:$AA,MATCH(DU$4,BillingActual_CSP!$A$9:$AA$9,0),FALSE)/1000)-IF(DU$4<$DW$4,$EP8/VLOOKUP(StartYr,Init!$N:$P,3,FALSE),$EQ8/VLOOKUP(StartYr+1,Init!$N:$P,3,FALSE))-VLOOKUP($A8,BillingCDQ!$B:$O,MATCH(MONTH(DU$4),BillingCDQ!$B$3:$O$3,0),FALSE)-INDEX($BO8:$DJ8,1,MATCH(DU$4,$BO$4:$DJ$4,0))/VLOOKUP(DU$4,Init!$I:$L,3,FALSE)),IF(AND($E8=0,ModelMode="Forecast"),MAX(0,VLOOKUP($A8,TRMbdForecast_CSP!$B:$ZZ,MATCH(DU$4,TRMbdForecast_CSP!$B$2:$ZZ$2,0),FALSE)-IF(DU$4<$DW$4,$EP8/VLOOKUP(StartYr,Init!$N:$P,3,FALSE),$EQ8/VLOOKUP(StartYr+1,Init!$N:$P,3,FALSE))-VLOOKUP($A8,TRMbdForecast_CDQ!$B:$ZZ,MATCH(DU$4,TRMbdForecast_CDQ!$B$2:$ZZ$2,0),FALSE)-(INDEX($BO8:$DJ8,1,MATCH(DU$4,$BO$4:$DJ$4,0))+VLOOKUP($A8,TRMbdForecast_Existing!$B:$ZZ,MATCH(DU$4,TRMbdForecast_Existing!$B$2:$ZZ$2,0),FALSE))/VLOOKUP(DU$4,Init!$I:$L,3,FALSE)),IF(AND($E8=1,ModelMode="Forecast"),0)))) -> 0.1439467593 | DV8: =IF($C8=1,0,IF(ModelMode="Actuals",MAX(0,IF(ISNA(VLOOKUP($A8,BillingActual_CSP!$A:$AA,MATCH(DV$4,BillingActual_CSP!$A$9:$AA$9,0),FALSE)/1000),INDEX($BO8:$DJ8,1,MATCH(DV$4,$BO$4:$DJ$4,0))/VLOOKUP(DV$4,Init!$I:$L,3,FALSE),VLOOKUP($A8,BillingActual_CSP!$A:$AA,MATCH(DV$4,BillingActual_CSP!$A$9:$AA$9,0),FALSE)/1000)-IF(DV$4<$DW$4,$EP8/VLOOKUP(StartYr,Init!$N:$P,3,FALSE),$EQ8/VLOOKUP(StartYr+1,Init!$N:$P,3,FALSE))-VLOOKUP($A8,BillingCDQ!$B:$O,MATCH(MONTH(DV$4),BillingCDQ!$B$3:$O$3,0),FALSE)-INDEX($BO8:$DJ8,1,MATCH(DV$4,$BO$4:$DJ$4,0))/VLOOKUP(DV$4,Init!$I:$L,3,FALSE)),IF(AND($E8=0,ModelMode="Forecast"),MAX(0,VLOOKUP($A8,TRMbdForecast_CSP!$B:$ZZ,MATCH(DV$4,TRMbdForecast_CSP!$B$2:$ZZ$2,0),FALSE)-IF(DV$4<$DW$4,$EP8/VLOOKUP(StartYr,Init!$N:$P,3,FALSE),$EQ8/VLOOKUP(StartYr+1,Init!$N:$P,3,FALSE))-VLOOKUP($A8,TRMbdForecast_CDQ!$B:$ZZ,MATCH(DV$4,TRMbdForecast_CDQ!$B$2:$ZZ$2,0),FALSE)-(INDEX($BO8:$DJ8,1,MATCH(DV$4,$BO$4:$DJ$4,0))+VLOOKUP($A8,TRMbdForecast_Existing!$B:$ZZ,MATCH(DV$4,TRMbdForecast_Existing!$B$2:$ZZ$2,0),FALSE))/VLOOKUP(DV$4,Init!$I:$L,3,FALSE)),IF(AND($E8=1,ModelMode="Forecast"),0)))) -> 0.114421875 | DW8: =IF($C8=1,0,IF(ModelMode="Actuals",MAX(0,IF(ISNA(VLOOKUP($A8,BillingActual_CSP!$A:$AA,MATCH(DW$4,BillingActual_CSP!$A$9:$AA$9,0),FALSE)/1000),INDEX($BO8:$DJ8,1,MATCH(DW$4,$BO$4:$DJ$4,0))/VLOOKUP(DW$4,Init!$I:$L,3,FALSE),VLOOKUP($A8,BillingActual_CSP!$A:$AA,MATCH(DW$4,BillingActual_CSP!$A$9:$AA$9,0),FALSE)/1000)-IF(DW$4<$DW$4,$EP8/VLOOKUP(StartYr,Init!$N:$P,3,FALSE),$EQ8/VLOOKUP(StartYr+1,Init!$N:$P,3,FALSE))-VLOOKUP($A8,BillingCDQ!$B:$O,MATCH(MONTH(DW$4),BillingCDQ!$B$3:$O$3,0),FALSE)-INDEX($BO8:$DJ8,1,MATCH(DW$4,$BO$4:$DJ$4,0))/VLOOKUP(DW$4,Init!$I:$L,3,FALSE)),IF(AND($E8=0,ModelMode="Forecast"),MAX(0,VLOOKUP($A8,TRMbdForecast_CSP!$B:$ZZ,MATCH(DW$4,TRMbdForecast_CSP!$B$2:$ZZ$2,0),FALSE)-IF(DW$4<$DW$4,$EP8/VLOOKUP(StartYr,Init!$N:$P,3,FALSE),$EQ8/VLOOKUP(StartYr+1,Init!$N:$P,3,FALSE))-VLOOKUP($A8,TRMbdForecast_CDQ!$B:$ZZ,MATCH(DW$4,TRMbdForecast_CDQ!$B$2:$ZZ$2,0),FALSE)-(INDEX($BO8:$DJ8,1,MATCH(DW$4,$BO$4:$DJ$4,0))+VLOOKUP($A8,TRMbdForecast_Existing!$B:$ZZ,MATCH(DW$4,TRMbdForecast_Existing!$B$2:$ZZ$2,0),FALSE))/VLOOKUP(DW$4,Init!$I:$L,3,FALSE)),IF(AND($E8=1,ModelMode="Forecast"),0)))) -> 0.07908333333 | DX8: =IF($C8=1,0,IF(ModelMode="Actuals",MAX(0,IF(ISNA(VLOOKUP($A8,BillingActual_CSP!$A:$AA,MATCH(DX$4,BillingActual_CSP!$A$9:$AA$9,0),FALSE)/1000),INDEX($BO8:$DJ8,1,MATCH(DX$4,$BO$4:$DJ$4,0))/VLOOKUP(DX$4,Init!$I:$L,3,FALSE),VLOOKUP($A8,BillingActual_CSP!$A:$AA,MATCH(DX$4,BillingActual_CSP!$A$9:$AA$9,0),FALSE)/1000)-IF(DX$4<$DW$4,$EP8/VLOOKUP(StartYr,Init!$N:$P,3,FALSE),$EQ8/VLOOKUP(StartYr+1,Init!$N:$P,3,FALSE))-VLOOKUP($A8,BillingCDQ!$B:$O,MATCH(MONTH(DX$4),BillingCDQ!$B$3:$O$3,0),FALSE)-INDEX($BO8:$DJ8,1,MATCH(DX$4,$BO$4:$DJ$4,0))/VLOOKUP(DX$4,Init!$I:$L,3,FALSE)),IF(AND($E8=0,ModelMode="Forecast"),MAX(0,VLOOKUP($A8,TRMbdForecast_CSP!$B:$ZZ,MATCH(DX$4,TRMbdForecast_CSP!$B$2:$ZZ$2,0),FALSE)-IF(DX$4<$DW$4,$EP8/VLOOKUP(StartYr,Init!$N:$P,3,FALSE),$EQ8/VLOOKUP(StartYr+1,Init!$N:$P,3,FALSE))-VLOOKUP($A8,TRMbdForecast_CDQ!$B:$ZZ,MATCH(DX$4,TRMbdForecast_CDQ!$B$2:$ZZ$2,0),FALSE)-(INDEX($BO8:$DJ8,1,MATCH(DX$4,$BO$4:$DJ$4,0))+VLOOKUP($A8,TRMbdForecast_Existing!$B:$ZZ,MATCH(DX$4,TRMbdForecast_Existing!$B$2:$ZZ$2,0),FALSE))/VLOOKUP(DX$4,Init!$I:$L,3,FALSE)),IF(AND($E8=1,ModelMode="Forecast"),0)))) -> 0.088725 | DY8: =IF($C8=1,0,IF(ModelMode="Actuals",MAX(0,IF(ISNA(VLOOKUP($A8,BillingActual_CSP!$A:$AA,MATCH(DY$4,BillingActual_CSP!$A$9:$AA$9,0),FALSE)/1000),INDEX($BO8:$DJ8,1,MATCH(DY$4,$BO$4:$DJ$4,0))/VLOOKUP(DY$4,Init!$I:$L,3,FALSE),VLOOKUP($A8,BillingActual_CSP!$A:$AA,MATCH(DY$4,BillingActual_CSP!$A$9:$AA$9,0),FALSE)/1000)-IF(DY$4<$DW$4,$EP8/VLOOKUP(StartYr,Init!$N:$P,3,FALSE),$EQ8/VLOOKUP(StartYr+1,Init!$N:$P,3,FALSE))-VLOOKUP($A8,BillingCDQ!$B:$O,MATCH(MONTH(DY$4),BillingCDQ!$B$3:$O$3,0),FALSE)-INDEX($BO8:$DJ8,1,MATCH(DY$4,$BO$4:$DJ$4,0))/VLOOKUP(DY$4,Init!$I:$L,3,FALSE)),IF(AND($E8=0,ModelMode="Forecast"),MAX(0,VLOOKUP($A8,TRMbdForecast_CSP!$B:$ZZ,MATCH(DY$4,TRMbdForecast_CSP!$B$2:$ZZ$2,0),FALSE)-IF(DY$4<$DW$4,$EP8/VLOOKUP(StartYr,Init!$N:$P,3,FALSE),$EQ8/VLOOKUP(StartYr+1,Init!$N:$P,3,FALSE))-VLOOKUP($A8,TRMbdForecast_CDQ!$B:$ZZ,MATCH(DY$4,TRMbdForecast_CDQ!$B$2:$ZZ$2,0),FALSE)-(INDEX($BO8:$DJ8,1,MATCH(DY$4,$BO$4:$DJ$4,0))+VLOOKUP($A8,TRMbdForecast_Existing!$B:$ZZ,MATCH(DY$4,TRMbdForecast_Existing!$B$2:$ZZ$2,0),FALSE))/VLOOKUP(DY$4,Init!$I:$L,3,FALSE)),IF(AND($E8=1,ModelMode="Forecast"),0)))) -> 0.0415325 | DZ8: =IF($C8=1,0,IF(ModelMode="Actuals",MAX(0,IF(ISNA(VLOOKUP($A8,BillingActual_CSP!$A:$AA,MATCH(DZ$4,BillingActual_CSP!$A$9:$AA$9,0),FALSE)/1000),INDEX($BO8:$DJ8,1,MATCH(DZ$4,$BO$4:$DJ$4,0))/VLOOKUP(DZ$4,Init!$I:$L,3,FALSE),VLOOKUP($A8,BillingActual_CSP!$A:$AA,MATCH(DZ$4,BillingActual_CSP!$A$9:$AA$9,0),FALSE)/1000)-IF(DZ$4<$DW$4,$EP8/VLOOKUP(StartYr,Init!$N:$P,3,FALSE),$EQ8/VLOOKUP(StartYr+1,Init!$N:$P,3,FALSE))-VLOOKUP($A8,BillingCDQ!$B:$O,MATCH(MONTH(DZ$4),BillingCDQ!$B$3:$O$3,0),FALSE)-INDEX($BO8:$DJ8,1,MATCH(DZ$4,$BO$4:$DJ$4,0))/VLOOKUP(DZ$4,Init!$I:$L,3,FALSE)),IF(AND($E8=0,ModelMode="Forecast"),MAX(0,VLOOKUP($A8,TRMbdForecast_CSP!$B:$ZZ,MATCH(DZ$4,TRMbdForecast_CSP!$B$2:$ZZ$2,0),FALSE)-IF(DZ$4<$DW$4,$EP8/VLOOKUP(StartYr,Init!$N:$P,3,FALSE),$EQ8/VLOOKUP(StartYr+1,Init!$N:$P,3,FALSE))-VLOOKUP($A8,TRMbdForecast_CDQ!$B:$ZZ,MATCH(DZ$4,TRMbdForecast_CDQ!$B$2:$ZZ$2,0),FALSE)-(INDEX($BO8:$DJ8,1,MATCH(DZ$4,$BO$4:$DJ$4,0))+VLOOKUP($A8,TRMbdForecast_Existing!$B:$ZZ,MATCH(DZ$4,TRMbdForecast_Existing!$B$2:$ZZ$2,0),FALSE))/VLOOKUP(DZ$4,Init!$I:$L,3,FALSE)),IF(AND($E8=1,ModelMode="Forecast"),0)))) -> 0.1300985577 | EA8: =IF($C8=1,0,IF(ModelMode="Actuals",MAX(0,IF(ISNA(VLOOKUP($A8,BillingActual_CSP!$A:$AA,MATCH(EA$4,BillingActual_CSP!$A$9:$AA$9,0),FALSE)/1000),INDEX($BO8:$DJ8,1,MATCH(EA$4,$BO$4:$DJ$4,0))/VLOOKUP(EA$4,Init!$I:$L,3,FALSE),VLOOKUP($A8,BillingActual_CSP!$A:$AA,MATCH(EA$4,BillingActual_CSP!$A$9:$AA$9,0),FALSE)/1000)-IF(EA$4<$DW$4,$EP8/VLOOKUP(StartYr,Init!$N:$P,3,FALSE),$EQ8/VLOOKUP(StartYr+1,Init!$N:$P,3,FALSE))-VLOOKUP($A8,BillingCDQ!$B:$O,MATCH(MONTH(EA$4),BillingCDQ!$B$3:$O$3,0),FALSE)-INDEX($BO8:$DJ8,1,MATCH(EA$4,$BO$4:$DJ$4,0))/VLOOKUP(EA$4,Init!$I:$L,3,FALSE)),IF(AND($E8=0,ModelMode="Forecast"),MAX(0,VLOOKUP($A8,TRMbdForecast_CSP!$B:$ZZ,MATCH(EA$4,TRMbdForecast_CSP!$B$2:$ZZ$2,0),FALSE)-IF(EA$4<$DW$4,$EP8/VLOOKUP(StartYr,Init!$N:$P,3,FALSE),$EQ8/VLOOKUP(StartYr+1,Init!$N:$P,3,FALSE))-VLOOKUP($A8,TRMbdForecast_CDQ!$B:$ZZ,MATCH(EA$4,TRMbdForecast_CDQ!$B$2:$ZZ$2,0),FALSE)-(INDEX($BO8:$DJ8,1,MATCH(EA$4,$BO$4:$DJ$4,0))+VLOOKUP($A8,TRMbdForecast_Existing!$B:$ZZ,MATCH(EA$4,TRMbdForecast_Existing!$B$2:$ZZ$2,0),FALSE))/VLOOKUP(EA$4,Init!$I:$L,3,FALSE)),IF(AND($E8=1,ModelMode="Forecast"),0)))) -> 0.18125 | EB8: =IF($C8=1,0,IF(ModelMode="Actuals",MAX(0,IF(ISNA(VLOOKUP($A8,BillingActual_CSP!$A:$AA,MATCH(EB$4,BillingActual_CSP!$A$9:$AA$9,0),FALSE)/1000),INDEX($BO8:$DJ8,1,MATCH(EB$4,$BO$4:$DJ$4,0))/VLOOKUP(EB$4,Init!$I:$L,3,FALSE),VLOOKUP($A8,BillingActual_CSP!$A:$AA,MATCH(EB$4,BillingActual_CSP!$A$9:$AA$9,0),FALSE)/1000)-IF(EB$4<$DW$4,$EP8/VLOOKUP(StartYr,Init!$N:$P,3,FALSE),$EQ8/VLOOKUP(StartYr+1,Init!$N:$P,3,FALSE))-VLOOKUP($A8,BillingCDQ!$B:$O,MATCH(MONTH(EB$4),BillingCDQ!$B$3:$O$3,0),FALSE)-INDEX($BO8:$DJ8,1,MATCH(EB$4,$BO$4:$DJ$4,0))/VLOOKUP(EB$4,Init!$I:$L,3,FALSE)),IF(AND($E8=0,ModelMode="Forecast"),MAX(0,VLOOKUP($A8,TRMbdForecast_CSP!$B:$ZZ,MATCH(EB$4,TRMbdForecast_CSP!$B$2:$ZZ$2,0),FALSE)-IF(EB$4<$DW$4,$EP8/VLOOKUP(StartYr,Init!$N:$P,3,FALSE),$EQ8/VLOOKUP(StartYr+1,Init!$N:$P,3,FALSE))-VLOOKUP($A8,TRMbdForecast_CDQ!$B:$ZZ,MATCH(EB$4,TRMbdForecast_CDQ!$B$2:$ZZ$2,0),FALSE)-(INDEX($BO8:$DJ8,1,MATCH(EB$4,$BO$4:$DJ$4,0))+VLOOKUP($A8,TRMbdForecast_Existing!$B:$ZZ,MATCH(EB$4,TRMbdForecast_Existing!$B$2:$ZZ$2,0),FALSE))/VLOOKUP(EB$4,Init!$I:$L,3,FALSE)),IF(AND($E8=1,ModelMode="Forecast"),0)))) -> 0.1890024038 | EC8: =IF($C8=1,0,IF(ModelMode="Actuals",MAX(0,IF(ISNA(VLOOKUP($A8,BillingActual_CSP!$A:$AA,MATCH(EC$4,BillingActual_CSP!$A$9:$AA$9,0),FALSE)/1000),INDEX($BO8:$DJ8,1,MATCH(EC$4,$BO$4:$DJ$4,0))/VLOOKUP(EC$4,Init!$I:$L,3,FALSE),VLOOKUP($A8,BillingActual_CSP!$A:$AA,MATCH(EC$4,BillingActual_CSP!$A$9:$AA$9,0),FALSE)/1000)-IF(EC$4<$DW$4,$EP8/VLOOKUP(StartYr,Init!$N:$P,3,FALSE),$EQ8/VLOOKUP(StartYr+1,Init!$N:$P,3,FALSE))-VLOOKUP($A8,BillingCDQ!$B:$O,MATCH(MONTH(EC$4),BillingCDQ!$B$3:$O$3,0),FALSE)-INDEX($BO8:$DJ8,1,MATCH(EC$4,$BO$4:$DJ$4,0))/VLOOKUP(EC$4,Init!$I:$L,3,FALSE)),IF(AND($E8=0,ModelMode="Forecast"),MAX(0,VLOOKUP($A8,TRMbdForecast_CSP!$B:$ZZ,MATCH(EC$4,TRMbdForecast_CSP!$B$2:$ZZ$2,0),FALSE)-IF(EC$4<$DW$4,$EP8/VLOOKUP(StartYr,Init!$N:$P,3,FALSE),$EQ8/VLOOKUP(StartYr+1,Init!$N:$P,3,FALSE))-VLOOKUP($A8,TRMbdForecast_CDQ!$B:$ZZ,MATCH(EC$4,TRMbdForecast_CDQ!$B$2:$ZZ$2,0),FALSE)-(INDEX($BO8:$DJ8,1,MATCH(EC$4,$BO$4:$DJ$4,0))+VLOOKUP($A8,TRMbdForecast_Existing!$B:$ZZ,MATCH(EC$4,TRMbdForecast_Existing!$B$2:$ZZ$2,0),FALSE))/VLOOKUP(EC$4,Init!$I:$L,3,FALSE)),IF(AND($E8=1,ModelMode="Forecast"),0)))) -> 0.04810817308 | ED8: =IF($C8=1,0,IF(ModelMode="Actuals",MAX(0,IF(ISNA(VLOOKUP($A8,BillingActual_CSP!$A:$AA,MATCH(ED$4,BillingActual_CSP!$A$9:$AA$9,0),FALSE)/1000),INDEX($BO8:$DJ8,1,MATCH(ED$4,$BO$4:$DJ$4,0))/VLOOKUP(ED$4,Init!$I:$L,3,FALSE),VLOOKUP($A8,BillingActual_CSP!$A:$AA,MATCH(ED$4,BillingActual_CSP!$A$9:$AA$9,0),FALSE)/1000)-IF(ED$4<$DW$4,$EP8/VLOOKUP(StartYr,Init!$N:$P,3,FALSE),$EQ8/VLOOKUP(StartYr+1,Init!$N:$P,3,FALSE))-VLOOKUP($A8,BillingCDQ!$B:$O,MATCH(MONTH(ED$4),BillingCDQ!$B$3:$O$3,0),FALSE)-INDEX($BO8:$DJ8,1,MATCH(ED$4,$BO$4:$DJ$4,0))/VLOOKUP(ED$4,Init!$I:$L,3,FALSE)),IF(AND($E8=0,ModelMode="Forecast"),MAX(0,VLOOKUP($A8,TRMbdForecast_CSP!$B:$ZZ,MATCH(ED$4,TRMbdForecast_CSP!$B$2:$ZZ$2,0),FALSE)-IF(ED$4<$DW$4,$EP8/VLOOKUP(StartYr,Init!$N:$P,3,FALSE),$EQ8/VLOOKUP(StartYr+1,Init!$N:$P,3,FALSE))-VLOOKUP($A8,TRMbdForecast_CDQ!$B:$ZZ,MATCH(ED$4,TRMbdForecast_CDQ!$B$2:$ZZ$2,0),FALSE)-(INDEX($BO8:$DJ8,1,MATCH(ED$4,$BO$4:$DJ$4,0))+VLOOKUP($A8,TRMbdForecast_Existing!$B:$ZZ,MATCH(ED$4,TRMbdForecast_Existing!$B$2:$ZZ$2,0),FALSE))/VLOOKUP(ED$4,Init!$I:$L,3,FALSE)),IF(AND($E8=1,ModelMode="Forecast"),0)))) -> 0.091125 | EE8: =IF($C8=1,0,IF(ModelMode="Actuals",MAX(0,IF(ISNA(VLOOKUP($A8,BillingActual_CSP!$A:$AA,MATCH(EE$4,BillingActual_CSP!$A$9:$AA$9,0),FALSE)/1000),INDEX($BO8:$DJ8,1,MATCH(EE$4,$BO$4:$DJ$4,0))/VLOOKUP(EE$4,Init!$I:$L,3,FALSE),VLOOKUP($A8,BillingActual_CSP!$A:$AA,MATCH(EE$4,BillingActual_CSP!$A$9:$AA$9,0),FALSE)/1000)-IF(EE$4<$DW$4,$EP8/VLOOKUP(StartYr,Init!$N:$P,3,FALSE),$EQ8/VLOOKUP(StartYr+1,Init!$N:$P,3,FALSE))-VLOOKUP($A8,BillingCDQ!$B:$O,MATCH(MONTH(EE$4),BillingCDQ!$B$3:$O$3,0),FALSE)-INDEX($BO8:$DJ8,1,MATCH(EE$4,$BO$4:$DJ$4,0))/VLOOKUP(EE$4,Init!$I:$L,3,FALSE)),IF(AND($E8=0,ModelMode="Forecast"),MAX(0,VLOOKUP($A8,TRMbdForecast_CSP!$B:$ZZ,MATCH(EE$4,TRMbdForecast_CSP!$B$2:$ZZ$2,0),FALSE)-IF(EE$4<$DW$4,$EP8/VLOOKUP(StartYr,Init!$N:$P,3,FALSE),$EQ8/VLOOKUP(StartYr+1,Init!$N:$P,3,FALSE))-VLOOKUP($A8,TRMbdForecast_CDQ!$B:$ZZ,MATCH(EE$4,TRMbdForecast_CDQ!$B$2:$ZZ$2,0),FALSE)-(INDEX($BO8:$DJ8,1,MATCH(EE$4,$BO$4:$DJ$4,0))+VLOOKUP($A8,TRMbdForecast_Existing!$B:$ZZ,MATCH(EE$4,TRMbdForecast_Existing!$B$2:$ZZ$2,0),FALSE))/VLOOKUP(EE$4,Init!$I:$L,3,FALSE)),IF(AND($E8=1,ModelMode="Forecast"),0)))) -> 0.1372825 | EF8: =IF($C8=1,0,IF(ModelMode="Actuals",MAX(0,IF(ISNA(VLOOKUP($A8,BillingActual_CSP!$A:$AA,MATCH(EF$4,BillingActual_CSP!$A$9:$AA$9,0),FALSE)/1000),INDEX($BO8:$DJ8,1,MATCH(EF$4,$BO$4:$DJ$4,0))/VLOOKUP(EF$4,Init!$I:$L,3,FALSE),VLOOKUP($A8,BillingActual_CSP!$A:$AA,MATCH(EF$4,BillingActual_CSP!$A$9:$AA$9,0),FALSE)/1000)-IF(EF$4<$DW$4,$EP8/VLOOKUP(StartYr,Init!$N:$P,3,FALSE),$EQ8/VLOOKUP(StartYr+1,Init!$N:$P,3,FALSE))-VLOOKUP($A8,BillingCDQ!$B:$O,MATCH(MONTH(EF$4),BillingCDQ!$B$3:$O$3,0),FALSE)-INDEX($BO8:$DJ8,1,MATCH(EF$4,$BO$4:$DJ$4,0))/VLOOKUP(EF$4,Init!$I:$L,3,FALSE)),IF(AND($E8=0,ModelMode="Forecast"),MAX(0,VLOOKUP($A8,TRMbdForecast_CSP!$B:$ZZ,MATCH(EF$4,TRMbdForecast_CSP!$B$2:$ZZ$2,0),FALSE)-IF(EF$4<$DW$4,$EP8/VLOOKUP(StartYr,Init!$N:$P,3,FALSE),$EQ8/VLOOKUP(StartYr+1,Init!$N:$P,3,FALSE))-VLOOKUP($A8,TRMbdForecast_CDQ!$B:$ZZ,MATCH(EF$4,TRMbdForecast_CDQ!$B$2:$ZZ$2,0),FALSE)-(INDEX($BO8:$DJ8,1,MATCH(EF$4,$BO$4:$DJ$4,0))+VLOOKUP($A8,TRMbdForecast_Existing!$B:$ZZ,MATCH(EF$4,TRMbdForecast_Existing!$B$2:$ZZ$2,0),FALSE))/VLOOKUP(EF$4,Init!$I:$L,3,FALSE)),IF(AND($E8=1,ModelMode="Forecast"),0)))) -> 0.09935576923 | EG8: =IF($C8=1,0,IF(ModelMode="Actuals",MAX(0,IF(ISNA(VLOOKUP($A8,BillingActual_CSP!$A:$AA,MATCH(EG$4,BillingActual_CSP!$A$9:$AA$9,0),FALSE)/1000),INDEX($BO8:$DJ8,1,MATCH(EG$4,$BO$4:$DJ$4,0))/VLOOKUP(EG$4,Init!$I:$L,3,FALSE),VLOOKUP($A8,BillingActual_CSP!$A:$AA,MATCH(EG$4,BillingActual_CSP!$A$9:$AA$9,0),FALSE)/1000)-IF(EG$4<$DW$4,$EP8/VLOOKUP(StartYr,Init!$N:$P,3,FALSE),$EQ8/VLOOKUP(StartYr+1,Init!$N:$P,3,FALSE))-VLOOKUP($A8,BillingCDQ!$B:$O,MATCH(MONTH(EG$4),BillingCDQ!$B$3:$O$3,0),FALSE)-INDEX($BO8:$DJ8,1,MATCH(EG$4,$BO$4:$DJ$4,0))/VLOOKUP(EG$4,Init!$I:$L,3,FALSE)),IF(AND($E8=0,ModelMode="Forecast"),MAX(0,VLOOKUP($A8,TRMbdForecast_CSP!$B:$ZZ,MATCH(EG$4,TRMbdForecast_CSP!$B$2:$ZZ$2,0),FALSE)-IF(EG$4<$DW$4,$EP8/VLOOKUP(StartYr,Init!$N:$P,3,FALSE),$EQ8/VLOOKUP(StartYr+1,Init!$N:$P,3,FALSE))-VLOOKUP($A8,TRMbdForecast_CDQ!$B:$ZZ,MATCH(EG$4,TRMbdForecast_CDQ!$B$2:$ZZ$2,0),FALSE)-(INDEX($BO8:$DJ8,1,MATCH(EG$4,$BO$4:$DJ$4,0))+VLOOKUP($A8,TRMbdForecast_Existing!$B:$ZZ,MATCH(EG$4,TRMbdForecast_Existing!$B$2:$ZZ$2,0),FALSE))/VLOOKUP(EG$4,Init!$I:$L,3,FALSE)),IF(AND($E8=1,ModelMode="Forecast"),0)))) -> 0.1456826923 | EH8: =IF($C8=1,0,IF(ModelMode="Actuals",MAX(0,IF(ISNA(VLOOKUP($A8,BillingActual_CSP!$A:$AA,MATCH(EH$4,BillingActual_CSP!$A$9:$AA$9,0),FALSE)/1000),INDEX($BO8:$DJ8,1,MATCH(EH$4,$BO$4:$DJ$4,0))/VLOOKUP(EH$4,Init!$I:$L,3,FALSE),VLOOKUP($A8,BillingActual_CSP!$A:$AA,MATCH(EH$4,BillingActual_CSP!$A$9:$AA$9,0),FALSE)/1000)-IF(EH$4<$DW$4,$EP8/VLOOKUP(StartYr,Init!$N:$P,3,FALSE),$EQ8/VLOOKUP(StartYr+1,Init!$N:$P,3,FALSE))-VLOOKUP($A8,BillingCDQ!$B:$O,MATCH(MONTH(EH$4),BillingCDQ!$B$3:$O$3,0),FALSE)-INDEX($BO8:$DJ8,1,MATCH(EH$4,$BO$4:$DJ$4,0))/VLOOKUP(EH$4,Init!$I:$L,3,FALSE)),IF(AND($E8=0,ModelMode="Forecast"),MAX(0,VLOOKUP($A8,TRMbdForecast_CSP!$B:$ZZ,MATCH(EH$4,TRMbdForecast_CSP!$B$2:$ZZ$2,0),FALSE)-IF(EH$4<$DW$4,$EP8/VLOOKUP(StartYr,Init!$N:$P,3,FALSE),$EQ8/VLOOKUP(StartYr+1,Init!$N:$P,3,FALSE))-VLOOKUP($A8,TRMbdForecast_CDQ!$B:$ZZ,MATCH(EH$4,TRMbdForecast_CDQ!$B$2:$ZZ$2,0),FALSE)-(INDEX($BO8:$DJ8,1,MATCH(EH$4,$BO$4:$DJ$4,0))+VLOOKUP($A8,TRMbdForecast_Existing!$B:$ZZ,MATCH(EH$4,TRMbdForecast_Existing!$B$2:$ZZ$2,0),FALSE))/VLOOKUP(EH$4,Init!$I:$L,3,FALSE)),IF(AND($E8=1,ModelMode="Forecast"),0)))) -> 0.1118925 | EI8: =IF(ModelMode="Actuals",VLOOKUP($A8,TRMbdActuals_TOCA!$B:$BT,MATCH(EI$7,TRMbdActuals_TOCA!$B$3:$BT$3,0),FALSE),VLOOKUP($A8,TRMbdForecast_TOCA!$B:$ZZ,MATCH(EI$7,TRMbdForecast_TOCA!$B$3:$ZZ$3,0),FALSE)) -> 0.548 | EJ8: =IF($E8=0,IF($C8=0, MAX(EN8 - ($EI8*VLOOKUP(StartYr,Init!$N:$P,3,FALSE)*IF($C8=0,1,0)),0),0), 0) -> 1162.417022 | EK8: =IF($E8=0,IF($C8=0, MAX(EO8 - ($EI8*VLOOKUP(StartYr+1,Init!$N:$P,3,FALSE)*IF($C8=0,1,0)),0),0), 0) -> 1232.883022 | EL8: =IF(ModelMode="Actuals",MIN(VLOOKUP($A8,TRMbdActuals_TOCA!$B:$BT,MATCH("TRL - NLSL - Existing Resource "&EL$7,TRMbdActuals_TOCA!$B$3:$BT$3,0),FALSE)*VLOOKUP(StartYr,Init!$N:$P,3,FALSE),($EI8*VLOOKUP(StartYr,Init!$N:$P,3,FALSE))),MIN(VLOOKUP($A8,TRMbdForecast_TOCA!$B:$ZZ,MATCH("TRL - NLSL - Existing Resource "&EL$7,TRMbdForecast_TOCA!$B$3:$ZZ$3,0),FALSE)*VLOOKUP(StartYr,Init!$N:$P,3,FALSE),($EI8*VLOOKUP(StartYr,Init!$N:$P,3,FALSE)))) -> 4813.632 | EM8: =IF(ModelMode="Actuals",MIN(VLOOKUP($A8,TRMbdActuals_TOCA!$B:$BT,MATCH("TRL - NLSL - Existing Resource "&EM$7,TRMbdActuals_TOCA!$B$3:$BT$3,0),FALSE)*VLOOKUP(StartYr+1,Init!$N:$P,3,FALSE),($EI8*VLOOKUP(StartYr+1,Init!$N:$P,3,FALSE))),MIN(VLOOKUP($A8,TRMbdForecast_TOCA!$B:$ZZ,MATCH("TRL - NLSL - Existing Resource "&EM$7,TRMbdForecast_TOCA!$B$3:$ZZ$3,0),FALSE)*VLOOKUP(StartYr+1,Init!$N:$P,3,FALSE),($EI8*VLOOKUP(StartYr+1,Init!$N:$P,3,FALSE)))) -> 4800.48 | EN8: =SUM(S8:AP8)+(F8*VLOOKUP(EN$7,Init!$A$6:$B$7,2,FALSE)*VLOOKUP(StartYr,Init!$N:$P,3,FALSE)) -> 5976.049022 | EO8: =SUM(AQ8:BN8)+(G8*VLOOKUP(EN$7,Init!$A$6:$B$7,2,FALSE)*VLOOKUP(StartYr+1,Init!$N:$P,3,FALSE)) -> 6033.363022 | EP8: =IF(ModelMode="Actuals",VLOOKUP($A8,TRMbdActuals_TOCA!$B:$BT,MATCH("Above RHWM Not Served with LS "&EP$7,TRMbdActuals_TOCA!$B$3:$BT$3,0),FALSE),VLOOKUP($A8,TRMbdForecast_TOCA!$B:$ZZ,MATCH("Above RHWM Not Served with LS "&EP$7,TRMbdForecast_TOCA!$B$3:$ZZ$3,0),FALSE))*VLOOKUP(StartYr,Init!$N:$P,3,FALSE) -> 0 | EQ8: =IF(ModelMode="Actuals",VLOOKUP($A8,TRMbdActuals_TOCA!$B:$BT,MATCH("Above RHWM Not Served with LS "&EQ$7,TRMbdActuals_TOCA!$B$3:$BT$3,0),FALSE),VLOOKUP($A8,TRMbdForecast_TOCA!$B:$ZZ,MATCH("Above RHWM Not Served with LS "&EQ$7,TRMbdForecast_TOCA!$B$3:$ZZ$3,0),FALSE))*VLOOKUP(StartYr+1,Init!$N:$P,3,FALSE) -> 0 | ER8: =EN8-EL8 -> 1162.417022 | ES8: =EO8-EM8 -> 1232.883022 | ET8: =($EI8*VLOOKUP(StartYr,Init!$N:$P,3,FALSE)) - EL8 -> 0 | EU8: =($EI8*VLOOKUP(StartYr+1,Init!$N:$P,3,FALSE)) - EM8 -> 0 | EV8: =IF(ER8>0,IF(ET8>0,(-1)*MIN(ER8,ET8),0),0) -> 0 | EW8: =IF(ES8>0,IF(EU8>0,(-1)*MIN(ES8,EU8),0),0) -> 0 | EX8: =IF(ER8<0,IF(EP8<ABS(ER8),MAX(0,ABS(ER8)-(EP8)),0),0) -> 0 | EY8: =IF(ES8<0,IF(EQ8<ABS(ES8),MAX(0,ABS(ES8)-(EQ8)),0),0) -> 0 | EZ8: =IF(AND(EP8>0,ET8>0),IF(AND(ER8<=0,ABS(ER8)<EP8),(-1)*MIN(EP8,EP8-ABS(ER8),ET8),IF(AND(ER8>0,ER8<ET8),(-1)*MIN(EP8,ET8-ER8),0)),0) -> 0 | FA8: =IF(AND(EQ8>0,EU8>0),IF(AND(ES8<=0,ABS(ES8)<EQ8),(-1)*MIN(EQ8,EQ8-ABS(ES8),EU8),IF(AND(ES8>0,ES8<EU8),(-1)*MIN(EQ8,EU8-ES8),0)),0) -> 0 | FB8: =IF($E8=0,SUM(EV8,EX8,EZ8),0) -> 0 | FC8: =IF($E8=0,SUM(EW8,EY8,FA8),0) -> 0
